Workbook

Sheet Jaugeage
A1: Date | B1: Météo | C1: Code | D1: N° Ars | E1: Syndicat | F1: Sect | G1: Commune | H1: Captages | I1: Arrivée Nbrs | J1: Nom ou N° source 1 (DROITE) | K1: Vol 1 | L1: Temps 1 | M1: M3 /J 1 | N1: Nom ou N° source 2 (GAUCHE) | O1: Vol 2 | P1: Temps 2 | Q1: M3 /J 2 | R1: Nom ou N° source 3 (MILIEU) | S1: Vol 3 | T1: Temps 3 | U1: M3 /J 3 | V1: Total M3/J | W1: Mois | X1: Année | Y1: Différence | Z1: Observations
A2: 1969-06-24 | C2: 838 | D2: =IF(ISNA(VLOOKUP(C2,BDDG!$A$2:$F$100,2,FALSE)),"",VLOOKUP(C2,BDDG!$A$2:$F$100,2,FALSE)) -> 0 | E2: =IF(ISNA(VLOOKUP(C2,BDDG!$A$3:$J$102,3,FALSE)),"",VLOOKUP(C2,BDDG!$A$3:$J$102,3,FALSE)) -> A | F2: =IF(ISNA(VLOOKUP(C2,BDDG!$A$3:$J$102,4,FALSE)),"",VLOOKUP(C2,BDDG!$A$3:$J$102,4,FALSE)) -> 106 | G2: =IF(ISNA(VLOOKUP(C2,BDDG!$A$2:$F$100,5,FALSE)),"",VLOOKUP(C2,BDDG!$A$2:$F$100,5,FALSE)) -> A3 | H2: =IF(ISNA(VLOOKUP(C2,BDDG!$A$2:$F$100,6,FALSE)),"",VLOOKUP(C2,BDDG!$A$2:$F$100,6,FALSE)) -> AA8 | I2: =IF(ISERROR(VLOOKUP(C2,BDDG!$A$2:$G$100,7,FALSE)),"",VLOOKUP(C2,BDDG!$A$2:$G$100,7,FALSE)) -> 1 | J2: =IF(ISERROR(VLOOKUP(C2,BDDG!$A$2:$H$100,8,FALSE)),"",VLOOKUP(C2,BDDG!$A$2:$H$100,8,FALSE)) -> BB8 | K2: 20 | L2: 60 | M2: =IF(ISERROR(K2/L2*86.4),"",K2/L2*86.4) -> 28.8 | N2: =IF(ISERROR(VLOOKUP(C2,BDDG!$A$2:$I$100,9,FALSE)),"",VLOOKUP(C2,BDDG!$A$2:$I$100,9,FALSE)) -> CC8 | Q2: =IF(ISERROR(O2/P2*86.4),"",O2/P2*86.4) ->  | R2: =IF(ISERROR(VLOOKUP(C2,BDDG!$A$2:$J$100,10,FALSE)),"",VLOOKUP(C2,BDDG!$A$2:$J$100,10,FALSE)) -> DD8 | U2: =IF(ISERROR(S2/T2*86.4),"",S2/T2*86.4) ->  | V2: =IF(ISERROR(SUM(M2,Q2,U2)),"",SUM(M2,Q2,U2)) -> 28.8 | W2: =MONTH(A:A) -> 6 | X2: =YEAR(A:A) -> 1969 | Y2: =IFERROR((INDEX($V$2:V2,MATCH(H2&MAX(IF($H1:H$1=H2,$A$1:A1)),$H$2:H2&$A$2:A2,0))-V2)*-1,"") -> 
A3: 1969-06-24 | C3: 837 | D3: =IF(ISNA(VLOOKUP(C3,BDDG!$A$2:$F$100,2,FALSE)),"",VLOOKUP(C3,BDDG!$A$2:$F$100,2,FALSE)) -> 0 | E3: =IF(ISNA(VLOOKUP(C3,BDDG!$A$3:$J$102,3,FALSE)),"",VLOOKUP(C3,BDDG!$A$3:$J$102,3,FALSE)) -> A | F3: =IF(ISNA(VLOOKUP(C3,BDDG!$A$3:$J$102,4,FALSE)),"",VLOOKUP(C3,BDDG!$A$3:$J$102,4,FALSE)) -> 106 | G3: =IF(ISNA(VLOOKUP(C3,BDDG!$A$2:$F$100,5,FALSE)),"",VLOOKUP(C3,BDDG!$A$2:$F$100,5,FALSE)) -> A3 | H3: =IF(ISNA(VLOOKUP(C3,BDDG!$A$2:$F$100,6,FALSE)),"",VLOOKUP(C3,BDDG!$A$2:$F$100,6,FALSE)) -> AA7 | I3: =IF(ISERROR(VLOOKUP(C3,BDDG!$A$2:$G$100,7,FALSE)),"",VLOOKUP(C3,BDDG!$A$2:$G$100,7,FALSE)) -> 1 | J3: =IF(ISERROR(VLOOKUP(C3,BDDG!$A$2:$H$100,8,FALSE)),"",VLOOKUP(C3,BDDG!$A$2:$H$100,8,FALSE)) -> BB7 | K3: 40 | L3: 60 | M3: =IF(ISERROR(K3/L3*86.4),"",K3/L3*86.4) -> 57.6 | N3: =IF(ISERROR(VLOOKUP(C3,BDDG!$A$2:$I$100,9,FALSE)),"",VLOOKUP(C3,BDDG!$A$2:$I$100,9,FALSE)) -> CC7 | R3: =IF(ISERROR(VLOOKUP(C3,BDDG!$A$2:$J$100,10,FALSE)),"",VLOOKUP(C3,BDDG!$A$2:$J$100,10,FALSE)) -> DD7 | V3: 57.6 | W3: 6 | X3: 1969 | Y3: =IFERROR((INDEX($V$2:V3,MATCH(H3&MAX(IF($H$1:H2=H3,$A$1:A2)),$H$2:H3&$A$2:A3,0))-V3)*-1,"") -> 
A4: 1969-06-24 | C4: 836 | D4: =IF(ISNA(VLOOKUP(C4,BDDG!$A$2:$F$100,2,FALSE)),"",VLOOKUP(C4,BDDG!$A$2:$F$100,2,FALSE)) -> 0 | E4: =IF(ISNA(VLOOKUP(C4,BDDG!$A$3:$J$102,3,FALSE)),"",VLOOKUP(C4,BDDG!$A$3:$J$102,3,FALSE)) -> A | F4: =IF(ISNA(VLOOKUP(C4,BDDG!$A$3:$J$102,4,FALSE)),"",VLOOKUP(C4,BDDG!$A$3:$J$102,4,FALSE)) -> 106 | G4: =IF(ISNA(VLOOKUP(C4,BDDG!$A$2:$F$100,5,FALSE)),"",VLOOKUP(C4,BDDG!$A$2:$F$100,5,FALSE)) -> A3 | H4: =IF(ISNA(VLOOKUP(C4,BDDG!$A$2:$F$100,6,FALSE)),"",VLOOKUP(C4,BDDG!$A$2:$F$100,6,FALSE)) -> AA6 | I4: =IF(ISERROR(VLOOKUP(C4,BDDG!$A$2:$G$100,7,FALSE)),"",VLOOKUP(C4,BDDG!$A$2:$G$100,7,FALSE)) -> 1 | J4: =IF(ISERROR(VLOOKUP(C4,BDDG!$A$2:$H$100,8,FALSE)),"",VLOOKUP(C4,BDDG!$A$2:$H$100,8,FALSE)) -> BB6 | K4: 120 | L4: 60 | M4: =IF(ISERROR(K4/L4*86.4),"",K4/L4*86.4) -> 172.8 | N4: =IF(ISERROR(VLOOKUP(C4,BDDG!$A$2:$I$100,9,FALSE)),"",VLOOKUP(C4,BDDG!$A$2:$I$100,9,FALSE)) -> CC6 | R4: =IF(ISERROR(VLOOKUP(C4,BDDG!$A$2:$J$100,10,FALSE)),"",VLOOKUP(C4,BDDG!$A$2:$J$100,10,FALSE)) -> DD6 | V4: 172.8 | W4: 6 | X4: 1969 | Y4: =IFERROR((INDEX($V$2:V4,MATCH(H4&MAX(IF($H$1:H3=H4,$A$1:A3)),$H$2:H4&$A$2:A4,0))-V4)*-1,"") -> 
A5: 1969-06-24 | C5: 839 | D5: =IF(ISNA(VLOOKUP(C5,BDDG!$A$2:$F$100,2,FALSE)),"",VLOOKUP(C5,BDDG!$A$2:$F$100,2,FALSE)) -> 0 | E5: =IF(ISNA(VLOOKUP(C5,BDDG!$A$3:$J$102,3,FALSE)),"",VLOOKUP(C5,BDDG!$A$3:$J$102,3,FALSE)) -> A | F5: =IF(ISNA(VLOOKUP(C5,BDDG!$A$3:$J$102,4,FALSE)),"",VLOOKUP(C5,BDDG!$A$3:$J$102,4,FALSE)) -> 106 | G5: =IF(ISNA(VLOOKUP(C5,BDDG!$A$2:$F$100,5,FALSE)),"",VLOOKUP(C5,BDDG!$A$2:$F$100,5,FALSE)) -> A3 | H5: =IF(ISNA(VLOOKUP(C5,BDDG!$A$2:$F$100,6,FALSE)),"",VLOOKUP(C5,BDDG!$A$2:$F$100,6,FALSE)) -> AA10 | I5: =IF(ISERROR(VLOOKUP(C5,BDDG!$A$2:$G$100,7,FALSE)),"",VLOOKUP(C5,BDDG!$A$2:$G$100,7,FALSE)) -> 2 | J5: =IF(ISERROR(VLOOKUP(C5,BDDG!$A$2:$H$100,8,FALSE)),"",VLOOKUP(C5,BDDG!$A$2:$H$100,8,FALSE)) -> BB10 | M5: 230.4 | N5: =IF(ISERROR(VLOOKUP(C5,BDDG!$A$2:$I$100,9,FALSE)),"",VLOOKUP(C5,BDDG!$A$2:$I$100,9,FALSE)) -> CC10 | R5: =IF(ISERROR(VLOOKUP(C5,BDDG!$A$2:$J$100,10,FALSE)),"",VLOOKUP(C5,BDDG!$A$2:$J$100,10,FALSE)) -> DD10 | V5: 230.4 | W5: 6 | X5: 1969 | Y5: =IFERROR((INDEX($V$2:V5,MATCH(H5&MAX(IF($H$1:H4=H5,$A$1:A4)),$H$2:H5&$A$2:A5,0))-V5)*-1,"") -> 
A6: 1993-03-23 | C6: 861 | D6: =IF(ISNA(VLOOKUP(C6,BDDG!$A$2:$F$100,2,FALSE)),"",VLOOKUP(C6,BDDG!$A$2:$F$100,2,FALSE)) -> 0 | E6: =IF(ISNA(VLOOKUP(C6,BDDG!$A$3:$J$102,3,FALSE)),"",VLOOKUP(C6,BDDG!$A$3:$J$102,3,FALSE)) -> A | F6: =IF(ISNA(VLOOKUP(C6,BDDG!$A$3:$J$102,4,FALSE)),"",VLOOKUP(C6,BDDG!$A$3:$J$102,4,FALSE)) -> 106 | G6: =IF(ISNA(VLOOKUP(C6,BDDG!$A$2:$F$100,5,FALSE)),"",VLOOKUP(C6,BDDG!$A$2:$F$100,5,FALSE)) -> A11 | H6: =IF(ISNA(VLOOKUP(C6,BDDG!$A$2:$F$100,6,FALSE)),"",VLOOKUP(C6,BDDG!$A$2:$F$100,6,FALSE)) -> AA33 | I6: =IF(ISERROR(VLOOKUP(C6,BDDG!$A$2:$G$100,7,FALSE)),"",VLOOKUP(C6,BDDG!$A$2:$G$100,7,FALSE)) -> 2 | J6: =IF(ISERROR(VLOOKUP(C6,BDDG!$A$2:$H$100,8,FALSE)),"",VLOOKUP(C6,BDDG!$A$2:$H$100,8,FALSE)) -> BB33 | N6: =IF(ISERROR(VLOOKUP(C6,BDDG!$A$2:$I$100,9,FALSE)),"",VLOOKUP(C6,BDDG!$A$2:$I$100,9,FALSE)) -> CC33 | O6: 87 | P6: 60 | Q6: 125.28 | R6: =IF(ISERROR(VLOOKUP(C6,BDDG!$A$2:$J$100,10,FALSE)),"",VLOOKUP(C6,BDDG!$A$2:$J$100,10,FALSE)) -> DD33 | V6: =IF(ISERROR(SUM(M6,Q6,U6)),"",SUM((M6,Q6,U6))) -> 125.28 | W6: 3 | X6: 1993 | Y6: =IFERROR((INDEX($V$2:V6,MATCH(H6&MAX(IF($H$1:H5=H6,$A$1:A5)),$H$2:H6&$A$2:A6,0))-V6)*-1,"") -> 
A7: 1993-03-23 | C7: 862 | D7: =IF(ISNA(VLOOKUP(C7,BDDG!$A$2:$F$100,2,FALSE)),"",VLOOKUP(C7,BDDG!$A$2:$F$100,2,FALSE)) -> 0 | E7: =IF(ISNA(VLOOKUP(C7,BDDG!$A$3:$J$102,3,FALSE)),"",VLOOKUP(C7,BDDG!$A$3:$J$102,3,FALSE)) -> A | F7: =IF(ISNA(VLOOKUP(C7,BDDG!$A$3:$J$102,4,FALSE)),"",VLOOKUP(C7,BDDG!$A$3:$J$102,4,FALSE)) -> 106 | G7: =IF(ISNA(VLOOKUP(C7,BDDG!$A$2:$F$100,5,FALSE)),"",VLOOKUP(C7,BDDG!$A$2:$F$100,5,FALSE)) -> A12 | H7: =IF(ISNA(VLOOKUP(C7,BDDG!$A$2:$F$100,6,FALSE)),"",VLOOKUP(C7,BDDG!$A$2:$F$100,6,FALSE)) -> AA34 | I7: =IF(ISERROR(VLOOKUP(C7,BDDG!$A$2:$G$100,7,FALSE)),"",VLOOKUP(C7,BDDG!$A$2:$G$100,7,FALSE)) -> 1 | J7: =IF(ISERROR(VLOOKUP(C7,BDDG!$A$2:$H$100,8,FALSE)),"",VLOOKUP(C7,BDDG!$A$2:$H$100,8,FALSE)) -> BB34 | K7: 22 | L7: 60 | M7: =IF(ISERROR(K7/L7*86.4),"",K7/L7*86.4) -> 31.68 | N7: =IF(ISERROR(VLOOKUP(C7,BDDG!$A$2:$I$100,9,FALSE)),"",VLOOKUP(C7,BDDG!$A$2:$I$100,9,FALSE)) -> CC34 | R7: =IF(ISERROR(VLOOKUP(C7,BDDG!$A$2:$J$100,10,FALSE)),"",VLOOKUP(C7,BDDG!$A$2:$J$100,10,FALSE)) -> DD34 | V7: =IF(ISERROR(SUM(M7,Q7,U7)),"",SUM(M7,Q7,U7)) -> 31.68 | W7: 3 | X7: 1993 | Y7: =IFERROR((INDEX($V$2:V7,MATCH(H7&MAX(IF($H$1:H6=H7,$A$1:A6)),$H$2:H7&$A$2:A7,0))-V7)*-1,"") -> 
A8: 1993-11-29 | C8: 835 | D8: =IF(ISNA(VLOOKUP(C8,BDDG!$A$2:$F$100,2,FALSE)),"",VLOOKUP(C8,BDDG!$A$2:$F$100,2,FALSE)) -> 0 | E8: =IF(ISNA(VLOOKUP(C8,BDDG!$A$3:$J$102,3,FALSE)),"",VLOOKUP(C8,BDDG!$A$3:$J$102,3,FALSE)) -> A | F8: =IF(ISNA(VLOOKUP(C8,BDDG!$A$3:$J$102,4,FALSE)),"",VLOOKUP(C8,BDDG!$A$3:$J$102,4,FALSE)) -> 106 | G8: =IF(ISNA(VLOOKUP(C8,BDDG!$A$2:$F$100,5,FALSE)),"",VLOOKUP(C8,BDDG!$A$2:$F$100,5,FALSE)) -> A3 | H8: =IF(ISNA(VLOOKUP(C8,BDDG!$A$2:$F$100,6,FALSE)),"",VLOOKUP(C8,BDDG!$A$2:$F$100,6,FALSE)) -> AA5 | I8: =IF(ISERROR(VLOOKUP(C8,BDDG!$A$2:$G$100,7,FALSE)),"",VLOOKUP(C8,BDDG!$A$2:$G$100,7,FALSE)) -> 1 | J8: =IF(ISERROR(VLOOKUP(C8,BDDG!$A$2:$H$100,8,FALSE)),"",VLOOKUP(C8,BDDG!$A$2:$H$100,8,FALSE)) -> BB5 | K8: 5 | L8: 60 | M8: 7.2 | N8: =IF(ISERROR(VLOOKUP(C8,BDDG!$A$2:$I$100,9,FALSE)),"",VLOOKUP(C8,BDDG!$A$2:$I$100,9,FALSE)) -> CC5 | R8: =IF(ISERROR(VLOOKUP(C8,BDDG!$A$2:$J$100,10,FALSE)),"",VLOOKUP(C8,BDDG!$A$2:$J$100,10,FALSE)) -> DD5 | V8: 7.2 | W8: 11 | X8: 1993 | Y8: =IFERROR((INDEX($V$2:V8,MATCH(H8&MAX(IF($H$1:H7=H8,$A$1:A7)),$H$2:H8&$A$2:A8,0))-V8)*-1,"") -> 
A9: 1995-05-09 | C9: 856 | D9: =IF(ISNA(VLOOKUP(C9,BDDG!$A$2:$F$100,2,FALSE)),"",VLOOKUP(C9,BDDG!$A$2:$F$100,2,FALSE)) -> 0 | E9: =IF(ISNA(VLOOKUP(C9,BDDG!$A$3:$J$102,3,FALSE)),"",VLOOKUP(C9,BDDG!$A$3:$J$102,3,FALSE)) -> A | F9: =IF(ISNA(VLOOKUP(C9,BDDG!$A$3:$J$102,4,FALSE)),"",VLOOKUP(C9,BDDG!$A$3:$J$102,4,FALSE)) -> 106 | G9: =IF(ISNA(VLOOKUP(C9,BDDG!$A$2:$F$100,5,FALSE)),"",VLOOKUP(C9,BDDG!$A$2:$F$100,5,FALSE)) -> A9 | H9: =IF(ISNA(VLOOKUP(C9,BDDG!$A$2:$F$100,6,FALSE)),"",VLOOKUP(C9,BDDG!$A$2:$F$100,6,FALSE)) -> AA27 | I9: =IF(ISERROR(VLOOKUP(C9,BDDG!$A$2:$G$100,7,FALSE)),"",VLOOKUP(C9,BDDG!$A$2:$G$100,7,FALSE)) -> 2 | J9: =IF(ISERROR(VLOOKUP(C9,BDDG!$A$2:$H$100,8,FALSE)),"",VLOOKUP(C9,BDDG!$A$2:$H$100,8,FALSE)) -> BB27 | K9: 10 | L9: 21 | M9: 41.14285714 | N9: =IF(ISERROR(VLOOKUP(C9,BDDG!$A$2:$I$100,9,FALSE)),"",VLOOKUP(C9,BDDG!$A$2:$I$100,9,FALSE)) -> CC27 | O9: 4 | P9: 1 | Q9: 345.6 | R9: =IF(ISERROR(VLOOKUP(C9,BDDG!$A$2:$J$100,10,FALSE)),"",VLOOKUP(C9,BDDG!$A$2:$J$100,10,FALSE)) -> DD27 | V9: 386.7428571 | W9: 5 | X9: 1995 | Y9: =IFERROR((INDEX($V$2:V9,MATCH(H9&MAX(IF($H$1:H8=H9,$A$1:A8)),$H$2:H9&$A$2:A9,0))-V9)*-1,"") -> 
A10: 1996-08-01 | C10: 860 | D10: =IF(ISNA(VLOOKUP(C10,BDDG!$A$2:$F$100,2,FALSE)),"",VLOOKUP(C10,BDDG!$A$2:$F$100,2,FALSE)) -> 0 | E10: =IF(ISNA(VLOOKUP(C10,BDDG!$A$3:$J$102,3,FALSE)),"",VLOOKUP(C10,BDDG!$A$3:$J$102,3,FALSE)) -> A | F10: =IF(ISNA(VLOOKUP(C10,BDDG!$A$3:$J$102,4,FALSE)),"",VLOOKUP(C10,BDDG!$A$3:$J$102,4,FALSE)) -> 106 | G10: =IF(ISNA(VLOOKUP(C10,BDDG!$A$2:$F$100,5,FALSE)),"",VLOOKUP(C10,BDDG!$A$2:$F$100,5,FALSE)) -> A11 | H10: =IF(ISNA(VLOOKUP(C10,BDDG!$A$2:$F$100,6,FALSE)),"",VLOOKUP(C10,BDDG!$A$2:$F$100,6,FALSE)) -> AA32 | I10: =IF(ISERROR(VLOOKUP(C10,BDDG!$A$2:$G$100,7,FALSE)),"",VLOOKUP(C10,BDDG!$A$2:$G$100,7,FALSE)) -> 2 | J10: =IF(ISERROR(VLOOKUP(C10,BDDG!$A$2:$H$100,8,FALSE)),"",VLOOKUP(C10,BDDG!$A$2:$H$100,8,FALSE)) -> BB32 | K10: 10 | L10: 16 | M10: 54 | N10: =IF(ISERROR(VLOOKUP(C10,BDDG!$A$2:$I$100,9,FALSE)),"",VLOOKUP(C10,BDDG!$A$2:$I$100,9,FALSE)) -> CC32 | R10: =IF(ISERROR(VLOOKUP(C10,BDDG!$A$2:$J$100,10,FALSE)),"",VLOOKUP(C10,BDDG!$A$2:$J$100,10,FALSE)) -> DD32 | V10: 54 | W10: 8 | X10: 1996 | Y10: =IFERROR((INDEX($V$2:V10,MATCH(H10&MAX(IF($H$1:H9=H10,$A$1:A9)),$H$2:H10&$A$2:A10,0))-V10)*-1,"") -> 
A11: 1996-09-17 | C11: 832 | D11: =IF(ISNA(VLOOKUP(C11,BDDG!$A$2:$F$100,2,FALSE)),"",VLOOKUP(C11,BDDG!$A$2:$F$100,2,FALSE)) -> 0 | E11: =IF(ISNA(VLOOKUP(C11,BDDG!$A$3:$J$102,3,FALSE)),"",VLOOKUP(C11,BDDG!$A$3:$J$102,3,FALSE)) -> A | F11: =IF(ISNA(VLOOKUP(C11,BDDG!$A$3:$J$102,4,FALSE)),"",VLOOKUP(C11,BDDG!$A$3:$J$102,4,FALSE)) -> 106 | G11: =IF(ISNA(VLOOKUP(C11,BDDG!$A$2:$F$100,5,FALSE)),"",VLOOKUP(C11,BDDG!$A$2:$F$100,5,FALSE)) -> A2 | H11: =IF(ISNA(VLOOKUP(C11,BDDG!$A$2:$F$100,6,FALSE)),"",VLOOKUP(C11,BDDG!$A$2:$F$100,6,FALSE)) -> AA2 | I11: =IF(ISERROR(VLOOKUP(C11,BDDG!$A$2:$G$100,7,FALSE)),"",VLOOKUP(C11,BDDG!$A$2:$G$100,7,FALSE)) -> 1 | J11: =IF(ISERROR(VLOOKUP(C11,BDDG!$A$2:$H$100,8,FALSE)),"",VLOOKUP(C11,BDDG!$A$2:$H$100,8,FALSE)) -> BB2 | K11: 10 | L11: 7 | M11: 123.4285714 | N11: =IF(ISERROR(VLOOKUP(C11,BDDG!$A$2:$I$100,9,FALSE)),"",VLOOKUP(C11,BDDG!$A$2:$I$100,9,FALSE)) -> CC2 | R11: =IF(ISERROR(VLOOKUP(C11,BDDG!$A$2:$J$100,10,FALSE)),"",VLOOKUP(C11,BDDG!$A$2:$J$100,10,FALSE)) -> DD2 | V11: 123.4285714 | W11: 9 | X11: 1996 | Y11: =IFERROR((INDEX($V$2:V11,MATCH(H11&MAX(IF($H$1:H10=H11,$A$1:A10)),$H$2:H11&$A$2:A11,0))-V11)*-1,"") -> 
A12: 1996-09-17 | C12: 833 | D12: =IF(ISNA(VLOOKUP(C12,BDDG!$A$2:$F$100,2,FALSE)),"",VLOOKUP(C12,BDDG!$A$2:$F$100,2,FALSE)) -> 0 | E12: =IF(ISNA(VLOOKUP(C12,BDDG!$A$3:$J$102,3,FALSE)),"",VLOOKUP(C12,BDDG!$A$3:$J$102,3,FALSE)) -> A | F12: =IF(ISNA(VLOOKUP(C12,BDDG!$A$3:$J$102,4,FALSE)),"",VLOOKUP(C12,BDDG!$A$3:$J$102,4,FALSE)) -> 106 | G12: =IF(ISNA(VLOOKUP(C12,BDDG!$A$2:$F$100,5,FALSE)),"",VLOOKUP(C12,BDDG!$A$2:$F$100,5,FALSE)) -> A2 | H12: =IF(ISNA(VLOOKUP(C12,BDDG!$A$2:$F$100,6,FALSE)),"",VLOOKUP(C12,BDDG!$A$2:$F$100,6,FALSE)) -> AA3 | I12: =IF(ISERROR(VLOOKUP(C12,BDDG!$A$2:$G$100,7,FALSE)),"",VLOOKUP(C12,BDDG!$A$2:$G$100,7,FALSE)) -> 1 | J12: =IF(ISERROR(VLOOKUP(C12,BDDG!$A$2:$H$100,8,FALSE)),"",VLOOKUP(C12,BDDG!$A$2:$H$100,8,FALSE)) -> BB3 | K12: 10 | L12: 33 | M12: 26.18181818 | N12: =IF(ISERROR(VLOOKUP(C12,BDDG!$A$2:$I$100,9,FALSE)),"",VLOOKUP(C12,BDDG!$A$2:$I$100,9,FALSE)) -> CC3 | R12: =IF(ISERROR(VLOOKUP(C12,BDDG!$A$2:$J$100,10,FALSE)),"",VLOOKUP(C12,BDDG!$A$2:$J$100,10,FALSE)) -> DD3 | V12: 26.18181818 | W12: 9 | X12: 1996 | Y12: =IFERROR((INDEX($V$2:V12,MATCH(H12&MAX(IF($H$1:H11=H12,$A$1:A11)),$H$2:H12&$A$2:A12,0))-V12)*-1,"") -> 
A13: 1996-09-17 | C13: 834 | D13: =IF(ISNA(VLOOKUP(C13,BDDG!$A$2:$F$100,2,FALSE)),"",VLOOKUP(C13,BDDG!$A$2:$F$100,2,FALSE)) -> 0 | E13: =IF(ISNA(VLOOKUP(C13,BDDG!$A$3:$J$102,3,FALSE)),"",VLOOKUP(C13,BDDG!$A$3:$J$102,3,FALSE)) -> A | F13: =IF(ISNA(VLOOKUP(C13,BDDG!$A$3:$J$102,4,FALSE)),"",VLOOKUP(C13,BDDG!$A$3:$J$102,4,FALSE)) -> 106 | G13: =IF(ISNA(VLOOKUP(C13,BDDG!$A$2:$F$100,5,FALSE)),"",VLOOKUP(C13,BDDG!$A$2:$F$100,5,FALSE)) -> A2 | H13: =IF(ISNA(VLOOKUP(C13,BDDG!$A$2:$F$100,6,FALSE)),"",VLOOKUP(C13,BDDG!$A$2:$F$100,6,FALSE)) -> AA4 | I13: =IF(ISERROR(VLOOKUP(C13,BDDG!$A$2:$G$100,7,FALSE)),"",VLOOKUP(C13,BDDG!$A$2:$G$100,7,FALSE)) -> 1 | J13: =IF(ISERROR(VLOOKUP(C13,BDDG!$A$2:$H$100,8,FALSE)),"",VLOOKUP(C13,BDDG!$A$2:$H$100,8,FALSE)) -> BB4 | K13: 10 | L13: 36 | M13: 24 | N13: =IF(ISERROR(VLOOKUP(C13,BDDG!$A$2:$I$100,9,FALSE)),"",VLOOKUP(C13,BDDG!$A$2:$I$100,9,FALSE)) -> CC4 | R13: =IF(ISERROR(VLOOKUP(C13,BDDG!$A$2:$J$100,10,FALSE)),"",VLOOKUP(C13,BDDG!$A$2:$J$100,10,FALSE)) -> DD4 | V13: 24 | W13: 9 | X13: 1996 | Y13: =IFERROR((INDEX($V$2:V13,MATCH(H13&MAX(IF($H$1:H12=H13,$A$1:A12)),$H$2:H13&$A$2:A13,0))-V13)*-1,"") -> 
A14: 1996-10-31 | C14: 835 | D14: =IF(ISNA(VLOOKUP(C14,BDDG!$A$2:$F$100,2,FALSE)),"",VLOOKUP(C14,BDDG!$A$2:$F$100,2,FALSE)) -> 0 | E14: =IF(ISNA(VLOOKUP(C14,BDDG!$A$3:$J$102,3,FALSE)),"",VLOOKUP(C14,BDDG!$A$3:$J$102,3,FALSE)) -> A | F14: =IF(ISNA(VLOOKUP(C14,BDDG!$A$3:$J$102,4,FALSE)),"",VLOOKUP(C14,BDDG!$A$3:$J$102,4,FALSE)) -> 106 | G14: =IF(ISNA(VLOOKUP(C14,BDDG!$A$2:$F$100,5,FALSE)),"",VLOOKUP(C14,BDDG!$A$2:$F$100,5,FALSE)) -> A3 | H14: =IF(ISNA(VLOOKUP(C14,BDDG!$A$2:$F$100,6,FALSE)),"",VLOOKUP(C14,BDDG!$A$2:$F$100,6,FALSE)) -> AA5 | I14: =IF(ISERROR(VLOOKUP(C14,BDDG!$A$2:$G$100,7,FALSE)),"",VLOOKUP(C14,BDDG!$A$2:$G$100,7,FALSE)) -> 1 | J14: =IF(ISERROR(VLOOKUP(C14,BDDG!$A$2:$H$100,8,FALSE)),"",VLOOKUP(C14,BDDG!$A$2:$H$100,8,FALSE)) -> BB5 | K14: 10 | L14: =4*60+30 -> 270 | M14: 3.2 | N14: =IF(ISERROR(VLOOKUP(C14,BDDG!$A$2:$I$100,9,FALSE)),"",VLOOKUP(C14,BDDG!$A$2:$I$100,9,FALSE)) -> CC5 | R14: =IF(ISERROR(VLOOKUP(C14,BDDG!$A$2:$J$100,10,FALSE)),"",VLOOKUP(C14,BDDG!$A$2:$J$100,10,FALSE)) -> DD5 | V14: 3.2 | W14: 10 | X14: 1996 | Y14: =IFERROR((INDEX($V$2:V14,MATCH(H14&MAX(IF($H$1:H13=H14,$A$1:A13)),$H$2:H14&$A$2:A14,0))-V14)*-1,"") -> -4
A15: 1996-11-04 | C15: 833 | D15: =IF(ISNA(VLOOKUP(C15,BDDG!$A$2:$F$100,2,FALSE)),"",VLOOKUP(C15,BDDG!$A$2:$F$100,2,FALSE)) -> 0 | E15: =IF(ISNA(VLOOKUP(C15,BDDG!$A$3:$J$102,3,FALSE)),"",VLOOKUP(C15,BDDG!$A$3:$J$102,3,FALSE)) -> A | F15: =IF(ISNA(VLOOKUP(C15,BDDG!$A$3:$J$102,4,FALSE)),"",VLOOKUP(C15,BDDG!$A$3:$J$102,4,FALSE)) -> 106 | G15: =IF(ISNA(VLOOKUP(C15,BDDG!$A$2:$F$100,5,FALSE)),"",VLOOKUP(C15,BDDG!$A$2:$F$100,5,FALSE)) -> A2 | H15: =IF(ISNA(VLOOKUP(C15,BDDG!$A$2:$F$100,6,FALSE)),"",VLOOKUP(C15,BDDG!$A$2:$F$100,6,FALSE)) -> AA3 | I15: =IF(ISERROR(VLOOKUP(C15,BDDG!$A$2:$G$100,7,FALSE)),"",VLOOKUP(C15,BDDG!$A$2:$G$100,7,FALSE)) -> 1 | J15: =IF(ISERROR(VLOOKUP(C15,BDDG!$A$2:$H$100,8,FALSE)),"",VLOOKUP(C15,BDDG!$A$2:$H$100,8,FALSE)) -> BB3 | K15: 10 | L15: 20 | M15: 43.2 | N15: =IF(ISERROR(VLOOKUP(C15,BDDG!$A$2:$I$100,9,FALSE)),"",VLOOKUP(C15,BDDG!$A$2:$I$100,9,FALSE)) -> CC3 | R15: =IF(ISERROR(VLOOKUP(C15,BDDG!$A$2:$J$100,10,FALSE)),"",VLOOKUP(C15,BDDG!$A$2:$J$100,10,FALSE)) -> DD3 | V15: 43.2 | W15: 11 | X15: 1996 | Y15: =IFERROR((INDEX($V$2:V15,MATCH(H15&MAX(IF($H$1:H14=H15,$A$1:A14)),$H$2:H15&$A$2:A15,0))-V15)*-1,"") -> 17.01818182
A16: 1996-11-04 | C16: 834 | D16: =IF(ISNA(VLOOKUP(C16,BDDG!$A$2:$F$100,2,FALSE)),"",VLOOKUP(C16,BDDG!$A$2:$F$100,2,FALSE)) -> 0 | E16: =IF(ISNA(VLOOKUP(C16,BDDG!$A$3:$J$102,3,FALSE)),"",VLOOKUP(C16,BDDG!$A$3:$J$102,3,FALSE)) -> A | F16: =IF(ISNA(VLOOKUP(C16,BDDG!$A$3:$J$102,4,FALSE)),"",VLOOKUP(C16,BDDG!$A$3:$J$102,4,FALSE)) -> 106 | G16: =IF(ISNA(VLOOKUP(C16,BDDG!$A$2:$F$100,5,FALSE)),"",VLOOKUP(C16,BDDG!$A$2:$F$100,5,FALSE)) -> A2 | H16: =IF(ISNA(VLOOKUP(C16,BDDG!$A$2:$F$100,6,FALSE)),"",VLOOKUP(C16,BDDG!$A$2:$F$100,6,FALSE)) -> AA4 | I16: =IF(ISERROR(VLOOKUP(C16,BDDG!$A$2:$G$100,7,FALSE)),"",VLOOKUP(C16,BDDG!$A$2:$G$100,7,FALSE)) -> 1 | J16: =IF(ISERROR(VLOOKUP(C16,BDDG!$A$2:$H$100,8,FALSE)),"",VLOOKUP(C16,BDDG!$A$2:$H$100,8,FALSE)) -> BB4 | K16: 10 | L16: 50 | M16: 17.28 | N16: =IF(ISERROR(VLOOKUP(C16,BDDG!$A$2:$I$100,9,FALSE)),"",VLOOKUP(C16,BDDG!$A$2:$I$100,9,FALSE)) -> CC4 | R16: =IF(ISERROR(VLOOKUP(C16,BDDG!$A$2:$J$100,10,FALSE)),"",VLOOKUP(C16,BDDG!$A$2:$J$100,10,FALSE)) -> DD4 | V16: 17.28 | W16: 11 | X16: 1996 | Y16: =IFERROR((INDEX($V$2:V16,MATCH(H16&MAX(IF($H$1:H15=H16,$A$1:A15)),$H$2:H16&$A$2:A16,0))-V16)*-1,"") -> -6.72
A17: 1997-04-24 | C17: 856 | D17: =IF(ISNA(VLOOKUP(C17,BDDG!$A$2:$F$100,2,FALSE)),"",VLOOKUP(C17,BDDG!$A$2:$F$100,2,FALSE)) -> 0 | E17: =IF(ISNA(VLOOKUP(C17,BDDG!$A$3:$J$102,3,FALSE)),"",VLOOKUP(C17,BDDG!$A$3:$J$102,3,FALSE)) -> A | F17: =IF(ISNA(VLOOKUP(C17,BDDG!$A$3:$J$102,4,FALSE)),"",VLOOKUP(C17,BDDG!$A$3:$J$102,4,FALSE)) -> 106 | G17: =IF(ISNA(VLOOKUP(C17,BDDG!$A$2:$F$100,5,FALSE)),"",VLOOKUP(C17,BDDG!$A$2:$F$100,5,FALSE)) -> A9 | H17: =IF(ISNA(VLOOKUP(C17,BDDG!$A$2:$F$100,6,FALSE)),"",VLOOKUP(C17,BDDG!$A$2:$F$100,6,FALSE)) -> AA27 | I17: =IF(ISERROR(VLOOKUP(C17,BDDG!$A$2:$G$100,7,FALSE)),"",VLOOKUP(C17,BDDG!$A$2:$G$100,7,FALSE)) -> 2 | J17: =IF(ISERROR(VLOOKUP(C17,BDDG!$A$2:$H$100,8,FALSE)),"",VLOOKUP(C17,BDDG!$A$2:$H$100,8,FALSE)) -> BB27 | K17: 10 | L17: 70 | M17: 12.34285714 | N17: =IF(ISERROR(VLOOKUP(C17,BDDG!$A$2:$I$100,9,FALSE)),"",VLOOKUP(C17,BDDG!$A$2:$I$100,9,FALSE)) -> CC27 | R17: =IF(ISERROR(VLOOKUP(C17,BDDG!$A$2:$J$100,10,FALSE)),"",VLOOKUP(C17,BDDG!$A$2:$J$100,10,FALSE)) -> DD27 | V17: 12.34285714 | W17: 4 | X17: 1997 | Y17: =IFERROR((INDEX($V$2:V17,MATCH(H17&MAX(IF($H$1:H16=H17,$A$1:A16)),$H$2:H17&$A$2:A17,0))-V17)*-1,"") -> -374.4
A18: 1997-05-13 | C18: 822 | D18: =IF(ISNA(VLOOKUP(C18,BDDG!$A$2:$F$100,2,FALSE)),"",VLOOKUP(C18,BDDG!$A$2:$F$100,2,FALSE)) -> 0 | E18: =IF(ISNA(VLOOKUP(C18,BDDG!$A$3:$J$102,3,FALSE)),"",VLOOKUP(C18,BDDG!$A$3:$J$102,3,FALSE)) -> A | F18: =IF(ISNA(VLOOKUP(C18,BDDG!$A$3:$J$102,4,FALSE)),"",VLOOKUP(C18,BDDG!$A$3:$J$102,4,FALSE)) -> 106 | G18: =IF(ISNA(VLOOKUP(C18,BDDG!$A$2:$F$100,5,FALSE)),"",VLOOKUP(C18,BDDG!$A$2:$F$100,5,FALSE)) -> A4 | H18: =IF(ISNA(VLOOKUP(C18,BDDG!$A$2:$F$100,6,FALSE)),"",VLOOKUP(C18,BDDG!$A$2:$F$100,6,FALSE)) -> AA12 | I18: =IF(ISERROR(VLOOKUP(C18,BDDG!$A$2:$G$100,7,FALSE)),"",VLOOKUP(C18,BDDG!$A$2:$G$100,7,FALSE)) -> 1 | J18: =IF(ISERROR(VLOOKUP(C18,BDDG!$A$2:$H$100,8,FALSE)),"",VLOOKUP(C18,BDDG!$A$2:$H$100,8,FALSE)) -> BB12 | K18: 10 | L18: 10 | M18: =IF(ISERROR(K18/L18*86.4),"",K18/L18*86.4) -> 86.4 | N18: =IF(ISERROR(VLOOKUP(C18,BDDG!$A$2:$I$100,9,FALSE)),"",VLOOKUP(C18,BDDG!$A$2:$I$100,9,FALSE)) -> CC12 | Q18: =IF(ISERROR(O18/P18*86.4),"",O18/P18*86.4) ->  | R18: =IF(ISERROR(VLOOKUP(C18,BDDG!$A$2:$J$100,10,FALSE)),"",VLOOKUP(C18,BDDG!$A$2:$J$100,10,FALSE)) -> DD12 | V18: 86.4 | W18: 5 | X18: 1997 | Y18: =IFERROR((INDEX($V$2:V18,MATCH(H18&MAX(IF($H$1:H17=H18,$A$1:A17)),$H$2:H18&$A$2:A18,0))-V18)*-1,"") -> 
A19: 1997-07-15 | C19: 860 | D19: =IF(ISNA(VLOOKUP(C19,BDDG!$A$2:$F$100,2,FALSE)),"",VLOOKUP(C19,BDDG!$A$2:$F$100,2,FALSE)) -> 0 | E19: =IF(ISNA(VLOOKUP(C19,BDDG!$A$3:$J$102,3,FALSE)),"",VLOOKUP(C19,BDDG!$A$3:$J$102,3,FALSE)) -> A | F19: =IF(ISNA(VLOOKUP(C19,BDDG!$A$3:$J$102,4,FALSE)),"",VLOOKUP(C19,BDDG!$A$3:$J$102,4,FALSE)) -> 106 | G19: =IF(ISNA(VLOOKUP(C19,BDDG!$A$2:$F$100,5,FALSE)),"",VLOOKUP(C19,BDDG!$A$2:$F$100,5,FALSE)) -> A11 | H19: =IF(ISNA(VLOOKUP(C19,BDDG!$A$2:$F$100,6,FALSE)),"",VLOOKUP(C19,BDDG!$A$2:$F$100,6,FALSE)) -> AA32 | I19: =IF(ISERROR(VLOOKUP(C19,BDDG!$A$2:$G$100,7,FALSE)),"",VLOOKUP(C19,BDDG!$A$2:$G$100,7,FALSE)) -> 2 | J19: =IF(ISERROR(VLOOKUP(C19,BDDG!$A$2:$H$100,8,FALSE)),"",VLOOKUP(C19,BDDG!$A$2:$H$100,8,FALSE)) -> BB32 | K19: 10 | L19: 4 | M19: 216 | N19: =IF(ISERROR(VLOOKUP(C19,BDDG!$A$2:$I$100,9,FALSE)),"",VLOOKUP(C19,BDDG!$A$2:$I$100,9,FALSE)) -> CC32 | R19: =IF(ISERROR(VLOOKUP(C19,BDDG!$A$2:$J$100,10,FALSE)),"",VLOOKUP(C19,BDDG!$A$2:$J$100,10,FALSE)) -> DD32 | V19: 216 | W19: 7 | X19: 1997 | Y19: =IFERROR((INDEX($V$2:V19,MATCH(H19&MAX(IF($H$1:H18=H19,$A$1:A18)),$H$2:H19&$A$2:A19,0))-V19)*-1,"") -> 162
A20: 1997-08-08 | C20: 835 | D20: =IF(ISNA(VLOOKUP(C20,BDDG!$A$2:$F$100,2,FALSE)),"",VLOOKUP(C20,BDDG!$A$2:$F$100,2,FALSE)) -> 0 | E20: =IF(ISNA(VLOOKUP(C20,BDDG!$A$3:$J$102,3,FALSE)),"",VLOOKUP(C20,BDDG!$A$3:$J$102,3,FALSE)) -> A | F20: =IF(ISNA(VLOOKUP(C20,BDDG!$A$3:$J$102,4,FALSE)),"",VLOOKUP(C20,BDDG!$A$3:$J$102,4,FALSE)) -> 106 | G20: =IF(ISNA(VLOOKUP(C20,BDDG!$A$2:$F$100,5,FALSE)),"",VLOOKUP(C20,BDDG!$A$2:$F$100,5,FALSE)) -> A3 | H20: =IF(ISNA(VLOOKUP(C20,BDDG!$A$2:$F$100,6,FALSE)),"",VLOOKUP(C20,BDDG!$A$2:$F$100,6,FALSE)) -> AA5 | I20: =IF(ISERROR(VLOOKUP(C20,BDDG!$A$2:$G$100,7,FALSE)),"",VLOOKUP(C20,BDDG!$A$2:$G$100,7,FALSE)) -> 1 | J20: =IF(ISERROR(VLOOKUP(C20,BDDG!$A$2:$H$100,8,FALSE)),"",VLOOKUP(C20,BDDG!$A$2:$H$100,8,FALSE)) -> BB5 | K20: 10 | L20: 240 | M20: 3.6 | N20: =IF(ISERROR(VLOOKUP(C20,BDDG!$A$2:$I$100,9,FALSE)),"",VLOOKUP(C20,BDDG!$A$2:$I$100,9,FALSE)) -> CC5 | R20: =IF(ISERROR(VLOOKUP(C20,BDDG!$A$2:$J$100,10,FALSE)),"",VLOOKUP(C20,BDDG!$A$2:$J$100,10,FALSE)) -> DD5 | V20: 3.6 | W20: 8 | X20: 1997 | Y20: =IFERROR((INDEX($V$2:V20,MATCH(H20&MAX(IF($H$1:H19=H20,$A$1:A19)),$H$2:H20&$A$2:A20,0))-V20)*-1,"") -> 0.4
A21: 1997-11-04 | C21: 834 | D21: =IF(ISNA(VLOOKUP(C21,BDDG!$A$2:$F$100,2,FALSE)),"",VLOOKUP(C21,BDDG!$A$2:$F$100,2,FALSE)) -> 0 | E21: =IF(ISNA(VLOOKUP(C21,BDDG!$A$3:$J$102,3,FALSE)),"",VLOOKUP(C21,BDDG!$A$3:$J$102,3,FALSE)) -> A | F21: =IF(ISNA(VLOOKUP(C21,BDDG!$A$3:$J$102,4,FALSE)),"",VLOOKUP(C21,BDDG!$A$3:$J$102,4,FALSE)) -> 106 | G21: =IF(ISNA(VLOOKUP(C21,BDDG!$A$2:$F$100,5,FALSE)),"",VLOOKUP(C21,BDDG!$A$2:$F$100,5,FALSE)) -> A2 | H21: =IF(ISNA(VLOOKUP(C21,BDDG!$A$2:$F$100,6,FALSE)),"",VLOOKUP(C21,BDDG!$A$2:$F$100,6,FALSE)) -> AA4 | I21: =IF(ISERROR(VLOOKUP(C21,BDDG!$A$2:$G$100,7,FALSE)),"",VLOOKUP(C21,BDDG!$A$2:$G$100,7,FALSE)) -> 1 | J21: =IF(ISERROR(VLOOKUP(C21,BDDG!$A$2:$H$100,8,FALSE)),"",VLOOKUP(C21,BDDG!$A$2:$H$100,8,FALSE)) -> BB4 | K21: 10 | L21: 55 | M21: 15.70909091 | N21: =IF(ISERROR(VLOOKUP(C21,BDDG!$A$2:$I$100,9,FALSE)),"",VLOOKUP(C21,BDDG!$A$2:$I$100,9,FALSE)) -> CC4 | R21: =IF(ISERROR(VLOOKUP(C21,BDDG!$A$2:$J$100,10,FALSE)),"",VLOOKUP(C21,BDDG!$A$2:$J$100,10,FALSE)) -> DD4 | V21: 15.70909091 | W21: 11 | X21: 1997 | Y21: =IFERROR((INDEX($V$2:V21,MATCH(H21&MAX(IF($H$1:H20=H21,$A$1:A20)),$H$2:H21&$A$2:A21,0))-V21)*-1,"") -> -1.570909091
A22: 1997-11-07 | C22: 833 | D22: =IF(ISNA(VLOOKUP(C22,BDDG!$A$2:$F$100,2,FALSE)),"",VLOOKUP(C22,BDDG!$A$2:$F$100,2,FALSE)) -> 0 | E22: =IF(ISNA(VLOOKUP(C22,BDDG!$A$3:$J$102,3,FALSE)),"",VLOOKUP(C22,BDDG!$A$3:$J$102,3,FALSE)) -> A | F22: =IF(ISNA(VLOOKUP(C22,BDDG!$A$3:$J$102,4,FALSE)),"",VLOOKUP(C22,BDDG!$A$3:$J$102,4,FALSE)) -> 106 | G22: =IF(ISNA(VLOOKUP(C22,BDDG!$A$2:$F$100,5,FALSE)),"",VLOOKUP(C22,BDDG!$A$2:$F$100,5,FALSE)) -> A2 | H22: =IF(ISNA(VLOOKUP(C22,BDDG!$A$2:$F$100,6,FALSE)),"",VLOOKUP(C22,BDDG!$A$2:$F$100,6,FALSE)) -> AA3 | I22: =IF(ISERROR(VLOOKUP(C22,BDDG!$A$2:$G$100,7,FALSE)),"",VLOOKUP(C22,BDDG!$A$2:$G$100,7,FALSE)) -> 1 | J22: =IF(ISERROR(VLOOKUP(C22,BDDG!$A$2:$H$100,8,FALSE)),"",VLOOKUP(C22,BDDG!$A$2:$H$100,8,FALSE)) -> BB3 | K22: 10 | L22: 25 | M22: 34.56 | N22: =IF(ISERROR(VLOOKUP(C22,BDDG!$A$2:$I$100,9,FALSE)),"",VLOOKUP(C22,BDDG!$A$2:$I$100,9,FALSE)) -> CC3 | R22: =IF(ISERROR(VLOOKUP(C22,BDDG!$A$2:$J$100,10,FALSE)),"",VLOOKUP(C22,BDDG!$A$2:$J$100,10,FALSE)) -> DD3 | V22: 34.56 | W22: 11 | X22: 1997 | Y22: =IFERROR((INDEX($V$2:V22,MATCH(H22&MAX(IF($H$1:H21=H22,$A$1:A21)),$H$2:H22&$A$2:A22,0))-V22)*-1,"") -> -8.64
A23: 1998-03-27 | C23: 862 | D23: =IF(ISNA(VLOOKUP(C23,BDDG!$A$2:$F$100,2,FALSE)),"",VLOOKUP(C23,BDDG!$A$2:$F$100,2,FALSE)) -> 0 | E23: =IF(ISNA(VLOOKUP(C23,BDDG!$A$3:$J$102,3,FALSE)),"",VLOOKUP(C23,BDDG!$A$3:$J$102,3,FALSE)) -> A | F23: =IF(ISNA(VLOOKUP(C23,BDDG!$A$3:$J$102,4,FALSE)),"",VLOOKUP(C23,BDDG!$A$3:$J$102,4,FALSE)) -> 106 | G23: =IF(ISNA(VLOOKUP(C23,BDDG!$A$2:$F$100,5,FALSE)),"",VLOOKUP(C23,BDDG!$A$2:$F$100,5,FALSE)) -> A12 | H23: =IF(ISNA(VLOOKUP(C23,BDDG!$A$2:$F$100,6,FALSE)),"",VLOOKUP(C23,BDDG!$A$2:$F$100,6,FALSE)) -> AA34 | I23: =IF(ISERROR(VLOOKUP(C23,BDDG!$A$2:$G$100,7,FALSE)),"",VLOOKUP(C23,BDDG!$A$2:$G$100,7,FALSE)) -> 1 | J23: =IF(ISERROR(VLOOKUP(C23,BDDG!$A$2:$H$100,8,FALSE)),"",VLOOKUP(C23,BDDG!$A$2:$H$100,8,FALSE)) -> BB34 | K23: 10 | L23: 16 | M23: 54 | N23: =IF(ISERROR(VLOOKUP(C23,BDDG!$A$2:$I$100,9,FALSE)),"",VLOOKUP(C23,BDDG!$A$2:$I$100,9,FALSE)) -> CC34 | R23: =IF(ISERROR(VLOOKUP(C23,BDDG!$A$2:$J$100,10,FALSE)),"",VLOOKUP(C23,BDDG!$A$2:$J$100,10,FALSE)) -> DD34 | V23: 54 | W23: 3 | X23: 1998 | Y23: =IFERROR((INDEX($V$2:V23,MATCH(H23&MAX(IF($H$1:H22=H23,$A$1:A22)),$H$2:H23&$A$2:A23,0))-V23)*-1,"") -> 22.32
A24: 1998-04-23 | C24: 836 | D24: =IF(ISNA(VLOOKUP(C24,BDDG!$A$2:$F$100,2,FALSE)),"",VLOOKUP(C24,BDDG!$A$2:$F$100,2,FALSE)) -> 0 | E24: =IF(ISNA(VLOOKUP(C24,BDDG!$A$3:$J$102,3,FALSE)),"",VLOOKUP(C24,BDDG!$A$3:$J$102,3,FALSE)) -> A | F24: =IF(ISNA(VLOOKUP(C24,BDDG!$A$3:$J$102,4,FALSE)),"",VLOOKUP(C24,BDDG!$A$3:$J$102,4,FALSE)) -> 106 | G24: =IF(ISNA(VLOOKUP(C24,BDDG!$A$2:$F$100,5,FALSE)),"",VLOOKUP(C24,BDDG!$A$2:$F$100,5,FALSE)) -> A3 | H24: =IF(ISNA(VLOOKUP(C24,BDDG!$A$2:$F$100,6,FALSE)),"",VLOOKUP(C24,BDDG!$A$2:$F$100,6,FALSE)) -> AA6 | I24: =IF(ISERROR(VLOOKUP(C24,BDDG!$A$2:$G$100,7,FALSE)),"",VLOOKUP(C24,BDDG!$A$2:$G$100,7,FALSE)) -> 1 | J24: =IF(ISERROR(VLOOKUP(C24,BDDG!$A$2:$H$100,8,FALSE)),"",VLOOKUP(C24,BDDG!$A$2:$H$100,8,FALSE)) -> BB6 | K24: 10 | L24: 5 | M24: 172.8 | N24: =IF(ISERROR(VLOOKUP(C24,BDDG!$A$2:$I$100,9,FALSE)),"",VLOOKUP(C24,BDDG!$A$2:$I$100,9,FALSE)) -> CC6 | R24: =IF(ISERROR(VLOOKUP(C24,BDDG!$A$2:$J$100,10,FALSE)),"",VLOOKUP(C24,BDDG!$A$2:$J$100,10,FALSE)) -> DD6 | V24: 172.8 | W24: 4 | X24: 1998 | Y24: =IFERROR((INDEX($V$2:V24,MATCH(H24&MAX(IF($H$1:H23=H24,$A$1:A23)),$H$2:H24&$A$2:A24,0))-V24)*-1,"") -> 0
A25: 1998-04-23 | C25: 856 | D25: =IF(ISNA(VLOOKUP(C25,BDDG!$A$2:$F$100,2,FALSE)),"",VLOOKUP(C25,BDDG!$A$2:$F$100,2,FALSE)) -> 0 | E25: =IF(ISNA(VLOOKUP(C25,BDDG!$A$3:$J$102,3,FALSE)),"",VLOOKUP(C25,BDDG!$A$3:$J$102,3,FALSE)) -> A | F25: =IF(ISNA(VLOOKUP(C25,BDDG!$A$3:$J$102,4,FALSE)),"",VLOOKUP(C25,BDDG!$A$3:$J$102,4,FALSE)) -> 106 | G25: =IF(ISNA(VLOOKUP(C25,BDDG!$A$2:$F$100,5,FALSE)),"",VLOOKUP(C25,BDDG!$A$2:$F$100,5,FALSE)) -> A9 | H25: =IF(ISNA(VLOOKUP(C25,BDDG!$A$2:$F$100,6,FALSE)),"",VLOOKUP(C25,BDDG!$A$2:$F$100,6,FALSE)) -> AA27 | I25: =IF(ISERROR(VLOOKUP(C25,BDDG!$A$2:$G$100,7,FALSE)),"",VLOOKUP(C25,BDDG!$A$2:$G$100,7,FALSE)) -> 2 | J25: =IF(ISERROR(VLOOKUP(C25,BDDG!$A$2:$H$100,8,FALSE)),"",VLOOKUP(C25,BDDG!$A$2:$H$100,8,FALSE)) -> BB27 | K25: 10 | L25: 17 | M25: 50.82352941 | N25: =IF(ISERROR(VLOOKUP(C25,BDDG!$A$2:$I$100,9,FALSE)),"",VLOOKUP(C25,BDDG!$A$2:$I$100,9,FALSE)) -> CC27 | O25: 10 | P25: 3 | Q25: 288 | R25: =IF(ISERROR(VLOOKUP(C25,BDDG!$A$2:$J$100,10,FALSE)),"",VLOOKUP(C25,BDDG!$A$2:$J$100,10,FALSE)) -> DD27 | V25: 338.8235294 | W25: 4 | X25: 1998 | Y25: =IFERROR((INDEX($V$2:V25,MATCH(H25&MAX(IF($H$1:H24=H25,$A$1:A24)),$H$2:H25&$A$2:A25,0))-V25)*-1,"") -> 326.4806723
A26: 1998-04-23 | C26: 835 | D26: =IF(ISNA(VLOOKUP(C26,BDDG!$A$2:$F$100,2,FALSE)),"",VLOOKUP(C26,BDDG!$A$2:$F$100,2,FALSE)) -> 0 | E26: =IF(ISNA(VLOOKUP(C26,BDDG!$A$3:$J$102,3,FALSE)),"",VLOOKUP(C26,BDDG!$A$3:$J$102,3,FALSE)) -> A | F26: =IF(ISNA(VLOOKUP(C26,BDDG!$A$3:$J$102,4,FALSE)),"",VLOOKUP(C26,BDDG!$A$3:$J$102,4,FALSE)) -> 106 | G26: =IF(ISNA(VLOOKUP(C26,BDDG!$A$2:$F$100,5,FALSE)),"",VLOOKUP(C26,BDDG!$A$2:$F$100,5,FALSE)) -> A3 | H26: =IF(ISNA(VLOOKUP(C26,BDDG!$A$2:$F$100,6,FALSE)),"",VLOOKUP(C26,BDDG!$A$2:$F$100,6,FALSE)) -> AA5 | I26: =IF(ISERROR(VLOOKUP(C26,BDDG!$A$2:$G$100,7,FALSE)),"",VLOOKUP(C26,BDDG!$A$2:$G$100,7,FALSE)) -> 1 | J26: =IF(ISERROR(VLOOKUP(C26,BDDG!$A$2:$H$100,8,FALSE)),"",VLOOKUP(C26,BDDG!$A$2:$H$100,8,FALSE)) -> BB5 | K26: 10 | L26: 77 | M26: 11.22077922 | N26: =IF(ISERROR(VLOOKUP(C26,BDDG!$A$2:$I$100,9,FALSE)),"",VLOOKUP(C26,BDDG!$A$2:$I$100,9,FALSE)) -> CC5 | R26: =IF(ISERROR(VLOOKUP(C26,BDDG!$A$2:$J$100,10,FALSE)),"",VLOOKUP(C26,BDDG!$A$2:$J$100,10,FALSE)) -> DD5 | V26: 11.22077922 | W26: 4 | X26: 1998 | Y26: =IFERROR((INDEX($V$2:V26,MATCH(H26&MAX(IF($H$1:H25=H26,$A$1:A25)),$H$2:H26&$A$2:A26,0))-V26)*-1,"") -> 7.620779221
A27: 1998-09-04 | C27: 856 | D27: =IF(ISNA(VLOOKUP(C27,BDDG!$A$2:$F$100,2,FALSE)),"",VLOOKUP(C27,BDDG!$A$2:$F$100,2,FALSE)) -> 0 | E27: =IF(ISNA(VLOOKUP(C27,BDDG!$A$3:$J$102,3,FALSE)),"",VLOOKUP(C27,BDDG!$A$3:$J$102,3,FALSE)) -> A | F27: =IF(ISNA(VLOOKUP(C27,BDDG!$A$3:$J$102,4,FALSE)),"",VLOOKUP(C27,BDDG!$A$3:$J$102,4,FALSE)) -> 106 | G27: =IF(ISNA(VLOOKUP(C27,BDDG!$A$2:$F$100,5,FALSE)),"",VLOOKUP(C27,BDDG!$A$2:$F$100,5,FALSE)) -> A9 | H27: =IF(ISNA(VLOOKUP(C27,BDDG!$A$2:$F$100,6,FALSE)),"",VLOOKUP(C27,BDDG!$A$2:$F$100,6,FALSE)) -> AA27 | I27: =IF(ISERROR(VLOOKUP(C27,BDDG!$A$2:$G$100,7,FALSE)),"",VLOOKUP(C27,BDDG!$A$2:$G$100,7,FALSE)) -> 2 | J27: =IF(ISERROR(VLOOKUP(C27,BDDG!$A$2:$H$100,8,FALSE)),"",VLOOKUP(C27,BDDG!$A$2:$H$100,8,FALSE)) -> BB27 | N27: =IF(ISERROR(VLOOKUP(C27,BDDG!$A$2:$I$100,9,FALSE)),"",VLOOKUP(C27,BDDG!$A$2:$I$100,9,FALSE)) -> CC27 | O27: 1 | P27: 1 | Q27: 86.4 | R27: =IF(ISERROR(VLOOKUP(C27,BDDG!$A$2:$J$100,10,FALSE)),"",VLOOKUP(C27,BDDG!$A$2:$J$100,10,FALSE)) -> DD27 | V27: 86.4 | W27: 9 | X27: 1998 | Y27: =IFERROR((INDEX($V$2:V27,MATCH(H27&MAX(IF($H$1:H26=H27,$A$1:A26)),$H$2:H27&$A$2:A27,0))-V27)*-1,"") -> -252.4235294
A28: 1998-09-08 | C28: 838 | D28: =IF(ISNA(VLOOKUP(C28,BDDG!$A$2:$F$100,2,FALSE)),"",VLOOKUP(C28,BDDG!$A$2:$F$100,2,FALSE)) -> 0 | E28: =IF(ISNA(VLOOKUP(C28,BDDG!$A$3:$J$102,3,FALSE)),"",VLOOKUP(C28,BDDG!$A$3:$J$102,3,FALSE)) -> A | F28: =IF(ISNA(VLOOKUP(C28,BDDG!$A$3:$J$102,4,FALSE)),"",VLOOKUP(C28,BDDG!$A$3:$J$102,4,FALSE)) -> 106 | G28: =IF(ISNA(VLOOKUP(C28,BDDG!$A$2:$F$100,5,FALSE)),"",VLOOKUP(C28,BDDG!$A$2:$F$100,5,FALSE)) -> A3 | H28: =IF(ISNA(VLOOKUP(C28,BDDG!$A$2:$F$100,6,FALSE)),"",VLOOKUP(C28,BDDG!$A$2:$F$100,6,FALSE)) -> AA8 | I28: =IF(ISERROR(VLOOKUP(C28,BDDG!$A$2:$G$100,7,FALSE)),"",VLOOKUP(C28,BDDG!$A$2:$G$100,7,FALSE)) -> 1 | J28: =IF(ISERROR(VLOOKUP(C28,BDDG!$A$2:$H$100,8,FALSE)),"",VLOOKUP(C28,BDDG!$A$2:$H$100,8,FALSE)) -> BB8 | K28: 4 | L28: 60 | M28: 5.76 | N28: =IF(ISERROR(VLOOKUP(C28,BDDG!$A$2:$I$100,9,FALSE)),"",VLOOKUP(C28,BDDG!$A$2:$I$100,9,FALSE)) -> CC8 | R28: =IF(ISERROR(VLOOKUP(C28,BDDG!$A$2:$J$100,10,FALSE)),"",VLOOKUP(C28,BDDG!$A$2:$J$100,10,FALSE)) -> DD8 | V28: 5.76 | W28: 9 | X28: 1998 | Y28: =IFERROR((INDEX($V$2:V28,MATCH(H28&MAX(IF($H$1:H27=H28,$A$1:A27)),$H$2:H28&$A$2:A28,0))-V28)*-1,"") -> -23.04
A29: 1998-09-08 | C29: 837 | D29: =IF(ISNA(VLOOKUP(C29,BDDG!$A$2:$F$100,2,FALSE)),"",VLOOKUP(C29,BDDG!$A$2:$F$100,2,FALSE)) -> 0 | E29: =IF(ISNA(VLOOKUP(C29,BDDG!$A$3:$J$102,3,FALSE)),"",VLOOKUP(C29,BDDG!$A$3:$J$102,3,FALSE)) -> A | F29: =IF(ISNA(VLOOKUP(C29,BDDG!$A$3:$J$102,4,FALSE)),"",VLOOKUP(C29,BDDG!$A$3:$J$102,4,FALSE)) -> 106 | G29: =IF(ISNA(VLOOKUP(C29,BDDG!$A$2:$F$100,5,FALSE)),"",VLOOKUP(C29,BDDG!$A$2:$F$100,5,FALSE)) -> A3 | H29: =IF(ISNA(VLOOKUP(C29,BDDG!$A$2:$F$100,6,FALSE)),"",VLOOKUP(C29,BDDG!$A$2:$F$100,6,FALSE)) -> AA7 | I29: =IF(ISERROR(VLOOKUP(C29,BDDG!$A$2:$G$100,7,FALSE)),"",VLOOKUP(C29,BDDG!$A$2:$G$100,7,FALSE)) -> 1 | J29: =IF(ISERROR(VLOOKUP(C29,BDDG!$A$2:$H$100,8,FALSE)),"",VLOOKUP(C29,BDDG!$A$2:$H$100,8,FALSE)) -> BB7 | K29: 7 | L29: 60 | M29: 10.08 | N29: =IF(ISERROR(VLOOKUP(C29,BDDG!$A$2:$I$100,9,FALSE)),"",VLOOKUP(C29,BDDG!$A$2:$I$100,9,FALSE)) -> CC7 | R29: =IF(ISERROR(VLOOKUP(C29,BDDG!$A$2:$J$100,10,FALSE)),"",VLOOKUP(C29,BDDG!$A$2:$J$100,10,FALSE)) -> DD7 | V29: 10.08 | W29: 9 | X29: 1998 | Y29: =IFERROR((INDEX($V$2:V29,MATCH(H29&MAX(IF($H$1:H28=H29,$A$1:A28)),$H$2:H29&$A$2:A29,0))-V29)*-1,"") -> -47.52
A30: 1998-09-08 | C30: 836 | D30: =IF(ISNA(VLOOKUP(C30,BDDG!$A$2:$F$100,2,FALSE)),"",VLOOKUP(C30,BDDG!$A$2:$F$100,2,FALSE)) -> 0 | E30: =IF(ISNA(VLOOKUP(C30,BDDG!$A$3:$J$102,3,FALSE)),"",VLOOKUP(C30,BDDG!$A$3:$J$102,3,FALSE)) -> A | F30: =IF(ISNA(VLOOKUP(C30,BDDG!$A$3:$J$102,4,FALSE)),"",VLOOKUP(C30,BDDG!$A$3:$J$102,4,FALSE)) -> 106 | G30: =IF(ISNA(VLOOKUP(C30,BDDG!$A$2:$F$100,5,FALSE)),"",VLOOKUP(C30,BDDG!$A$2:$F$100,5,FALSE)) -> A3 | H30: =IF(ISNA(VLOOKUP(C30,BDDG!$A$2:$F$100,6,FALSE)),"",VLOOKUP(C30,BDDG!$A$2:$F$100,6,FALSE)) -> AA6 | I30: =IF(ISERROR(VLOOKUP(C30,BDDG!$A$2:$G$100,7,FALSE)),"",VLOOKUP(C30,BDDG!$A$2:$G$100,7,FALSE)) -> 1 | J30: =IF(ISERROR(VLOOKUP(C30,BDDG!$A$2:$H$100,8,FALSE)),"",VLOOKUP(C30,BDDG!$A$2:$H$100,8,FALSE)) -> BB6 | K30: 10 | L30: 35 | M30: 24.68571429 | N30: =IF(ISERROR(VLOOKUP(C30,BDDG!$A$2:$I$100,9,FALSE)),"",VLOOKUP(C30,BDDG!$A$2:$I$100,9,FALSE)) -> CC6 | R30: =IF(ISERROR(VLOOKUP(C30,BDDG!$A$2:$J$100,10,FALSE)),"",VLOOKUP(C30,BDDG!$A$2:$J$100,10,FALSE)) -> DD6 | V30: 24.68571429 | W30: 9 | X30: 1998 | Y30: =IFERROR((INDEX($V$2:V30,MATCH(H30&MAX(IF($H$1:H29=H30,$A$1:A29)),$H$2:H30&$A$2:A30,0))-V30)*-1,"") -> -148.1142857
A31: 1998-09-08 | C31: 856 | D31: =IF(ISNA(VLOOKUP(C31,BDDG!$A$2:$F$100,2,FALSE)),"",VLOOKUP(C31,BDDG!$A$2:$F$100,2,FALSE)) -> 0 | E31: =IF(ISNA(VLOOKUP(C31,BDDG!$A$3:$J$102,3,FALSE)),"",VLOOKUP(C31,BDDG!$A$3:$J$102,3,FALSE)) -> A | F31: =IF(ISNA(VLOOKUP(C31,BDDG!$A$3:$J$102,4,FALSE)),"",VLOOKUP(C31,BDDG!$A$3:$J$102,4,FALSE)) -> 106 | G31: =IF(ISNA(VLOOKUP(C31,BDDG!$A$2:$F$100,5,FALSE)),"",VLOOKUP(C31,BDDG!$A$2:$F$100,5,FALSE)) -> A9 | H31: =IF(ISNA(VLOOKUP(C31,BDDG!$A$2:$F$100,6,FALSE)),"",VLOOKUP(C31,BDDG!$A$2:$F$100,6,FALSE)) -> AA27 | I31: =IF(ISERROR(VLOOKUP(C31,BDDG!$A$2:$G$100,7,FALSE)),"",VLOOKUP(C31,BDDG!$A$2:$G$100,7,FALSE)) -> 2 | J31: =IF(ISERROR(VLOOKUP(C31,BDDG!$A$2:$H$100,8,FALSE)),"",VLOOKUP(C31,BDDG!$A$2:$H$100,8,FALSE)) -> BB27 | K31: 6 | L31: 60 | M31: 8.64 | N31: =IF(ISERROR(VLOOKUP(C31,BDDG!$A$2:$I$100,9,FALSE)),"",VLOOKUP(C31,BDDG!$A$2:$I$100,9,FALSE)) -> CC27 | R31: =IF(ISERROR(VLOOKUP(C31,BDDG!$A$2:$J$100,10,FALSE)),"",VLOOKUP(C31,BDDG!$A$2:$J$100,10,FALSE)) -> DD27 | V31: =IF(ISERROR(SUM(M31,Q31,U31)),"",SUM(M31,Q31,U31)) -> 8.64 | W31: 9 | X31: 1998 | Y31: =IFERROR((INDEX($V$2:V31,MATCH(H31&MAX(IF($H$1:H30=H31,$A$1:A30)),$H$2:H31&$A$2:A31,0))-V31)*-1,"") -> -77.76
A32: 1998-09-08 | C32: 835 | D32: =IF(ISNA(VLOOKUP(C32,BDDG!$A$2:$F$100,2,FALSE)),"",VLOOKUP(C32,BDDG!$A$2:$F$100,2,FALSE)) -> 0 | E32: =IF(ISNA(VLOOKUP(C32,BDDG!$A$3:$J$102,3,FALSE)),"",VLOOKUP(C32,BDDG!$A$3:$J$102,3,FALSE)) -> A | F32: =IF(ISNA(VLOOKUP(C32,BDDG!$A$3:$J$102,4,FALSE)),"",VLOOKUP(C32,BDDG!$A$3:$J$102,4,FALSE)) -> 106 | G32: =IF(ISNA(VLOOKUP(C32,BDDG!$A$2:$F$100,5,FALSE)),"",VLOOKUP(C32,BDDG!$A$2:$F$100,5,FALSE)) -> A3 | H32: =IF(ISNA(VLOOKUP(C32,BDDG!$A$2:$F$100,6,FALSE)),"",VLOOKUP(C32,BDDG!$A$2:$F$100,6,FALSE)) -> AA5 | I32: =IF(ISERROR(VLOOKUP(C32,BDDG!$A$2:$G$100,7,FALSE)),"",VLOOKUP(C32,BDDG!$A$2:$G$100,7,FALSE)) -> 1 | J32: =IF(ISERROR(VLOOKUP(C32,BDDG!$A$2:$H$100,8,FALSE)),"",VLOOKUP(C32,BDDG!$A$2:$H$100,8,FALSE)) -> BB5 | K32: 2 | L32: 60 | M32: 2.88 | N32: =IF(ISERROR(VLOOKUP(C32,BDDG!$A$2:$I$100,9,FALSE)),"",VLOOKUP(C32,BDDG!$A$2:$I$100,9,FALSE)) -> CC5 | R32: =IF(ISERROR(VLOOKUP(C32,BDDG!$A$2:$J$100,10,FALSE)),"",VLOOKUP(C32,BDDG!$A$2:$J$100,10,FALSE)) -> DD5 | V32: 2.88 | W32: 9 | X32: 1998 | Y32: =IFERROR((INDEX($V$2:V32,MATCH(H32&MAX(IF($H$1:H31=H32,$A$1:A31)),$H$2:H32&$A$2:A32,0))-V32)*-1,"") -> -8.340779221
A33: 1998-09-08 | C33: 839 | D33: =IF(ISNA(VLOOKUP(C33,BDDG!$A$2:$F$100,2,FALSE)),"",VLOOKUP(C33,BDDG!$A$2:$F$100,2,FALSE)) -> 0 | E33: =IF(ISNA(VLOOKUP(C33,BDDG!$A$3:$J$102,3,FALSE)),"",VLOOKUP(C33,BDDG!$A$3:$J$102,3,FALSE)) -> A | F33: =IF(ISNA(VLOOKUP(C33,BDDG!$A$3:$J$102,4,FALSE)),"",VLOOKUP(C33,BDDG!$A$3:$J$102,4,FALSE)) -> 106 | G33: =IF(ISNA(VLOOKUP(C33,BDDG!$A$2:$F$100,5,FALSE)),"",VLOOKUP(C33,BDDG!$A$2:$F$100,5,FALSE)) -> A3 | H33: =IF(ISNA(VLOOKUP(C33,BDDG!$A$2:$F$100,6,FALSE)),"",VLOOKUP(C33,BDDG!$A$2:$F$100,6,FALSE)) -> AA10 | I33: =IF(ISERROR(VLOOKUP(C33,BDDG!$A$2:$G$100,7,FALSE)),"",VLOOKUP(C33,BDDG!$A$2:$G$100,7,FALSE)) -> 2 | J33: =IF(ISERROR(VLOOKUP(C33,BDDG!$A$2:$H$100,8,FALSE)),"",VLOOKUP(C33,BDDG!$A$2:$H$100,8,FALSE)) -> BB10 | M33: 34.77 | N33: =IF(ISERROR(VLOOKUP(C33,BDDG!$A$2:$I$100,9,FALSE)),"",VLOOKUP(C33,BDDG!$A$2:$I$100,9,FALSE)) -> CC10 | R33: =IF(ISERROR(VLOOKUP(C33,BDDG!$A$2:$J$100,10,FALSE)),"",VLOOKUP(C33,BDDG!$A$2:$J$100,10,FALSE)) -> DD10 | V33: 34.77 | W33: 9 | X33: 1998 | Y33: =IFERROR((INDEX($V$2:V33,MATCH(H33&MAX(IF($H$1:H32=H33,$A$1:A32)),$H$2:H33&$A$2:A33,0))-V33)*-1,"") -> -195.63
A34: 1998-09-09 | C34: 832 | D34: =IF(ISNA(VLOOKUP(C34,BDDG!$A$2:$F$100,2,FALSE)),"",VLOOKUP(C34,BDDG!$A$2:$F$100,2,FALSE)) -> 0 | E34: =IF(ISNA(VLOOKUP(C34,BDDG!$A$3:$J$102,3,FALSE)),"",VLOOKUP(C34,BDDG!$A$3:$J$102,3,FALSE)) -> A | F34: =IF(ISNA(VLOOKUP(C34,BDDG!$A$3:$J$102,4,FALSE)),"",VLOOKUP(C34,BDDG!$A$3:$J$102,4,FALSE)) -> 106 | G34: =IF(ISNA(VLOOKUP(C34,BDDG!$A$2:$F$100,5,FALSE)),"",VLOOKUP(C34,BDDG!$A$2:$F$100,5,FALSE)) -> A2 | H34: =IF(ISNA(VLOOKUP(C34,BDDG!$A$2:$F$100,6,FALSE)),"",VLOOKUP(C34,BDDG!$A$2:$F$100,6,FALSE)) -> AA2 | I34: =IF(ISERROR(VLOOKUP(C34,BDDG!$A$2:$G$100,7,FALSE)),"",VLOOKUP(C34,BDDG!$A$2:$G$100,7,FALSE)) -> 1 | J34: =IF(ISERROR(VLOOKUP(C34,BDDG!$A$2:$H$100,8,FALSE)),"",VLOOKUP(C34,BDDG!$A$2:$H$100,8,FALSE)) -> BB2 | K34: 10 | L34: 35 | M34: =IF(ISERROR(K34/L34*86.4),"",K34/L34*86.4) -> 24.68571429 | N34: =IF(ISERROR(VLOOKUP(C34,BDDG!$A$2:$I$100,9,FALSE)),"",VLOOKUP(C34,BDDG!$A$2:$I$100,9,FALSE)) -> CC2 | R34: =IF(ISERROR(VLOOKUP(C34,BDDG!$A$2:$J$100,10,FALSE)),"",VLOOKUP(C34,BDDG!$A$2:$J$100,10,FALSE)) -> DD2 | V34: 24.68571429 | W34: 9 | X34: 1998 | Y34: =IFERROR((INDEX($V$2:V34,MATCH(H34&MAX(IF($H$1:H33=H34,$A$1:A33)),$H$2:H34&$A$2:A34,0))-V34)*-1,"") -> -98.74285714
A35: 1998-09-09 | C35: 833 | D35: =IF(ISNA(VLOOKUP(C35,BDDG!$A$2:$F$100,2,FALSE)),"",VLOOKUP(C35,BDDG!$A$2:$F$100,2,FALSE)) -> 0 | E35: =IF(ISNA(VLOOKUP(C35,BDDG!$A$3:$J$102,3,FALSE)),"",VLOOKUP(C35,BDDG!$A$3:$J$102,3,FALSE)) -> A | F35: =IF(ISNA(VLOOKUP(C35,BDDG!$A$3:$J$102,4,FALSE)),"",VLOOKUP(C35,BDDG!$A$3:$J$102,4,FALSE)) -> 106 | G35: =IF(ISNA(VLOOKUP(C35,BDDG!$A$2:$F$100,5,FALSE)),"",VLOOKUP(C35,BDDG!$A$2:$F$100,5,FALSE)) -> A2 | H35: =IF(ISNA(VLOOKUP(C35,BDDG!$A$2:$F$100,6,FALSE)),"",VLOOKUP(C35,BDDG!$A$2:$F$100,6,FALSE)) -> AA3 | I35: =IF(ISERROR(VLOOKUP(C35,BDDG!$A$2:$G$100,7,FALSE)),"",VLOOKUP(C35,BDDG!$A$2:$G$100,7,FALSE)) -> 1 | J35: =IF(ISERROR(VLOOKUP(C35,BDDG!$A$2:$H$100,8,FALSE)),"",VLOOKUP(C35,BDDG!$A$2:$H$100,8,FALSE)) -> BB3 | K35: 10 | L35: 65 | M35: 13.29230769 | N35: =IF(ISERROR(VLOOKUP(C35,BDDG!$A$2:$I$100,9,FALSE)),"",VLOOKUP(C35,BDDG!$A$2:$I$100,9,FALSE)) -> CC3 | R35: =IF(ISERROR(VLOOKUP(C35,BDDG!$A$2:$J$100,10,FALSE)),"",VLOOKUP(C35,BDDG!$A$2:$J$100,10,FALSE)) -> DD3 | V35: 13.29230769 | W35: 9 | X35: 1998 | Y35: =IFERROR((INDEX($V$2:V35,MATCH(H35&MAX(IF($H$1:H34=H35,$A$1:A34)),$H$2:H35&$A$2:A35,0))-V35)*-1,"") -> -21.26769231
A36: 1998-09-09 | C36: 834 | D36: =IF(ISNA(VLOOKUP(C36,BDDG!$A$2:$F$100,2,FALSE)),"",VLOOKUP(C36,BDDG!$A$2:$F$100,2,FALSE)) -> 0 | E36: =IF(ISNA(VLOOKUP(C36,BDDG!$A$3:$J$102,3,FALSE)),"",VLOOKUP(C36,BDDG!$A$3:$J$102,3,FALSE)) -> A | F36: =IF(ISNA(VLOOKUP(C36,BDDG!$A$3:$J$102,4,FALSE)),"",VLOOKUP(C36,BDDG!$A$3:$J$102,4,FALSE)) -> 106 | G36: =IF(ISNA(VLOOKUP(C36,BDDG!$A$2:$F$100,5,FALSE)),"",VLOOKUP(C36,BDDG!$A$2:$F$100,5,FALSE)) -> A2 | H36: =IF(ISNA(VLOOKUP(C36,BDDG!$A$2:$F$100,6,FALSE)),"",VLOOKUP(C36,BDDG!$A$2:$F$100,6,FALSE)) -> AA4 | I36: =IF(ISERROR(VLOOKUP(C36,BDDG!$A$2:$G$100,7,FALSE)),"",VLOOKUP(C36,BDDG!$A$2:$G$100,7,FALSE)) -> 1 | J36: =IF(ISERROR(VLOOKUP(C36,BDDG!$A$2:$H$100,8,FALSE)),"",VLOOKUP(C36,BDDG!$A$2:$H$100,8,FALSE)) -> BB4 | K36: 10 | L36: 50 | M36: 17.28 | N36: =IF(ISERROR(VLOOKUP(C36,BDDG!$A$2:$I$100,9,FALSE)),"",VLOOKUP(C36,BDDG!$A$2:$I$100,9,FALSE)) -> CC4 | R36: =IF(ISERROR(VLOOKUP(C36,BDDG!$A$2:$J$100,10,FALSE)),"",VLOOKUP(C36,BDDG!$A$2:$J$100,10,FALSE)) -> DD4 | V36: 17.28 | W36: 9 | X36: 1998 | Y36: =IFERROR((INDEX($V$2:V36,MATCH(H36&MAX(IF($H$1:H35=H36,$A$1:A35)),$H$2:H36&$A$2:A36,0))-V36)*-1,"") -> 1.570909091
A37: 1999-09-19 | C37: 856 | D37: =IF(ISNA(VLOOKUP(C37,BDDG!$A$2:$F$100,2,FALSE)),"",VLOOKUP(C37,BDDG!$A$2:$F$100,2,FALSE)) -> 0 | E37: =IF(ISNA(VLOOKUP(C37,BDDG!$A$3:$J$102,3,FALSE)),"",VLOOKUP(C37,BDDG!$A$3:$J$102,3,FALSE)) -> A | F37: =IF(ISNA(VLOOKUP(C37,BDDG!$A$3:$J$102,4,FALSE)),"",VLOOKUP(C37,BDDG!$A$3:$J$102,4,FALSE)) -> 106 | G37: =IF(ISNA(VLOOKUP(C37,BDDG!$A$2:$F$100,5,FALSE)),"",VLOOKUP(C37,BDDG!$A$2:$F$100,5,FALSE)) -> A9 | H37: =IF(ISNA(VLOOKUP(C37,BDDG!$A$2:$F$100,6,FALSE)),"",VLOOKUP(C37,BDDG!$A$2:$F$100,6,FALSE)) -> AA27 | I37: =IF(ISERROR(VLOOKUP(C37,BDDG!$A$2:$G$100,7,FALSE)),"",VLOOKUP(C37,BDDG!$A$2:$G$100,7,FALSE)) -> 2 | J37: =IF(ISERROR(VLOOKUP(C37,BDDG!$A$2:$H$100,8,FALSE)),"",VLOOKUP(C37,BDDG!$A$2:$H$100,8,FALSE)) -> BB27 | K37: 10 | L37: 90 | M37: 9.6 | N37: =IF(ISERROR(VLOOKUP(C37,BDDG!$A$2:$I$100,9,FALSE)),"",VLOOKUP(C37,BDDG!$A$2:$I$100,9,FALSE)) -> CC27 | Q37: 86.4 | R37: =IF(ISERROR(VLOOKUP(C37,BDDG!$A$2:$J$100,10,FALSE)),"",VLOOKUP(C37,BDDG!$A$2:$J$100,10,FALSE)) -> DD27 | V37: 96 | W37: 9 | X37: 1999 | Y37: =IFERROR((INDEX($V$2:V37,MATCH(H37&MAX(IF($H$1:H36=H37,$A$1:A36)),$H$2:H37&$A$2:A37,0))-V37)*-1,"") -> 87.36
A38: 1999-09-19 | C38: 835 | D38: =IF(ISNA(VLOOKUP(C38,BDDG!$A$2:$F$100,2,FALSE)),"",VLOOKUP(C38,BDDG!$A$2:$F$100,2,FALSE)) -> 0 | E38: =IF(ISNA(VLOOKUP(C38,BDDG!$A$3:$J$102,3,FALSE)),"",VLOOKUP(C38,BDDG!$A$3:$J$102,3,FALSE)) -> A | F38: =IF(ISNA(VLOOKUP(C38,BDDG!$A$3:$J$102,4,FALSE)),"",VLOOKUP(C38,BDDG!$A$3:$J$102,4,FALSE)) -> 106 | G38: =IF(ISNA(VLOOKUP(C38,BDDG!$A$2:$F$100,5,FALSE)),"",VLOOKUP(C38,BDDG!$A$2:$F$100,5,FALSE)) -> A3 | H38: =IF(ISNA(VLOOKUP(C38,BDDG!$A$2:$F$100,6,FALSE)),"",VLOOKUP(C38,BDDG!$A$2:$F$100,6,FALSE)) -> AA5 | I38: =IF(ISERROR(VLOOKUP(C38,BDDG!$A$2:$G$100,7,FALSE)),"",VLOOKUP(C38,BDDG!$A$2:$G$100,7,FALSE)) -> 1 | J38: =IF(ISERROR(VLOOKUP(C38,BDDG!$A$2:$H$100,8,FALSE)),"",VLOOKUP(C38,BDDG!$A$2:$H$100,8,FALSE)) -> BB5 | K38: 5 | L38: 60 | M38: 7.2 | N38: =IF(ISERROR(VLOOKUP(C38,BDDG!$A$2:$I$100,9,FALSE)),"",VLOOKUP(C38,BDDG!$A$2:$I$100,9,FALSE)) -> CC5 | Q38: =IF(ISERROR(O38/P38*86.4),"",O38/P38*86.4) ->  | R38: =IF(ISERROR(VLOOKUP(C38,BDDG!$A$2:$J$100,10,FALSE)),"",VLOOKUP(C38,BDDG!$A$2:$J$100,10,FALSE)) -> DD5 | V38: 7.2 | W38: 9 | X38: 1999 | Y38: =IFERROR((INDEX($V$2:V38,MATCH(H38&MAX(IF($H$1:H37=H38,$A$1:A37)),$H$2:H38&$A$2:A38,0))-V38)*-1,"") -> 4.32
A39: 1999-09-29 | C39: 832 | D39: =IF(ISNA(VLOOKUP(C39,BDDG!$A$2:$F$100,2,FALSE)),"",VLOOKUP(C39,BDDG!$A$2:$F$100,2,FALSE)) -> 0 | E39: =IF(ISNA(VLOOKUP(C39,BDDG!$A$3:$J$102,3,FALSE)),"",VLOOKUP(C39,BDDG!$A$3:$J$102,3,FALSE)) -> A | F39: =IF(ISNA(VLOOKUP(C39,BDDG!$A$3:$J$102,4,FALSE)),"",VLOOKUP(C39,BDDG!$A$3:$J$102,4,FALSE)) -> 106 | G39: =IF(ISNA(VLOOKUP(C39,BDDG!$A$2:$F$100,5,FALSE)),"",VLOOKUP(C39,BDDG!$A$2:$F$100,5,FALSE)) -> A2 | H39: =IF(ISNA(VLOOKUP(C39,BDDG!$A$2:$F$100,6,FALSE)),"",VLOOKUP(C39,BDDG!$A$2:$F$100,6,FALSE)) -> AA2 | I39: =IF(ISERROR(VLOOKUP(C39,BDDG!$A$2:$G$100,7,FALSE)),"",VLOOKUP(C39,BDDG!$A$2:$G$100,7,FALSE)) -> 1 | J39: =IF(ISERROR(VLOOKUP(C39,BDDG!$A$2:$H$100,8,FALSE)),"",VLOOKUP(C39,BDDG!$A$2:$H$100,8,FALSE)) -> BB2 | K39: 40 | L39: 60 | M39: 57.6 | N39: =IF(ISERROR(VLOOKUP(C39,BDDG!$A$2:$I$100,9,FALSE)),"",VLOOKUP(C39,BDDG!$A$2:$I$100,9,FALSE)) -> CC2 | R39: =IF(ISERROR(VLOOKUP(C39,BDDG!$A$2:$J$100,10,FALSE)),"",VLOOKUP(C39,BDDG!$A$2:$J$100,10,FALSE)) -> DD2 | V39: 57.6 | W39: 9 | X39: 1999 | Y39: =IFERROR((INDEX($V$2:V39,MATCH(H39&MAX(IF($H$1:H38=H39,$A$1:A38)),$H$2:H39&$A$2:A39,0))-V39)*-1,"") -> 32.91428571
A40: 1999-09-29 | C40: 833 | D40: =IF(ISNA(VLOOKUP(C40,BDDG!$A$2:$F$100,2,FALSE)),"",VLOOKUP(C40,BDDG!$A$2:$F$100,2,FALSE)) -> 0 | E40: =IF(ISNA(VLOOKUP(C40,BDDG!$A$3:$J$102,3,FALSE)),"",VLOOKUP(C40,BDDG!$A$3:$J$102,3,FALSE)) -> A | F40: =IF(ISNA(VLOOKUP(C40,BDDG!$A$3:$J$102,4,FALSE)),"",VLOOKUP(C40,BDDG!$A$3:$J$102,4,FALSE)) -> 106 | G40: =IF(ISNA(VLOOKUP(C40,BDDG!$A$2:$F$100,5,FALSE)),"",VLOOKUP(C40,BDDG!$A$2:$F$100,5,FALSE)) -> A2 | H40: =IF(ISNA(VLOOKUP(C40,BDDG!$A$2:$F$100,6,FALSE)),"",VLOOKUP(C40,BDDG!$A$2:$F$100,6,FALSE)) -> AA3 | I40: =IF(ISERROR(VLOOKUP(C40,BDDG!$A$2:$G$100,7,FALSE)),"",VLOOKUP(C40,BDDG!$A$2:$G$100,7,FALSE)) -> 1 | J40: =IF(ISERROR(VLOOKUP(C40,BDDG!$A$2:$H$100,8,FALSE)),"",VLOOKUP(C40,BDDG!$A$2:$H$100,8,FALSE)) -> BB3 | K40: 85 | L40: 60 | M40: 122.4 | N40: =IF(ISERROR(VLOOKUP(C40,BDDG!$A$2:$I$100,9,FALSE)),"",VLOOKUP(C40,BDDG!$A$2:$I$100,9,FALSE)) -> CC3 | R40: =IF(ISERROR(VLOOKUP(C40,BDDG!$A$2:$J$100,10,FALSE)),"",VLOOKUP(C40,BDDG!$A$2:$J$100,10,FALSE)) -> DD3 | V40: 122.4 | W40: 9 | X40: 1999 | Y40: =IFERROR((INDEX($V$2:V40,MATCH(H40&MAX(IF($H$1:H39=H40,$A$1:A39)),$H$2:H40&$A$2:A40,0))-V40)*-1,"") -> 109.1076923
A41: 1999-09-29 | C41: 834 | D41: =IF(ISNA(VLOOKUP(C41,BDDG!$A$2:$F$100,2,FALSE)),"",VLOOKUP(C41,BDDG!$A$2:$F$100,2,FALSE)) -> 0 | E41: =IF(ISNA(VLOOKUP(C41,BDDG!$A$3:$J$102,3,FALSE)),"",VLOOKUP(C41,BDDG!$A$3:$J$102,3,FALSE)) -> A | F41: =IF(ISNA(VLOOKUP(C41,BDDG!$A$3:$J$102,4,FALSE)),"",VLOOKUP(C41,BDDG!$A$3:$J$102,4,FALSE)) -> 106 | G41: =IF(ISNA(VLOOKUP(C41,BDDG!$A$2:$F$100,5,FALSE)),"",VLOOKUP(C41,BDDG!$A$2:$F$100,5,FALSE)) -> A2 | H41: =IF(ISNA(VLOOKUP(C41,BDDG!$A$2:$F$100,6,FALSE)),"",VLOOKUP(C41,BDDG!$A$2:$F$100,6,FALSE)) -> AA4 | I41: =IF(ISERROR(VLOOKUP(C41,BDDG!$A$2:$G$100,7,FALSE)),"",VLOOKUP(C41,BDDG!$A$2:$G$100,7,FALSE)) -> 1 | J41: =IF(ISERROR(VLOOKUP(C41,BDDG!$A$2:$H$100,8,FALSE)),"",VLOOKUP(C41,BDDG!$A$2:$H$100,8,FALSE)) -> BB4 | K41: 17 | L41: 60 | M41: 24.48 | N41: =IF(ISERROR(VLOOKUP(C41,BDDG!$A$2:$I$100,9,FALSE)),"",VLOOKUP(C41,BDDG!$A$2:$I$100,9,FALSE)) -> CC4 | R41: =IF(ISERROR(VLOOKUP(C41,BDDG!$A$2:$J$100,10,FALSE)),"",VLOOKUP(C41,BDDG!$A$2:$J$100,10,FALSE)) -> DD4 | V41: 24.48 | W41: 9 | X41: 1999 | Y41: =IFERROR((INDEX($V$2:V41,MATCH(H41&MAX(IF($H$1:H40=H41,$A$1:A40)),$H$2:H41&$A$2:A41,0))-V41)*-1,"") -> 7.2
A42: 1999-10-11 | C42: 838 | D42: =IF(ISNA(VLOOKUP(C42,BDDG!$A$2:$F$100,2,FALSE)),"",VLOOKUP(C42,BDDG!$A$2:$F$100,2,FALSE)) -> 0 | E42: =IF(ISNA(VLOOKUP(C42,BDDG!$A$3:$J$102,3,FALSE)),"",VLOOKUP(C42,BDDG!$A$3:$J$102,3,FALSE)) -> A | F42: =IF(ISNA(VLOOKUP(C42,BDDG!$A$3:$J$102,4,FALSE)),"",VLOOKUP(C42,BDDG!$A$3:$J$102,4,FALSE)) -> 106 | G42: =IF(ISNA(VLOOKUP(C42,BDDG!$A$2:$F$100,5,FALSE)),"",VLOOKUP(C42,BDDG!$A$2:$F$100,5,FALSE)) -> A3 | H42: =IF(ISNA(VLOOKUP(C42,BDDG!$A$2:$F$100,6,FALSE)),"",VLOOKUP(C42,BDDG!$A$2:$F$100,6,FALSE)) -> AA8 | I42: =IF(ISERROR(VLOOKUP(C42,BDDG!$A$2:$G$100,7,FALSE)),"",VLOOKUP(C42,BDDG!$A$2:$G$100,7,FALSE)) -> 1 | J42: =IF(ISERROR(VLOOKUP(C42,BDDG!$A$2:$H$100,8,FALSE)),"",VLOOKUP(C42,BDDG!$A$2:$H$100,8,FALSE)) -> BB8 | K42: 4 | L42: 60 | M42: 5.76 | N42: =IF(ISERROR(VLOOKUP(C42,BDDG!$A$2:$I$100,9,FALSE)),"",VLOOKUP(C42,BDDG!$A$2:$I$100,9,FALSE)) -> CC8 | R42: =IF(ISERROR(VLOOKUP(C42,BDDG!$A$2:$J$100,10,FALSE)),"",VLOOKUP(C42,BDDG!$A$2:$J$100,10,FALSE)) -> DD8 | V42: 5.76 | W42: 10 | X42: 1999 | Y42: =IFERROR((INDEX($V$2:V42,MATCH(H42&MAX(IF($H$1:H41=H42,$A$1:A41)),$H$2:H42&$A$2:A42,0))-V42)*-1,"") -> 0
A43: 1999-10-11 | C43: 837 | D43: =IF(ISNA(VLOOKUP(C43,BDDG!$A$2:$F$100,2,FALSE)),"",VLOOKUP(C43,BDDG!$A$2:$F$100,2,FALSE)) -> 0 | E43: =IF(ISNA(VLOOKUP(C43,BDDG!$A$3:$J$102,3,FALSE)),"",VLOOKUP(C43,BDDG!$A$3:$J$102,3,FALSE)) -> A | F43: =IF(ISNA(VLOOKUP(C43,BDDG!$A$3:$J$102,4,FALSE)),"",VLOOKUP(C43,BDDG!$A$3:$J$102,4,FALSE)) -> 106 | G43: =IF(ISNA(VLOOKUP(C43,BDDG!$A$2:$F$100,5,FALSE)),"",VLOOKUP(C43,BDDG!$A$2:$F$100,5,FALSE)) -> A3 | H43: =IF(ISNA(VLOOKUP(C43,BDDG!$A$2:$F$100,6,FALSE)),"",VLOOKUP(C43,BDDG!$A$2:$F$100,6,FALSE)) -> AA7 | I43: =IF(ISERROR(VLOOKUP(C43,BDDG!$A$2:$G$100,7,FALSE)),"",VLOOKUP(C43,BDDG!$A$2:$G$100,7,FALSE)) -> 1 | J43: =IF(ISERROR(VLOOKUP(C43,BDDG!$A$2:$H$100,8,FALSE)),"",VLOOKUP(C43,BDDG!$A$2:$H$100,8,FALSE)) -> BB7 | K43: 10 | L43: 60 | M43: 14.4 | N43: =IF(ISERROR(VLOOKUP(C43,BDDG!$A$2:$I$100,9,FALSE)),"",VLOOKUP(C43,BDDG!$A$2:$I$100,9,FALSE)) -> CC7 | R43: =IF(ISERROR(VLOOKUP(C43,BDDG!$A$2:$J$100,10,FALSE)),"",VLOOKUP(C43,BDDG!$A$2:$J$100,10,FALSE)) -> DD7 | V43: 14.4 | W43: 10 | X43: 1999 | Y43: =IFERROR((INDEX($V$2:V43,MATCH(H43&MAX(IF($H$1:H42=H43,$A$1:A42)),$H$2:H43&$A$2:A43,0))-V43)*-1,"") -> 4.32
A44: 1999-10-11 | C44: 836 | D44: =IF(ISNA(VLOOKUP(C44,BDDG!$A$2:$F$100,2,FALSE)),"",VLOOKUP(C44,BDDG!$A$2:$F$100,2,FALSE)) -> 0 | E44: =IF(ISNA(VLOOKUP(C44,BDDG!$A$3:$J$102,3,FALSE)),"",VLOOKUP(C44,BDDG!$A$3:$J$102,3,FALSE)) -> A | F44: =IF(ISNA(VLOOKUP(C44,BDDG!$A$3:$J$102,4,FALSE)),"",VLOOKUP(C44,BDDG!$A$3:$J$102,4,FALSE)) -> 106 | G44: =IF(ISNA(VLOOKUP(C44,BDDG!$A$2:$F$100,5,FALSE)),"",VLOOKUP(C44,BDDG!$A$2:$F$100,5,FALSE)) -> A3 | H44: =IF(ISNA(VLOOKUP(C44,BDDG!$A$2:$F$100,6,FALSE)),"",VLOOKUP(C44,BDDG!$A$2:$F$100,6,FALSE)) -> AA6 | I44: =IF(ISERROR(VLOOKUP(C44,BDDG!$A$2:$G$100,7,FALSE)),"",VLOOKUP(C44,BDDG!$A$2:$G$100,7,FALSE)) -> 1 | J44: =IF(ISERROR(VLOOKUP(C44,BDDG!$A$2:$H$100,8,FALSE)),"",VLOOKUP(C44,BDDG!$A$2:$H$100,8,FALSE)) -> BB6 | K44: 16 | L44: 60 | M44: 23.04 | N44: =IF(ISERROR(VLOOKUP(C44,BDDG!$A$2:$I$100,9,FALSE)),"",VLOOKUP(C44,BDDG!$A$2:$I$100,9,FALSE)) -> CC6 | R44: =IF(ISERROR(VLOOKUP(C44,BDDG!$A$2:$J$100,10,FALSE)),"",VLOOKUP(C44,BDDG!$A$2:$J$100,10,FALSE)) -> DD6 | U44: =IF(ISERROR(S44/T44*86.4),"",S44/T44*86.4) ->  | V44: 23.04 | W44: 10 | X44: 1999 | Y44: =IFERROR((INDEX($V$2:V44,MATCH(H44&MAX(IF($H$1:H43=H44,$A$1:A43)),$H$2:H44&$A$2:A44,0))-V44)*-1,"") -> -1.645714286
A45: 1999-10-11 | C45: 839 | D45: =IF(ISNA(VLOOKUP(C45,BDDG!$A$2:$F$100,2,FALSE)),"",VLOOKUP(C45,BDDG!$A$2:$F$100,2,FALSE)) -> 0 | E45: =IF(ISNA(VLOOKUP(C45,BDDG!$A$3:$J$102,3,FALSE)),"",VLOOKUP(C45,BDDG!$A$3:$J$102,3,FALSE)) -> A | F45: =IF(ISNA(VLOOKUP(C45,BDDG!$A$3:$J$102,4,FALSE)),"",VLOOKUP(C45,BDDG!$A$3:$J$102,4,FALSE)) -> 106 | G45: =IF(ISNA(VLOOKUP(C45,BDDG!$A$2:$F$100,5,FALSE)),"",VLOOKUP(C45,BDDG!$A$2:$F$100,5,FALSE)) -> A3 | H45: =IF(ISNA(VLOOKUP(C45,BDDG!$A$2:$F$100,6,FALSE)),"",VLOOKUP(C45,BDDG!$A$2:$F$100,6,FALSE)) -> AA10 | I45: =IF(ISERROR(VLOOKUP(C45,BDDG!$A$2:$G$100,7,FALSE)),"",VLOOKUP(C45,BDDG!$A$2:$G$100,7,FALSE)) -> 2 | J45: =IF(ISERROR(VLOOKUP(C45,BDDG!$A$2:$H$100,8,FALSE)),"",VLOOKUP(C45,BDDG!$A$2:$H$100,8,FALSE)) -> BB10 | M45: 37.44 | N45: =IF(ISERROR(VLOOKUP(C45,BDDG!$A$2:$I$100,9,FALSE)),"",VLOOKUP(C45,BDDG!$A$2:$I$100,9,FALSE)) -> CC10 | R45: =IF(ISERROR(VLOOKUP(C45,BDDG!$A$2:$J$100,10,FALSE)),"",VLOOKUP(C45,BDDG!$A$2:$J$100,10,FALSE)) -> DD10 | V45: 37.44 | W45: 10 | X45: 1999 | Y45: =IFERROR((INDEX($V$2:V45,MATCH(H45&MAX(IF($H$1:H44=H45,$A$1:A44)),$H$2:H45&$A$2:A45,0))-V45)*-1,"") -> 2.67
A46: 1999-11-17 | C46: 832 | D46: =IF(ISNA(VLOOKUP(C46,BDDG!$A$2:$F$100,2,FALSE)),"",VLOOKUP(C46,BDDG!$A$2:$F$100,2,FALSE)) -> 0 | E46: =IF(ISNA(VLOOKUP(C46,BDDG!$A$3:$J$102,3,FALSE)),"",VLOOKUP(C46,BDDG!$A$3:$J$102,3,FALSE)) -> A | F46: =IF(ISNA(VLOOKUP(C46,BDDG!$A$3:$J$102,4,FALSE)),"",VLOOKUP(C46,BDDG!$A$3:$J$102,4,FALSE)) -> 106 | G46: =IF(ISNA(VLOOKUP(C46,BDDG!$A$2:$F$100,5,FALSE)),"",VLOOKUP(C46,BDDG!$A$2:$F$100,5,FALSE)) -> A2 | H46: =IF(ISNA(VLOOKUP(C46,BDDG!$A$2:$F$100,6,FALSE)),"",VLOOKUP(C46,BDDG!$A$2:$F$100,6,FALSE)) -> AA2 | I46: =IF(ISERROR(VLOOKUP(C46,BDDG!$A$2:$G$100,7,FALSE)),"",VLOOKUP(C46,BDDG!$A$2:$G$100,7,FALSE)) -> 1 | J46: =IF(ISERROR(VLOOKUP(C46,BDDG!$A$2:$H$100,8,FALSE)),"",VLOOKUP(C46,BDDG!$A$2:$H$100,8,FALSE)) -> BB2 | K46: 66 | L46: 60 | M46: =IF(ISERROR(K46/L46*86.4),"",K46/L46*86.4) -> 95.04 | N46: =IF(ISERROR(VLOOKUP(C46,BDDG!$A$2:$I$100,9,FALSE)),"",VLOOKUP(C46,BDDG!$A$2:$I$100,9,FALSE)) -> CC2 | R46: =IF(ISERROR(VLOOKUP(C46,BDDG!$A$2:$J$100,10,FALSE)),"",VLOOKUP(C46,BDDG!$A$2:$J$100,10,FALSE)) -> DD2 | V46: 95.04 | W46: 11 | X46: 1999 | Y46: =IFERROR((INDEX($V$2:V46,MATCH(H46&MAX(IF($H$1:H45=H46,$A$1:A45)),$H$2:H46&$A$2:A46,0))-V46)*-1,"") -> 37.44
A47: 1999-11-17 | C47: 833 | D47: =IF(ISNA(VLOOKUP(C47,BDDG!$A$2:$F$100,2,FALSE)),"",VLOOKUP(C47,BDDG!$A$2:$F$100,2,FALSE)) -> 0 | E47: =IF(ISNA(VLOOKUP(C47,BDDG!$A$3:$J$102,3,FALSE)),"",VLOOKUP(C47,BDDG!$A$3:$J$102,3,FALSE)) -> A | F47: =IF(ISNA(VLOOKUP(C47,BDDG!$A$3:$J$102,4,FALSE)),"",VLOOKUP(C47,BDDG!$A$3:$J$102,4,FALSE)) -> 106 | G47: =IF(ISNA(VLOOKUP(C47,BDDG!$A$2:$F$100,5,FALSE)),"",VLOOKUP(C47,BDDG!$A$2:$F$100,5,FALSE)) -> A2 | H47: =IF(ISNA(VLOOKUP(C47,BDDG!$A$2:$F$100,6,FALSE)),"",VLOOKUP(C47,BDDG!$A$2:$F$100,6,FALSE)) -> AA3 | I47: =IF(ISERROR(VLOOKUP(C47,BDDG!$A$2:$G$100,7,FALSE)),"",VLOOKUP(C47,BDDG!$A$2:$G$100,7,FALSE)) -> 1 | J47: =IF(ISERROR(VLOOKUP(C47,BDDG!$A$2:$H$100,8,FALSE)),"",VLOOKUP(C47,BDDG!$A$2:$H$100,8,FALSE)) -> BB3 | K47: 66 | L47: 60 | M47: 95.04 | N47: =IF(ISERROR(VLOOKUP(C47,BDDG!$A$2:$I$100,9,FALSE)),"",VLOOKUP(C47,BDDG!$A$2:$I$100,9,FALSE)) -> CC3 | R47: =IF(ISERROR(VLOOKUP(C47,BDDG!$A$2:$J$100,10,FALSE)),"",VLOOKUP(C47,BDDG!$A$2:$J$100,10,FALSE)) -> DD3 | V47: 95.04 | W47: 11 | X47: 1999 | Y47: =IFERROR((INDEX($V$2:V47,MATCH(H47&MAX(IF($H$1:H46=H47,$A$1:A46)),$H$2:H47&$A$2:A47,0))-V47)*-1,"") -> -27.36
A48: 1999-11-17 | C48: 834 | D48: =IF(ISNA(VLOOKUP(C48,BDDG!$A$2:$F$100,2,FALSE)),"",VLOOKUP(C48,BDDG!$A$2:$F$100,2,FALSE)) -> 0 | E48: =IF(ISNA(VLOOKUP(C48,BDDG!$A$3:$J$102,3,FALSE)),"",VLOOKUP(C48,BDDG!$A$3:$J$102,3,FALSE)) -> A | F48: =IF(ISNA(VLOOKUP(C48,BDDG!$A$3:$J$102,4,FALSE)),"",VLOOKUP(C48,BDDG!$A$3:$J$102,4,FALSE)) -> 106 | G48: =IF(ISNA(VLOOKUP(C48,BDDG!$A$2:$F$100,5,FALSE)),"",VLOOKUP(C48,BDDG!$A$2:$F$100,5,FALSE)) -> A2 | H48: =IF(ISNA(VLOOKUP(C48,BDDG!$A$2:$F$100,6,FALSE)),"",VLOOKUP(C48,BDDG!$A$2:$F$100,6,FALSE)) -> AA4 | I48: =IF(ISERROR(VLOOKUP(C48,BDDG!$A$2:$G$100,7,FALSE)),"",VLOOKUP(C48,BDDG!$A$2:$G$100,7,FALSE)) -> 1 | J48: =IF(ISERROR(VLOOKUP(C48,BDDG!$A$2:$H$100,8,FALSE)),"",VLOOKUP(C48,BDDG!$A$2:$H$100,8,FALSE)) -> BB4 | K48: 30 | L48: 60 | M48: 43.2 | N48: =IF(ISERROR(VLOOKUP(C48,BDDG!$A$2:$I$100,9,FALSE)),"",VLOOKUP(C48,BDDG!$A$2:$I$100,9,FALSE)) -> CC4 | R48: =IF(ISERROR(VLOOKUP(C48,BDDG!$A$2:$J$100,10,FALSE)),"",VLOOKUP(C48,BDDG!$A$2:$J$100,10,FALSE)) -> DD4 | V48: 43.2 | W48: 11 | X48: 1999 | Y48: =IFERROR((INDEX($V$2:V48,MATCH(H48&MAX(IF($H$1:H47=H48,$A$1:A47)),$H$2:H48&$A$2:A48,0))-V48)*-1,"") -> 18.72
A49: 2000-08-25 | C49: 832 | D49: =IF(ISNA(VLOOKUP(C49,BDDG!$A$2:$F$100,2,FALSE)),"",VLOOKUP(C49,BDDG!$A$2:$F$100,2,FALSE)) -> 0 | E49: =IF(ISNA(VLOOKUP(C49,BDDG!$A$3:$J$102,3,FALSE)),"",VLOOKUP(C49,BDDG!$A$3:$J$102,3,FALSE)) -> A | F49: =IF(ISNA(VLOOKUP(C49,BDDG!$A$3:$J$102,4,FALSE)),"",VLOOKUP(C49,BDDG!$A$3:$J$102,4,FALSE)) -> 106 | G49: =IF(ISNA(VLOOKUP(C49,BDDG!$A$2:$F$100,5,FALSE)),"",VLOOKUP(C49,BDDG!$A$2:$F$100,5,FALSE)) -> A2 | H49: =IF(ISNA(VLOOKUP(C49,BDDG!$A$2:$F$100,6,FALSE)),"",VLOOKUP(C49,BDDG!$A$2:$F$100,6,FALSE)) -> AA2 | I49: =IF(ISERROR(VLOOKUP(C49,BDDG!$A$2:$G$100,7,FALSE)),"",VLOOKUP(C49,BDDG!$A$2:$G$100,7,FALSE)) -> 1 | J49: =IF(ISERROR(VLOOKUP(C49,BDDG!$A$2:$H$100,8,FALSE)),"",VLOOKUP(C49,BDDG!$A$2:$H$100,8,FALSE)) -> BB2 | K49: 18 | L49: 60 | M49: 25.92 | N49: =IF(ISERROR(VLOOKUP(C49,BDDG!$A$2:$I$100,9,FALSE)),"",VLOOKUP(C49,BDDG!$A$2:$I$100,9,FALSE)) -> CC2 | R49: =IF(ISERROR(VLOOKUP(C49,BDDG!$A$2:$J$100,10,FALSE)),"",VLOOKUP(C49,BDDG!$A$2:$J$100,10,FALSE)) -> DD2 | V49: 25.92 | W49: 8 | X49: 2000 | Y49: =IFERROR((INDEX($V$2:V49,MATCH(H49&MAX(IF($H$1:H48=H49,$A$1:A48)),$H$2:H49&$A$2:A49,0))-V49)*-1,"") -> -69.12
A50: 2000-08-25 | C50: 833 | D50: =IF(ISNA(VLOOKUP(C50,BDDG!$A$2:$F$100,2,FALSE)),"",VLOOKUP(C50,BDDG!$A$2:$F$100,2,FALSE)) -> 0 | E50: =IF(ISNA(VLOOKUP(C50,BDDG!$A$3:$J$102,3,FALSE)),"",VLOOKUP(C50,BDDG!$A$3:$J$102,3,FALSE)) -> A | F50: =IF(ISNA(VLOOKUP(C50,BDDG!$A$3:$J$102,4,FALSE)),"",VLOOKUP(C50,BDDG!$A$3:$J$102,4,FALSE)) -> 106 | G50: =IF(ISNA(VLOOKUP(C50,BDDG!$A$2:$F$100,5,FALSE)),"",VLOOKUP(C50,BDDG!$A$2:$F$100,5,FALSE)) -> A2 | H50: =IF(ISNA(VLOOKUP(C50,BDDG!$A$2:$F$100,6,FALSE)),"",VLOOKUP(C50,BDDG!$A$2:$F$100,6,FALSE)) -> AA3 | I50: =IF(ISERROR(VLOOKUP(C50,BDDG!$A$2:$G$100,7,FALSE)),"",VLOOKUP(C50,BDDG!$A$2:$G$100,7,FALSE)) -> 1 | J50: =IF(ISERROR(VLOOKUP(C50,BDDG!$A$2:$H$100,8,FALSE)),"",VLOOKUP(C50,BDDG!$A$2:$H$100,8,FALSE)) -> BB3 | K50: 34 | L50: 60 | M50: 48.96 | N50: =IF(ISERROR(VLOOKUP(C50,BDDG!$A$2:$I$100,9,FALSE)),"",VLOOKUP(C50,BDDG!$A$2:$I$100,9,FALSE)) -> CC3 | R50: =IF(ISERROR(VLOOKUP(C50,BDDG!$A$2:$J$100,10,FALSE)),"",VLOOKUP(C50,BDDG!$A$2:$J$100,10,FALSE)) -> DD3 | V50: 48.96 | W50: 8 | X50: 2000 | Y50: =IFERROR((INDEX($V$2:V50,MATCH(H50&MAX(IF($H$1:H49=H50,$A$1:A49)),$H$2:H50&$A$2:A50,0))-V50)*-1,"") -> -46.08
A51: 2000-08-28 | C51: 834 | D51: =IF(ISNA(VLOOKUP(C51,BDDG!$A$2:$F$100,2,FALSE)),"",VLOOKUP(C51,BDDG!$A$2:$F$100,2,FALSE)) -> 0 | E51: =IF(ISNA(VLOOKUP(C51,BDDG!$A$3:$J$102,3,FALSE)),"",VLOOKUP(C51,BDDG!$A$3:$J$102,3,FALSE)) -> A | F51: =IF(ISNA(VLOOKUP(C51,BDDG!$A$3:$J$102,4,FALSE)),"",VLOOKUP(C51,BDDG!$A$3:$J$102,4,FALSE)) -> 106 | G51: =IF(ISNA(VLOOKUP(C51,BDDG!$A$2:$F$100,5,FALSE)),"",VLOOKUP(C51,BDDG!$A$2:$F$100,5,FALSE)) -> A2 | H51: =IF(ISNA(VLOOKUP(C51,BDDG!$A$2:$F$100,6,FALSE)),"",VLOOKUP(C51,BDDG!$A$2:$F$100,6,FALSE)) -> AA4 | I51: =IF(ISERROR(VLOOKUP(C51,BDDG!$A$2:$G$100,7,FALSE)),"",VLOOKUP(C51,BDDG!$A$2:$G$100,7,FALSE)) -> 1 | J51: =IF(ISERROR(VLOOKUP(C51,BDDG!$A$2:$H$100,8,FALSE)),"",VLOOKUP(C51,BDDG!$A$2:$H$100,8,FALSE)) -> BB4 | K51: 13 | L51: 60 | M51: 18.72 | N51: =IF(ISERROR(VLOOKUP(C51,BDDG!$A$2:$I$100,9,FALSE)),"",VLOOKUP(C51,BDDG!$A$2:$I$100,9,FALSE)) -> CC4 | R51: =IF(ISERROR(VLOOKUP(C51,BDDG!$A$2:$J$100,10,FALSE)),"",VLOOKUP(C51,BDDG!$A$2:$J$100,10,FALSE)) -> DD4 | V51: 18.72 | W51: 8 | X51: 2000 | Y51: =IFERROR((INDEX($V$2:V51,MATCH(H51&MAX(IF($H$1:H50=H51,$A$1:A50)),$H$2:H51&$A$2:A51,0))-V51)*-1,"") -> -24.48
A52: 2000-11-03 | C52: 842 | D52: =IF(ISNA(VLOOKUP(C52,BDDG!$A$2:$F$100,2,FALSE)),"",VLOOKUP(C52,BDDG!$A$2:$F$100,2,FALSE)) -> 0 | E52: =IF(ISNA(VLOOKUP(C52,BDDG!$A$3:$J$102,3,FALSE)),"",VLOOKUP(C52,BDDG!$A$3:$J$102,3,FALSE)) -> B | F52: =IF(ISNA(VLOOKUP(C52,BDDG!$A$3:$J$102,4,FALSE)),"",VLOOKUP(C52,BDDG!$A$3:$J$102,4,FALSE)) -> 106 | G52: =IF(ISNA(VLOOKUP(C52,BDDG!$A$2:$F$100,5,FALSE)),"",VLOOKUP(C52,BDDG!$A$2:$F$100,5,FALSE)) -> A5 | H52: =IF(ISNA(VLOOKUP(C52,BDDG!$A$2:$F$100,6,FALSE)),"",VLOOKUP(C52,BDDG!$A$2:$F$100,6,FALSE)) -> AA13 | I52: =IF(ISERROR(VLOOKUP(C52,BDDG!$A$2:$G$100,7,FALSE)),"",VLOOKUP(C52,BDDG!$A$2:$G$100,7,FALSE)) -> 1 | J52: =IF(ISERROR(VLOOKUP(C52,BDDG!$A$2:$H$100,8,FALSE)),"",VLOOKUP(C52,BDDG!$A$2:$H$100,8,FALSE)) -> BB13 | K52: 10 | L52: 60 | M52: 14.4 | N52: =IF(ISERROR(VLOOKUP(C52,BDDG!$A$2:$I$100,9,FALSE)),"",VLOOKUP(C52,BDDG!$A$2:$I$100,9,FALSE)) -> CC13 | R52: =IF(ISERROR(VLOOKUP(C52,BDDG!$A$2:$J$100,10,FALSE)),"",VLOOKUP(C52,BDDG!$A$2:$J$100,10,FALSE)) -> DD13 | V52: 14.4 | W52: 11 | X52: 2000 | Y52: =IFERROR((INDEX($V$2:V52,MATCH(H52&MAX(IF($H$1:H51=H52,$A$1:A51)),$H$2:H52&$A$2:A52,0))-V52)*-1,"") -> 
A53: 2001-09-21 | C53: 859 | D53: =IF(ISNA(VLOOKUP(C53,BDDG!$A$2:$F$100,2,FALSE)),"",VLOOKUP(C53,BDDG!$A$2:$F$100,2,FALSE)) -> 0 | E53: =IF(ISNA(VLOOKUP(C53,BDDG!$A$3:$J$102,3,FALSE)),"",VLOOKUP(C53,BDDG!$A$3:$J$102,3,FALSE)) -> A | F53: =IF(ISNA(VLOOKUP(C53,BDDG!$A$3:$J$102,4,FALSE)),"",VLOOKUP(C53,BDDG!$A$3:$J$102,4,FALSE)) -> 106 | G53: =IF(ISNA(VLOOKUP(C53,BDDG!$A$2:$F$100,5,FALSE)),"",VLOOKUP(C53,BDDG!$A$2:$F$100,5,FALSE)) -> A10 | H53: =IF(ISNA(VLOOKUP(C53,BDDG!$A$2:$F$100,6,FALSE)),"",VLOOKUP(C53,BDDG!$A$2:$F$100,6,FALSE)) -> AA30 | I53: =IF(ISERROR(VLOOKUP(C53,BDDG!$A$2:$G$100,7,FALSE)),"",VLOOKUP(C53,BDDG!$A$2:$G$100,7,FALSE)) -> 1 | J53: =IF(ISERROR(VLOOKUP(C53,BDDG!$A$2:$H$100,8,FALSE)),"",VLOOKUP(C53,BDDG!$A$2:$H$100,8,FALSE)) -> BB30 | M53: 5.7 | R53: =IF(ISERROR(VLOOKUP(C53,BDDG!$A$2:$J$100,10,FALSE)),"",VLOOKUP(C53,BDDG!$A$2:$J$100,10,FALSE)) -> DD30 | V53: 5.7 | W53: 9 | X53: 2001 | Y53: =IFERROR((INDEX($V$2:V53,MATCH(H53&MAX(IF($H$1:H52=H53,$A$1:A52)),$H$2:H53&$A$2:A53,0))-V53)*-1,"") -> 
A54: 2001-09-22 | C54: 859 | D54: =IF(ISNA(VLOOKUP(C54,BDDG!$A$2:$F$100,2,FALSE)),"",VLOOKUP(C54,BDDG!$A$2:$F$100,2,FALSE)) -> 0 | E54: =IF(ISNA(VLOOKUP(C54,BDDG!$A$3:$J$102,3,FALSE)),"",VLOOKUP(C54,BDDG!$A$3:$J$102,3,FALSE)) -> A | F54: =IF(ISNA(VLOOKUP(C54,BDDG!$A$3:$J$102,4,FALSE)),"",VLOOKUP(C54,BDDG!$A$3:$J$102,4,FALSE)) -> 106 | G54: =IF(ISNA(VLOOKUP(C54,BDDG!$A$2:$F$100,5,FALSE)),"",VLOOKUP(C54,BDDG!$A$2:$F$100,5,FALSE)) -> A10 | H54: =IF(ISNA(VLOOKUP(C54,BDDG!$A$2:$F$100,6,FALSE)),"",VLOOKUP(C54,BDDG!$A$2:$F$100,6,FALSE)) -> AA30 | I54: =IF(ISERROR(VLOOKUP(C54,BDDG!$A$2:$G$100,7,FALSE)),"",VLOOKUP(C54,BDDG!$A$2:$G$100,7,FALSE)) -> 1 | J54: =IF(ISERROR(VLOOKUP(C54,BDDG!$A$2:$H$100,8,FALSE)),"",VLOOKUP(C54,BDDG!$A$2:$H$100,8,FALSE)) -> BB30 | M54: 5.18 | R54: =IF(ISERROR(VLOOKUP(C54,BDDG!$A$2:$J$100,10,FALSE)),"",VLOOKUP(C54,BDDG!$A$2:$J$100,10,FALSE)) -> DD30 | V54: 5.18 | W54: 9 | X54: 2001 | Y54: =IFERROR((INDEX($V$2:V54,MATCH(H54&MAX(IF($H$1:H53=H54,$A$1:A53)),$H$2:H54&$A$2:A54,0))-V54)*-1,"") -> -0.52
A55: 2001-09-23 | C55: 859 | D55: =IF(ISNA(VLOOKUP(C55,BDDG!$A$2:$F$100,2,FALSE)),"",VLOOKUP(C55,BDDG!$A$2:$F$100,2,FALSE)) -> 0 | E55: =IF(ISNA(VLOOKUP(C55,BDDG!$A$3:$J$102,3,FALSE)),"",VLOOKUP(C55,BDDG!$A$3:$J$102,3,FALSE)) -> A | F55: =IF(ISNA(VLOOKUP(C55,BDDG!$A$3:$J$102,4,FALSE)),"",VLOOKUP(C55,BDDG!$A$3:$J$102,4,FALSE)) -> 106 | G55: =IF(ISNA(VLOOKUP(C55,BDDG!$A$2:$F$100,5,FALSE)),"",VLOOKUP(C55,BDDG!$A$2:$F$100,5,FALSE)) -> A10 | H55: =IF(ISNA(VLOOKUP(C55,BDDG!$A$2:$F$100,6,FALSE)),"",VLOOKUP(C55,BDDG!$A$2:$F$100,6,FALSE)) -> AA30 | I55: =IF(ISERROR(VLOOKUP(C55,BDDG!$A$2:$G$100,7,FALSE)),"",VLOOKUP(C55,BDDG!$A$2:$G$100,7,FALSE)) -> 1 | J55: =IF(ISERROR(VLOOKUP(C55,BDDG!$A$2:$H$100,8,FALSE)),"",VLOOKUP(C55,BDDG!$A$2:$H$100,8,FALSE)) -> BB30 | M55: 6.65 | R55: =IF(ISERROR(VLOOKUP(C55,BDDG!$A$2:$J$100,10,FALSE)),"",VLOOKUP(C55,BDDG!$A$2:$J$100,10,FALSE)) -> DD30 | V55: 6.65 | W55: 9 | X55: 2001 | Y55: =IFERROR((INDEX($V$2:V55,MATCH(H55&MAX(IF($H$1:H54=H55,$A$1:A54)),$H$2:H55&$A$2:A55,0))-V55)*-1,"") -> 1.47
A56: 2001-09-24 | C56: 859 | D56: =IF(ISNA(VLOOKUP(C56,BDDG!$A$2:$F$100,2,FALSE)),"",VLOOKUP(C56,BDDG!$A$2:$F$100,2,FALSE)) -> 0 | E56: =IF(ISNA(VLOOKUP(C56,BDDG!$A$3:$J$102,3,FALSE)),"",VLOOKUP(C56,BDDG!$A$3:$J$102,3,FALSE)) -> A | F56: =IF(ISNA(VLOOKUP(C56,BDDG!$A$3:$J$102,4,FALSE)),"",VLOOKUP(C56,BDDG!$A$3:$J$102,4,FALSE)) -> 106 | G56: =IF(ISNA(VLOOKUP(C56,BDDG!$A$2:$F$100,5,FALSE)),"",VLOOKUP(C56,BDDG!$A$2:$F$100,5,FALSE)) -> A10 | H56: =IF(ISNA(VLOOKUP(C56,BDDG!$A$2:$F$100,6,FALSE)),"",VLOOKUP(C56,BDDG!$A$2:$F$100,6,FALSE)) -> AA30 | I56: =IF(ISERROR(VLOOKUP(C56,BDDG!$A$2:$G$100,7,FALSE)),"",VLOOKUP(C56,BDDG!$A$2:$G$100,7,FALSE)) -> 1 | J56: =IF(ISERROR(VLOOKUP(C56,BDDG!$A$2:$H$100,8,FALSE)),"",VLOOKUP(C56,BDDG!$A$2:$H$100,8,FALSE)) -> BB30 | M56: 5.79 | R56: =IF(ISERROR(VLOOKUP(C56,BDDG!$A$2:$J$100,10,FALSE)),"",VLOOKUP(C56,BDDG!$A$2:$J$100,10,FALSE)) -> DD30 | V56: 5.79 | W56: 9 | X56: 2001 | Y56: =IFERROR((INDEX($V$2:V56,MATCH(H56&MAX(IF($H$1:H55=H56,$A$1:A55)),$H$2:H56&$A$2:A56,0))-V56)*-1,"") -> -0.86
A57: 2001-09-25 | C57: 859 | D57: =IF(ISNA(VLOOKUP(C57,BDDG!$A$2:$F$100,2,FALSE)),"",VLOOKUP(C57,BDDG!$A$2:$F$100,2,FALSE)) -> 0 | E57: =IF(ISNA(VLOOKUP(C57,BDDG!$A$3:$J$102,3,FALSE)),"",VLOOKUP(C57,BDDG!$A$3:$J$102,3,FALSE)) -> A | F57: =IF(ISNA(VLOOKUP(C57,BDDG!$A$3:$J$102,4,FALSE)),"",VLOOKUP(C57,BDDG!$A$3:$J$102,4,FALSE)) -> 106 | G57: =IF(ISNA(VLOOKUP(C57,BDDG!$A$2:$F$100,5,FALSE)),"",VLOOKUP(C57,BDDG!$A$2:$F$100,5,FALSE)) -> A10 | H57: =IF(ISNA(VLOOKUP(C57,BDDG!$A$2:$F$100,6,FALSE)),"",VLOOKUP(C57,BDDG!$A$2:$F$100,6,FALSE)) -> AA30 | I57: =IF(ISERROR(VLOOKUP(C57,BDDG!$A$2:$G$100,7,FALSE)),"",VLOOKUP(C57,BDDG!$A$2:$G$100,7,FALSE)) -> 1 | J57: =IF(ISERROR(VLOOKUP(C57,BDDG!$A$2:$H$100,8,FALSE)),"",VLOOKUP(C57,BDDG!$A$2:$H$100,8,FALSE)) -> BB30 | M57: 5.44 | R57: =IF(ISERROR(VLOOKUP(C57,BDDG!$A$2:$J$100,10,FALSE)),"",VLOOKUP(C57,BDDG!$A$2:$J$100,10,FALSE)) -> DD30 | V57: 5.44 | W57: 9 | X57: 2001 | Y57: =IFERROR((INDEX($V$2:V57,MATCH(H57&MAX(IF($H$1:H56=H57,$A$1:A56)),$H$2:H57&$A$2:A57,0))-V57)*-1,"") -> -0.35
A58: 2001-09-25 | C58: 815 | D58: =IF(ISNA(VLOOKUP(C58,BDDG!$A$2:$F$100,2,FALSE)),"",VLOOKUP(C58,BDDG!$A$2:$F$100,2,FALSE)) -> 0 | E58: =IF(ISNA(VLOOKUP(C58,BDDG!$A$3:$J$102,3,FALSE)),"",VLOOKUP(C58,BDDG!$A$3:$J$102,3,FALSE)) -> A | F58: =IF(ISNA(VLOOKUP(C58,BDDG!$A$3:$J$102,4,FALSE)),"",VLOOKUP(C58,BDDG!$A$3:$J$102,4,FALSE)) -> 106 | G58: =IF(ISNA(VLOOKUP(C58,BDDG!$A$2:$F$100,5,FALSE)),"",VLOOKUP(C58,BDDG!$A$2:$F$100,5,FALSE)) -> A10 | H58: =IF(ISNA(VLOOKUP(C58,BDDG!$A$2:$F$100,6,FALSE)),"",VLOOKUP(C58,BDDG!$A$2:$F$100,6,FALSE)) -> AA31 | I58: =IF(ISERROR(VLOOKUP(C58,BDDG!$A$2:$G$100,7,FALSE)),"",VLOOKUP(C58,BDDG!$A$2:$G$100,7,FALSE)) -> 1 | J58: =IF(ISERROR(VLOOKUP(C58,BDDG!$A$2:$H$100,8,FALSE)),"",VLOOKUP(C58,BDDG!$A$2:$H$100,8,FALSE)) -> BB31 | M58: 11.2 | N58: =IF(ISERROR(VLOOKUP(C58,BDDG!$A$2:$I$100,9,FALSE)),"",VLOOKUP(C58,BDDG!$A$2:$I$100,9,FALSE)) -> CC31 | Q58: =IF(ISERROR(O58/P58*86.4),"",O58/P58*86.4) ->  | R58: =IF(ISERROR(VLOOKUP(C58,BDDG!$A$2:$J$100,10,FALSE)),"",VLOOKUP(C58,BDDG!$A$2:$J$100,10,FALSE)) -> DD31 | V58: 11.2 | W58: 9 | X58: 2001 | Y58: =IFERROR((INDEX($V$2:V58,MATCH(H58&MAX(IF($H$1:H57=H58,$A$1:A57)),$H$2:H58&$A$2:A58,0))-V58)*-1,"") -> 
A59: 2001-09-26 | C59: 859 | D59: =IF(ISNA(VLOOKUP(C59,BDDG!$A$2:$F$100,2,FALSE)),"",VLOOKUP(C59,BDDG!$A$2:$F$100,2,FALSE)) -> 0 | E59: =IF(ISNA(VLOOKUP(C59,BDDG!$A$3:$J$102,3,FALSE)),"",VLOOKUP(C59,BDDG!$A$3:$J$102,3,FALSE)) -> A | F59: =IF(ISNA(VLOOKUP(C59,BDDG!$A$3:$J$102,4,FALSE)),"",VLOOKUP(C59,BDDG!$A$3:$J$102,4,FALSE)) -> 106 | G59: =IF(ISNA(VLOOKUP(C59,BDDG!$A$2:$F$100,5,FALSE)),"",VLOOKUP(C59,BDDG!$A$2:$F$100,5,FALSE)) -> A10 | H59: =IF(ISNA(VLOOKUP(C59,BDDG!$A$2:$F$100,6,FALSE)),"",VLOOKUP(C59,BDDG!$A$2:$F$100,6,FALSE)) -> AA30 | I59: =IF(ISERROR(VLOOKUP(C59,BDDG!$A$2:$G$100,7,FALSE)),"",VLOOKUP(C59,BDDG!$A$2:$G$100,7,FALSE)) -> 1 | J59: =IF(ISERROR(VLOOKUP(C59,BDDG!$A$2:$H$100,8,FALSE)),"",VLOOKUP(C59,BDDG!$A$2:$H$100,8,FALSE)) -> BB30 | M59: 5.1 | Q59: =IF(ISERROR(O59/P59*86.4),"",O59/P59*86.4) ->  | R59: =IF(ISERROR(VLOOKUP(C59,BDDG!$A$2:$J$100,10,FALSE)),"",VLOOKUP(C59,BDDG!$A$2:$J$100,10,FALSE)) -> DD30 | V59: =IF(ISERROR(SUM(M59,Q59,U59)),"",SUM(M59,Q59,U59)) -> 5.1 | W59: 9 | X59: 2001 | Y59: =IFERROR((INDEX($V$2:V59,MATCH(H59&MAX(IF($H$1:H58=H59,$A$1:A58)),$H$2:H59&$A$2:A59,0))-V59)*-1,"") -> -0.34
A60: 2001-09-27 | C60: 859 | D60: =IF(ISNA(VLOOKUP(C60,BDDG!$A$2:$F$100,2,FALSE)),"",VLOOKUP(C60,BDDG!$A$2:$F$100,2,FALSE)) -> 0 | E60: =IF(ISNA(VLOOKUP(C60,BDDG!$A$3:$J$102,3,FALSE)),"",VLOOKUP(C60,BDDG!$A$3:$J$102,3,FALSE)) -> A | F60: =IF(ISNA(VLOOKUP(C60,BDDG!$A$3:$J$102,4,FALSE)),"",VLOOKUP(C60,BDDG!$A$3:$J$102,4,FALSE)) -> 106 | G60: =IF(ISNA(VLOOKUP(C60,BDDG!$A$2:$F$100,5,FALSE)),"",VLOOKUP(C60,BDDG!$A$2:$F$100,5,FALSE)) -> A10 | H60: =IF(ISNA(VLOOKUP(C60,BDDG!$A$2:$F$100,6,FALSE)),"",VLOOKUP(C60,BDDG!$A$2:$F$100,6,FALSE)) -> AA30 | I60: =IF(ISERROR(VLOOKUP(C60,BDDG!$A$2:$G$100,7,FALSE)),"",VLOOKUP(C60,BDDG!$A$2:$G$100,7,FALSE)) -> 1 | J60: =IF(ISERROR(VLOOKUP(C60,BDDG!$A$2:$H$100,8,FALSE)),"",VLOOKUP(C60,BDDG!$A$2:$H$100,8,FALSE)) -> BB30 | M60: 4.84 | R60: =IF(ISERROR(VLOOKUP(C60,BDDG!$A$2:$J$100,10,FALSE)),"",VLOOKUP(C60,BDDG!$A$2:$J$100,10,FALSE)) -> DD30 | V60: 4.84 | W60: 9 | X60: 2001 | Y60: =IFERROR((INDEX($V$2:V60,MATCH(H60&MAX(IF($H$1:H59=H60,$A$1:A59)),$H$2:H60&$A$2:A60,0))-V60)*-1,"") -> -0.26
A61: 2001-09-28 | C61: 859 | D61: =IF(ISNA(VLOOKUP(C61,BDDG!$A$2:$F$100,2,FALSE)),"",VLOOKUP(C61,BDDG!$A$2:$F$100,2,FALSE)) -> 0 | E61: =IF(ISNA(VLOOKUP(C61,BDDG!$A$3:$J$102,3,FALSE)),"",VLOOKUP(C61,BDDG!$A$3:$J$102,3,FALSE)) -> A | F61: =IF(ISNA(VLOOKUP(C61,BDDG!$A$3:$J$102,4,FALSE)),"",VLOOKUP(C61,BDDG!$A$3:$J$102,4,FALSE)) -> 106 | G61: =IF(ISNA(VLOOKUP(C61,BDDG!$A$2:$F$100,5,FALSE)),"",VLOOKUP(C61,BDDG!$A$2:$F$100,5,FALSE)) -> A10 | H61: =IF(ISNA(VLOOKUP(C61,BDDG!$A$2:$F$100,6,FALSE)),"",VLOOKUP(C61,BDDG!$A$2:$F$100,6,FALSE)) -> AA30 | I61: =IF(ISERROR(VLOOKUP(C61,BDDG!$A$2:$G$100,7,FALSE)),"",VLOOKUP(C61,BDDG!$A$2:$G$100,7,FALSE)) -> 1 | J61: =IF(ISERROR(VLOOKUP(C61,BDDG!$A$2:$H$100,8,FALSE)),"",VLOOKUP(C61,BDDG!$A$2:$H$100,8,FALSE)) -> BB30 | M61: 4.75 | R61: =IF(ISERROR(VLOOKUP(C61,BDDG!$A$2:$J$100,10,FALSE)),"",VLOOKUP(C61,BDDG!$A$2:$J$100,10,FALSE)) -> DD30 | V61: 4.75 | W61: 9 | X61: 2001 | Y61: =IFERROR((INDEX($V$2:V61,MATCH(H61&MAX(IF($H$1:H60=H61,$A$1:A60)),$H$2:H61&$A$2:A61,0))-V61)*-1,"") -> -0.09
A62: 2001-09-29 | C62: 859 | D62: =IF(ISNA(VLOOKUP(C62,BDDG!$A$2:$F$100,2,FALSE)),"",VLOOKUP(C62,BDDG!$A$2:$F$100,2,FALSE)) -> 0 | E62: =IF(ISNA(VLOOKUP(C62,BDDG!$A$3:$J$102,3,FALSE)),"",VLOOKUP(C62,BDDG!$A$3:$J$102,3,FALSE)) -> A | F62: =IF(ISNA(VLOOKUP(C62,BDDG!$A$3:$J$102,4,FALSE)),"",VLOOKUP(C62,BDDG!$A$3:$J$102,4,FALSE)) -> 106 | G62: =IF(ISNA(VLOOKUP(C62,BDDG!$A$2:$F$100,5,FALSE)),"",VLOOKUP(C62,BDDG!$A$2:$F$100,5,FALSE)) -> A10 | H62: =IF(ISNA(VLOOKUP(C62,BDDG!$A$2:$F$100,6,FALSE)),"",VLOOKUP(C62,BDDG!$A$2:$F$100,6,FALSE)) -> AA30 | I62: =IF(ISERROR(VLOOKUP(C62,BDDG!$A$2:$G$100,7,FALSE)),"",VLOOKUP(C62,BDDG!$A$2:$G$100,7,FALSE)) -> 1 | J62: =IF(ISERROR(VLOOKUP(C62,BDDG!$A$2:$H$100,8,FALSE)),"",VLOOKUP(C62,BDDG!$A$2:$H$100,8,FALSE)) -> BB30 | M62: 4.75 | R62: =IF(ISERROR(VLOOKUP(C62,BDDG!$A$2:$J$100,10,FALSE)),"",VLOOKUP(C62,BDDG!$A$2:$J$100,10,FALSE)) -> DD30 | V62: 4.75 | W62: 9 | X62: 2001 | Y62: =IFERROR((INDEX($V$2:V62,MATCH(H62&MAX(IF($H$1:H61=H62,$A$1:A61)),$H$2:H62&$A$2:A62,0))-V62)*-1,"") -> 0
A63: 2001-09-30 | C63: 859 | D63: =IF(ISNA(VLOOKUP(C63,BDDG!$A$2:$F$100,2,FALSE)),"",VLOOKUP(C63,BDDG!$A$2:$F$100,2,FALSE)) -> 0 | E63: =IF(ISNA(VLOOKUP(C63,BDDG!$A$3:$J$102,3,FALSE)),"",VLOOKUP(C63,BDDG!$A$3:$J$102,3,FALSE)) -> A | F63: =IF(ISNA(VLOOKUP(C63,BDDG!$A$3:$J$102,4,FALSE)),"",VLOOKUP(C63,BDDG!$A$3:$J$102,4,FALSE)) -> 106 | G63: =IF(ISNA(VLOOKUP(C63,BDDG!$A$2:$F$100,5,FALSE)),"",VLOOKUP(C63,BDDG!$A$2:$F$100,5,FALSE)) -> A10 | H63: =IF(ISNA(VLOOKUP(C63,BDDG!$A$2:$F$100,6,FALSE)),"",VLOOKUP(C63,BDDG!$A$2:$F$100,6,FALSE)) -> AA30 | I63: =IF(ISERROR(VLOOKUP(C63,BDDG!$A$2:$G$100,7,FALSE)),"",VLOOKUP(C63,BDDG!$A$2:$G$100,7,FALSE)) -> 1 | J63: =IF(ISERROR(VLOOKUP(C63,BDDG!$A$2:$H$100,8,FALSE)),"",VLOOKUP(C63,BDDG!$A$2:$H$100,8,FALSE)) -> BB30 | M63: 4.75 | R63: =IF(ISERROR(VLOOKUP(C63,BDDG!$A$2:$J$100,10,FALSE)),"",VLOOKUP(C63,BDDG!$A$2:$J$100,10,FALSE)) -> DD30 | V63: 4.75 | W63: 9 | X63: 2001 | Y63: =IFERROR((INDEX($V$2:V63,MATCH(H63&MAX(IF($H$1:H62=H63,$A$1:A62)),$H$2:H63&$A$2:A63,0))-V63)*-1,"") -> 0
A64: 2001-10-01 | C64: 859 | D64: =IF(ISNA(VLOOKUP(C64,BDDG!$A$2:$F$100,2,FALSE)),"",VLOOKUP(C64,BDDG!$A$2:$F$100,2,FALSE)) -> 0 | E64: =IF(ISNA(VLOOKUP(C64,BDDG!$A$3:$J$102,3,FALSE)),"",VLOOKUP(C64,BDDG!$A$3:$J$102,3,FALSE)) -> A | F64: =IF(ISNA(VLOOKUP(C64,BDDG!$A$3:$J$102,4,FALSE)),"",VLOOKUP(C64,BDDG!$A$3:$J$102,4,FALSE)) -> 106 | G64: =IF(ISNA(VLOOKUP(C64,BDDG!$A$2:$F$100,5,FALSE)),"",VLOOKUP(C64,BDDG!$A$2:$F$100,5,FALSE)) -> A10 | H64: =IF(ISNA(VLOOKUP(C64,BDDG!$A$2:$F$100,6,FALSE)),"",VLOOKUP(C64,BDDG!$A$2:$F$100,6,FALSE)) -> AA30 | I64: =IF(ISERROR(VLOOKUP(C64,BDDG!$A$2:$G$100,7,FALSE)),"",VLOOKUP(C64,BDDG!$A$2:$G$100,7,FALSE)) -> 1 | J64: =IF(ISERROR(VLOOKUP(C64,BDDG!$A$2:$H$100,8,FALSE)),"",VLOOKUP(C64,BDDG!$A$2:$H$100,8,FALSE)) -> BB30 | M64: 4.84 | R64: =IF(ISERROR(VLOOKUP(C64,BDDG!$A$2:$J$100,10,FALSE)),"",VLOOKUP(C64,BDDG!$A$2:$J$100,10,FALSE)) -> DD30 | V64: 4.84 | W64: 10 | X64: 2001 | Y64: =IFERROR((INDEX($V$2:V64,MATCH(H64&MAX(IF($H$1:H63=H64,$A$1:A63)),$H$2:H64&$A$2:A64,0))-V64)*-1,"") -> 0.09
A65: 2001-10-02 | C65: 859 | D65: =IF(ISNA(VLOOKUP(C65,BDDG!$A$2:$F$100,2,FALSE)),"",VLOOKUP(C65,BDDG!$A$2:$F$100,2,FALSE)) -> 0 | E65: =IF(ISNA(VLOOKUP(C65,BDDG!$A$3:$J$102,3,FALSE)),"",VLOOKUP(C65,BDDG!$A$3:$J$102,3,FALSE)) -> A | F65: =IF(ISNA(VLOOKUP(C65,BDDG!$A$3:$J$102,4,FALSE)),"",VLOOKUP(C65,BDDG!$A$3:$J$102,4,FALSE)) -> 106 | G65: =IF(ISNA(VLOOKUP(C65,BDDG!$A$2:$F$100,5,FALSE)),"",VLOOKUP(C65,BDDG!$A$2:$F$100,5,FALSE)) -> A10 | H65: =IF(ISNA(VLOOKUP(C65,BDDG!$A$2:$F$100,6,FALSE)),"",VLOOKUP(C65,BDDG!$A$2:$F$100,6,FALSE)) -> AA30 | I65: =IF(ISERROR(VLOOKUP(C65,BDDG!$A$2:$G$100,7,FALSE)),"",VLOOKUP(C65,BDDG!$A$2:$G$100,7,FALSE)) -> 1 | J65: =IF(ISERROR(VLOOKUP(C65,BDDG!$A$2:$H$100,8,FALSE)),"",VLOOKUP(C65,BDDG!$A$2:$H$100,8,FALSE)) -> BB30 | M65: 4.75 | R65: =IF(ISERROR(VLOOKUP(C65,BDDG!$A$2:$J$100,10,FALSE)),"",VLOOKUP(C65,BDDG!$A$2:$J$100,10,FALSE)) -> DD30 | V65: 4.75 | W65: 10 | X65: 2001 | Y65: =IFERROR((INDEX($V$2:V65,MATCH(H65&MAX(IF($H$1:H64=H65,$A$1:A64)),$H$2:H65&$A$2:A65,0))-V65)*-1,"") -> -0.09
A66: 2001-10-02 | C66: 815 | D66: =IF(ISNA(VLOOKUP(C66,BDDG!$A$2:$F$100,2,FALSE)),"",VLOOKUP(C66,BDDG!$A$2:$F$100,2,FALSE)) -> 0 | E66: =IF(ISNA(VLOOKUP(C66,BDDG!$A$3:$J$102,3,FALSE)),"",VLOOKUP(C66,BDDG!$A$3:$J$102,3,FALSE)) -> A | F66: =IF(ISNA(VLOOKUP(C66,BDDG!$A$3:$J$102,4,FALSE)),"",VLOOKUP(C66,BDDG!$A$3:$J$102,4,FALSE)) -> 106 | G66: =IF(ISNA(VLOOKUP(C66,BDDG!$A$2:$F$100,5,FALSE)),"",VLOOKUP(C66,BDDG!$A$2:$F$100,5,FALSE)) -> A10 | H66: =IF(ISNA(VLOOKUP(C66,BDDG!$A$2:$F$100,6,FALSE)),"",VLOOKUP(C66,BDDG!$A$2:$F$100,6,FALSE)) -> AA31 | I66: =IF(ISERROR(VLOOKUP(C66,BDDG!$A$2:$G$100,7,FALSE)),"",VLOOKUP(C66,BDDG!$A$2:$G$100,7,FALSE)) -> 1 | J66: =IF(ISERROR(VLOOKUP(C66,BDDG!$A$2:$H$100,8,FALSE)),"",VLOOKUP(C66,BDDG!$A$2:$H$100,8,FALSE)) -> BB31 | M66: 10.78 | N66: =IF(ISERROR(VLOOKUP(C66,BDDG!$A$2:$I$100,9,FALSE)),"",VLOOKUP(C66,BDDG!$A$2:$I$100,9,FALSE)) -> CC31 | Q66: =IF(ISERROR(O66/P66*86.4),"",O66/P66*86.4) ->  | R66: =IF(ISERROR(VLOOKUP(C66,BDDG!$A$2:$J$100,10,FALSE)),"",VLOOKUP(C66,BDDG!$A$2:$J$100,10,FALSE)) -> DD31 | V66: 10.78 | W66: =MONTH(A:A) -> 10 | X66: =YEAR(A:A) -> 2001 | Y66: =IFERROR((INDEX($V$2:V66,MATCH(H66&MAX(IF($H$1:H65=H66,$A$1:A65)),$H$2:H66&$A$2:A66,0))-V66)*-1,"") -> -0.42
A67: 2001-10-03 | C67: 859 | D67: =IF(ISNA(VLOOKUP(C67,BDDG!$A$2:$F$100,2,FALSE)),"",VLOOKUP(C67,BDDG!$A$2:$F$100,2,FALSE)) -> 0 | E67: =IF(ISNA(VLOOKUP(C67,BDDG!$A$3:$J$102,3,FALSE)),"",VLOOKUP(C67,BDDG!$A$3:$J$102,3,FALSE)) -> A | F67: =IF(ISNA(VLOOKUP(C67,BDDG!$A$3:$J$102,4,FALSE)),"",VLOOKUP(C67,BDDG!$A$3:$J$102,4,FALSE)) -> 106 | G67: =IF(ISNA(VLOOKUP(C67,BDDG!$A$2:$F$100,5,FALSE)),"",VLOOKUP(C67,BDDG!$A$2:$F$100,5,FALSE)) -> A10 | H67: =IF(ISNA(VLOOKUP(C67,BDDG!$A$2:$F$100,6,FALSE)),"",VLOOKUP(C67,BDDG!$A$2:$F$100,6,FALSE)) -> AA30 | I67: =IF(ISERROR(VLOOKUP(C67,BDDG!$A$2:$G$100,7,FALSE)),"",VLOOKUP(C67,BDDG!$A$2:$G$100,7,FALSE)) -> 1 | J67: =IF(ISERROR(VLOOKUP(C67,BDDG!$A$2:$H$100,8,FALSE)),"",VLOOKUP(C67,BDDG!$A$2:$H$100,8,FALSE)) -> BB30 | M67: 4.71 | R67: =IF(ISERROR(VLOOKUP(C67,BDDG!$A$2:$J$100,10,FALSE)),"",VLOOKUP(C67,BDDG!$A$2:$J$100,10,FALSE)) -> DD30 | V67: 4.71 | W67: 10 | X67: 2001 | Y67: =IFERROR((INDEX($V$2:V67,MATCH(H67&MAX(IF($H$1:H66=H67,$A$1:A66)),$H$2:H67&$A$2:A67,0))-V67)*-1,"") -> -0.04
A68: 2001-10-04 | C68: 859 | D68: =IF(ISNA(VLOOKUP(C68,BDDG!$A$2:$F$100,2,FALSE)),"",VLOOKUP(C68,BDDG!$A$2:$F$100,2,FALSE)) -> 0 | E68: =IF(ISNA(VLOOKUP(C68,BDDG!$A$3:$J$102,3,FALSE)),"",VLOOKUP(C68,BDDG!$A$3:$J$102,3,FALSE)) -> A | F68: =IF(ISNA(VLOOKUP(C68,BDDG!$A$3:$J$102,4,FALSE)),"",VLOOKUP(C68,BDDG!$A$3:$J$102,4,FALSE)) -> 106 | G68: =IF(ISNA(VLOOKUP(C68,BDDG!$A$2:$F$100,5,FALSE)),"",VLOOKUP(C68,BDDG!$A$2:$F$100,5,FALSE)) -> A10 | H68: =IF(ISNA(VLOOKUP(C68,BDDG!$A$2:$F$100,6,FALSE)),"",VLOOKUP(C68,BDDG!$A$2:$F$100,6,FALSE)) -> AA30 | I68: =IF(ISERROR(VLOOKUP(C68,BDDG!$A$2:$G$100,7,FALSE)),"",VLOOKUP(C68,BDDG!$A$2:$G$100,7,FALSE)) -> 1 | J68: =IF(ISERROR(VLOOKUP(C68,BDDG!$A$2:$H$100,8,FALSE)),"",VLOOKUP(C68,BDDG!$A$2:$H$100,8,FALSE)) -> BB30 | M68: 4.8 | R68: =IF(ISERROR(VLOOKUP(C68,BDDG!$A$2:$J$100,10,FALSE)),"",VLOOKUP(C68,BDDG!$A$2:$J$100,10,FALSE)) -> DD30 | V68: 4.8 | W68: 10 | X68: 2001 | Y68: =IFERROR((INDEX($V$2:V68,MATCH(H68&MAX(IF($H$1:H67=H68,$A$1:A67)),$H$2:H68&$A$2:A68,0))-V68)*-1,"") -> 0.09
A69: 2001-10-05 | C69: 859 | D69: =IF(ISNA(VLOOKUP(C69,BDDG!$A$2:$F$100,2,FALSE)),"",VLOOKUP(C69,BDDG!$A$2:$F$100,2,FALSE)) -> 0 | E69: =IF(ISNA(VLOOKUP(C69,BDDG!$A$3:$J$102,3,FALSE)),"",VLOOKUP(C69,BDDG!$A$3:$J$102,3,FALSE)) -> A | F69: =IF(ISNA(VLOOKUP(C69,BDDG!$A$3:$J$102,4,FALSE)),"",VLOOKUP(C69,BDDG!$A$3:$J$102,4,FALSE)) -> 106 | G69: =IF(ISNA(VLOOKUP(C69,BDDG!$A$2:$F$100,5,FALSE)),"",VLOOKUP(C69,BDDG!$A$2:$F$100,5,FALSE)) -> A10 | H69: =IF(ISNA(VLOOKUP(C69,BDDG!$A$2:$F$100,6,FALSE)),"",VLOOKUP(C69,BDDG!$A$2:$F$100,6,FALSE)) -> AA30 | I69: =IF(ISERROR(VLOOKUP(C69,BDDG!$A$2:$G$100,7,FALSE)),"",VLOOKUP(C69,BDDG!$A$2:$G$100,7,FALSE)) -> 1 | J69: =IF(ISERROR(VLOOKUP(C69,BDDG!$A$2:$H$100,8,FALSE)),"",VLOOKUP(C69,BDDG!$A$2:$H$100,8,FALSE)) -> BB30 | M69: 4.89 | R69: =IF(ISERROR(VLOOKUP(C69,BDDG!$A$2:$J$100,10,FALSE)),"",VLOOKUP(C69,BDDG!$A$2:$J$100,10,FALSE)) -> DD30 | V69: 4.89 | W69: 10 | X69: 2001 | Y69: =IFERROR((INDEX($V$2:V69,MATCH(H69&MAX(IF($H$1:H68=H69,$A$1:A68)),$H$2:H69&$A$2:A69,0))-V69)*-1,"") -> 0.09
A70: 2001-10-06 | C70: 859 | D70: =IF(ISNA(VLOOKUP(C70,BDDG!$A$2:$F$100,2,FALSE)),"",VLOOKUP(C70,BDDG!$A$2:$F$100,2,FALSE)) -> 0 | E70: =IF(ISNA(VLOOKUP(C70,BDDG!$A$3:$J$102,3,FALSE)),"",VLOOKUP(C70,BDDG!$A$3:$J$102,3,FALSE)) -> A | F70: =IF(ISNA(VLOOKUP(C70,BDDG!$A$3:$J$102,4,FALSE)),"",VLOOKUP(C70,BDDG!$A$3:$J$102,4,FALSE)) -> 106 | G70: =IF(ISNA(VLOOKUP(C70,BDDG!$A$2:$F$100,5,FALSE)),"",VLOOKUP(C70,BDDG!$A$2:$F$100,5,FALSE)) -> A10 | H70: =IF(ISNA(VLOOKUP(C70,BDDG!$A$2:$F$100,6,FALSE)),"",VLOOKUP(C70,BDDG!$A$2:$F$100,6,FALSE)) -> AA30 | I70: =IF(ISERROR(VLOOKUP(C70,BDDG!$A$2:$G$100,7,FALSE)),"",VLOOKUP(C70,BDDG!$A$2:$G$100,7,FALSE)) -> 1 | J70: =IF(ISERROR(VLOOKUP(C70,BDDG!$A$2:$H$100,8,FALSE)),"",VLOOKUP(C70,BDDG!$A$2:$H$100,8,FALSE)) -> BB30 | M70: 4.98 | R70: =IF(ISERROR(VLOOKUP(C70,BDDG!$A$2:$J$100,10,FALSE)),"",VLOOKUP(C70,BDDG!$A$2:$J$100,10,FALSE)) -> DD30 | V70: 4.98 | W70: 10 | X70: 2001 | Y70: =IFERROR((INDEX($V$2:V70,MATCH(H70&MAX(IF($H$1:H69=H70,$A$1:A69)),$H$2:H70&$A$2:A70,0))-V70)*-1,"") -> 0.09
A71: 2001-10-07 | C71: 859 | D71: =IF(ISNA(VLOOKUP(C71,BDDG!$A$2:$F$100,2,FALSE)),"",VLOOKUP(C71,BDDG!$A$2:$F$100,2,FALSE)) -> 0 | E71: =IF(ISNA(VLOOKUP(C71,BDDG!$A$3:$J$102,3,FALSE)),"",VLOOKUP(C71,BDDG!$A$3:$J$102,3,FALSE)) -> A | F71: =IF(ISNA(VLOOKUP(C71,BDDG!$A$3:$J$102,4,FALSE)),"",VLOOKUP(C71,BDDG!$A$3:$J$102,4,FALSE)) -> 106 | G71: =IF(ISNA(VLOOKUP(C71,BDDG!$A$2:$F$100,5,FALSE)),"",VLOOKUP(C71,BDDG!$A$2:$F$100,5,FALSE)) -> A10 | H71: =IF(ISNA(VLOOKUP(C71,BDDG!$A$2:$F$100,6,FALSE)),"",VLOOKUP(C71,BDDG!$A$2:$F$100,6,FALSE)) -> AA30 | I71: =IF(ISERROR(VLOOKUP(C71,BDDG!$A$2:$G$100,7,FALSE)),"",VLOOKUP(C71,BDDG!$A$2:$G$100,7,FALSE)) -> 1 | J71: =IF(ISERROR(VLOOKUP(C71,BDDG!$A$2:$H$100,8,FALSE)),"",VLOOKUP(C71,BDDG!$A$2:$H$100,8,FALSE)) -> BB30 | M71: 4.98 | R71: =IF(ISERROR(VLOOKUP(C71,BDDG!$A$2:$J$100,10,FALSE)),"",VLOOKUP(C71,BDDG!$A$2:$J$100,10,FALSE)) -> DD30 | V71: 4.98 | W71: 10 | X71: 2001 | Y71: =IFERROR((INDEX($V$2:V71,MATCH(H71&MAX(IF($H$1:H70=H71,$A$1:A70)),$H$2:H71&$A$2:A71,0))-V71)*-1,"") -> 0
A72: 2001-10-08 | C72: 859 | D72: =IF(ISNA(VLOOKUP(C72,BDDG!$A$2:$F$100,2,FALSE)),"",VLOOKUP(C72,BDDG!$A$2:$F$100,2,FALSE)) -> 0 | E72: =IF(ISNA(VLOOKUP(C72,BDDG!$A$3:$J$102,3,FALSE)),"",VLOOKUP(C72,BDDG!$A$3:$J$102,3,FALSE)) -> A | F72: =IF(ISNA(VLOOKUP(C72,BDDG!$A$3:$J$102,4,FALSE)),"",VLOOKUP(C72,BDDG!$A$3:$J$102,4,FALSE)) -> 106 | G72: =IF(ISNA(VLOOKUP(C72,BDDG!$A$2:$F$100,5,FALSE)),"",VLOOKUP(C72,BDDG!$A$2:$F$100,5,FALSE)) -> A10 | H72: =IF(ISNA(VLOOKUP(C72,BDDG!$A$2:$F$100,6,FALSE)),"",VLOOKUP(C72,BDDG!$A$2:$F$100,6,FALSE)) -> AA30 | I72: =IF(ISERROR(VLOOKUP(C72,BDDG!$A$2:$G$100,7,FALSE)),"",VLOOKUP(C72,BDDG!$A$2:$G$100,7,FALSE)) -> 1 | J72: =IF(ISERROR(VLOOKUP(C72,BDDG!$A$2:$H$100,8,FALSE)),"",VLOOKUP(C72,BDDG!$A$2:$H$100,8,FALSE)) -> BB30 | M72: 4.98 | R72: =IF(ISERROR(VLOOKUP(C72,BDDG!$A$2:$J$100,10,FALSE)),"",VLOOKUP(C72,BDDG!$A$2:$J$100,10,FALSE)) -> DD30 | V72: 4.98 | W72: 10 | X72: 2001 | Y72: =IFERROR((INDEX($V$2:V72,MATCH(H72&MAX(IF($H$1:H71=H72,$A$1:A71)),$H$2:H72&$A$2:A72,0))-V72)*-1,"") -> 0
A73: 2001-10-09 | C73: 859 | D73: =IF(ISNA(VLOOKUP(C73,BDDG!$A$2:$F$100,2,FALSE)),"",VLOOKUP(C73,BDDG!$A$2:$F$100,2,FALSE)) -> 0 | E73: =IF(ISNA(VLOOKUP(C73,BDDG!$A$3:$J$102,3,FALSE)),"",VLOOKUP(C73,BDDG!$A$3:$J$102,3,FALSE)) -> A | F73: =IF(ISNA(VLOOKUP(C73,BDDG!$A$3:$J$102,4,FALSE)),"",VLOOKUP(C73,BDDG!$A$3:$J$102,4,FALSE)) -> 106 | G73: =IF(ISNA(VLOOKUP(C73,BDDG!$A$2:$F$100,5,FALSE)),"",VLOOKUP(C73,BDDG!$A$2:$F$100,5,FALSE)) -> A10 | H73: =IF(ISNA(VLOOKUP(C73,BDDG!$A$2:$F$100,6,FALSE)),"",VLOOKUP(C73,BDDG!$A$2:$F$100,6,FALSE)) -> AA30 | I73: =IF(ISERROR(VLOOKUP(C73,BDDG!$A$2:$G$100,7,FALSE)),"",VLOOKUP(C73,BDDG!$A$2:$G$100,7,FALSE)) -> 1 | J73: =IF(ISERROR(VLOOKUP(C73,BDDG!$A$2:$H$100,8,FALSE)),"",VLOOKUP(C73,BDDG!$A$2:$H$100,8,FALSE)) -> BB30 | M73: 4.98 | R73: =IF(ISERROR(VLOOKUP(C73,BDDG!$A$2:$J$100,10,FALSE)),"",VLOOKUP(C73,BDDG!$A$2:$J$100,10,FALSE)) -> DD30 | V73: 4.98 | W73: 10 | X73: 2001 | Y73: =IFERROR((INDEX($V$2:V73,MATCH(H73&MAX(IF($H$1:H72=H73,$A$1:A72)),$H$2:H73&$A$2:A73,0))-V73)*-1,"") -> 0
A74: 2001-10-09 | C74: 815 | D74: =IF(ISNA(VLOOKUP(C74,BDDG!$A$2:$F$100,2,FALSE)),"",VLOOKUP(C74,BDDG!$A$2:$F$100,2,FALSE)) -> 0 | E74: =IF(ISNA(VLOOKUP(C74,BDDG!$A$3:$J$102,3,FALSE)),"",VLOOKUP(C74,BDDG!$A$3:$J$102,3,FALSE)) -> A | F74: =IF(ISNA(VLOOKUP(C74,BDDG!$A$3:$J$102,4,FALSE)),"",VLOOKUP(C74,BDDG!$A$3:$J$102,4,FALSE)) -> 106 | G74: =IF(ISNA(VLOOKUP(C74,BDDG!$A$2:$F$100,5,FALSE)),"",VLOOKUP(C74,BDDG!$A$2:$F$100,5,FALSE)) -> A10 | H74: =IF(ISNA(VLOOKUP(C74,BDDG!$A$2:$F$100,6,FALSE)),"",VLOOKUP(C74,BDDG!$A$2:$F$100,6,FALSE)) -> AA31 | I74: =IF(ISERROR(VLOOKUP(C74,BDDG!$A$2:$G$100,7,FALSE)),"",VLOOKUP(C74,BDDG!$A$2:$G$100,7,FALSE)) -> 1 | J74: =IF(ISERROR(VLOOKUP(C74,BDDG!$A$2:$H$100,8,FALSE)),"",VLOOKUP(C74,BDDG!$A$2:$H$100,8,FALSE)) -> BB31 | M74: 10.74 | N74: =IF(ISERROR(VLOOKUP(C74,BDDG!$A$2:$I$100,9,FALSE)),"",VLOOKUP(C74,BDDG!$A$2:$I$100,9,FALSE)) -> CC31 | Q74: =IF(ISERROR(O74/P74*86.4),"",O74/P74*86.4) ->  | R74: =IF(ISERROR(VLOOKUP(C74,BDDG!$A$2:$J$100,10,FALSE)),"",VLOOKUP(C74,BDDG!$A$2:$J$100,10,FALSE)) -> DD31 | V74: 10.74 | W74: 10 | X74: 2001 | Y74: =IFERROR((INDEX($V$2:V74,MATCH(H74&MAX(IF($H$1:H73=H74,$A$1:A73)),$H$2:H74&$A$2:A74,0))-V74)*-1,"") -> -0.04
A75: 2001-10-10 | C75: 859 | D75: =IF(ISNA(VLOOKUP(C75,BDDG!$A$2:$F$100,2,FALSE)),"",VLOOKUP(C75,BDDG!$A$2:$F$100,2,FALSE)) -> 0 | E75: =IF(ISNA(VLOOKUP(C75,BDDG!$A$3:$J$102,3,FALSE)),"",VLOOKUP(C75,BDDG!$A$3:$J$102,3,FALSE)) -> A | F75: =IF(ISNA(VLOOKUP(C75,BDDG!$A$3:$J$102,4,FALSE)),"",VLOOKUP(C75,BDDG!$A$3:$J$102,4,FALSE)) -> 106 | G75: =IF(ISNA(VLOOKUP(C75,BDDG!$A$2:$F$100,5,FALSE)),"",VLOOKUP(C75,BDDG!$A$2:$F$100,5,FALSE)) -> A10 | H75: =IF(ISNA(VLOOKUP(C75,BDDG!$A$2:$F$100,6,FALSE)),"",VLOOKUP(C75,BDDG!$A$2:$F$100,6,FALSE)) -> AA30 | I75: =IF(ISERROR(VLOOKUP(C75,BDDG!$A$2:$G$100,7,FALSE)),"",VLOOKUP(C75,BDDG!$A$2:$G$100,7,FALSE)) -> 1 | J75: =IF(ISERROR(VLOOKUP(C75,BDDG!$A$2:$H$100,8,FALSE)),"",VLOOKUP(C75,BDDG!$A$2:$H$100,8,FALSE)) -> BB30 | M75: 5.08 | R75: =IF(ISERROR(VLOOKUP(C75,BDDG!$A$2:$J$100,10,FALSE)),"",VLOOKUP(C75,BDDG!$A$2:$J$100,10,FALSE)) -> DD30 | V75: 5.08 | W75: 10 | X75: 2001 | Y75: =IFERROR((INDEX($V$2:V75,MATCH(H75&MAX(IF($H$1:H74=H75,$A$1:A74)),$H$2:H75&$A$2:A75,0))-V75)*-1,"") -> 0.1
A76: 2001-10-11 | C76: 859 | D76: =IF(ISNA(VLOOKUP(C76,BDDG!$A$2:$F$100,2,FALSE)),"",VLOOKUP(C76,BDDG!$A$2:$F$100,2,FALSE)) -> 0 | E76: =IF(ISNA(VLOOKUP(C76,BDDG!$A$3:$J$102,3,FALSE)),"",VLOOKUP(C76,BDDG!$A$3:$J$102,3,FALSE)) -> A | F76: =IF(ISNA(VLOOKUP(C76,BDDG!$A$3:$J$102,4,FALSE)),"",VLOOKUP(C76,BDDG!$A$3:$J$102,4,FALSE)) -> 106 | G76: =IF(ISNA(VLOOKUP(C76,BDDG!$A$2:$F$100,5,FALSE)),"",VLOOKUP(C76,BDDG!$A$2:$F$100,5,FALSE)) -> A10 | H76: =IF(ISNA(VLOOKUP(C76,BDDG!$A$2:$F$100,6,FALSE)),"",VLOOKUP(C76,BDDG!$A$2:$F$100,6,FALSE)) -> AA30 | I76: =IF(ISERROR(VLOOKUP(C76,BDDG!$A$2:$G$100,7,FALSE)),"",VLOOKUP(C76,BDDG!$A$2:$G$100,7,FALSE)) -> 1 | J76: =IF(ISERROR(VLOOKUP(C76,BDDG!$A$2:$H$100,8,FALSE)),"",VLOOKUP(C76,BDDG!$A$2:$H$100,8,FALSE)) -> BB30 | M76: 5.08 | R76: =IF(ISERROR(VLOOKUP(C76,BDDG!$A$2:$J$100,10,FALSE)),"",VLOOKUP(C76,BDDG!$A$2:$J$100,10,FALSE)) -> DD30 | V76: 5.08 | W76: 10 | X76: 2001 | Y76: =IFERROR((INDEX($V$2:V76,MATCH(H76&MAX(IF($H$1:H75=H76,$A$1:A75)),$H$2:H76&$A$2:A76,0))-V76)*-1,"") -> 0
A77: 2001-10-12 | C77: 832 | D77: =IF(ISNA(VLOOKUP(C77,BDDG!$A$2:$F$100,2,FALSE)),"",VLOOKUP(C77,BDDG!$A$2:$F$100,2,FALSE)) -> 0 | E77: =IF(ISNA(VLOOKUP(C77,BDDG!$A$3:$J$102,3,FALSE)),"",VLOOKUP(C77,BDDG!$A$3:$J$102,3,FALSE)) -> A | F77: =IF(ISNA(VLOOKUP(C77,BDDG!$A$3:$J$102,4,FALSE)),"",VLOOKUP(C77,BDDG!$A$3:$J$102,4,FALSE)) -> 106 | G77: =IF(ISNA(VLOOKUP(C77,BDDG!$A$2:$F$100,5,FALSE)),"",VLOOKUP(C77,BDDG!$A$2:$F$100,5,FALSE)) -> A2 | H77: =IF(ISNA(VLOOKUP(C77,BDDG!$A$2:$F$100,6,FALSE)),"",VLOOKUP(C77,BDDG!$A$2:$F$100,6,FALSE)) -> AA2 | I77: =IF(ISERROR(VLOOKUP(C77,BDDG!$A$2:$G$100,7,FALSE)),"",VLOOKUP(C77,BDDG!$A$2:$G$100,7,FALSE)) -> 1 | J77: =IF(ISERROR(VLOOKUP(C77,BDDG!$A$2:$H$100,8,FALSE)),"",VLOOKUP(C77,BDDG!$A$2:$H$100,8,FALSE)) -> BB2 | K77: 32 | L77: 60 | M77: =IF(ISERROR(K77/L77*86.4),"",K77/L77*86.4) -> 46.08 | N77: =IF(ISERROR(VLOOKUP(C77,BDDG!$A$2:$I$100,9,FALSE)),"",VLOOKUP(C77,BDDG!$A$2:$I$100,9,FALSE)) -> CC2 | Q77: =IF(ISERROR(O77/P77*86.4),"",O77/P77*86.4) ->  | R77: =IF(ISERROR(VLOOKUP(C77,BDDG!$A$2:$J$100,10,FALSE)),"",VLOOKUP(C77,BDDG!$A$2:$J$100,10,FALSE)) -> DD2 | V77: 46.08 | W77: 10 | X77: 2001 | Y77: =IFERROR((INDEX($V$2:V77,MATCH(H77&MAX(IF($H$1:H76=H77,$A$1:A76)),$H$2:H77&$A$2:A77,0))-V77)*-1,"") -> 20.16
A78: 2001-10-12 | C78: 833 | D78: =IF(ISNA(VLOOKUP(C78,BDDG!$A$2:$F$100,2,FALSE)),"",VLOOKUP(C78,BDDG!$A$2:$F$100,2,FALSE)) -> 0 | E78: =IF(ISNA(VLOOKUP(C78,BDDG!$A$3:$J$102,3,FALSE)),"",VLOOKUP(C78,BDDG!$A$3:$J$102,3,FALSE)) -> A | F78: =IF(ISNA(VLOOKUP(C78,BDDG!$A$3:$J$102,4,FALSE)),"",VLOOKUP(C78,BDDG!$A$3:$J$102,4,FALSE)) -> 106 | G78: =IF(ISNA(VLOOKUP(C78,BDDG!$A$2:$F$100,5,FALSE)),"",VLOOKUP(C78,BDDG!$A$2:$F$100,5,FALSE)) -> A2 | H78: =IF(ISNA(VLOOKUP(C78,BDDG!$A$2:$F$100,6,FALSE)),"",VLOOKUP(C78,BDDG!$A$2:$F$100,6,FALSE)) -> AA3 | I78: =IF(ISERROR(VLOOKUP(C78,BDDG!$A$2:$G$100,7,FALSE)),"",VLOOKUP(C78,BDDG!$A$2:$G$100,7,FALSE)) -> 1 | J78: =IF(ISERROR(VLOOKUP(C78,BDDG!$A$2:$H$100,8,FALSE)),"",VLOOKUP(C78,BDDG!$A$2:$H$100,8,FALSE)) -> BB3 | K78: 22 | L78: 60 | M78: =IF(ISERROR(K78/L78*86.4),"",K78/L78*86.4) -> 31.68 | N78: =IF(ISERROR(VLOOKUP(C78,BDDG!$A$2:$I$100,9,FALSE)),"",VLOOKUP(C78,BDDG!$A$2:$I$100,9,FALSE)) -> CC3 | Q78: =IF(ISERROR(O78/P78*86.4),"",O78/P78*86.4) ->  | R78: =IF(ISERROR(VLOOKUP(C78,BDDG!$A$2:$J$100,10,FALSE)),"",VLOOKUP(C78,BDDG!$A$2:$J$100,10,FALSE)) -> DD3 | V78: 31.68 | W78: 10 | X78: 2001 | Y78: =IFERROR((INDEX($V$2:V78,MATCH(H78&MAX(IF($H$1:H77=H78,$A$1:A77)),$H$2:H78&$A$2:A78,0))-V78)*-1,"") -> -17.28
A79: 2001-10-12 | C79: 859 | D79: =IF(ISNA(VLOOKUP(C79,BDDG!$A$2:$F$100,2,FALSE)),"",VLOOKUP(C79,BDDG!$A$2:$F$100,2,FALSE)) -> 0 | E79: =IF(ISNA(VLOOKUP(C79,BDDG!$A$3:$J$102,3,FALSE)),"",VLOOKUP(C79,BDDG!$A$3:$J$102,3,FALSE)) -> A | F79: =IF(ISNA(VLOOKUP(C79,BDDG!$A$3:$J$102,4,FALSE)),"",VLOOKUP(C79,BDDG!$A$3:$J$102,4,FALSE)) -> 106 | G79: =IF(ISNA(VLOOKUP(C79,BDDG!$A$2:$F$100,5,FALSE)),"",VLOOKUP(C79,BDDG!$A$2:$F$100,5,FALSE)) -> A10 | H79: =IF(ISNA(VLOOKUP(C79,BDDG!$A$2:$F$100,6,FALSE)),"",VLOOKUP(C79,BDDG!$A$2:$F$100,6,FALSE)) -> AA30 | I79: =IF(ISERROR(VLOOKUP(C79,BDDG!$A$2:$G$100,7,FALSE)),"",VLOOKUP(C79,BDDG!$A$2:$G$100,7,FALSE)) -> 1 | J79: =IF(ISERROR(VLOOKUP(C79,BDDG!$A$2:$H$100,8,FALSE)),"",VLOOKUP(C79,BDDG!$A$2:$H$100,8,FALSE)) -> BB30 | M79: 5.29 | R79: =IF(ISERROR(VLOOKUP(C79,BDDG!$A$2:$J$100,10,FALSE)),"",VLOOKUP(C79,BDDG!$A$2:$J$100,10,FALSE)) -> DD30 | V79: 5.29 | W79: 10 | X79: 2001 | Y79: =IFERROR((INDEX($V$2:V79,MATCH(H79&MAX(IF($H$1:H78=H79,$A$1:A78)),$H$2:H79&$A$2:A79,0))-V79)*-1,"") -> 0.21
A80: 2001-10-15 | C80: 859 | D80: =IF(ISNA(VLOOKUP(C80,BDDG!$A$2:$F$100,2,FALSE)),"",VLOOKUP(C80,BDDG!$A$2:$F$100,2,FALSE)) -> 0 | E80: =IF(ISNA(VLOOKUP(C80,BDDG!$A$3:$J$102,3,FALSE)),"",VLOOKUP(C80,BDDG!$A$3:$J$102,3,FALSE)) -> A | F80: =IF(ISNA(VLOOKUP(C80,BDDG!$A$3:$J$102,4,FALSE)),"",VLOOKUP(C80,BDDG!$A$3:$J$102,4,FALSE)) -> 106 | G80: =IF(ISNA(VLOOKUP(C80,BDDG!$A$2:$F$100,5,FALSE)),"",VLOOKUP(C80,BDDG!$A$2:$F$100,5,FALSE)) -> A10 | H80: =IF(ISNA(VLOOKUP(C80,BDDG!$A$2:$F$100,6,FALSE)),"",VLOOKUP(C80,BDDG!$A$2:$F$100,6,FALSE)) -> AA30 | I80: =IF(ISERROR(VLOOKUP(C80,BDDG!$A$2:$G$100,7,FALSE)),"",VLOOKUP(C80,BDDG!$A$2:$G$100,7,FALSE)) -> 1 | J80: =IF(ISERROR(VLOOKUP(C80,BDDG!$A$2:$H$100,8,FALSE)),"",VLOOKUP(C80,BDDG!$A$2:$H$100,8,FALSE)) -> BB30 | M80: 4.8 | R80: =IF(ISERROR(VLOOKUP(C80,BDDG!$A$2:$J$100,10,FALSE)),"",VLOOKUP(C80,BDDG!$A$2:$J$100,10,FALSE)) -> DD30 | V80: 4.8 | W80: 10 | X80: 2001 | Y80: =IFERROR((INDEX($V$2:V80,MATCH(H80&MAX(IF($H$1:H79=H80,$A$1:A79)),$H$2:H80&$A$2:A80,0))-V80)*-1,"") -> -0.49
A81: 2001-10-16 | C81: 859 | D81: =IF(ISNA(VLOOKUP(C81,BDDG!$A$2:$F$100,2,FALSE)),"",VLOOKUP(C81,BDDG!$A$2:$F$100,2,FALSE)) -> 0 | E81: =IF(ISNA(VLOOKUP(C81,BDDG!$A$3:$J$102,3,FALSE)),"",VLOOKUP(C81,BDDG!$A$3:$J$102,3,FALSE)) -> A | F81: =IF(ISNA(VLOOKUP(C81,BDDG!$A$3:$J$102,4,FALSE)),"",VLOOKUP(C81,BDDG!$A$3:$J$102,4,FALSE)) -> 106 | G81: =IF(ISNA(VLOOKUP(C81,BDDG!$A$2:$F$100,5,FALSE)),"",VLOOKUP(C81,BDDG!$A$2:$F$100,5,FALSE)) -> A10 | H81: =IF(ISNA(VLOOKUP(C81,BDDG!$A$2:$F$100,6,FALSE)),"",VLOOKUP(C81,BDDG!$A$2:$F$100,6,FALSE)) -> AA30 | I81: =IF(ISERROR(VLOOKUP(C81,BDDG!$A$2:$G$100,7,FALSE)),"",VLOOKUP(C81,BDDG!$A$2:$G$100,7,FALSE)) -> 1 | J81: =IF(ISERROR(VLOOKUP(C81,BDDG!$A$2:$H$100,8,FALSE)),"",VLOOKUP(C81,BDDG!$A$2:$H$100,8,FALSE)) -> BB30 | M81: 4.8 | R81: =IF(ISERROR(VLOOKUP(C81,BDDG!$A$2:$J$100,10,FALSE)),"",VLOOKUP(C81,BDDG!$A$2:$J$100,10,FALSE)) -> DD30 | V81: 4.8 | W81: 10 | X81: 2001 | Y81: =IFERROR((INDEX($V$2:V81,MATCH(H81&MAX(IF($H$1:H80=H81,$A$1:A80)),$H$2:H81&$A$2:A81,0))-V81)*-1,"") -> 0
A82: 2001-10-17 | C82: 859 | D82: =IF(ISNA(VLOOKUP(C82,BDDG!$A$2:$F$100,2,FALSE)),"",VLOOKUP(C82,BDDG!$A$2:$F$100,2,FALSE)) -> 0 | E82: =IF(ISNA(VLOOKUP(C82,BDDG!$A$3:$J$102,3,FALSE)),"",VLOOKUP(C82,BDDG!$A$3:$J$102,3,FALSE)) -> A | F82: =IF(ISNA(VLOOKUP(C82,BDDG!$A$3:$J$102,4,FALSE)),"",VLOOKUP(C82,BDDG!$A$3:$J$102,4,FALSE)) -> 106 | G82: =IF(ISNA(VLOOKUP(C82,BDDG!$A$2:$F$100,5,FALSE)),"",VLOOKUP(C82,BDDG!$A$2:$F$100,5,FALSE)) -> A10 | H82: =IF(ISNA(VLOOKUP(C82,BDDG!$A$2:$F$100,6,FALSE)),"",VLOOKUP(C82,BDDG!$A$2:$F$100,6,FALSE)) -> AA30 | I82: =IF(ISERROR(VLOOKUP(C82,BDDG!$A$2:$G$100,7,FALSE)),"",VLOOKUP(C82,BDDG!$A$2:$G$100,7,FALSE)) -> 1 | J82: =IF(ISERROR(VLOOKUP(C82,BDDG!$A$2:$H$100,8,FALSE)),"",VLOOKUP(C82,BDDG!$A$2:$H$100,8,FALSE)) -> BB30 | M82: 4.8 | R82: =IF(ISERROR(VLOOKUP(C82,BDDG!$A$2:$J$100,10,FALSE)),"",VLOOKUP(C82,BDDG!$A$2:$J$100,10,FALSE)) -> DD30 | V82: 4.8 | W82: 10 | X82: 2001 | Y82: =IFERROR((INDEX($V$2:V82,MATCH(H82&MAX(IF($H$1:H81=H82,$A$1:A81)),$H$2:H82&$A$2:A82,0))-V82)*-1,"") -> 0
A83: 2001-10-19 | C83: 859 | D83: =IF(ISNA(VLOOKUP(C83,BDDG!$A$2:$F$100,2,FALSE)),"",VLOOKUP(C83,BDDG!$A$2:$F$100,2,FALSE)) -> 0 | E83: =IF(ISNA(VLOOKUP(C83,BDDG!$A$3:$J$102,3,FALSE)),"",VLOOKUP(C83,BDDG!$A$3:$J$102,3,FALSE)) -> A | F83: =IF(ISNA(VLOOKUP(C83,BDDG!$A$3:$J$102,4,FALSE)),"",VLOOKUP(C83,BDDG!$A$3:$J$102,4,FALSE)) -> 106 | G83: =IF(ISNA(VLOOKUP(C83,BDDG!$A$2:$F$100,5,FALSE)),"",VLOOKUP(C83,BDDG!$A$2:$F$100,5,FALSE)) -> A10 | H83: =IF(ISNA(VLOOKUP(C83,BDDG!$A$2:$F$100,6,FALSE)),"",VLOOKUP(C83,BDDG!$A$2:$F$100,6,FALSE)) -> AA30 | I83: =IF(ISERROR(VLOOKUP(C83,BDDG!$A$2:$G$100,7,FALSE)),"",VLOOKUP(C83,BDDG!$A$2:$G$100,7,FALSE)) -> 1 | J83: =IF(ISERROR(VLOOKUP(C83,BDDG!$A$2:$H$100,8,FALSE)),"",VLOOKUP(C83,BDDG!$A$2:$H$100,8,FALSE)) -> BB30 | M83: 4.89 | R83: =IF(ISERROR(VLOOKUP(C83,BDDG!$A$2:$J$100,10,FALSE)),"",VLOOKUP(C83,BDDG!$A$2:$J$100,10,FALSE)) -> DD30 | V83: 4.89 | W83: 10 | X83: 2001 | Y83: =IFERROR((INDEX($V$2:V83,MATCH(H83&MAX(IF($H$1:H82=H83,$A$1:A82)),$H$2:H83&$A$2:A83,0))-V83)*-1,"") -> 0.09
A84: 2001-10-19 | C84: 815 | D84: =IF(ISNA(VLOOKUP(C84,BDDG!$A$2:$F$100,2,FALSE)),"",VLOOKUP(C84,BDDG!$A$2:$F$100,2,FALSE)) -> 0 | E84: =IF(ISNA(VLOOKUP(C84,BDDG!$A$3:$J$102,3,FALSE)),"",VLOOKUP(C84,BDDG!$A$3:$J$102,3,FALSE)) -> A | F84: =IF(ISNA(VLOOKUP(C84,BDDG!$A$3:$J$102,4,FALSE)),"",VLOOKUP(C84,BDDG!$A$3:$J$102,4,FALSE)) -> 106 | G84: =IF(ISNA(VLOOKUP(C84,BDDG!$A$2:$F$100,5,FALSE)),"",VLOOKUP(C84,BDDG!$A$2:$F$100,5,FALSE)) -> A10 | H84: =IF(ISNA(VLOOKUP(C84,BDDG!$A$2:$F$100,6,FALSE)),"",VLOOKUP(C84,BDDG!$A$2:$F$100,6,FALSE)) -> AA31 | I84: =IF(ISERROR(VLOOKUP(C84,BDDG!$A$2:$G$100,7,FALSE)),"",VLOOKUP(C84,BDDG!$A$2:$G$100,7,FALSE)) -> 1 | J84: =IF(ISERROR(VLOOKUP(C84,BDDG!$A$2:$H$100,8,FALSE)),"",VLOOKUP(C84,BDDG!$A$2:$H$100,8,FALSE)) -> BB31 | M84: 11.06 | N84: =IF(ISERROR(VLOOKUP(C84,BDDG!$A$2:$I$100,9,FALSE)),"",VLOOKUP(C84,BDDG!$A$2:$I$100,9,FALSE)) -> CC31 | Q84: =IF(ISERROR(O84/P84*86.4),"",O84/P84*86.4) ->  | R84: =IF(ISERROR(VLOOKUP(C84,BDDG!$A$2:$J$100,10,FALSE)),"",VLOOKUP(C84,BDDG!$A$2:$J$100,10,FALSE)) -> DD31 | V84: 11.06 | W84: 10 | X84: 2001 | Y84: =IFERROR((INDEX($V$2:V84,MATCH(H84&MAX(IF($H$1:H83=H84,$A$1:A83)),$H$2:H84&$A$2:A84,0))-V84)*-1,"") -> 0.32
A85: 2001-10-21 | C85: 859 | D85: =IF(ISNA(VLOOKUP(C85,BDDG!$A$2:$F$100,2,FALSE)),"",VLOOKUP(C85,BDDG!$A$2:$F$100,2,FALSE)) -> 0 | E85: =IF(ISNA(VLOOKUP(C85,BDDG!$A$3:$J$102,3,FALSE)),"",VLOOKUP(C85,BDDG!$A$3:$J$102,3,FALSE)) -> A | F85: =IF(ISNA(VLOOKUP(C85,BDDG!$A$3:$J$102,4,FALSE)),"",VLOOKUP(C85,BDDG!$A$3:$J$102,4,FALSE)) -> 106 | G85: =IF(ISNA(VLOOKUP(C85,BDDG!$A$2:$F$100,5,FALSE)),"",VLOOKUP(C85,BDDG!$A$2:$F$100,5,FALSE)) -> A10 | H85: =IF(ISNA(VLOOKUP(C85,BDDG!$A$2:$F$100,6,FALSE)),"",VLOOKUP(C85,BDDG!$A$2:$F$100,6,FALSE)) -> AA30 | I85: =IF(ISERROR(VLOOKUP(C85,BDDG!$A$2:$G$100,7,FALSE)),"",VLOOKUP(C85,BDDG!$A$2:$G$100,7,FALSE)) -> 1 | J85: =IF(ISERROR(VLOOKUP(C85,BDDG!$A$2:$H$100,8,FALSE)),"",VLOOKUP(C85,BDDG!$A$2:$H$100,8,FALSE)) -> BB30 | M85: 5.4 | R85: =IF(ISERROR(VLOOKUP(C85,BDDG!$A$2:$J$100,10,FALSE)),"",VLOOKUP(C85,BDDG!$A$2:$J$100,10,FALSE)) -> DD30 | V85: 5.4 | W85: 10 | X85: 2001 | Y85: =IFERROR((INDEX($V$2:V85,MATCH(H85&MAX(IF($H$1:H84=H85,$A$1:A84)),$H$2:H85&$A$2:A85,0))-V85)*-1,"") -> 0.51
A86: 2001-10-23 | C86: 859 | D86: =IF(ISNA(VLOOKUP(C86,BDDG!$A$2:$F$100,2,FALSE)),"",VLOOKUP(C86,BDDG!$A$2:$F$100,2,FALSE)) -> 0 | E86: =IF(ISNA(VLOOKUP(C86,BDDG!$A$3:$J$102,3,FALSE)),"",VLOOKUP(C86,BDDG!$A$3:$J$102,3,FALSE)) -> A | F86: =IF(ISNA(VLOOKUP(C86,BDDG!$A$3:$J$102,4,FALSE)),"",VLOOKUP(C86,BDDG!$A$3:$J$102,4,FALSE)) -> 106 | G86: =IF(ISNA(VLOOKUP(C86,BDDG!$A$2:$F$100,5,FALSE)),"",VLOOKUP(C86,BDDG!$A$2:$F$100,5,FALSE)) -> A10 | H86: =IF(ISNA(VLOOKUP(C86,BDDG!$A$2:$F$100,6,FALSE)),"",VLOOKUP(C86,BDDG!$A$2:$F$100,6,FALSE)) -> AA30 | I86: =IF(ISERROR(VLOOKUP(C86,BDDG!$A$2:$G$100,7,FALSE)),"",VLOOKUP(C86,BDDG!$A$2:$G$100,7,FALSE)) -> 1 | J86: =IF(ISERROR(VLOOKUP(C86,BDDG!$A$2:$H$100,8,FALSE)),"",VLOOKUP(C86,BDDG!$A$2:$H$100,8,FALSE)) -> BB30 | M86: 5.4 | R86: =IF(ISERROR(VLOOKUP(C86,BDDG!$A$2:$J$100,10,FALSE)),"",VLOOKUP(C86,BDDG!$A$2:$J$100,10,FALSE)) -> DD30 | V86: 5.4 | W86: 10 | X86: 2001 | Y86: =IFERROR((INDEX($V$2:V86,MATCH(H86&MAX(IF($H$1:H85=H86,$A$1:A85)),$H$2:H86&$A$2:A86,0))-V86)*-1,"") -> 0
A87: 2001-10-23 | C87: 815 | D87: =IF(ISNA(VLOOKUP(C87,BDDG!$A$2:$F$100,2,FALSE)),"",VLOOKUP(C87,BDDG!$A$2:$F$100,2,FALSE)) -> 0 | E87: =IF(ISNA(VLOOKUP(C87,BDDG!$A$3:$J$102,3,FALSE)),"",VLOOKUP(C87,BDDG!$A$3:$J$102,3,FALSE)) -> A | F87: =IF(ISNA(VLOOKUP(C87,BDDG!$A$3:$J$102,4,FALSE)),"",VLOOKUP(C87,BDDG!$A$3:$J$102,4,FALSE)) -> 106 | G87: =IF(ISNA(VLOOKUP(C87,BDDG!$A$2:$F$100,5,FALSE)),"",VLOOKUP(C87,BDDG!$A$2:$F$100,5,FALSE)) -> A10 | H87: =IF(ISNA(VLOOKUP(C87,BDDG!$A$2:$F$100,6,FALSE)),"",VLOOKUP(C87,BDDG!$A$2:$F$100,6,FALSE)) -> AA31 | I87: =IF(ISERROR(VLOOKUP(C87,BDDG!$A$2:$G$100,7,FALSE)),"",VLOOKUP(C87,BDDG!$A$2:$G$100,7,FALSE)) -> 1 | J87: =IF(ISERROR(VLOOKUP(C87,BDDG!$A$2:$H$100,8,FALSE)),"",VLOOKUP(C87,BDDG!$A$2:$H$100,8,FALSE)) -> BB31 | M87: 11.57 | N87: =IF(ISERROR(VLOOKUP(C87,BDDG!$A$2:$I$100,9,FALSE)),"",VLOOKUP(C87,BDDG!$A$2:$I$100,9,FALSE)) -> CC31 | Q87: =IF(ISERROR(O87/P87*86.4),"",O87/P87*86.4) ->  | R87: =IF(ISERROR(VLOOKUP(C87,BDDG!$A$2:$J$100,10,FALSE)),"",VLOOKUP(C87,BDDG!$A$2:$J$100,10,FALSE)) -> DD31 | V87: 11.57 | W87: 10 | X87: 2001 | Y87: =IFERROR((INDEX($V$2:V87,MATCH(H87&MAX(IF($H$1:H86=H87,$A$1:A86)),$H$2:H87&$A$2:A87,0))-V87)*-1,"") -> 0.51
A88: 2001-10-26 | C88: 859 | D88: =IF(ISNA(VLOOKUP(C88,BDDG!$A$2:$F$100,2,FALSE)),"",VLOOKUP(C88,BDDG!$A$2:$F$100,2,FALSE)) -> 0 | E88: =IF(ISNA(VLOOKUP(C88,BDDG!$A$3:$J$102,3,FALSE)),"",VLOOKUP(C88,BDDG!$A$3:$J$102,3,FALSE)) -> A | F88: =IF(ISNA(VLOOKUP(C88,BDDG!$A$3:$J$102,4,FALSE)),"",VLOOKUP(C88,BDDG!$A$3:$J$102,4,FALSE)) -> 106 | G88: =IF(ISNA(VLOOKUP(C88,BDDG!$A$2:$F$100,5,FALSE)),"",VLOOKUP(C88,BDDG!$A$2:$F$100,5,FALSE)) -> A10 | H88: =IF(ISNA(VLOOKUP(C88,BDDG!$A$2:$F$100,6,FALSE)),"",VLOOKUP(C88,BDDG!$A$2:$F$100,6,FALSE)) -> AA30 | I88: =IF(ISERROR(VLOOKUP(C88,BDDG!$A$2:$G$100,7,FALSE)),"",VLOOKUP(C88,BDDG!$A$2:$G$100,7,FALSE)) -> 1 | J88: =IF(ISERROR(VLOOKUP(C88,BDDG!$A$2:$H$100,8,FALSE)),"",VLOOKUP(C88,BDDG!$A$2:$H$100,8,FALSE)) -> BB30 | M88: 5.51 | R88: =IF(ISERROR(VLOOKUP(C88,BDDG!$A$2:$J$100,10,FALSE)),"",VLOOKUP(C88,BDDG!$A$2:$J$100,10,FALSE)) -> DD30 | V88: 5.51 | W88: 10 | X88: 2001 | Y88: =IFERROR((INDEX($V$2:V88,MATCH(H88&MAX(IF($H$1:H87=H88,$A$1:A87)),$H$2:H88&$A$2:A88,0))-V88)*-1,"") -> 0.11
A89: 2001-10-26 | C89: 815 | D89: =IF(ISNA(VLOOKUP(C89,BDDG!$A$2:$F$100,2,FALSE)),"",VLOOKUP(C89,BDDG!$A$2:$F$100,2,FALSE)) -> 0 | E89: =IF(ISNA(VLOOKUP(C89,BDDG!$A$3:$J$102,3,FALSE)),"",VLOOKUP(C89,BDDG!$A$3:$J$102,3,FALSE)) -> A | F89: =IF(ISNA(VLOOKUP(C89,BDDG!$A$3:$J$102,4,FALSE)),"",VLOOKUP(C89,BDDG!$A$3:$J$102,4,FALSE)) -> 106 | G89: =IF(ISNA(VLOOKUP(C89,BDDG!$A$2:$F$100,5,FALSE)),"",VLOOKUP(C89,BDDG!$A$2:$F$100,5,FALSE)) -> A10 | H89: =IF(ISNA(VLOOKUP(C89,BDDG!$A$2:$F$100,6,FALSE)),"",VLOOKUP(C89,BDDG!$A$2:$F$100,6,FALSE)) -> AA31 | I89: =IF(ISERROR(VLOOKUP(C89,BDDG!$A$2:$G$100,7,FALSE)),"",VLOOKUP(C89,BDDG!$A$2:$G$100,7,FALSE)) -> 1 | J89: =IF(ISERROR(VLOOKUP(C89,BDDG!$A$2:$H$100,8,FALSE)),"",VLOOKUP(C89,BDDG!$A$2:$H$100,8,FALSE)) -> BB31 | M89: 11.68 | N89: =IF(ISERROR(VLOOKUP(C89,BDDG!$A$2:$I$100,9,FALSE)),"",VLOOKUP(C89,BDDG!$A$2:$I$100,9,FALSE)) -> CC31 | Q89: =IF(ISERROR(O89/P89*86.4),"",O89/P89*86.4) ->  | R89: =IF(ISERROR(VLOOKUP(C89,BDDG!$A$2:$J$100,10,FALSE)),"",VLOOKUP(C89,BDDG!$A$2:$J$100,10,FALSE)) -> DD31 | V89: 11.68 | W89: 10 | X89: 2001 | Y89: =IFERROR((INDEX($V$2:V89,MATCH(H89&MAX(IF($H$1:H88=H89,$A$1:A88)),$H$2:H89&$A$2:A89,0))-V89)*-1,"") -> 0.11
A90: 2001-10-30 | C90: 859 | D90: =IF(ISNA(VLOOKUP(C90,BDDG!$A$2:$F$100,2,FALSE)),"",VLOOKUP(C90,BDDG!$A$2:$F$100,2,FALSE)) -> 0 | E90: =IF(ISNA(VLOOKUP(C90,BDDG!$A$3:$J$102,3,FALSE)),"",VLOOKUP(C90,BDDG!$A$3:$J$102,3,FALSE)) -> A | F90: =IF(ISNA(VLOOKUP(C90,BDDG!$A$3:$J$102,4,FALSE)),"",VLOOKUP(C90,BDDG!$A$3:$J$102,4,FALSE)) -> 106 | G90: =IF(ISNA(VLOOKUP(C90,BDDG!$A$2:$F$100,5,FALSE)),"",VLOOKUP(C90,BDDG!$A$2:$F$100,5,FALSE)) -> A10 | H90: =IF(ISNA(VLOOKUP(C90,BDDG!$A$2:$F$100,6,FALSE)),"",VLOOKUP(C90,BDDG!$A$2:$F$100,6,FALSE)) -> AA30 | I90: =IF(ISERROR(VLOOKUP(C90,BDDG!$A$2:$G$100,7,FALSE)),"",VLOOKUP(C90,BDDG!$A$2:$G$100,7,FALSE)) -> 1 | J90: =IF(ISERROR(VLOOKUP(C90,BDDG!$A$2:$H$100,8,FALSE)),"",VLOOKUP(C90,BDDG!$A$2:$H$100,8,FALSE)) -> BB30 | M90: 4.98 | R90: =IF(ISERROR(VLOOKUP(C90,BDDG!$A$2:$J$100,10,FALSE)),"",VLOOKUP(C90,BDDG!$A$2:$J$100,10,FALSE)) -> DD30 | V90: 4.98 | W90: 10 | X90: 2001 | Y90: =IFERROR((INDEX($V$2:V90,MATCH(H90&MAX(IF($H$1:H89=H90,$A$1:A89)),$H$2:H90&$A$2:A90,0))-V90)*-1,"") -> -0.53
A91: 2001-10-30 | C91: 815 | D91: =IF(ISNA(VLOOKUP(C91,BDDG!$A$2:$F$100,2,FALSE)),"",VLOOKUP(C91,BDDG!$A$2:$F$100,2,FALSE)) -> 0 | E91: =IF(ISNA(VLOOKUP(C91,BDDG!$A$3:$J$102,3,FALSE)),"",VLOOKUP(C91,BDDG!$A$3:$J$102,3,FALSE)) -> A | F91: =IF(ISNA(VLOOKUP(C91,BDDG!$A$3:$J$102,4,FALSE)),"",VLOOKUP(C91,BDDG!$A$3:$J$102,4,FALSE)) -> 106 | G91: =IF(ISNA(VLOOKUP(C91,BDDG!$A$2:$F$100,5,FALSE)),"",VLOOKUP(C91,BDDG!$A$2:$F$100,5,FALSE)) -> A10 | H91: =IF(ISNA(VLOOKUP(C91,BDDG!$A$2:$F$100,6,FALSE)),"",VLOOKUP(C91,BDDG!$A$2:$F$100,6,FALSE)) -> AA31 | I91: =IF(ISERROR(VLOOKUP(C91,BDDG!$A$2:$G$100,7,FALSE)),"",VLOOKUP(C91,BDDG!$A$2:$G$100,7,FALSE)) -> 1 | J91: =IF(ISERROR(VLOOKUP(C91,BDDG!$A$2:$H$100,8,FALSE)),"",VLOOKUP(C91,BDDG!$A$2:$H$100,8,FALSE)) -> BB31 | M91: 11.8 | N91: =IF(ISERROR(VLOOKUP(C91,BDDG!$A$2:$I$100,9,FALSE)),"",VLOOKUP(C91,BDDG!$A$2:$I$100,9,FALSE)) -> CC31 | Q91: =IF(ISERROR(O91/P91*86.4),"",O91/P91*86.4) ->  | R91: =IF(ISERROR(VLOOKUP(C91,BDDG!$A$2:$J$100,10,FALSE)),"",VLOOKUP(C91,BDDG!$A$2:$J$100,10,FALSE)) -> DD31 | V91: =IF(ISERROR(SUM(M91,Q91,U91)),"",SUM(M91,Q91,U91)) -> 11.8 | W91: 10 | X91: 2001 | Y91: =IFERROR((INDEX($V$2:V91,MATCH(H91&MAX(IF($H$1:H90=H91,$A$1:A90)),$H$2:H91&$A$2:A91,0))-V91)*-1,"") -> 0.12
A92: 2001-11-08 | C92: 859 | D92: =IF(ISNA(VLOOKUP(C92,BDDG!$A$2:$F$100,2,FALSE)),"",VLOOKUP(C92,BDDG!$A$2:$F$100,2,FALSE)) -> 0 | E92: =IF(ISNA(VLOOKUP(C92,BDDG!$A$3:$J$102,3,FALSE)),"",VLOOKUP(C92,BDDG!$A$3:$J$102,3,FALSE)) -> A | F92: =IF(ISNA(VLOOKUP(C92,BDDG!$A$3:$J$102,4,FALSE)),"",VLOOKUP(C92,BDDG!$A$3:$J$102,4,FALSE)) -> 106 | G92: =IF(ISNA(VLOOKUP(C92,BDDG!$A$2:$F$100,5,FALSE)),"",VLOOKUP(C92,BDDG!$A$2:$F$100,5,FALSE)) -> A10 | H92: =IF(ISNA(VLOOKUP(C92,BDDG!$A$2:$F$100,6,FALSE)),"",VLOOKUP(C92,BDDG!$A$2:$F$100,6,FALSE)) -> AA30 | I92: =IF(ISERROR(VLOOKUP(C92,BDDG!$A$2:$G$100,7,FALSE)),"",VLOOKUP(C92,BDDG!$A$2:$G$100,7,FALSE)) -> 1 | J92: =IF(ISERROR(VLOOKUP(C92,BDDG!$A$2:$H$100,8,FALSE)),"",VLOOKUP(C92,BDDG!$A$2:$H$100,8,FALSE)) -> BB30 | M92: 4.89 | R92: =IF(ISERROR(VLOOKUP(C92,BDDG!$A$2:$J$100,10,FALSE)),"",VLOOKUP(C92,BDDG!$A$2:$J$100,10,FALSE)) -> DD30 | V92: 4.89 | W92: 11 | X92: 2001 | Y92: =IFERROR((INDEX($V$2:V92,MATCH(H92&MAX(IF($H$1:H91=H92,$A$1:A91)),$H$2:H92&$A$2:A92,0))-V92)*-1,"") -> -0.09
A93: 2001-11-08 | C93: 815 | D93: =IF(ISNA(VLOOKUP(C93,BDDG!$A$2:$F$100,2,FALSE)),"",VLOOKUP(C93,BDDG!$A$2:$F$100,2,FALSE)) -> 0 | E93: =IF(ISNA(VLOOKUP(C93,BDDG!$A$3:$J$102,3,FALSE)),"",VLOOKUP(C93,BDDG!$A$3:$J$102,3,FALSE)) -> A | F93: =IF(ISNA(VLOOKUP(C93,BDDG!$A$3:$J$102,4,FALSE)),"",VLOOKUP(C93,BDDG!$A$3:$J$102,4,FALSE)) -> 106 | G93: =IF(ISNA(VLOOKUP(C93,BDDG!$A$2:$F$100,5,FALSE)),"",VLOOKUP(C93,BDDG!$A$2:$F$100,5,FALSE)) -> A10 | H93: =IF(ISNA(VLOOKUP(C93,BDDG!$A$2:$F$100,6,FALSE)),"",VLOOKUP(C93,BDDG!$A$2:$F$100,6,FALSE)) -> AA31 | I93: =IF(ISERROR(VLOOKUP(C93,BDDG!$A$2:$G$100,7,FALSE)),"",VLOOKUP(C93,BDDG!$A$2:$G$100,7,FALSE)) -> 1 | J93: =IF(ISERROR(VLOOKUP(C93,BDDG!$A$2:$H$100,8,FALSE)),"",VLOOKUP(C93,BDDG!$A$2:$H$100,8,FALSE)) -> BB31 | M93: 11.54 | N93: =IF(ISERROR(VLOOKUP(C93,BDDG!$A$2:$I$100,9,FALSE)),"",VLOOKUP(C93,BDDG!$A$2:$I$100,9,FALSE)) -> CC31 | Q93: =IF(ISERROR(O93/P93*86.4),"",O93/P93*86.4) ->  | R93: =IF(ISERROR(VLOOKUP(C93,BDDG!$A$2:$J$100,10,FALSE)),"",VLOOKUP(C93,BDDG!$A$2:$J$100,10,FALSE)) -> DD31 | V93: 11.54 | W93: 11 | X93: 2001 | Y93: =IFERROR((INDEX($V$2:V93,MATCH(H93&MAX(IF($H$1:H92=H93,$A$1:A92)),$H$2:H93&$A$2:A93,0))-V93)*-1,"") -> -0.26
A94: 2002-05-17 | C94: 856 | D94: =IF(ISNA(VLOOKUP(C94,BDDG!$A$2:$F$100,2,FALSE)),"",VLOOKUP(C94,BDDG!$A$2:$F$100,2,FALSE)) -> 0 | E94: =IF(ISNA(VLOOKUP(C94,BDDG!$A$3:$J$102,3,FALSE)),"",VLOOKUP(C94,BDDG!$A$3:$J$102,3,FALSE)) -> A | F94: =IF(ISNA(VLOOKUP(C94,BDDG!$A$3:$J$102,4,FALSE)),"",VLOOKUP(C94,BDDG!$A$3:$J$102,4,FALSE)) -> 106 | G94: =IF(ISNA(VLOOKUP(C94,BDDG!$A$2:$F$100,5,FALSE)),"",VLOOKUP(C94,BDDG!$A$2:$F$100,5,FALSE)) -> A9 | H94: =IF(ISNA(VLOOKUP(C94,BDDG!$A$2:$F$100,6,FALSE)),"",VLOOKUP(C94,BDDG!$A$2:$F$100,6,FALSE)) -> AA27 | I94: =IF(ISERROR(VLOOKUP(C94,BDDG!$A$2:$G$100,7,FALSE)),"",VLOOKUP(C94,BDDG!$A$2:$G$100,7,FALSE)) -> 2 | J94: =IF(ISERROR(VLOOKUP(C94,BDDG!$A$2:$H$100,8,FALSE)),"",VLOOKUP(C94,BDDG!$A$2:$H$100,8,FALSE)) -> BB27 | K94: 10 | L94: 45 | M94: =IF(ISERROR(K94/L94*86.4),"",K94/L94*86.4) -> 19.2 | N94: =IF(ISERROR(VLOOKUP(C94,BDDG!$A$2:$I$100,9,FALSE)),"",VLOOKUP(C94,BDDG!$A$2:$I$100,9,FALSE)) -> CC27 | O94: 10 | P94: 5 | Q94: 172.8 | R94: =IF(ISERROR(VLOOKUP(C94,BDDG!$A$2:$J$100,10,FALSE)),"",VLOOKUP(C94,BDDG!$A$2:$J$100,10,FALSE)) -> DD27 | V94: 192 | W94: 5 | X94: 2002 | Y94: =IFERROR((INDEX($V$2:V94,MATCH(H94&MAX(IF($H$1:H93=H94,$A$1:A93)),$H$2:H94&$A$2:A94,0))-V94)*-1,"") -> 96
A95: 2002-05-21 | C95: 842 | D95: =IF(ISNA(VLOOKUP(C95,BDDG!$A$2:$F$100,2,FALSE)),"",VLOOKUP(C95,BDDG!$A$2:$F$100,2,FALSE)) -> 0 | E95: =IF(ISNA(VLOOKUP(C95,BDDG!$A$3:$J$102,3,FALSE)),"",VLOOKUP(C95,BDDG!$A$3:$J$102,3,FALSE)) -> B | F95: =IF(ISNA(VLOOKUP(C95,BDDG!$A$3:$J$102,4,FALSE)),"",VLOOKUP(C95,BDDG!$A$3:$J$102,4,FALSE)) -> 106 | G95: =IF(ISNA(VLOOKUP(C95,BDDG!$A$2:$F$100,5,FALSE)),"",VLOOKUP(C95,BDDG!$A$2:$F$100,5,FALSE)) -> A5 | H95: =IF(ISNA(VLOOKUP(C95,BDDG!$A$2:$F$100,6,FALSE)),"",VLOOKUP(C95,BDDG!$A$2:$F$100,6,FALSE)) -> AA13 | I95: =IF(ISERROR(VLOOKUP(C95,BDDG!$A$2:$G$100,7,FALSE)),"",VLOOKUP(C95,BDDG!$A$2:$G$100,7,FALSE)) -> 1 | J95: =IF(ISERROR(VLOOKUP(C95,BDDG!$A$2:$H$100,8,FALSE)),"",VLOOKUP(C95,BDDG!$A$2:$H$100,8,FALSE)) -> BB13 | K95: 10 | L95: 65 | M95: 13.29230769 | N95: =IF(ISERROR(VLOOKUP(C95,BDDG!$A$2:$I$100,9,FALSE)),"",VLOOKUP(C95,BDDG!$A$2:$I$100,9,FALSE)) -> CC13 | R95: =IF(ISERROR(VLOOKUP(C95,BDDG!$A$2:$J$100,10,FALSE)),"",VLOOKUP(C95,BDDG!$A$2:$J$100,10,FALSE)) -> DD13 | V95: 13.29230769 | W95: 5 | X95: 2002 | Y95: =IFERROR((INDEX($V$2:V95,MATCH(H95&MAX(IF($H$1:H94=H95,$A$1:A94)),$H$2:H95&$A$2:A95,0))-V95)*-1,"") -> -1.107692308
A96: 2002-05-21 | C96: 848 | D96: =IF(ISNA(VLOOKUP(C96,BDDG!$A$2:$F$100,2,FALSE)),"",VLOOKUP(C96,BDDG!$A$2:$F$100,2,FALSE)) -> 0 | E96: =IF(ISNA(VLOOKUP(C96,BDDG!$A$3:$J$102,3,FALSE)),"",VLOOKUP(C96,BDDG!$A$3:$J$102,3,FALSE)) -> B | F96: =IF(ISNA(VLOOKUP(C96,BDDG!$A$3:$J$102,4,FALSE)),"",VLOOKUP(C96,BDDG!$A$3:$J$102,4,FALSE)) -> 106 | G96: =IF(ISNA(VLOOKUP(C96,BDDG!$A$2:$F$100,5,FALSE)),"",VLOOKUP(C96,BDDG!$A$2:$F$100,5,FALSE)) -> A7 | H96: =IF(ISNA(VLOOKUP(C96,BDDG!$A$2:$F$100,6,FALSE)),"",VLOOKUP(C96,BDDG!$A$2:$F$100,6,FALSE)) -> AA19 | I96: =IF(ISERROR(VLOOKUP(C96,BDDG!$A$2:$G$100,7,FALSE)),"",VLOOKUP(C96,BDDG!$A$2:$G$100,7,FALSE)) -> 2 | J96: =IF(ISERROR(VLOOKUP(C96,BDDG!$A$2:$H$100,8,FALSE)),"",VLOOKUP(C96,BDDG!$A$2:$H$100,8,FALSE)) -> BB19 | K96: 10 | L96: 70 | M96: 12.34285714 | N96: =IF(ISERROR(VLOOKUP(C96,BDDG!$A$2:$I$100,9,FALSE)),"",VLOOKUP(C96,BDDG!$A$2:$I$100,9,FALSE)) -> CC19 | R96: =IF(ISERROR(VLOOKUP(C96,BDDG!$A$2:$J$100,10,FALSE)),"",VLOOKUP(C96,BDDG!$A$2:$J$100,10,FALSE)) -> DD19 | V96: 12.34285714 | W96: 5 | X96: 2002 | Y96: =IFERROR((INDEX($V$2:V96,MATCH(H96&MAX(IF($H$1:H95=H96,$A$1:A95)),$H$2:H96&$A$2:A96,0))-V96)*-1,"") -> 
A97: 2002-05-21 | C97: 847 | D97: =IF(ISNA(VLOOKUP(C97,BDDG!$A$2:$F$100,2,FALSE)),"",VLOOKUP(C97,BDDG!$A$2:$F$100,2,FALSE)) -> 0 | E97: =IF(ISNA(VLOOKUP(C97,BDDG!$A$3:$J$102,3,FALSE)),"",VLOOKUP(C97,BDDG!$A$3:$J$102,3,FALSE)) -> B | F97: =IF(ISNA(VLOOKUP(C97,BDDG!$A$3:$J$102,4,FALSE)),"",VLOOKUP(C97,BDDG!$A$3:$J$102,4,FALSE)) -> 106 | G97: =IF(ISNA(VLOOKUP(C97,BDDG!$A$2:$F$100,5,FALSE)),"",VLOOKUP(C97,BDDG!$A$2:$F$100,5,FALSE)) -> A7 | H97: =IF(ISNA(VLOOKUP(C97,BDDG!$A$2:$F$100,6,FALSE)),"",VLOOKUP(C97,BDDG!$A$2:$F$100,6,FALSE)) -> AA18 | I97: =IF(ISERROR(VLOOKUP(C97,BDDG!$A$2:$G$100,7,FALSE)),"",VLOOKUP(C97,BDDG!$A$2:$G$100,7,FALSE)) -> 2 | J97: =IF(ISERROR(VLOOKUP(C97,BDDG!$A$2:$H$100,8,FALSE)),"",VLOOKUP(C97,BDDG!$A$2:$H$100,8,FALSE)) -> BB18 | K97: 10 | L97: 70 | M97: 12.34285714 | N97: =IF(ISERROR(VLOOKUP(C97,BDDG!$A$2:$I$100,9,FALSE)),"",VLOOKUP(C97,BDDG!$A$2:$I$100,9,FALSE)) -> CC18 | O97: 10 | P97: 210 | Q97: 4.114285714 | R97: =IF(ISERROR(VLOOKUP(C97,BDDG!$A$2:$J$100,10,FALSE)),"",VLOOKUP(C97,BDDG!$A$2:$J$100,10,FALSE)) -> DD18 | V97: 16.45714286 | W97: 5 | X97: 2002 | Y97: =IFERROR((INDEX($V$2:V97,MATCH(H97&MAX(IF($H$1:H96=H97,$A$1:A96)),$H$2:H97&$A$2:A97,0))-V97)*-1,"") -> 
A98: 2002-05-21 | C98: 844 | D98: =IF(ISNA(VLOOKUP(C98,BDDG!$A$2:$F$100,2,FALSE)),"",VLOOKUP(C98,BDDG!$A$2:$F$100,2,FALSE)) -> 0 | E98: =IF(ISNA(VLOOKUP(C98,BDDG!$A$3:$J$102,3,FALSE)),"",VLOOKUP(C98,BDDG!$A$3:$J$102,3,FALSE)) -> B | F98: =IF(ISNA(VLOOKUP(C98,BDDG!$A$3:$J$102,4,FALSE)),"",VLOOKUP(C98,BDDG!$A$3:$J$102,4,FALSE)) -> 106 | G98: =IF(ISNA(VLOOKUP(C98,BDDG!$A$2:$F$100,5,FALSE)),"",VLOOKUP(C98,BDDG!$A$2:$F$100,5,FALSE)) -> A6 | H98: =IF(ISNA(VLOOKUP(C98,BDDG!$A$2:$F$100,6,FALSE)),"",VLOOKUP(C98,BDDG!$A$2:$F$100,6,FALSE)) -> AA14 | I98: =IF(ISERROR(VLOOKUP(C98,BDDG!$A$2:$G$100,7,FALSE)),"",VLOOKUP(C98,BDDG!$A$2:$G$100,7,FALSE)) -> 2 | J98: =IF(ISERROR(VLOOKUP(C98,BDDG!$A$2:$H$100,8,FALSE)),"",VLOOKUP(C98,BDDG!$A$2:$H$100,8,FALSE)) -> BB14 | K98: 10 | L98: 10 | M98: 86.4 | N98: =IF(ISERROR(VLOOKUP(C98,BDDG!$A$2:$I$100,9,FALSE)),"",VLOOKUP(C98,BDDG!$A$2:$I$100,9,FALSE)) -> CC14 | R98: =IF(ISERROR(VLOOKUP(C98,BDDG!$A$2:$J$100,10,FALSE)),"",VLOOKUP(C98,BDDG!$A$2:$J$100,10,FALSE)) -> DD14 | U98: =IF(ISERROR(S98/T98*86.4),"",S98/T98*86.4) ->  | V98: 86.4 | W98: 5 | X98: 2002 | Y98: =IFERROR((INDEX($V$2:V98,MATCH(H98&MAX(IF($H$1:H97=H98,$A$1:A97)),$H$2:H98&$A$2:A98,0))-V98)*-1,"") -> 
A99: 2002-05-21 | C99: 849 | D99: =IF(ISNA(VLOOKUP(C99,BDDG!$A$2:$F$100,2,FALSE)),"",VLOOKUP(C99,BDDG!$A$2:$F$100,2,FALSE)) -> 0 | E99: =IF(ISNA(VLOOKUP(C99,BDDG!$A$3:$J$102,3,FALSE)),"",VLOOKUP(C99,BDDG!$A$3:$J$102,3,FALSE)) -> B | F99: =IF(ISNA(VLOOKUP(C99,BDDG!$A$3:$J$102,4,FALSE)),"",VLOOKUP(C99,BDDG!$A$3:$J$102,4,FALSE)) -> 106 | G99: =IF(ISNA(VLOOKUP(C99,BDDG!$A$2:$F$100,5,FALSE)),"",VLOOKUP(C99,BDDG!$A$2:$F$100,5,FALSE)) -> A7 | H99: =IF(ISNA(VLOOKUP(C99,BDDG!$A$2:$F$100,6,FALSE)),"",VLOOKUP(C99,BDDG!$A$2:$F$100,6,FALSE)) -> AA15 | I99: =IF(ISERROR(VLOOKUP(C99,BDDG!$A$2:$G$100,7,FALSE)),"",VLOOKUP(C99,BDDG!$A$2:$G$100,7,FALSE)) -> 2 | J99: =IF(ISERROR(VLOOKUP(C99,BDDG!$A$2:$H$100,8,FALSE)),"",VLOOKUP(C99,BDDG!$A$2:$H$100,8,FALSE)) -> BB15 | K99: 10 | L99: 65 | M99: 13.29230769 | N99: =IF(ISERROR(VLOOKUP(C99,BDDG!$A$2:$I$100,9,FALSE)),"",VLOOKUP(C99,BDDG!$A$2:$I$100,9,FALSE)) -> CC15 | R99: =IF(ISERROR(VLOOKUP(C99,BDDG!$A$2:$J$100,10,FALSE)),"",VLOOKUP(C99,BDDG!$A$2:$J$100,10,FALSE)) -> DD15 | V99: 13.29230769 | W99: 5 | X99: 2002 | Y99: =IFERROR((INDEX($V$2:V99,MATCH(H99&MAX(IF($H$1:H98=H99,$A$1:A98)),$H$2:H99&$A$2:A99,0))-V99)*-1,"") -> 
A100: 2002-05-22 | C100: 832 | D100: =IF(ISNA(VLOOKUP(C100,BDDG!$A$2:$F$100,2,FALSE)),"",VLOOKUP(C100,BDDG!$A$2:$F$100,2,FALSE)) -> 0 | E100: =IF(ISNA(VLOOKUP(C100,BDDG!$A$3:$J$102,3,FALSE)),"",VLOOKUP(C100,BDDG!$A$3:$J$102,3,FALSE)) -> A | F100: =IF(ISNA(VLOOKUP(C100,BDDG!$A$3:$J$102,4,FALSE)),"",VLOOKUP(C100,BDDG!$A$3:$J$102,4,FALSE)) -> 106 | G100: =IF(ISNA(VLOOKUP(C100,BDDG!$A$2:$F$100,5,FALSE)),"",VLOOKUP(C100,BDDG!$A$2:$F$100,5,FALSE)) -> A2 | H100: =IF(ISNA(VLOOKUP(C100,BDDG!$A$2:$F$100,6,FALSE)),"",VLOOKUP(C100,BDDG!$A$2:$F$100,6,FALSE)) -> AA2 | I100: =IF(ISERROR(VLOOKUP(C100,BDDG!$A$2:$G$100,7,FALSE)),"",VLOOKUP(C100,BDDG!$A$2:$G$100,7,FALSE)) -> 1 | J100: =IF(ISERROR(VLOOKUP(C100,BDDG!$A$2:$H$100,8,FALSE)),"",VLOOKUP(C100,BDDG!$A$2:$H$100,8,FALSE)) -> BB2 | K100: 10 | L100: 25 | M100: 34.56 | N100: =IF(ISERROR(VLOOKUP(C100,BDDG!$A$2:$I$100,9,FALSE)),"",VLOOKUP(C100,BDDG!$A$2:$I$100,9,FALSE)) -> CC2 | R100: =IF(ISERROR(VLOOKUP(C100,BDDG!$A$2:$J$100,10,FALSE)),"",VLOOKUP(C100,BDDG!$A$2:$J$100,10,FALSE)) -> DD2 | V100: 34.56 | W100: 5 | X100: 2002 | Y100: =IFERROR((INDEX($V$2:V100,MATCH(H100&MAX(IF($H$1:H99=H100,$A$1:A99)),$H$2:H100&$A$2:A100,0))-V100)*-1,"") -> -11.52
A101: 2002-05-22 | C101: 833 | D101: =IF(ISNA(VLOOKUP(C101,BDDG!$A$2:$F$100,2,FALSE)),"",VLOOKUP(C101,BDDG!$A$2:$F$100,2,FALSE)) -> 0 | E101: =IF(ISNA(VLOOKUP(C101,BDDG!$A$3:$J$102,3,FALSE)),"",VLOOKUP(C101,BDDG!$A$3:$J$102,3,FALSE)) -> A | F101: =IF(ISNA(VLOOKUP(C101,BDDG!$A$3:$J$102,4,FALSE)),"",VLOOKUP(C101,BDDG!$A$3:$J$102,4,FALSE)) -> 106 | G101: =IF(ISNA(VLOOKUP(C101,BDDG!$A$2:$F$100,5,FALSE)),"",VLOOKUP(C101,BDDG!$A$2:$F$100,5,FALSE)) -> A2 | H101: =IF(ISNA(VLOOKUP(C101,BDDG!$A$2:$F$100,6,FALSE)),"",VLOOKUP(C101,BDDG!$A$2:$F$100,6,FALSE)) -> AA3 | I101: =IF(ISERROR(VLOOKUP(C101,BDDG!$A$2:$G$100,7,FALSE)),"",VLOOKUP(C101,BDDG!$A$2:$G$100,7,FALSE)) -> 1 | J101: =IF(ISERROR(VLOOKUP(C101,BDDG!$A$2:$H$100,8,FALSE)),"",VLOOKUP(C101,BDDG!$A$2:$H$100,8,FALSE)) -> BB3 | K101: 10 | L101: 75 | M101: 11.52 | N101: =IF(ISERROR(VLOOKUP(C101,BDDG!$A$2:$I$100,9,FALSE)),"",VLOOKUP(C101,BDDG!$A$2:$I$100,9,FALSE)) -> CC3 | R101: =IF(ISERROR(VLOOKUP(C101,BDDG!$A$2:$J$100,10,FALSE)),"",VLOOKUP(C101,BDDG!$A$2:$J$100,10,FALSE)) -> DD3 | V101: 11.52 | W101: 5 | X101: 2002 | Y101: =IFERROR((INDEX($V$2:V101,MATCH(H101&MAX(IF($H$1:H100=H101,$A$1:A100)),$H$2:H101&$A$2:A101,0))-V101)*-1,"") -> -20.16
A102: 2002-05-22 | C102: 834 | D102: =IF(ISNA(VLOOKUP(C102,BDDG!$A$2:$F$100,2,FALSE)),"",VLOOKUP(C102,BDDG!$A$2:$F$100,2,FALSE)) -> 0 | E102: =IF(ISNA(VLOOKUP(C102,BDDG!$A$3:$J$102,3,FALSE)),"",VLOOKUP(C102,BDDG!$A$3:$J$102,3,FALSE)) -> A | F102: =IF(ISNA(VLOOKUP(C102,BDDG!$A$3:$J$102,4,FALSE)),"",VLOOKUP(C102,BDDG!$A$3:$J$102,4,FALSE)) -> 106 | G102: =IF(ISNA(VLOOKUP(C102,BDDG!$A$2:$F$100,5,FALSE)),"",VLOOKUP(C102,BDDG!$A$2:$F$100,5,FALSE)) -> A2 | H102: =IF(ISNA(VLOOKUP(C102,BDDG!$A$2:$F$100,6,FALSE)),"",VLOOKUP(C102,BDDG!$A$2:$F$100,6,FALSE)) -> AA4 | I102: =IF(ISERROR(VLOOKUP(C102,BDDG!$A$2:$G$100,7,FALSE)),"",VLOOKUP(C102,BDDG!$A$2:$G$100,7,FALSE)) -> 1 | J102: =IF(ISERROR(VLOOKUP(C102,BDDG!$A$2:$H$100,8,FALSE)),"",VLOOKUP(C102,BDDG!$A$2:$H$100,8,FALSE)) -> BB4 | K102: 10 | L102: 60 | M102: 14.4 | N102: =IF(ISERROR(VLOOKUP(C102,BDDG!$A$2:$I$100,9,FALSE)),"",VLOOKUP(C102,BDDG!$A$2:$I$100,9,FALSE)) -> CC4 | R102: =IF(ISERROR(VLOOKUP(C102,BDDG!$A$2:$J$100,10,FALSE)),"",VLOOKUP(C102,BDDG!$A$2:$J$100,10,FALSE)) -> DD4 | V102: 14.4 | W102: 5 | X102: 2002 | Y102: =IFERROR((INDEX($V$2:V102,MATCH(H102&MAX(IF($H$1:H101=H102,$A$1:A101)),$H$2:H102&$A$2:A102,0))-V102)*-1,"") -> -4.32
A103: 2002-05-22 | C103: 838 | D103: =IF(ISNA(VLOOKUP(C103,BDDG!$A$2:$F$100,2,FALSE)),"",VLOOKUP(C103,BDDG!$A$2:$F$100,2,FALSE)) -> 0 | E103: =IF(ISNA(VLOOKUP(C103,BDDG!$A$3:$J$102,3,FALSE)),"",VLOOKUP(C103,BDDG!$A$3:$J$102,3,FALSE)) -> A | F103: =IF(ISNA(VLOOKUP(C103,BDDG!$A$3:$J$102,4,FALSE)),"",VLOOKUP(C103,BDDG!$A$3:$J$102,4,FALSE)) -> 106 | G103: =IF(ISNA(VLOOKUP(C103,BDDG!$A$2:$F$100,5,FALSE)),"",VLOOKUP(C103,BDDG!$A$2:$F$100,5,FALSE)) -> A3 | H103: =IF(ISNA(VLOOKUP(C103,BDDG!$A$2:$F$100,6,FALSE)),"",VLOOKUP(C103,BDDG!$A$2:$F$100,6,FALSE)) -> AA8 | I103: =IF(ISERROR(VLOOKUP(C103,BDDG!$A$2:$G$100,7,FALSE)),"",VLOOKUP(C103,BDDG!$A$2:$G$100,7,FALSE)) -> 1 | J103: =IF(ISERROR(VLOOKUP(C103,BDDG!$A$2:$H$100,8,FALSE)),"",VLOOKUP(C103,BDDG!$A$2:$H$100,8,FALSE)) -> BB8 | K103: 5.5 | L103: 60 | M103: 7.92 | N103: =IF(ISERROR(VLOOKUP(C103,BDDG!$A$2:$I$100,9,FALSE)),"",VLOOKUP(C103,BDDG!$A$2:$I$100,9,FALSE)) -> CC8 | R103: =IF(ISERROR(VLOOKUP(C103,BDDG!$A$2:$J$100,10,FALSE)),"",VLOOKUP(C103,BDDG!$A$2:$J$100,10,FALSE)) -> DD8 | V103: 7.92 | W103: 5 | X103: 2002 | Y103: =IFERROR((INDEX($V$2:V103,MATCH(H103&MAX(IF($H$1:H102=H103,$A$1:A102)),$H$2:H103&$A$2:A103,0))-V103)*-1,"") -> 2.16
A104: 2002-05-22 | C104: 837 | D104: =IF(ISNA(VLOOKUP(C104,BDDG!$A$2:$F$100,2,FALSE)),"",VLOOKUP(C104,BDDG!$A$2:$F$100,2,FALSE)) -> 0 | E104: =IF(ISNA(VLOOKUP(C104,BDDG!$A$3:$J$102,3,FALSE)),"",VLOOKUP(C104,BDDG!$A$3:$J$102,3,FALSE)) -> A | F104: =IF(ISNA(VLOOKUP(C104,BDDG!$A$3:$J$102,4,FALSE)),"",VLOOKUP(C104,BDDG!$A$3:$J$102,4,FALSE)) -> 106 | G104: =IF(ISNA(VLOOKUP(C104,BDDG!$A$2:$F$100,5,FALSE)),"",VLOOKUP(C104,BDDG!$A$2:$F$100,5,FALSE)) -> A3 | H104: =IF(ISNA(VLOOKUP(C104,BDDG!$A$2:$F$100,6,FALSE)),"",VLOOKUP(C104,BDDG!$A$2:$F$100,6,FALSE)) -> AA7 | I104: =IF(ISERROR(VLOOKUP(C104,BDDG!$A$2:$G$100,7,FALSE)),"",VLOOKUP(C104,BDDG!$A$2:$G$100,7,FALSE)) -> 1 | J104: =IF(ISERROR(VLOOKUP(C104,BDDG!$A$2:$H$100,8,FALSE)),"",VLOOKUP(C104,BDDG!$A$2:$H$100,8,FALSE)) -> BB7 | K104: 20 | L104: 60 | M104: 28.8 | N104: =IF(ISERROR(VLOOKUP(C104,BDDG!$A$2:$I$100,9,FALSE)),"",VLOOKUP(C104,BDDG!$A$2:$I$100,9,FALSE)) -> CC7 | R104: =IF(ISERROR(VLOOKUP(C104,BDDG!$A$2:$J$100,10,FALSE)),"",VLOOKUP(C104,BDDG!$A$2:$J$100,10,FALSE)) -> DD7 | V104: 28.8 | W104: 5 | X104: 2002 | Y104: =IFERROR((INDEX($V$2:V104,MATCH(H104&MAX(IF($H$1:H103=H104,$A$1:A103)),$H$2:H104&$A$2:A104,0))-V104)*-1,"") -> 14.4
A105: 2002-05-22 | C105: 836 | D105: =IF(ISNA(VLOOKUP(C105,BDDG!$A$2:$F$100,2,FALSE)),"",VLOOKUP(C105,BDDG!$A$2:$F$100,2,FALSE)) -> 0 | E105: =IF(ISNA(VLOOKUP(C105,BDDG!$A$3:$J$102,3,FALSE)),"",VLOOKUP(C105,BDDG!$A$3:$J$102,3,FALSE)) -> A | F105: =IF(ISNA(VLOOKUP(C105,BDDG!$A$3:$J$102,4,FALSE)),"",VLOOKUP(C105,BDDG!$A$3:$J$102,4,FALSE)) -> 106 | G105: =IF(ISNA(VLOOKUP(C105,BDDG!$A$2:$F$100,5,FALSE)),"",VLOOKUP(C105,BDDG!$A$2:$F$100,5,FALSE)) -> A3 | H105: =IF(ISNA(VLOOKUP(C105,BDDG!$A$2:$F$100,6,FALSE)),"",VLOOKUP(C105,BDDG!$A$2:$F$100,6,FALSE)) -> AA6 | I105: =IF(ISERROR(VLOOKUP(C105,BDDG!$A$2:$G$100,7,FALSE)),"",VLOOKUP(C105,BDDG!$A$2:$G$100,7,FALSE)) -> 1 | J105: =IF(ISERROR(VLOOKUP(C105,BDDG!$A$2:$H$100,8,FALSE)),"",VLOOKUP(C105,BDDG!$A$2:$H$100,8,FALSE)) -> BB6 | K105: 21 | L105: 60 | M105: 30.24 | N105: =IF(ISERROR(VLOOKUP(C105,BDDG!$A$2:$I$100,9,FALSE)),"",VLOOKUP(C105,BDDG!$A$2:$I$100,9,FALSE)) -> CC6 | R105: =IF(ISERROR(VLOOKUP(C105,BDDG!$A$2:$J$100,10,FALSE)),"",VLOOKUP(C105,BDDG!$A$2:$J$100,10,FALSE)) -> DD6 | V105: 30.24 | W105: 5 | X105: 2002 | Y105: =IFERROR((INDEX($V$2:V105,MATCH(H105&MAX(IF($H$1:H104=H105,$A$1:A104)),$H$2:H105&$A$2:A105,0))-V105)*-1,"") -> 7.2
A106: 2002-05-22 | C106: 822 | D106: =IF(ISNA(VLOOKUP(C106,BDDG!$A$2:$F$100,2,FALSE)),"",VLOOKUP(C106,BDDG!$A$2:$F$100,2,FALSE)) -> 0 | E106: =IF(ISNA(VLOOKUP(C106,BDDG!$A$3:$J$102,3,FALSE)),"",VLOOKUP(C106,BDDG!$A$3:$J$102,3,FALSE)) -> A | F106: =IF(ISNA(VLOOKUP(C106,BDDG!$A$3:$J$102,4,FALSE)),"",VLOOKUP(C106,BDDG!$A$3:$J$102,4,FALSE)) -> 106 | G106: =IF(ISNA(VLOOKUP(C106,BDDG!$A$2:$F$100,5,FALSE)),"",VLOOKUP(C106,BDDG!$A$2:$F$100,5,FALSE)) -> A4 | H106: =IF(ISNA(VLOOKUP(C106,BDDG!$A$2:$F$100,6,FALSE)),"",VLOOKUP(C106,BDDG!$A$2:$F$100,6,FALSE)) -> AA12 | I106: =IF(ISERROR(VLOOKUP(C106,BDDG!$A$2:$G$100,7,FALSE)),"",VLOOKUP(C106,BDDG!$A$2:$G$100,7,FALSE)) -> 1 | J106: =IF(ISERROR(VLOOKUP(C106,BDDG!$A$2:$H$100,8,FALSE)),"",VLOOKUP(C106,BDDG!$A$2:$H$100,8,FALSE)) -> BB12 | K106: 0.83 | L106: 1 | M106: 71.712 | N106: =IF(ISERROR(VLOOKUP(C106,BDDG!$A$2:$I$100,9,FALSE)),"",VLOOKUP(C106,BDDG!$A$2:$I$100,9,FALSE)) -> CC12 | R106: =IF(ISERROR(VLOOKUP(C106,BDDG!$A$2:$J$100,10,FALSE)),"",VLOOKUP(C106,BDDG!$A$2:$J$100,10,FALSE)) -> DD12 | V106: 71.712 | W106: 5 | X106: 2002 | Y106: =IFERROR((INDEX($V$2:V106,MATCH(H106&MAX(IF($H$1:H105=H106,$A$1:A105)),$H$2:H106&$A$2:A106,0))-V106)*-1,"") -> -14.688
A107: 2002-05-23 | C107: 850 | D107: =IF(ISNA(VLOOKUP(C107,BDDG!$A$2:$F$100,2,FALSE)),"",VLOOKUP(C107,BDDG!$A$2:$F$100,2,FALSE)) -> 0 | E107: =IF(ISNA(VLOOKUP(C107,BDDG!$A$3:$J$102,3,FALSE)),"",VLOOKUP(C107,BDDG!$A$3:$J$102,3,FALSE)) -> B | F107: =IF(ISNA(VLOOKUP(C107,BDDG!$A$3:$J$102,4,FALSE)),"",VLOOKUP(C107,BDDG!$A$3:$J$102,4,FALSE)) -> 106 | G107: =IF(ISNA(VLOOKUP(C107,BDDG!$A$2:$F$100,5,FALSE)),"",VLOOKUP(C107,BDDG!$A$2:$F$100,5,FALSE)) -> A8 | H107: =IF(ISNA(VLOOKUP(C107,BDDG!$A$2:$F$100,6,FALSE)),"",VLOOKUP(C107,BDDG!$A$2:$F$100,6,FALSE)) -> AA20 | I107: =IF(ISERROR(VLOOKUP(C107,BDDG!$A$2:$G$100,7,FALSE)),"",VLOOKUP(C107,BDDG!$A$2:$G$100,7,FALSE)) -> 1 | J107: =IF(ISERROR(VLOOKUP(C107,BDDG!$A$2:$H$100,8,FALSE)),"",VLOOKUP(C107,BDDG!$A$2:$H$100,8,FALSE)) -> BB20 | K107: 10 | L107: 20 | M107: 43.2 | N107: =IF(ISERROR(VLOOKUP(C107,BDDG!$A$2:$I$100,9,FALSE)),"",VLOOKUP(C107,BDDG!$A$2:$I$100,9,FALSE)) -> CC20 | R107: =IF(ISERROR(VLOOKUP(C107,BDDG!$A$2:$J$100,10,FALSE)),"",VLOOKUP(C107,BDDG!$A$2:$J$100,10,FALSE)) -> DD20 | V107: 43.2 | W107: 5 | X107: 2002 | Y107: =IFERROR((INDEX($V$2:V107,MATCH(H107&MAX(IF($H$1:H106=H107,$A$1:A106)),$H$2:H107&$A$2:A107,0))-V107)*-1,"") -> 
A108: 2002-05-23 | C108: 860 | D108: =IF(ISNA(VLOOKUP(C108,BDDG!$A$2:$F$100,2,FALSE)),"",VLOOKUP(C108,BDDG!$A$2:$F$100,2,FALSE)) -> 0 | E108: =IF(ISNA(VLOOKUP(C108,BDDG!$A$3:$J$102,3,FALSE)),"",VLOOKUP(C108,BDDG!$A$3:$J$102,3,FALSE)) -> A | F108: =IF(ISNA(VLOOKUP(C108,BDDG!$A$3:$J$102,4,FALSE)),"",VLOOKUP(C108,BDDG!$A$3:$J$102,4,FALSE)) -> 106 | G108: =IF(ISNA(VLOOKUP(C108,BDDG!$A$2:$F$100,5,FALSE)),"",VLOOKUP(C108,BDDG!$A$2:$F$100,5,FALSE)) -> A11 | H108: =IF(ISNA(VLOOKUP(C108,BDDG!$A$2:$F$100,6,FALSE)),"",VLOOKUP(C108,BDDG!$A$2:$F$100,6,FALSE)) -> AA32 | I108: =IF(ISERROR(VLOOKUP(C108,BDDG!$A$2:$G$100,7,FALSE)),"",VLOOKUP(C108,BDDG!$A$2:$G$100,7,FALSE)) -> 2 | J108: =IF(ISERROR(VLOOKUP(C108,BDDG!$A$2:$H$100,8,FALSE)),"",VLOOKUP(C108,BDDG!$A$2:$H$100,8,FALSE)) -> BB32 | K108: 10 | L108: 15 | M108: 57.6 | N108: =IF(ISERROR(VLOOKUP(C108,BDDG!$A$2:$I$100,9,FALSE)),"",VLOOKUP(C108,BDDG!$A$2:$I$100,9,FALSE)) -> CC32 | R108: =IF(ISERROR(VLOOKUP(C108,BDDG!$A$2:$J$100,10,FALSE)),"",VLOOKUP(C108,BDDG!$A$2:$J$100,10,FALSE)) -> DD32 | V108: 57.6 | W108: 5 | X108: 2002 | Y108: =IFERROR((INDEX($V$2:V108,MATCH(H108&MAX(IF($H$1:H107=H108,$A$1:A107)),$H$2:H108&$A$2:A108,0))-V108)*-1,"") -> -158.4
A109: 2002-05-23 | C109: 861 | D109: =IF(ISNA(VLOOKUP(C109,BDDG!$A$2:$F$100,2,FALSE)),"",VLOOKUP(C109,BDDG!$A$2:$F$100,2,FALSE)) -> 0 | E109: =IF(ISNA(VLOOKUP(C109,BDDG!$A$3:$J$102,3,FALSE)),"",VLOOKUP(C109,BDDG!$A$3:$J$102,3,FALSE)) -> A | F109: =IF(ISNA(VLOOKUP(C109,BDDG!$A$3:$J$102,4,FALSE)),"",VLOOKUP(C109,BDDG!$A$3:$J$102,4,FALSE)) -> 106 | G109: =IF(ISNA(VLOOKUP(C109,BDDG!$A$2:$F$100,5,FALSE)),"",VLOOKUP(C109,BDDG!$A$2:$F$100,5,FALSE)) -> A11 | H109: =IF(ISNA(VLOOKUP(C109,BDDG!$A$2:$F$100,6,FALSE)),"",VLOOKUP(C109,BDDG!$A$2:$F$100,6,FALSE)) -> AA33 | I109: =IF(ISERROR(VLOOKUP(C109,BDDG!$A$2:$G$100,7,FALSE)),"",VLOOKUP(C109,BDDG!$A$2:$G$100,7,FALSE)) -> 2 | J109: =IF(ISERROR(VLOOKUP(C109,BDDG!$A$2:$H$100,8,FALSE)),"",VLOOKUP(C109,BDDG!$A$2:$H$100,8,FALSE)) -> BB33 | N109: =IF(ISERROR(VLOOKUP(C109,BDDG!$A$2:$I$100,9,FALSE)),"",VLOOKUP(C109,BDDG!$A$2:$I$100,9,FALSE)) -> CC33 | O109: 10 | P109: 5 | Q109: 172.8 | R109: =IF(ISERROR(VLOOKUP(C109,BDDG!$A$2:$J$100,10,FALSE)),"",VLOOKUP(C109,BDDG!$A$2:$J$100,10,FALSE)) -> DD33 | V109: =IF(ISERROR(SUM(M109,Q109,U109)),"",SUM((M109,Q109,U109))) -> 172.8 | W109: 5 | X109: 2002 | Y109: =IFERROR((INDEX($V$2:V109,MATCH(H109&MAX(IF($H$1:H108=H109,$A$1:A108)),$H$2:H109&$A$2:A109,0))-V109)*-1,"") -> 47.52
A110: 2002-05-23 | C110: 862 | D110: =IF(ISNA(VLOOKUP(C110,BDDG!$A$2:$F$100,2,FALSE)),"",VLOOKUP(C110,BDDG!$A$2:$F$100,2,FALSE)) -> 0 | E110: =IF(ISNA(VLOOKUP(C110,BDDG!$A$3:$J$102,3,FALSE)),"",VLOOKUP(C110,BDDG!$A$3:$J$102,3,FALSE)) -> A | F110: =IF(ISNA(VLOOKUP(C110,BDDG!$A$3:$J$102,4,FALSE)),"",VLOOKUP(C110,BDDG!$A$3:$J$102,4,FALSE)) -> 106 | G110: =IF(ISNA(VLOOKUP(C110,BDDG!$A$2:$F$100,5,FALSE)),"",VLOOKUP(C110,BDDG!$A$2:$F$100,5,FALSE)) -> A12 | H110: =IF(ISNA(VLOOKUP(C110,BDDG!$A$2:$F$100,6,FALSE)),"",VLOOKUP(C110,BDDG!$A$2:$F$100,6,FALSE)) -> AA34 | I110: =IF(ISERROR(VLOOKUP(C110,BDDG!$A$2:$G$100,7,FALSE)),"",VLOOKUP(C110,BDDG!$A$2:$G$100,7,FALSE)) -> 1 | J110: =IF(ISERROR(VLOOKUP(C110,BDDG!$A$2:$H$100,8,FALSE)),"",VLOOKUP(C110,BDDG!$A$2:$H$100,8,FALSE)) -> BB34 | K110: 10 | L110: 14 | M110: =IF(ISERROR(K110/L110*86.4),"",K110/L110*86.4) -> 61.71428571 | N110: =IF(ISERROR(VLOOKUP(C110,BDDG!$A$2:$I$100,9,FALSE)),"",VLOOKUP(C110,BDDG!$A$2:$I$100,9,FALSE)) -> CC34 | R110: =IF(ISERROR(VLOOKUP(C110,BDDG!$A$2:$J$100,10,FALSE)),"",VLOOKUP(C110,BDDG!$A$2:$J$100,10,FALSE)) -> DD34 | V110: =IF(ISERROR(SUM(M110,Q110,U110)),"",SUM(M110,Q110,U110)) -> 61.71428571 | W110: 5 | X110: 2002 | Y110: =IFERROR((INDEX($V$2:V110,MATCH(H110&MAX(IF($H$1:H109=H110,$A$1:A109)),$H$2:H110&$A$2:A110,0))-V110)*-1,"") -> 7.714285714
A111: 2003-02-04 | C111: 850 | D111: =IF(ISNA(VLOOKUP(C111,BDDG!$A$2:$F$100,2,FALSE)),"",VLOOKUP(C111,BDDG!$A$2:$F$100,2,FALSE)) -> 0 | E111: =IF(ISNA(VLOOKUP(C111,BDDG!$A$3:$J$102,3,FALSE)),"",VLOOKUP(C111,BDDG!$A$3:$J$102,3,FALSE)) -> B | F111: =IF(ISNA(VLOOKUP(C111,BDDG!$A$3:$J$102,4,FALSE)),"",VLOOKUP(C111,BDDG!$A$3:$J$102,4,FALSE)) -> 106 | G111: =IF(ISNA(VLOOKUP(C111,BDDG!$A$2:$F$100,5,FALSE)),"",VLOOKUP(C111,BDDG!$A$2:$F$100,5,FALSE)) -> A8 | H111: =IF(ISNA(VLOOKUP(C111,BDDG!$A$2:$F$100,6,FALSE)),"",VLOOKUP(C111,BDDG!$A$2:$F$100,6,FALSE)) -> AA20 | I111: =IF(ISERROR(VLOOKUP(C111,BDDG!$A$2:$G$100,7,FALSE)),"",VLOOKUP(C111,BDDG!$A$2:$G$100,7,FALSE)) -> 1 | J111: =IF(ISERROR(VLOOKUP(C111,BDDG!$A$2:$H$100,8,FALSE)),"",VLOOKUP(C111,BDDG!$A$2:$H$100,8,FALSE)) -> BB20 | K111: 11 | L111: 21 | M111: 45.25714286 | N111: =IF(ISERROR(VLOOKUP(C111,BDDG!$A$2:$I$100,9,FALSE)),"",VLOOKUP(C111,BDDG!$A$2:$I$100,9,FALSE)) -> CC20 | Q111: =IF(ISERROR(O111/P111*86.4),"",O111/P111*86.4) ->  | R111: =IF(ISERROR(VLOOKUP(C111,BDDG!$A$2:$J$100,10,FALSE)),"",VLOOKUP(C111,BDDG!$A$2:$J$100,10,FALSE)) -> DD20 | V111: 45.25714286 | W111: 2 | X111: 2003 | Y111: =IFERROR((INDEX($V$2:V111,MATCH(H111&MAX(IF($H$1:H110=H111,$A$1:A110)),$H$2:H111&$A$2:A111,0))-V111)*-1,"") -> 2.057142857
A112: 2003-02-12 | C112: 848 | D112: =IF(ISNA(VLOOKUP(C112,BDDG!$A$2:$F$100,2,FALSE)),"",VLOOKUP(C112,BDDG!$A$2:$F$100,2,FALSE)) -> 0 | E112: =IF(ISNA(VLOOKUP(C112,BDDG!$A$3:$J$102,3,FALSE)),"",VLOOKUP(C112,BDDG!$A$3:$J$102,3,FALSE)) -> B | F112: =IF(ISNA(VLOOKUP(C112,BDDG!$A$3:$J$102,4,FALSE)),"",VLOOKUP(C112,BDDG!$A$3:$J$102,4,FALSE)) -> 106 | G112: =IF(ISNA(VLOOKUP(C112,BDDG!$A$2:$F$100,5,FALSE)),"",VLOOKUP(C112,BDDG!$A$2:$F$100,5,FALSE)) -> A7 | H112: =IF(ISNA(VLOOKUP(C112,BDDG!$A$2:$F$100,6,FALSE)),"",VLOOKUP(C112,BDDG!$A$2:$F$100,6,FALSE)) -> AA19 | I112: =IF(ISERROR(VLOOKUP(C112,BDDG!$A$2:$G$100,7,FALSE)),"",VLOOKUP(C112,BDDG!$A$2:$G$100,7,FALSE)) -> 2 | J112: =IF(ISERROR(VLOOKUP(C112,BDDG!$A$2:$H$100,8,FALSE)),"",VLOOKUP(C112,BDDG!$A$2:$H$100,8,FALSE)) -> BB19 | K112: 40 | L112: 60 | M112: 57.6 | N112: =IF(ISERROR(VLOOKUP(C112,BDDG!$A$2:$I$100,9,FALSE)),"",VLOOKUP(C112,BDDG!$A$2:$I$100,9,FALSE)) -> CC19 | R112: =IF(ISERROR(VLOOKUP(C112,BDDG!$A$2:$J$100,10,FALSE)),"",VLOOKUP(C112,BDDG!$A$2:$J$100,10,FALSE)) -> DD19 | V112: 57.6 | W112: 2 | X112: 2003 | Y112: =IFERROR((INDEX($V$2:V112,MATCH(H112&MAX(IF($H$1:H111=H112,$A$1:A111)),$H$2:H112&$A$2:A112,0))-V112)*-1,"") -> 45.25714286
A113: 2003-02-12 | C113: 847 | D113: =IF(ISNA(VLOOKUP(C113,BDDG!$A$2:$F$100,2,FALSE)),"",VLOOKUP(C113,BDDG!$A$2:$F$100,2,FALSE)) -> 0 | E113: =IF(ISNA(VLOOKUP(C113,BDDG!$A$3:$J$102,3,FALSE)),"",VLOOKUP(C113,BDDG!$A$3:$J$102,3,FALSE)) -> B | F113: =IF(ISNA(VLOOKUP(C113,BDDG!$A$3:$J$102,4,FALSE)),"",VLOOKUP(C113,BDDG!$A$3:$J$102,4,FALSE)) -> 106 | G113: =IF(ISNA(VLOOKUP(C113,BDDG!$A$2:$F$100,5,FALSE)),"",VLOOKUP(C113,BDDG!$A$2:$F$100,5,FALSE)) -> A7 | H113: =IF(ISNA(VLOOKUP(C113,BDDG!$A$2:$F$100,6,FALSE)),"",VLOOKUP(C113,BDDG!$A$2:$F$100,6,FALSE)) -> AA18 | I113: =IF(ISERROR(VLOOKUP(C113,BDDG!$A$2:$G$100,7,FALSE)),"",VLOOKUP(C113,BDDG!$A$2:$G$100,7,FALSE)) -> 2 | J113: =IF(ISERROR(VLOOKUP(C113,BDDG!$A$2:$H$100,8,FALSE)),"",VLOOKUP(C113,BDDG!$A$2:$H$100,8,FALSE)) -> BB18 | K113: 40 | L113: 60 | M113: 57.6 | N113: =IF(ISERROR(VLOOKUP(C113,BDDG!$A$2:$I$100,9,FALSE)),"",VLOOKUP(C113,BDDG!$A$2:$I$100,9,FALSE)) -> CC18 | O113: 10 | P113: 60 | Q113: 14.4 | R113: =IF(ISERROR(VLOOKUP(C113,BDDG!$A$2:$J$100,10,FALSE)),"",VLOOKUP(C113,BDDG!$A$2:$J$100,10,FALSE)) -> DD18 | V113: 72 | W113: 2 | X113: 2003 | Y113: =IFERROR((INDEX($V$2:V113,MATCH(H113&MAX(IF($H$1:H112=H113,$A$1:A112)),$H$2:H113&$A$2:A113,0))-V113)*-1,"") -> 55.54285714
A114: 2003-03-01 | C114: 860 | D114: =IF(ISNA(VLOOKUP(C114,BDDG!$A$2:$F$100,2,FALSE)),"",VLOOKUP(C114,BDDG!$A$2:$F$100,2,FALSE)) -> 0 | E114: =IF(ISNA(VLOOKUP(C114,BDDG!$A$3:$J$102,3,FALSE)),"",VLOOKUP(C114,BDDG!$A$3:$J$102,3,FALSE)) -> A | F114: =IF(ISNA(VLOOKUP(C114,BDDG!$A$3:$J$102,4,FALSE)),"",VLOOKUP(C114,BDDG!$A$3:$J$102,4,FALSE)) -> 106 | G114: =IF(ISNA(VLOOKUP(C114,BDDG!$A$2:$F$100,5,FALSE)),"",VLOOKUP(C114,BDDG!$A$2:$F$100,5,FALSE)) -> A11 | H114: =IF(ISNA(VLOOKUP(C114,BDDG!$A$2:$F$100,6,FALSE)),"",VLOOKUP(C114,BDDG!$A$2:$F$100,6,FALSE)) -> AA32 | I114: =IF(ISERROR(VLOOKUP(C114,BDDG!$A$2:$G$100,7,FALSE)),"",VLOOKUP(C114,BDDG!$A$2:$G$100,7,FALSE)) -> 2 | J114: =IF(ISERROR(VLOOKUP(C114,BDDG!$A$2:$H$100,8,FALSE)),"",VLOOKUP(C114,BDDG!$A$2:$H$100,8,FALSE)) -> BB32 | K114: 34 | L114: 60 | M114: 48.96 | N114: =IF(ISERROR(VLOOKUP(C114,BDDG!$A$2:$I$100,9,FALSE)),"",VLOOKUP(C114,BDDG!$A$2:$I$100,9,FALSE)) -> CC32 | R114: =IF(ISERROR(VLOOKUP(C114,BDDG!$A$2:$J$100,10,FALSE)),"",VLOOKUP(C114,BDDG!$A$2:$J$100,10,FALSE)) -> DD32 | V114: 48.96 | W114: 3 | X114: 2003 | Y114: =IFERROR((INDEX($V$2:V114,MATCH(H114&MAX(IF($H$1:H113=H114,$A$1:A113)),$H$2:H114&$A$2:A114,0))-V114)*-1,"") -> -8.64
A115: 2003-03-03 | C115: 815 | D115: =IF(ISNA(VLOOKUP(C115,BDDG!$A$2:$F$100,2,FALSE)),"",VLOOKUP(C115,BDDG!$A$2:$F$100,2,FALSE)) -> 0 | E115: =IF(ISNA(VLOOKUP(C115,BDDG!$A$3:$J$102,3,FALSE)),"",VLOOKUP(C115,BDDG!$A$3:$J$102,3,FALSE)) -> A | F115: =IF(ISNA(VLOOKUP(C115,BDDG!$A$3:$J$102,4,FALSE)),"",VLOOKUP(C115,BDDG!$A$3:$J$102,4,FALSE)) -> 106 | G115: =IF(ISNA(VLOOKUP(C115,BDDG!$A$2:$F$100,5,FALSE)),"",VLOOKUP(C115,BDDG!$A$2:$F$100,5,FALSE)) -> A10 | H115: =IF(ISNA(VLOOKUP(C115,BDDG!$A$2:$F$100,6,FALSE)),"",VLOOKUP(C115,BDDG!$A$2:$F$100,6,FALSE)) -> AA31 | I115: =IF(ISERROR(VLOOKUP(C115,BDDG!$A$2:$G$100,7,FALSE)),"",VLOOKUP(C115,BDDG!$A$2:$G$100,7,FALSE)) -> 1 | J115: =IF(ISERROR(VLOOKUP(C115,BDDG!$A$2:$H$100,8,FALSE)),"",VLOOKUP(C115,BDDG!$A$2:$H$100,8,FALSE)) -> BB31 | K115: 15 | L115: 205 | M115: 6.32195122 | N115: =IF(ISERROR(VLOOKUP(C115,BDDG!$A$2:$I$100,9,FALSE)),"",VLOOKUP(C115,BDDG!$A$2:$I$100,9,FALSE)) -> CC31 | R115: =IF(ISERROR(VLOOKUP(C115,BDDG!$A$2:$J$100,10,FALSE)),"",VLOOKUP(C115,BDDG!$A$2:$J$100,10,FALSE)) -> DD31 | V115: 6.32195122 | W115: 3 | X115: 2003 | Y115: =IFERROR((INDEX($V$2:V115,MATCH(H115&MAX(IF($H$1:H114=H115,$A$1:A114)),$H$2:H115&$A$2:A115,0))-V115)*-1,"") -> -5.21804878
A116: 2003-05-01 | C116: 832 | D116: =IF(ISNA(VLOOKUP(C116,BDDG!$A$2:$F$100,2,FALSE)),"",VLOOKUP(C116,BDDG!$A$2:$F$100,2,FALSE)) -> 0 | E116: =IF(ISNA(VLOOKUP(C116,BDDG!$A$3:$J$102,3,FALSE)),"",VLOOKUP(C116,BDDG!$A$3:$J$102,3,FALSE)) -> A | F116: =IF(ISNA(VLOOKUP(C116,BDDG!$A$3:$J$102,4,FALSE)),"",VLOOKUP(C116,BDDG!$A$3:$J$102,4,FALSE)) -> 106 | G116: =IF(ISNA(VLOOKUP(C116,BDDG!$A$2:$F$100,5,FALSE)),"",VLOOKUP(C116,BDDG!$A$2:$F$100,5,FALSE)) -> A2 | H116: =IF(ISNA(VLOOKUP(C116,BDDG!$A$2:$F$100,6,FALSE)),"",VLOOKUP(C116,BDDG!$A$2:$F$100,6,FALSE)) -> AA2 | I116: =IF(ISERROR(VLOOKUP(C116,BDDG!$A$2:$G$100,7,FALSE)),"",VLOOKUP(C116,BDDG!$A$2:$G$100,7,FALSE)) -> 1 | J116: =IF(ISERROR(VLOOKUP(C116,BDDG!$A$2:$H$100,8,FALSE)),"",VLOOKUP(C116,BDDG!$A$2:$H$100,8,FALSE)) -> BB2 | K116: 28 | L116: 60 | M116: 40.32 | N116: =IF(ISERROR(VLOOKUP(C116,BDDG!$A$2:$I$100,9,FALSE)),"",VLOOKUP(C116,BDDG!$A$2:$I$100,9,FALSE)) -> CC2 | R116: =IF(ISERROR(VLOOKUP(C116,BDDG!$A$2:$J$100,10,FALSE)),"",VLOOKUP(C116,BDDG!$A$2:$J$100,10,FALSE)) -> DD2 | V116: 40.32 | W116: 5 | X116: 2003 | Y116: =IFERROR((INDEX($V$2:V116,MATCH(H116&MAX(IF($H$1:H115=H116,$A$1:A115)),$H$2:H116&$A$2:A116,0))-V116)*-1,"") -> 5.76
A117: 2003-05-01 | C117: 833 | D117: =IF(ISNA(VLOOKUP(C117,BDDG!$A$2:$F$100,2,FALSE)),"",VLOOKUP(C117,BDDG!$A$2:$F$100,2,FALSE)) -> 0 | E117: =IF(ISNA(VLOOKUP(C117,BDDG!$A$3:$J$102,3,FALSE)),"",VLOOKUP(C117,BDDG!$A$3:$J$102,3,FALSE)) -> A | F117: =IF(ISNA(VLOOKUP(C117,BDDG!$A$3:$J$102,4,FALSE)),"",VLOOKUP(C117,BDDG!$A$3:$J$102,4,FALSE)) -> 106 | G117: =IF(ISNA(VLOOKUP(C117,BDDG!$A$2:$F$100,5,FALSE)),"",VLOOKUP(C117,BDDG!$A$2:$F$100,5,FALSE)) -> A2 | H117: =IF(ISNA(VLOOKUP(C117,BDDG!$A$2:$F$100,6,FALSE)),"",VLOOKUP(C117,BDDG!$A$2:$F$100,6,FALSE)) -> AA3 | I117: =IF(ISERROR(VLOOKUP(C117,BDDG!$A$2:$G$100,7,FALSE)),"",VLOOKUP(C117,BDDG!$A$2:$G$100,7,FALSE)) -> 1 | J117: =IF(ISERROR(VLOOKUP(C117,BDDG!$A$2:$H$100,8,FALSE)),"",VLOOKUP(C117,BDDG!$A$2:$H$100,8,FALSE)) -> BB3 | K117: 17 | L117: 60 | M117: 24.48 | N117: =IF(ISERROR(VLOOKUP(C117,BDDG!$A$2:$I$100,9,FALSE)),"",VLOOKUP(C117,BDDG!$A$2:$I$100,9,FALSE)) -> CC3 | R117: =IF(ISERROR(VLOOKUP(C117,BDDG!$A$2:$J$100,10,FALSE)),"",VLOOKUP(C117,BDDG!$A$2:$J$100,10,FALSE)) -> DD3 | V117: 24.48 | W117: 5 | X117: 2003 | Y117: =IFERROR((INDEX($V$2:V117,MATCH(H117&MAX(IF($H$1:H116=H117,$A$1:A116)),$H$2:H117&$A$2:A117,0))-V117)*-1,"") -> 12.96
A118: 2003-05-01 | C118: 834 | D118: =IF(ISNA(VLOOKUP(C118,BDDG!$A$2:$F$100,2,FALSE)),"",VLOOKUP(C118,BDDG!$A$2:$F$100,2,FALSE)) -> 0 | E118: =IF(ISNA(VLOOKUP(C118,BDDG!$A$3:$J$102,3,FALSE)),"",VLOOKUP(C118,BDDG!$A$3:$J$102,3,FALSE)) -> A | F118: =IF(ISNA(VLOOKUP(C118,BDDG!$A$3:$J$102,4,FALSE)),"",VLOOKUP(C118,BDDG!$A$3:$J$102,4,FALSE)) -> 106 | G118: =IF(ISNA(VLOOKUP(C118,BDDG!$A$2:$F$100,5,FALSE)),"",VLOOKUP(C118,BDDG!$A$2:$F$100,5,FALSE)) -> A2 | H118: =IF(ISNA(VLOOKUP(C118,BDDG!$A$2:$F$100,6,FALSE)),"",VLOOKUP(C118,BDDG!$A$2:$F$100,6,FALSE)) -> AA4 | I118: =IF(ISERROR(VLOOKUP(C118,BDDG!$A$2:$G$100,7,FALSE)),"",VLOOKUP(C118,BDDG!$A$2:$G$100,7,FALSE)) -> 1 | J118: =IF(ISERROR(VLOOKUP(C118,BDDG!$A$2:$H$100,8,FALSE)),"",VLOOKUP(C118,BDDG!$A$2:$H$100,8,FALSE)) -> BB4 | K118: 11 | L118: 60 | M118: 15.84 | N118: =IF(ISERROR(VLOOKUP(C118,BDDG!$A$2:$I$100,9,FALSE)),"",VLOOKUP(C118,BDDG!$A$2:$I$100,9,FALSE)) -> CC4 | R118: =IF(ISERROR(VLOOKUP(C118,BDDG!$A$2:$J$100,10,FALSE)),"",VLOOKUP(C118,BDDG!$A$2:$J$100,10,FALSE)) -> DD4 | V118: 15.84 | W118: 5 | X118: 2003 | Y118: =IFERROR((INDEX($V$2:V118,MATCH(H118&MAX(IF($H$1:H117=H118,$A$1:A117)),$H$2:H118&$A$2:A118,0))-V118)*-1,"") -> 1.44
A119: 2003-05-01 | C119: 861 | D119: =IF(ISNA(VLOOKUP(C119,BDDG!$A$2:$F$100,2,FALSE)),"",VLOOKUP(C119,BDDG!$A$2:$F$100,2,FALSE)) -> 0 | E119: =IF(ISNA(VLOOKUP(C119,BDDG!$A$3:$J$102,3,FALSE)),"",VLOOKUP(C119,BDDG!$A$3:$J$102,3,FALSE)) -> A | F119: =IF(ISNA(VLOOKUP(C119,BDDG!$A$3:$J$102,4,FALSE)),"",VLOOKUP(C119,BDDG!$A$3:$J$102,4,FALSE)) -> 106 | G119: =IF(ISNA(VLOOKUP(C119,BDDG!$A$2:$F$100,5,FALSE)),"",VLOOKUP(C119,BDDG!$A$2:$F$100,5,FALSE)) -> A11 | H119: =IF(ISNA(VLOOKUP(C119,BDDG!$A$2:$F$100,6,FALSE)),"",VLOOKUP(C119,BDDG!$A$2:$F$100,6,FALSE)) -> AA33 | I119: =IF(ISERROR(VLOOKUP(C119,BDDG!$A$2:$G$100,7,FALSE)),"",VLOOKUP(C119,BDDG!$A$2:$G$100,7,FALSE)) -> 2 | J119: =IF(ISERROR(VLOOKUP(C119,BDDG!$A$2:$H$100,8,FALSE)),"",VLOOKUP(C119,BDDG!$A$2:$H$100,8,FALSE)) -> BB33 | N119: =IF(ISERROR(VLOOKUP(C119,BDDG!$A$2:$I$100,9,FALSE)),"",VLOOKUP(C119,BDDG!$A$2:$I$100,9,FALSE)) -> CC33 | O119: 10 | P119: 6 | Q119: 144 | R119: =IF(ISERROR(VLOOKUP(C119,BDDG!$A$2:$J$100,10,FALSE)),"",VLOOKUP(C119,BDDG!$A$2:$J$100,10,FALSE)) -> DD33 | V119: =IF(ISERROR(SUM(M119,Q119,U119)),"",SUM((M119,Q119,U119))) -> 144 | W119: 5 | X119: 2003 | Y119: =IFERROR((INDEX($V$2:V119,MATCH(H119&MAX(IF($H$1:H118=H119,$A$1:A118)),$H$2:H119&$A$2:A119,0))-V119)*-1,"") -> -28.8
A120: 2003-05-01 | C120: 862 | D120: =IF(ISNA(VLOOKUP(C120,BDDG!$A$2:$F$100,2,FALSE)),"",VLOOKUP(C120,BDDG!$A$2:$F$100,2,FALSE)) -> 0 | E120: =IF(ISNA(VLOOKUP(C120,BDDG!$A$3:$J$102,3,FALSE)),"",VLOOKUP(C120,BDDG!$A$3:$J$102,3,FALSE)) -> A | F120: =IF(ISNA(VLOOKUP(C120,BDDG!$A$3:$J$102,4,FALSE)),"",VLOOKUP(C120,BDDG!$A$3:$J$102,4,FALSE)) -> 106 | G120: =IF(ISNA(VLOOKUP(C120,BDDG!$A$2:$F$100,5,FALSE)),"",VLOOKUP(C120,BDDG!$A$2:$F$100,5,FALSE)) -> A12 | H120: =IF(ISNA(VLOOKUP(C120,BDDG!$A$2:$F$100,6,FALSE)),"",VLOOKUP(C120,BDDG!$A$2:$F$100,6,FALSE)) -> AA34 | I120: =IF(ISERROR(VLOOKUP(C120,BDDG!$A$2:$G$100,7,FALSE)),"",VLOOKUP(C120,BDDG!$A$2:$G$100,7,FALSE)) -> 1 | J120: =IF(ISERROR(VLOOKUP(C120,BDDG!$A$2:$H$100,8,FALSE)),"",VLOOKUP(C120,BDDG!$A$2:$H$100,8,FALSE)) -> BB34 | K120: 36 | L120: 60 | M120: =IF(ISERROR(K120/L120*86.4),"",K120/L120*86.4) -> 51.84 | N120: =IF(ISERROR(VLOOKUP(C120,BDDG!$A$2:$I$100,9,FALSE)),"",VLOOKUP(C120,BDDG!$A$2:$I$100,9,FALSE)) -> CC34 | R120: =IF(ISERROR(VLOOKUP(C120,BDDG!$A$2:$J$100,10,FALSE)),"",VLOOKUP(C120,BDDG!$A$2:$J$100,10,FALSE)) -> DD34 | V120: =IF(ISERROR(SUM(M120,Q120,U120)),"",SUM(M120,Q120,U120)) -> 51.84 | W120: 5 | X120: 2003 | Y120: =IFERROR((INDEX($V$2:V120,MATCH(H120&MAX(IF($H$1:H119=H120,$A$1:A119)),$H$2:H120&$A$2:A120,0))-V120)*-1,"") -> -9.874285714
A121: 2003-05-02 | C121: 835 | D121: =IF(ISNA(VLOOKUP(C121,BDDG!$A$2:$F$100,2,FALSE)),"",VLOOKUP(C121,BDDG!$A$2:$F$100,2,FALSE)) -> 0 | E121: =IF(ISNA(VLOOKUP(C121,BDDG!$A$3:$J$102,3,FALSE)),"",VLOOKUP(C121,BDDG!$A$3:$J$102,3,FALSE)) -> A | F121: =IF(ISNA(VLOOKUP(C121,BDDG!$A$3:$J$102,4,FALSE)),"",VLOOKUP(C121,BDDG!$A$3:$J$102,4,FALSE)) -> 106 | G121: =IF(ISNA(VLOOKUP(C121,BDDG!$A$2:$F$100,5,FALSE)),"",VLOOKUP(C121,BDDG!$A$2:$F$100,5,FALSE)) -> A3 | H121: =IF(ISNA(VLOOKUP(C121,BDDG!$A$2:$F$100,6,FALSE)),"",VLOOKUP(C121,BDDG!$A$2:$F$100,6,FALSE)) -> AA5 | I121: =IF(ISERROR(VLOOKUP(C121,BDDG!$A$2:$G$100,7,FALSE)),"",VLOOKUP(C121,BDDG!$A$2:$G$100,7,FALSE)) -> 1 | J121: =IF(ISERROR(VLOOKUP(C121,BDDG!$A$2:$H$100,8,FALSE)),"",VLOOKUP(C121,BDDG!$A$2:$H$100,8,FALSE)) -> BB5 | K121: 0.05 | L121: 1 | M121: 4.32 | N121: =IF(ISERROR(VLOOKUP(C121,BDDG!$A$2:$I$100,9,FALSE)),"",VLOOKUP(C121,BDDG!$A$2:$I$100,9,FALSE)) -> CC5 | R121: =IF(ISERROR(VLOOKUP(C121,BDDG!$A$2:$J$100,10,FALSE)),"",VLOOKUP(C121,BDDG!$A$2:$J$100,10,FALSE)) -> DD5 | V121: 4.32 | W121: 5 | X121: 2003 | Y121: =IFERROR((INDEX($V$2:V121,MATCH(H121&MAX(IF($H$1:H120=H121,$A$1:A120)),$H$2:H121&$A$2:A121,0))-V121)*-1,"") -> -2.88
A122: 2003-05-20 | C122: 856 | D122: =IF(ISNA(VLOOKUP(C122,BDDG!$A$2:$F$100,2,FALSE)),"",VLOOKUP(C122,BDDG!$A$2:$F$100,2,FALSE)) -> 0 | E122: =IF(ISNA(VLOOKUP(C122,BDDG!$A$3:$J$102,3,FALSE)),"",VLOOKUP(C122,BDDG!$A$3:$J$102,3,FALSE)) -> A | F122: =IF(ISNA(VLOOKUP(C122,BDDG!$A$3:$J$102,4,FALSE)),"",VLOOKUP(C122,BDDG!$A$3:$J$102,4,FALSE)) -> 106 | G122: =IF(ISNA(VLOOKUP(C122,BDDG!$A$2:$F$100,5,FALSE)),"",VLOOKUP(C122,BDDG!$A$2:$F$100,5,FALSE)) -> A9 | H122: =IF(ISNA(VLOOKUP(C122,BDDG!$A$2:$F$100,6,FALSE)),"",VLOOKUP(C122,BDDG!$A$2:$F$100,6,FALSE)) -> AA27 | I122: =IF(ISERROR(VLOOKUP(C122,BDDG!$A$2:$G$100,7,FALSE)),"",VLOOKUP(C122,BDDG!$A$2:$G$100,7,FALSE)) -> 2 | J122: =IF(ISERROR(VLOOKUP(C122,BDDG!$A$2:$H$100,8,FALSE)),"",VLOOKUP(C122,BDDG!$A$2:$H$100,8,FALSE)) -> BB27 | N122: =IF(ISERROR(VLOOKUP(C122,BDDG!$A$2:$I$100,9,FALSE)),"",VLOOKUP(C122,BDDG!$A$2:$I$100,9,FALSE)) -> CC27 | O122: 10 | P122: 5 | Q122: 172.8 | R122: =IF(ISERROR(VLOOKUP(C122,BDDG!$A$2:$J$100,10,FALSE)),"",VLOOKUP(C122,BDDG!$A$2:$J$100,10,FALSE)) -> DD27 | V122: 172.8 | W122: 5 | X122: 2003 | Y122: =IFERROR((INDEX($V$2:V122,MATCH(H122&MAX(IF($H$1:H121=H122,$A$1:A121)),$H$2:H122&$A$2:A122,0))-V122)*-1,"") -> -19.2
A123: 2003-05-22 | C123: 852 | D123: =IF(ISNA(VLOOKUP(C123,BDDG!$A$2:$F$100,2,FALSE)),"",VLOOKUP(C123,BDDG!$A$2:$F$100,2,FALSE)) -> 0 | E123: =IF(ISNA(VLOOKUP(C123,BDDG!$A$3:$J$102,3,FALSE)),"",VLOOKUP(C123,BDDG!$A$3:$J$102,3,FALSE)) -> A | F123: =IF(ISNA(VLOOKUP(C123,BDDG!$A$3:$J$102,4,FALSE)),"",VLOOKUP(C123,BDDG!$A$3:$J$102,4,FALSE)) -> 106 | G123: =IF(ISNA(VLOOKUP(C123,BDDG!$A$2:$F$100,5,FALSE)),"",VLOOKUP(C123,BDDG!$A$2:$F$100,5,FALSE)) -> A9 | H123: =IF(ISNA(VLOOKUP(C123,BDDG!$A$2:$F$100,6,FALSE)),"",VLOOKUP(C123,BDDG!$A$2:$F$100,6,FALSE)) -> AA22 | I123: =IF(ISERROR(VLOOKUP(C123,BDDG!$A$2:$G$100,7,FALSE)),"",VLOOKUP(C123,BDDG!$A$2:$G$100,7,FALSE)) -> 1 | J123: =IF(ISERROR(VLOOKUP(C123,BDDG!$A$2:$H$100,8,FALSE)),"",VLOOKUP(C123,BDDG!$A$2:$H$100,8,FALSE)) -> BB22 | K123: 7.5 | L123: 60 | M123: 10.8 | N123: =IF(ISERROR(VLOOKUP(C123,BDDG!$A$2:$I$100,9,FALSE)),"",VLOOKUP(C123,BDDG!$A$2:$I$100,9,FALSE)) -> CC22 | R123: =IF(ISERROR(VLOOKUP(C123,BDDG!$A$2:$J$100,10,FALSE)),"",VLOOKUP(C123,BDDG!$A$2:$J$100,10,FALSE)) -> DD22 | V123: 10.8 | W123: 5 | X123: 2003 | Y123: =IFERROR((INDEX($V$2:V123,MATCH(H123&MAX(IF($H$1:H122=H123,$A$1:A122)),$H$2:H123&$A$2:A123,0))-V123)*-1,"") -> 
A124: 2003-06-01 | C124: 822 | D124: =IF(ISNA(VLOOKUP(C124,BDDG!$A$2:$F$100,2,FALSE)),"",VLOOKUP(C124,BDDG!$A$2:$F$100,2,FALSE)) -> 0 | E124: =IF(ISNA(VLOOKUP(C124,BDDG!$A$3:$J$102,3,FALSE)),"",VLOOKUP(C124,BDDG!$A$3:$J$102,3,FALSE)) -> A | F124: =IF(ISNA(VLOOKUP(C124,BDDG!$A$3:$J$102,4,FALSE)),"",VLOOKUP(C124,BDDG!$A$3:$J$102,4,FALSE)) -> 106 | G124: =IF(ISNA(VLOOKUP(C124,BDDG!$A$2:$F$100,5,FALSE)),"",VLOOKUP(C124,BDDG!$A$2:$F$100,5,FALSE)) -> A4 | H124: =IF(ISNA(VLOOKUP(C124,BDDG!$A$2:$F$100,6,FALSE)),"",VLOOKUP(C124,BDDG!$A$2:$F$100,6,FALSE)) -> AA12 | I124: =IF(ISERROR(VLOOKUP(C124,BDDG!$A$2:$G$100,7,FALSE)),"",VLOOKUP(C124,BDDG!$A$2:$G$100,7,FALSE)) -> 1 | J124: =IF(ISERROR(VLOOKUP(C124,BDDG!$A$2:$H$100,8,FALSE)),"",VLOOKUP(C124,BDDG!$A$2:$H$100,8,FALSE)) -> BB12 | K124: 10 | L124: 12 | M124: 72 | N124: =IF(ISERROR(VLOOKUP(C124,BDDG!$A$2:$I$100,9,FALSE)),"",VLOOKUP(C124,BDDG!$A$2:$I$100,9,FALSE)) -> CC12 | R124: =IF(ISERROR(VLOOKUP(C124,BDDG!$A$2:$J$100,10,FALSE)),"",VLOOKUP(C124,BDDG!$A$2:$J$100,10,FALSE)) -> DD12 | V124: 72 | W124: 6 | X124: 2003 | Y124: =IFERROR((INDEX($V$2:V124,MATCH(H124&MAX(IF($H$1:H123=H124,$A$1:A123)),$H$2:H124&$A$2:A124,0))-V124)*-1,"") -> 0.288
A125: 2003-06-02 | C125: 833 | D125: =IF(ISNA(VLOOKUP(C125,BDDG!$A$2:$F$100,2,FALSE)),"",VLOOKUP(C125,BDDG!$A$2:$F$100,2,FALSE)) -> 0 | E125: =IF(ISNA(VLOOKUP(C125,BDDG!$A$3:$J$102,3,FALSE)),"",VLOOKUP(C125,BDDG!$A$3:$J$102,3,FALSE)) -> A | F125: =IF(ISNA(VLOOKUP(C125,BDDG!$A$3:$J$102,4,FALSE)),"",VLOOKUP(C125,BDDG!$A$3:$J$102,4,FALSE)) -> 106 | G125: =IF(ISNA(VLOOKUP(C125,BDDG!$A$2:$F$100,5,FALSE)),"",VLOOKUP(C125,BDDG!$A$2:$F$100,5,FALSE)) -> A2 | H125: =IF(ISNA(VLOOKUP(C125,BDDG!$A$2:$F$100,6,FALSE)),"",VLOOKUP(C125,BDDG!$A$2:$F$100,6,FALSE)) -> AA3 | I125: =IF(ISERROR(VLOOKUP(C125,BDDG!$A$2:$G$100,7,FALSE)),"",VLOOKUP(C125,BDDG!$A$2:$G$100,7,FALSE)) -> 1 | J125: =IF(ISERROR(VLOOKUP(C125,BDDG!$A$2:$H$100,8,FALSE)),"",VLOOKUP(C125,BDDG!$A$2:$H$100,8,FALSE)) -> BB3 | K125: 10 | L125: 9 | M125: 96 | N125: =IF(ISERROR(VLOOKUP(C125,BDDG!$A$2:$I$100,9,FALSE)),"",VLOOKUP(C125,BDDG!$A$2:$I$100,9,FALSE)) -> CC3 | R125: =IF(ISERROR(VLOOKUP(C125,BDDG!$A$2:$J$100,10,FALSE)),"",VLOOKUP(C125,BDDG!$A$2:$J$100,10,FALSE)) -> DD3 | V125: 96 | W125: 6 | X125: 2003 | Y125: =IFERROR((INDEX($V$2:V125,MATCH(H125&MAX(IF($H$1:H124=H125,$A$1:A124)),$H$2:H125&$A$2:A125,0))-V125)*-1,"") -> 71.52
A126: 2003-06-27 | C126: 838 | D126: =IF(ISNA(VLOOKUP(C126,BDDG!$A$2:$F$100,2,FALSE)),"",VLOOKUP(C126,BDDG!$A$2:$F$100,2,FALSE)) -> 0 | E126: =IF(ISNA(VLOOKUP(C126,BDDG!$A$3:$J$102,3,FALSE)),"",VLOOKUP(C126,BDDG!$A$3:$J$102,3,FALSE)) -> A | F126: =IF(ISNA(VLOOKUP(C126,BDDG!$A$3:$J$102,4,FALSE)),"",VLOOKUP(C126,BDDG!$A$3:$J$102,4,FALSE)) -> 106 | G126: =IF(ISNA(VLOOKUP(C126,BDDG!$A$2:$F$100,5,FALSE)),"",VLOOKUP(C126,BDDG!$A$2:$F$100,5,FALSE)) -> A3 | H126: =IF(ISNA(VLOOKUP(C126,BDDG!$A$2:$F$100,6,FALSE)),"",VLOOKUP(C126,BDDG!$A$2:$F$100,6,FALSE)) -> AA8 | I126: =IF(ISERROR(VLOOKUP(C126,BDDG!$A$2:$G$100,7,FALSE)),"",VLOOKUP(C126,BDDG!$A$2:$G$100,7,FALSE)) -> 1 | J126: =IF(ISERROR(VLOOKUP(C126,BDDG!$A$2:$H$100,8,FALSE)),"",VLOOKUP(C126,BDDG!$A$2:$H$100,8,FALSE)) -> BB8 | K126: 10 | L126: 12 | M126: 72 | N126: =IF(ISERROR(VLOOKUP(C126,BDDG!$A$2:$I$100,9,FALSE)),"",VLOOKUP(C126,BDDG!$A$2:$I$100,9,FALSE)) -> CC8 | R126: =IF(ISERROR(VLOOKUP(C126,BDDG!$A$2:$J$100,10,FALSE)),"",VLOOKUP(C126,BDDG!$A$2:$J$100,10,FALSE)) -> DD8 | V126: 72 | W126: 6 | X126: 2003 | Y126: =IFERROR((INDEX($V$2:V126,MATCH(H126&MAX(IF($H$1:H125=H126,$A$1:A125)),$H$2:H126&$A$2:A126,0))-V126)*-1,"") -> 64.08
A127: 2003-06-27 | C127: 837 | D127: =IF(ISNA(VLOOKUP(C127,BDDG!$A$2:$F$100,2,FALSE)),"",VLOOKUP(C127,BDDG!$A$2:$F$100,2,FALSE)) -> 0 | E127: =IF(ISNA(VLOOKUP(C127,BDDG!$A$3:$J$102,3,FALSE)),"",VLOOKUP(C127,BDDG!$A$3:$J$102,3,FALSE)) -> A | F127: =IF(ISNA(VLOOKUP(C127,BDDG!$A$3:$J$102,4,FALSE)),"",VLOOKUP(C127,BDDG!$A$3:$J$102,4,FALSE)) -> 106 | G127: =IF(ISNA(VLOOKUP(C127,BDDG!$A$2:$F$100,5,FALSE)),"",VLOOKUP(C127,BDDG!$A$2:$F$100,5,FALSE)) -> A3 | H127: =IF(ISNA(VLOOKUP(C127,BDDG!$A$2:$F$100,6,FALSE)),"",VLOOKUP(C127,BDDG!$A$2:$F$100,6,FALSE)) -> AA7 | I127: =IF(ISERROR(VLOOKUP(C127,BDDG!$A$2:$G$100,7,FALSE)),"",VLOOKUP(C127,BDDG!$A$2:$G$100,7,FALSE)) -> 1 | J127: =IF(ISERROR(VLOOKUP(C127,BDDG!$A$2:$H$100,8,FALSE)),"",VLOOKUP(C127,BDDG!$A$2:$H$100,8,FALSE)) -> BB7 | K127: 3 | L127: 15 | M127: 17.28 | N127: =IF(ISERROR(VLOOKUP(C127,BDDG!$A$2:$I$100,9,FALSE)),"",VLOOKUP(C127,BDDG!$A$2:$I$100,9,FALSE)) -> CC7 | R127: =IF(ISERROR(VLOOKUP(C127,BDDG!$A$2:$J$100,10,FALSE)),"",VLOOKUP(C127,BDDG!$A$2:$J$100,10,FALSE)) -> DD7 | V127: 17.28 | W127: 6 | X127: 2003 | Y127: =IFERROR((INDEX($V$2:V127,MATCH(H127&MAX(IF($H$1:H126=H127,$A$1:A126)),$H$2:H127&$A$2:A127,0))-V127)*-1,"") -> -11.52
A128: 2003-06-27 | C128: 836 | D128: =IF(ISNA(VLOOKUP(C128,BDDG!$A$2:$F$100,2,FALSE)),"",VLOOKUP(C128,BDDG!$A$2:$F$100,2,FALSE)) -> 0 | E128: =IF(ISNA(VLOOKUP(C128,BDDG!$A$3:$J$102,3,FALSE)),"",VLOOKUP(C128,BDDG!$A$3:$J$102,3,FALSE)) -> A | F128: =IF(ISNA(VLOOKUP(C128,BDDG!$A$3:$J$102,4,FALSE)),"",VLOOKUP(C128,BDDG!$A$3:$J$102,4,FALSE)) -> 106 | G128: =IF(ISNA(VLOOKUP(C128,BDDG!$A$2:$F$100,5,FALSE)),"",VLOOKUP(C128,BDDG!$A$2:$F$100,5,FALSE)) -> A3 | H128: =IF(ISNA(VLOOKUP(C128,BDDG!$A$2:$F$100,6,FALSE)),"",VLOOKUP(C128,BDDG!$A$2:$F$100,6,FALSE)) -> AA6 | I128: =IF(ISERROR(VLOOKUP(C128,BDDG!$A$2:$G$100,7,FALSE)),"",VLOOKUP(C128,BDDG!$A$2:$G$100,7,FALSE)) -> 1 | J128: =IF(ISERROR(VLOOKUP(C128,BDDG!$A$2:$H$100,8,FALSE)),"",VLOOKUP(C128,BDDG!$A$2:$H$100,8,FALSE)) -> BB6 | K128: 4 | L128: 5 | M128: 69.12 | N128: =IF(ISERROR(VLOOKUP(C128,BDDG!$A$2:$I$100,9,FALSE)),"",VLOOKUP(C128,BDDG!$A$2:$I$100,9,FALSE)) -> CC6 | R128: =IF(ISERROR(VLOOKUP(C128,BDDG!$A$2:$J$100,10,FALSE)),"",VLOOKUP(C128,BDDG!$A$2:$J$100,10,FALSE)) -> DD6 | V128: 69.12 | W128: 6 | X128: 2003 | Y128: =IFERROR((INDEX($V$2:V128,MATCH(H128&MAX(IF($H$1:H127=H128,$A$1:A127)),$H$2:H128&$A$2:A128,0))-V128)*-1,"") -> 38.88
A129: 2003-06-27 | C129: 842 | D129: =IF(ISNA(VLOOKUP(C129,BDDG!$A$2:$F$100,2,FALSE)),"",VLOOKUP(C129,BDDG!$A$2:$F$100,2,FALSE)) -> 0 | E129: =IF(ISNA(VLOOKUP(C129,BDDG!$A$3:$J$102,3,FALSE)),"",VLOOKUP(C129,BDDG!$A$3:$J$102,3,FALSE)) -> B | F129: =IF(ISNA(VLOOKUP(C129,BDDG!$A$3:$J$102,4,FALSE)),"",VLOOKUP(C129,BDDG!$A$3:$J$102,4,FALSE)) -> 106 | G129: =IF(ISNA(VLOOKUP(C129,BDDG!$A$2:$F$100,5,FALSE)),"",VLOOKUP(C129,BDDG!$A$2:$F$100,5,FALSE)) -> A5 | H129: =IF(ISNA(VLOOKUP(C129,BDDG!$A$2:$F$100,6,FALSE)),"",VLOOKUP(C129,BDDG!$A$2:$F$100,6,FALSE)) -> AA13 | I129: =IF(ISERROR(VLOOKUP(C129,BDDG!$A$2:$G$100,7,FALSE)),"",VLOOKUP(C129,BDDG!$A$2:$G$100,7,FALSE)) -> 1 | J129: =IF(ISERROR(VLOOKUP(C129,BDDG!$A$2:$H$100,8,FALSE)),"",VLOOKUP(C129,BDDG!$A$2:$H$100,8,FALSE)) -> BB13 | K129: 10 | L129: 65 | M129: 13.29230769 | N129: =IF(ISERROR(VLOOKUP(C129,BDDG!$A$2:$I$100,9,FALSE)),"",VLOOKUP(C129,BDDG!$A$2:$I$100,9,FALSE)) -> CC13 | R129: =IF(ISERROR(VLOOKUP(C129,BDDG!$A$2:$J$100,10,FALSE)),"",VLOOKUP(C129,BDDG!$A$2:$J$100,10,FALSE)) -> DD13 | V129: 13.29230769 | W129: 6 | X129: 2003 | Y129: =IFERROR((INDEX($V$2:V129,MATCH(H129&MAX(IF($H$1:H128=H129,$A$1:A128)),$H$2:H129&$A$2:A129,0))-V129)*-1,"") -> 0
A130: 2003-06-27 | C130: 848 | D130: =IF(ISNA(VLOOKUP(C130,BDDG!$A$2:$F$100,2,FALSE)),"",VLOOKUP(C130,BDDG!$A$2:$F$100,2,FALSE)) -> 0 | E130: =IF(ISNA(VLOOKUP(C130,BDDG!$A$3:$J$102,3,FALSE)),"",VLOOKUP(C130,BDDG!$A$3:$J$102,3,FALSE)) -> B | F130: =IF(ISNA(VLOOKUP(C130,BDDG!$A$3:$J$102,4,FALSE)),"",VLOOKUP(C130,BDDG!$A$3:$J$102,4,FALSE)) -> 106 | G130: =IF(ISNA(VLOOKUP(C130,BDDG!$A$2:$F$100,5,FALSE)),"",VLOOKUP(C130,BDDG!$A$2:$F$100,5,FALSE)) -> A7 | H130: =IF(ISNA(VLOOKUP(C130,BDDG!$A$2:$F$100,6,FALSE)),"",VLOOKUP(C130,BDDG!$A$2:$F$100,6,FALSE)) -> AA19 | I130: =IF(ISERROR(VLOOKUP(C130,BDDG!$A$2:$G$100,7,FALSE)),"",VLOOKUP(C130,BDDG!$A$2:$G$100,7,FALSE)) -> 2 | J130: =IF(ISERROR(VLOOKUP(C130,BDDG!$A$2:$H$100,8,FALSE)),"",VLOOKUP(C130,BDDG!$A$2:$H$100,8,FALSE)) -> BB19 | K130: 10 | L130: 80 | M130: 10.8 | N130: =IF(ISERROR(VLOOKUP(C130,BDDG!$A$2:$I$100,9,FALSE)),"",VLOOKUP(C130,BDDG!$A$2:$I$100,9,FALSE)) -> CC19 | R130: =IF(ISERROR(VLOOKUP(C130,BDDG!$A$2:$J$100,10,FALSE)),"",VLOOKUP(C130,BDDG!$A$2:$J$100,10,FALSE)) -> DD19 | V130: 10.8 | W130: =MONTH(A:A) -> 6 | X130: =YEAR(A:A) -> 2003 | Y130: =IFERROR((INDEX($V$2:V130,MATCH(H130&MAX(IF($H$1:H129=H130,$A$1:A129)),$H$2:H130&$A$2:A130,0))-V130)*-1,"") -> -46.8
A131: 2003-06-27 | C131: 850 | D131: =IF(ISNA(VLOOKUP(C131,BDDG!$A$2:$F$100,2,FALSE)),"",VLOOKUP(C131,BDDG!$A$2:$F$100,2,FALSE)) -> 0 | E131: =IF(ISNA(VLOOKUP(C131,BDDG!$A$3:$J$102,3,FALSE)),"",VLOOKUP(C131,BDDG!$A$3:$J$102,3,FALSE)) -> B | F131: =IF(ISNA(VLOOKUP(C131,BDDG!$A$3:$J$102,4,FALSE)),"",VLOOKUP(C131,BDDG!$A$3:$J$102,4,FALSE)) -> 106 | G131: =IF(ISNA(VLOOKUP(C131,BDDG!$A$2:$F$100,5,FALSE)),"",VLOOKUP(C131,BDDG!$A$2:$F$100,5,FALSE)) -> A8 | H131: =IF(ISNA(VLOOKUP(C131,BDDG!$A$2:$F$100,6,FALSE)),"",VLOOKUP(C131,BDDG!$A$2:$F$100,6,FALSE)) -> AA20 | I131: =IF(ISERROR(VLOOKUP(C131,BDDG!$A$2:$G$100,7,FALSE)),"",VLOOKUP(C131,BDDG!$A$2:$G$100,7,FALSE)) -> 1 | J131: =IF(ISERROR(VLOOKUP(C131,BDDG!$A$2:$H$100,8,FALSE)),"",VLOOKUP(C131,BDDG!$A$2:$H$100,8,FALSE)) -> BB20 | K131: 10 | L131: 35 | M131: 24.68571429 | N131: =IF(ISERROR(VLOOKUP(C131,BDDG!$A$2:$I$100,9,FALSE)),"",VLOOKUP(C131,BDDG!$A$2:$I$100,9,FALSE)) -> CC20 | R131: =IF(ISERROR(VLOOKUP(C131,BDDG!$A$2:$J$100,10,FALSE)),"",VLOOKUP(C131,BDDG!$A$2:$J$100,10,FALSE)) -> DD20 | V131: 24.68571429 | W131: 6 | X131: 2003 | Y131: =IFERROR((INDEX($V$2:V131,MATCH(H131&MAX(IF($H$1:H130=H131,$A$1:A130)),$H$2:H131&$A$2:A131,0))-V131)*-1,"") -> -20.57142857
A132: 2003-06-27 | C132: 847 | D132: =IF(ISNA(VLOOKUP(C132,BDDG!$A$2:$F$100,2,FALSE)),"",VLOOKUP(C132,BDDG!$A$2:$F$100,2,FALSE)) -> 0 | E132: =IF(ISNA(VLOOKUP(C132,BDDG!$A$3:$J$102,3,FALSE)),"",VLOOKUP(C132,BDDG!$A$3:$J$102,3,FALSE)) -> B | F132: =IF(ISNA(VLOOKUP(C132,BDDG!$A$3:$J$102,4,FALSE)),"",VLOOKUP(C132,BDDG!$A$3:$J$102,4,FALSE)) -> 106 | G132: =IF(ISNA(VLOOKUP(C132,BDDG!$A$2:$F$100,5,FALSE)),"",VLOOKUP(C132,BDDG!$A$2:$F$100,5,FALSE)) -> A7 | H132: =IF(ISNA(VLOOKUP(C132,BDDG!$A$2:$F$100,6,FALSE)),"",VLOOKUP(C132,BDDG!$A$2:$F$100,6,FALSE)) -> AA18 | I132: =IF(ISERROR(VLOOKUP(C132,BDDG!$A$2:$G$100,7,FALSE)),"",VLOOKUP(C132,BDDG!$A$2:$G$100,7,FALSE)) -> 2 | J132: =IF(ISERROR(VLOOKUP(C132,BDDG!$A$2:$H$100,8,FALSE)),"",VLOOKUP(C132,BDDG!$A$2:$H$100,8,FALSE)) -> BB18 | K132: 10 | L132: 80 | M132: 10.8 | N132: =IF(ISERROR(VLOOKUP(C132,BDDG!$A$2:$I$100,9,FALSE)),"",VLOOKUP(C132,BDDG!$A$2:$I$100,9,FALSE)) -> CC18 | O132: 2 | P132: 60 | Q132: 2.88 | R132: =IF(ISERROR(VLOOKUP(C132,BDDG!$A$2:$J$100,10,FALSE)),"",VLOOKUP(C132,BDDG!$A$2:$J$100,10,FALSE)) -> DD18 | V132: 13.68 | W132: 6 | X132: 2003 | Y132: =IFERROR((INDEX($V$2:V132,MATCH(H132&MAX(IF($H$1:H131=H132,$A$1:A131)),$H$2:H132&$A$2:A132,0))-V132)*-1,"") -> -58.32
A133: 2003-06-27 | C133: 844 | D133: =IF(ISNA(VLOOKUP(C133,BDDG!$A$2:$F$100,2,FALSE)),"",VLOOKUP(C133,BDDG!$A$2:$F$100,2,FALSE)) -> 0 | E133: =IF(ISNA(VLOOKUP(C133,BDDG!$A$3:$J$102,3,FALSE)),"",VLOOKUP(C133,BDDG!$A$3:$J$102,3,FALSE)) -> B | F133: =IF(ISNA(VLOOKUP(C133,BDDG!$A$3:$J$102,4,FALSE)),"",VLOOKUP(C133,BDDG!$A$3:$J$102,4,FALSE)) -> 106 | G133: =IF(ISNA(VLOOKUP(C133,BDDG!$A$2:$F$100,5,FALSE)),"",VLOOKUP(C133,BDDG!$A$2:$F$100,5,FALSE)) -> A6 | H133: =IF(ISNA(VLOOKUP(C133,BDDG!$A$2:$F$100,6,FALSE)),"",VLOOKUP(C133,BDDG!$A$2:$F$100,6,FALSE)) -> AA14 | I133: =IF(ISERROR(VLOOKUP(C133,BDDG!$A$2:$G$100,7,FALSE)),"",VLOOKUP(C133,BDDG!$A$2:$G$100,7,FALSE)) -> 2 | J133: =IF(ISERROR(VLOOKUP(C133,BDDG!$A$2:$H$100,8,FALSE)),"",VLOOKUP(C133,BDDG!$A$2:$H$100,8,FALSE)) -> BB14 | K133: 10 | L133: 9 | M133: 96 | N133: =IF(ISERROR(VLOOKUP(C133,BDDG!$A$2:$I$100,9,FALSE)),"",VLOOKUP(C133,BDDG!$A$2:$I$100,9,FALSE)) -> CC14 | R133: =IF(ISERROR(VLOOKUP(C133,BDDG!$A$2:$J$100,10,FALSE)),"",VLOOKUP(C133,BDDG!$A$2:$J$100,10,FALSE)) -> DD14 | V133: 96 | W133: 6 | X133: 2003 | Y133: =IFERROR((INDEX($V$2:V133,MATCH(H133&MAX(IF($H$1:H132=H133,$A$1:A132)),$H$2:H133&$A$2:A133,0))-V133)*-1,"") -> 9.6
A134: 2003-06-27 | C134: 849 | D134: =IF(ISNA(VLOOKUP(C134,BDDG!$A$2:$F$100,2,FALSE)),"",VLOOKUP(C134,BDDG!$A$2:$F$100,2,FALSE)) -> 0 | E134: =IF(ISNA(VLOOKUP(C134,BDDG!$A$3:$J$102,3,FALSE)),"",VLOOKUP(C134,BDDG!$A$3:$J$102,3,FALSE)) -> B | F134: =IF(ISNA(VLOOKUP(C134,BDDG!$A$3:$J$102,4,FALSE)),"",VLOOKUP(C134,BDDG!$A$3:$J$102,4,FALSE)) -> 106 | G134: =IF(ISNA(VLOOKUP(C134,BDDG!$A$2:$F$100,5,FALSE)),"",VLOOKUP(C134,BDDG!$A$2:$F$100,5,FALSE)) -> A7 | H134: =IF(ISNA(VLOOKUP(C134,BDDG!$A$2:$F$100,6,FALSE)),"",VLOOKUP(C134,BDDG!$A$2:$F$100,6,FALSE)) -> AA15 | I134: =IF(ISERROR(VLOOKUP(C134,BDDG!$A$2:$G$100,7,FALSE)),"",VLOOKUP(C134,BDDG!$A$2:$G$100,7,FALSE)) -> 2 | J134: =IF(ISERROR(VLOOKUP(C134,BDDG!$A$2:$H$100,8,FALSE)),"",VLOOKUP(C134,BDDG!$A$2:$H$100,8,FALSE)) -> BB15 | K134: 10 | L134: 65 | M134: 13.29230769 | N134: =IF(ISERROR(VLOOKUP(C134,BDDG!$A$2:$I$100,9,FALSE)),"",VLOOKUP(C134,BDDG!$A$2:$I$100,9,FALSE)) -> CC15 | R134: =IF(ISERROR(VLOOKUP(C134,BDDG!$A$2:$J$100,10,FALSE)),"",VLOOKUP(C134,BDDG!$A$2:$J$100,10,FALSE)) -> DD15 | V134: 13.29230769 | W134: 6 | X134: 2003 | Y134: =IFERROR((INDEX($V$2:V134,MATCH(H134&MAX(IF($H$1:H133=H134,$A$1:A133)),$H$2:H134&$A$2:A134,0))-V134)*-1,"") -> 0
A135: 2003-06-27 | C135: 839 | D135: =IF(ISNA(VLOOKUP(C135,BDDG!$A$2:$F$100,2,FALSE)),"",VLOOKUP(C135,BDDG!$A$2:$F$100,2,FALSE)) -> 0 | E135: =IF(ISNA(VLOOKUP(C135,BDDG!$A$3:$J$102,3,FALSE)),"",VLOOKUP(C135,BDDG!$A$3:$J$102,3,FALSE)) -> A | F135: =IF(ISNA(VLOOKUP(C135,BDDG!$A$3:$J$102,4,FALSE)),"",VLOOKUP(C135,BDDG!$A$3:$J$102,4,FALSE)) -> 106 | G135: =IF(ISNA(VLOOKUP(C135,BDDG!$A$2:$F$100,5,FALSE)),"",VLOOKUP(C135,BDDG!$A$2:$F$100,5,FALSE)) -> A3 | H135: =IF(ISNA(VLOOKUP(C135,BDDG!$A$2:$F$100,6,FALSE)),"",VLOOKUP(C135,BDDG!$A$2:$F$100,6,FALSE)) -> AA10 | I135: =IF(ISERROR(VLOOKUP(C135,BDDG!$A$2:$G$100,7,FALSE)),"",VLOOKUP(C135,BDDG!$A$2:$G$100,7,FALSE)) -> 2 | J135: =IF(ISERROR(VLOOKUP(C135,BDDG!$A$2:$H$100,8,FALSE)),"",VLOOKUP(C135,BDDG!$A$2:$H$100,8,FALSE)) -> BB10 | M135: 86.4 | N135: =IF(ISERROR(VLOOKUP(C135,BDDG!$A$2:$I$100,9,FALSE)),"",VLOOKUP(C135,BDDG!$A$2:$I$100,9,FALSE)) -> CC10 | R135: =IF(ISERROR(VLOOKUP(C135,BDDG!$A$2:$J$100,10,FALSE)),"",VLOOKUP(C135,BDDG!$A$2:$J$100,10,FALSE)) -> DD10 | V135: 86.4 | W135: 6 | X135: 2003 | Y135: =IFERROR((INDEX($V$2:V135,MATCH(H135&MAX(IF($H$1:H134=H135,$A$1:A134)),$H$2:H135&$A$2:A135,0))-V135)*-1,"") -> 48.96
A136: 2003-08-09 | C136: 815 | D136: =IF(ISNA(VLOOKUP(C136,BDDG!$A$2:$F$100,2,FALSE)),"",VLOOKUP(C136,BDDG!$A$2:$F$100,2,FALSE)) -> 0 | E136: =IF(ISNA(VLOOKUP(C136,BDDG!$A$3:$J$102,3,FALSE)),"",VLOOKUP(C136,BDDG!$A$3:$J$102,3,FALSE)) -> A | F136: =IF(ISNA(VLOOKUP(C136,BDDG!$A$3:$J$102,4,FALSE)),"",VLOOKUP(C136,BDDG!$A$3:$J$102,4,FALSE)) -> 106 | G136: =IF(ISNA(VLOOKUP(C136,BDDG!$A$2:$F$100,5,FALSE)),"",VLOOKUP(C136,BDDG!$A$2:$F$100,5,FALSE)) -> A10 | H136: =IF(ISNA(VLOOKUP(C136,BDDG!$A$2:$F$100,6,FALSE)),"",VLOOKUP(C136,BDDG!$A$2:$F$100,6,FALSE)) -> AA31 | I136: =IF(ISERROR(VLOOKUP(C136,BDDG!$A$2:$G$100,7,FALSE)),"",VLOOKUP(C136,BDDG!$A$2:$G$100,7,FALSE)) -> 1 | J136: =IF(ISERROR(VLOOKUP(C136,BDDG!$A$2:$H$100,8,FALSE)),"",VLOOKUP(C136,BDDG!$A$2:$H$100,8,FALSE)) -> BB31 | K136: 105 | L136: 190 | M136: =IF(ISERROR(K136/L136*86.4),"",K136/L136*86.4) -> 47.74736842 | N136: =IF(ISERROR(VLOOKUP(C136,BDDG!$A$2:$I$100,9,FALSE)),"",VLOOKUP(C136,BDDG!$A$2:$I$100,9,FALSE)) -> CC31 | R136: =IF(ISERROR(VLOOKUP(C136,BDDG!$A$2:$J$100,10,FALSE)),"",VLOOKUP(C136,BDDG!$A$2:$J$100,10,FALSE)) -> DD31 | V136: 47.74736842 | W136: 8 | X136: 2003 | Y136: =IFERROR((INDEX($V$2:V136,MATCH(H136&MAX(IF($H$1:H135=H136,$A$1:A135)),$H$2:H136&$A$2:A136,0))-V136)*-1,"") -> 41.4254172
A137: 2003-09-18 | C137: 856 | D137: =IF(ISNA(VLOOKUP(C137,BDDG!$A$2:$F$100,2,FALSE)),"",VLOOKUP(C137,BDDG!$A$2:$F$100,2,FALSE)) -> 0 | E137: =IF(ISNA(VLOOKUP(C137,BDDG!$A$3:$J$102,3,FALSE)),"",VLOOKUP(C137,BDDG!$A$3:$J$102,3,FALSE)) -> A | F137: =IF(ISNA(VLOOKUP(C137,BDDG!$A$3:$J$102,4,FALSE)),"",VLOOKUP(C137,BDDG!$A$3:$J$102,4,FALSE)) -> 106 | G137: =IF(ISNA(VLOOKUP(C137,BDDG!$A$2:$F$100,5,FALSE)),"",VLOOKUP(C137,BDDG!$A$2:$F$100,5,FALSE)) -> A9 | H137: =IF(ISNA(VLOOKUP(C137,BDDG!$A$2:$F$100,6,FALSE)),"",VLOOKUP(C137,BDDG!$A$2:$F$100,6,FALSE)) -> AA27 | I137: =IF(ISERROR(VLOOKUP(C137,BDDG!$A$2:$G$100,7,FALSE)),"",VLOOKUP(C137,BDDG!$A$2:$G$100,7,FALSE)) -> 2 | J137: =IF(ISERROR(VLOOKUP(C137,BDDG!$A$2:$H$100,8,FALSE)),"",VLOOKUP(C137,BDDG!$A$2:$H$100,8,FALSE)) -> BB27 | K137: 10 | L137: 115 | M137: 7.513043478 | N137: =IF(ISERROR(VLOOKUP(C137,BDDG!$A$2:$I$100,9,FALSE)),"",VLOOKUP(C137,BDDG!$A$2:$I$100,9,FALSE)) -> CC27 | O137: 10 | P137: 10 | Q137: =IF(ISERROR(O137/P137*86.4),"",O137/P137*86.4) -> 86.4 | R137: =IF(ISERROR(VLOOKUP(C137,BDDG!$A$2:$J$100,10,FALSE)),"",VLOOKUP(C137,BDDG!$A$2:$J$100,10,FALSE)) -> DD27 | V137: 93.91304348 | W137: 9 | X137: 2003 | Y137: =IFERROR((INDEX($V$2:V137,MATCH(H137&MAX(IF($H$1:H136=H137,$A$1:A136)),$H$2:H137&$A$2:A137,0))-V137)*-1,"") -> -78.88695652
A138: 2003-09-18 | C138: 815 | D138: =IF(ISNA(VLOOKUP(C138,BDDG!$A$2:$F$100,2,FALSE)),"",VLOOKUP(C138,BDDG!$A$2:$F$100,2,FALSE)) -> 0 | E138: =IF(ISNA(VLOOKUP(C138,BDDG!$A$3:$J$102,3,FALSE)),"",VLOOKUP(C138,BDDG!$A$3:$J$102,3,FALSE)) -> A | F138: =IF(ISNA(VLOOKUP(C138,BDDG!$A$3:$J$102,4,FALSE)),"",VLOOKUP(C138,BDDG!$A$3:$J$102,4,FALSE)) -> 106 | G138: =IF(ISNA(VLOOKUP(C138,BDDG!$A$2:$F$100,5,FALSE)),"",VLOOKUP(C138,BDDG!$A$2:$F$100,5,FALSE)) -> A10 | H138: =IF(ISNA(VLOOKUP(C138,BDDG!$A$2:$F$100,6,FALSE)),"",VLOOKUP(C138,BDDG!$A$2:$F$100,6,FALSE)) -> AA31 | I138: =IF(ISERROR(VLOOKUP(C138,BDDG!$A$2:$G$100,7,FALSE)),"",VLOOKUP(C138,BDDG!$A$2:$G$100,7,FALSE)) -> 1 | J138: =IF(ISERROR(VLOOKUP(C138,BDDG!$A$2:$H$100,8,FALSE)),"",VLOOKUP(C138,BDDG!$A$2:$H$100,8,FALSE)) -> BB31 | K138: 15 | L138: 215 | M138: 6.027906977 | N138: =IF(ISERROR(VLOOKUP(C138,BDDG!$A$2:$I$100,9,FALSE)),"",VLOOKUP(C138,BDDG!$A$2:$I$100,9,FALSE)) -> CC31 | R138: =IF(ISERROR(VLOOKUP(C138,BDDG!$A$2:$J$100,10,FALSE)),"",VLOOKUP(C138,BDDG!$A$2:$J$100,10,FALSE)) -> DD31 | V138: 6.027906977 | W138: 9 | X138: 2003 | Y138: =IFERROR((INDEX($V$2:V138,MATCH(H138&MAX(IF($H$1:H137=H138,$A$1:A137)),$H$2:H138&$A$2:A138,0))-V138)*-1,"") -> -41.71946144
A139: 2003-09-25 | C139: 815 | D139: =IF(ISNA(VLOOKUP(C139,BDDG!$A$2:$F$100,2,FALSE)),"",VLOOKUP(C139,BDDG!$A$2:$F$100,2,FALSE)) -> 0 | E139: =IF(ISNA(VLOOKUP(C139,BDDG!$A$3:$J$102,3,FALSE)),"",VLOOKUP(C139,BDDG!$A$3:$J$102,3,FALSE)) -> A | F139: =IF(ISNA(VLOOKUP(C139,BDDG!$A$3:$J$102,4,FALSE)),"",VLOOKUP(C139,BDDG!$A$3:$J$102,4,FALSE)) -> 106 | G139: =IF(ISNA(VLOOKUP(C139,BDDG!$A$2:$F$100,5,FALSE)),"",VLOOKUP(C139,BDDG!$A$2:$F$100,5,FALSE)) -> A10 | H139: =IF(ISNA(VLOOKUP(C139,BDDG!$A$2:$F$100,6,FALSE)),"",VLOOKUP(C139,BDDG!$A$2:$F$100,6,FALSE)) -> AA31 | I139: =IF(ISERROR(VLOOKUP(C139,BDDG!$A$2:$G$100,7,FALSE)),"",VLOOKUP(C139,BDDG!$A$2:$G$100,7,FALSE)) -> 1 | J139: =IF(ISERROR(VLOOKUP(C139,BDDG!$A$2:$H$100,8,FALSE)),"",VLOOKUP(C139,BDDG!$A$2:$H$100,8,FALSE)) -> BB31 | K139: 15 | L139: 135 | M139: 9.6 | N139: =IF(ISERROR(VLOOKUP(C139,BDDG!$A$2:$I$100,9,FALSE)),"",VLOOKUP(C139,BDDG!$A$2:$I$100,9,FALSE)) -> CC31 | R139: =IF(ISERROR(VLOOKUP(C139,BDDG!$A$2:$J$100,10,FALSE)),"",VLOOKUP(C139,BDDG!$A$2:$J$100,10,FALSE)) -> DD31 | V139: 9.6 | W139: 9 | X139: 2003 | Y139: =IFERROR((INDEX($V$2:V139,MATCH(H139&MAX(IF($H$1:H138=H139,$A$1:A138)),$H$2:H139&$A$2:A139,0))-V139)*-1,"") -> 3.572093023
A140: 2003-10-01 | C140: 856 | D140: =IF(ISNA(VLOOKUP(C140,BDDG!$A$2:$F$100,2,FALSE)),"",VLOOKUP(C140,BDDG!$A$2:$F$100,2,FALSE)) -> 0 | E140: =IF(ISNA(VLOOKUP(C140,BDDG!$A$3:$J$102,3,FALSE)),"",VLOOKUP(C140,BDDG!$A$3:$J$102,3,FALSE)) -> A | F140: =IF(ISNA(VLOOKUP(C140,BDDG!$A$3:$J$102,4,FALSE)),"",VLOOKUP(C140,BDDG!$A$3:$J$102,4,FALSE)) -> 106 | G140: =IF(ISNA(VLOOKUP(C140,BDDG!$A$2:$F$100,5,FALSE)),"",VLOOKUP(C140,BDDG!$A$2:$F$100,5,FALSE)) -> A9 | H140: =IF(ISNA(VLOOKUP(C140,BDDG!$A$2:$F$100,6,FALSE)),"",VLOOKUP(C140,BDDG!$A$2:$F$100,6,FALSE)) -> AA27 | I140: =IF(ISERROR(VLOOKUP(C140,BDDG!$A$2:$G$100,7,FALSE)),"",VLOOKUP(C140,BDDG!$A$2:$G$100,7,FALSE)) -> 2 | J140: =IF(ISERROR(VLOOKUP(C140,BDDG!$A$2:$H$100,8,FALSE)),"",VLOOKUP(C140,BDDG!$A$2:$H$100,8,FALSE)) -> BB27 | K140: 4.5 | L140: 60 | M140: 6.48 | N140: =IF(ISERROR(VLOOKUP(C140,BDDG!$A$2:$I$100,9,FALSE)),"",VLOOKUP(C140,BDDG!$A$2:$I$100,9,FALSE)) -> CC27 | O140: 48 | P140: 60 | Q140: 69.12 | R140: =IF(ISERROR(VLOOKUP(C140,BDDG!$A$2:$J$100,10,FALSE)),"",VLOOKUP(C140,BDDG!$A$2:$J$100,10,FALSE)) -> DD27 | V140: 75.6 | W140: 10 | X140: 2003 | Y140: =IFERROR((INDEX($V$2:V140,MATCH(H140&MAX(IF($H$1:H139=H140,$A$1:A139)),$H$2:H140&$A$2:A140,0))-V140)*-1,"") -> -18.31304348
A141: 2003-10-02 | C141: 815 | D141: =IF(ISNA(VLOOKUP(C141,BDDG!$A$2:$F$100,2,FALSE)),"",VLOOKUP(C141,BDDG!$A$2:$F$100,2,FALSE)) -> 0 | E141: =IF(ISNA(VLOOKUP(C141,BDDG!$A$3:$J$102,3,FALSE)),"",VLOOKUP(C141,BDDG!$A$3:$J$102,3,FALSE)) -> A | F141: =IF(ISNA(VLOOKUP(C141,BDDG!$A$3:$J$102,4,FALSE)),"",VLOOKUP(C141,BDDG!$A$3:$J$102,4,FALSE)) -> 106 | G141: =IF(ISNA(VLOOKUP(C141,BDDG!$A$2:$F$100,5,FALSE)),"",VLOOKUP(C141,BDDG!$A$2:$F$100,5,FALSE)) -> A10 | H141: =IF(ISNA(VLOOKUP(C141,BDDG!$A$2:$F$100,6,FALSE)),"",VLOOKUP(C141,BDDG!$A$2:$F$100,6,FALSE)) -> AA31 | I141: =IF(ISERROR(VLOOKUP(C141,BDDG!$A$2:$G$100,7,FALSE)),"",VLOOKUP(C141,BDDG!$A$2:$G$100,7,FALSE)) -> 1 | J141: =IF(ISERROR(VLOOKUP(C141,BDDG!$A$2:$H$100,8,FALSE)),"",VLOOKUP(C141,BDDG!$A$2:$H$100,8,FALSE)) -> BB31 | K141: 15 | L141: 185 | M141: 7.005405405 | N141: =IF(ISERROR(VLOOKUP(C141,BDDG!$A$2:$I$100,9,FALSE)),"",VLOOKUP(C141,BDDG!$A$2:$I$100,9,FALSE)) -> CC31 | R141: =IF(ISERROR(VLOOKUP(C141,BDDG!$A$2:$J$100,10,FALSE)),"",VLOOKUP(C141,BDDG!$A$2:$J$100,10,FALSE)) -> DD31 | V141: 7.005405405 | W141: 10 | X141: 2003 | Y141: =IFERROR((INDEX($V$2:V141,MATCH(H141&MAX(IF($H$1:H140=H141,$A$1:A140)),$H$2:H141&$A$2:A141,0))-V141)*-1,"") -> -2.594594595
A142: 2003-10-09 | C142: 815 | D142: =IF(ISNA(VLOOKUP(C142,BDDG!$A$2:$F$100,2,FALSE)),"",VLOOKUP(C142,BDDG!$A$2:$F$100,2,FALSE)) -> 0 | E142: =IF(ISNA(VLOOKUP(C142,BDDG!$A$3:$J$102,3,FALSE)),"",VLOOKUP(C142,BDDG!$A$3:$J$102,3,FALSE)) -> A | F142: =IF(ISNA(VLOOKUP(C142,BDDG!$A$3:$J$102,4,FALSE)),"",VLOOKUP(C142,BDDG!$A$3:$J$102,4,FALSE)) -> 106 | G142: =IF(ISNA(VLOOKUP(C142,BDDG!$A$2:$F$100,5,FALSE)),"",VLOOKUP(C142,BDDG!$A$2:$F$100,5,FALSE)) -> A10 | H142: =IF(ISNA(VLOOKUP(C142,BDDG!$A$2:$F$100,6,FALSE)),"",VLOOKUP(C142,BDDG!$A$2:$F$100,6,FALSE)) -> AA31 | I142: =IF(ISERROR(VLOOKUP(C142,BDDG!$A$2:$G$100,7,FALSE)),"",VLOOKUP(C142,BDDG!$A$2:$G$100,7,FALSE)) -> 1 | J142: =IF(ISERROR(VLOOKUP(C142,BDDG!$A$2:$H$100,8,FALSE)),"",VLOOKUP(C142,BDDG!$A$2:$H$100,8,FALSE)) -> BB31 | K142: 15 | L142: 165 | M142: 7.854545455 | N142: =IF(ISERROR(VLOOKUP(C142,BDDG!$A$2:$I$100,9,FALSE)),"",VLOOKUP(C142,BDDG!$A$2:$I$100,9,FALSE)) -> CC31 | R142: =IF(ISERROR(VLOOKUP(C142,BDDG!$A$2:$J$100,10,FALSE)),"",VLOOKUP(C142,BDDG!$A$2:$J$100,10,FALSE)) -> DD31 | V142: 7.854545455 | W142: 10 | X142: 2003 | Y142: =IFERROR((INDEX($V$2:V142,MATCH(H142&MAX(IF($H$1:H141=H142,$A$1:A141)),$H$2:H142&$A$2:A142,0))-V142)*-1,"") -> 0.8491400491
A143: 2003-10-19 | C143: 815 | D143: =IF(ISNA(VLOOKUP(C143,BDDG!$A$2:$F$100,2,FALSE)),"",VLOOKUP(C143,BDDG!$A$2:$F$100,2,FALSE)) -> 0 | E143: =IF(ISNA(VLOOKUP(C143,BDDG!$A$3:$J$102,3,FALSE)),"",VLOOKUP(C143,BDDG!$A$3:$J$102,3,FALSE)) -> A | F143: =IF(ISNA(VLOOKUP(C143,BDDG!$A$3:$J$102,4,FALSE)),"",VLOOKUP(C143,BDDG!$A$3:$J$102,4,FALSE)) -> 106 | G143: =IF(ISNA(VLOOKUP(C143,BDDG!$A$2:$F$100,5,FALSE)),"",VLOOKUP(C143,BDDG!$A$2:$F$100,5,FALSE)) -> A10 | H143: =IF(ISNA(VLOOKUP(C143,BDDG!$A$2:$F$100,6,FALSE)),"",VLOOKUP(C143,BDDG!$A$2:$F$100,6,FALSE)) -> AA31 | I143: =IF(ISERROR(VLOOKUP(C143,BDDG!$A$2:$G$100,7,FALSE)),"",VLOOKUP(C143,BDDG!$A$2:$G$100,7,FALSE)) -> 1 | J143: =IF(ISERROR(VLOOKUP(C143,BDDG!$A$2:$H$100,8,FALSE)),"",VLOOKUP(C143,BDDG!$A$2:$H$100,8,FALSE)) -> BB31 | K143: 15 | L143: 180 | M143: 7.2 | N143: =IF(ISERROR(VLOOKUP(C143,BDDG!$A$2:$I$100,9,FALSE)),"",VLOOKUP(C143,BDDG!$A$2:$I$100,9,FALSE)) -> CC31 | R143: =IF(ISERROR(VLOOKUP(C143,BDDG!$A$2:$J$100,10,FALSE)),"",VLOOKUP(C143,BDDG!$A$2:$J$100,10,FALSE)) -> DD31 | V143: 7.2 | W143: 10 | X143: 2003 | Y143: =IFERROR((INDEX($V$2:V143,MATCH(H143&MAX(IF($H$1:H142=H143,$A$1:A142)),$H$2:H143&$A$2:A143,0))-V143)*-1,"") -> -0.6545454545
A144: 2003-10-23 | C144: 815 | D144: =IF(ISNA(VLOOKUP(C144,BDDG!$A$2:$F$100,2,FALSE)),"",VLOOKUP(C144,BDDG!$A$2:$F$100,2,FALSE)) -> 0 | E144: =IF(ISNA(VLOOKUP(C144,BDDG!$A$3:$J$102,3,FALSE)),"",VLOOKUP(C144,BDDG!$A$3:$J$102,3,FALSE)) -> A | F144: =IF(ISNA(VLOOKUP(C144,BDDG!$A$3:$J$102,4,FALSE)),"",VLOOKUP(C144,BDDG!$A$3:$J$102,4,FALSE)) -> 106 | G144: =IF(ISNA(VLOOKUP(C144,BDDG!$A$2:$F$100,5,FALSE)),"",VLOOKUP(C144,BDDG!$A$2:$F$100,5,FALSE)) -> A10 | H144: =IF(ISNA(VLOOKUP(C144,BDDG!$A$2:$F$100,6,FALSE)),"",VLOOKUP(C144,BDDG!$A$2:$F$100,6,FALSE)) -> AA31 | I144: =IF(ISERROR(VLOOKUP(C144,BDDG!$A$2:$G$100,7,FALSE)),"",VLOOKUP(C144,BDDG!$A$2:$G$100,7,FALSE)) -> 1 | J144: =IF(ISERROR(VLOOKUP(C144,BDDG!$A$2:$H$100,8,FALSE)),"",VLOOKUP(C144,BDDG!$A$2:$H$100,8,FALSE)) -> BB31 | K144: 15 | L144: 125 | M144: 10.368 | N144: =IF(ISERROR(VLOOKUP(C144,BDDG!$A$2:$I$100,9,FALSE)),"",VLOOKUP(C144,BDDG!$A$2:$I$100,9,FALSE)) -> CC31 | R144: =IF(ISERROR(VLOOKUP(C144,BDDG!$A$2:$J$100,10,FALSE)),"",VLOOKUP(C144,BDDG!$A$2:$J$100,10,FALSE)) -> DD31 | V144: 10.368 | W144: 10 | X144: 2003 | Y144: =IFERROR((INDEX($V$2:V144,MATCH(H144&MAX(IF($H$1:H143=H144,$A$1:A143)),$H$2:H144&$A$2:A144,0))-V144)*-1,"") -> 3.168
A145: 2003-10-26 | C145: 815 | D145: =IF(ISNA(VLOOKUP(C145,BDDG!$A$2:$F$100,2,FALSE)),"",VLOOKUP(C145,BDDG!$A$2:$F$100,2,FALSE)) -> 0 | E145: =IF(ISNA(VLOOKUP(C145,BDDG!$A$3:$J$102,3,FALSE)),"",VLOOKUP(C145,BDDG!$A$3:$J$102,3,FALSE)) -> A | F145: =IF(ISNA(VLOOKUP(C145,BDDG!$A$3:$J$102,4,FALSE)),"",VLOOKUP(C145,BDDG!$A$3:$J$102,4,FALSE)) -> 106 | G145: =IF(ISNA(VLOOKUP(C145,BDDG!$A$2:$F$100,5,FALSE)),"",VLOOKUP(C145,BDDG!$A$2:$F$100,5,FALSE)) -> A10 | H145: =IF(ISNA(VLOOKUP(C145,BDDG!$A$2:$F$100,6,FALSE)),"",VLOOKUP(C145,BDDG!$A$2:$F$100,6,FALSE)) -> AA31 | I145: =IF(ISERROR(VLOOKUP(C145,BDDG!$A$2:$G$100,7,FALSE)),"",VLOOKUP(C145,BDDG!$A$2:$G$100,7,FALSE)) -> 1 | J145: =IF(ISERROR(VLOOKUP(C145,BDDG!$A$2:$H$100,8,FALSE)),"",VLOOKUP(C145,BDDG!$A$2:$H$100,8,FALSE)) -> BB31 | K145: 15 | L145: 135 | M145: 9.6 | N145: =IF(ISERROR(VLOOKUP(C145,BDDG!$A$2:$I$100,9,FALSE)),"",VLOOKUP(C145,BDDG!$A$2:$I$100,9,FALSE)) -> CC31 | R145: =IF(ISERROR(VLOOKUP(C145,BDDG!$A$2:$J$100,10,FALSE)),"",VLOOKUP(C145,BDDG!$A$2:$J$100,10,FALSE)) -> DD31 | V145: 9.6 | W145: 10 | X145: 2003 | Y145: =IFERROR((INDEX($V$2:V145,MATCH(H145&MAX(IF($H$1:H144=H145,$A$1:A144)),$H$2:H145&$A$2:A145,0))-V145)*-1,"") -> -0.768
A146: 2003-10-30 | C146: 815 | D146: =IF(ISNA(VLOOKUP(C146,BDDG!$A$2:$F$100,2,FALSE)),"",VLOOKUP(C146,BDDG!$A$2:$F$100,2,FALSE)) -> 0 | E146: =IF(ISNA(VLOOKUP(C146,BDDG!$A$3:$J$102,3,FALSE)),"",VLOOKUP(C146,BDDG!$A$3:$J$102,3,FALSE)) -> A | F146: =IF(ISNA(VLOOKUP(C146,BDDG!$A$3:$J$102,4,FALSE)),"",VLOOKUP(C146,BDDG!$A$3:$J$102,4,FALSE)) -> 106 | G146: =IF(ISNA(VLOOKUP(C146,BDDG!$A$2:$F$100,5,FALSE)),"",VLOOKUP(C146,BDDG!$A$2:$F$100,5,FALSE)) -> A10 | H146: =IF(ISNA(VLOOKUP(C146,BDDG!$A$2:$F$100,6,FALSE)),"",VLOOKUP(C146,BDDG!$A$2:$F$100,6,FALSE)) -> AA31 | I146: =IF(ISERROR(VLOOKUP(C146,BDDG!$A$2:$G$100,7,FALSE)),"",VLOOKUP(C146,BDDG!$A$2:$G$100,7,FALSE)) -> 1 | J146: =IF(ISERROR(VLOOKUP(C146,BDDG!$A$2:$H$100,8,FALSE)),"",VLOOKUP(C146,BDDG!$A$2:$H$100,8,FALSE)) -> BB31 | K146: 15 | L146: 140 | M146: 9.257142857 | N146: =IF(ISERROR(VLOOKUP(C146,BDDG!$A$2:$I$100,9,FALSE)),"",VLOOKUP(C146,BDDG!$A$2:$I$100,9,FALSE)) -> CC31 | R146: =IF(ISERROR(VLOOKUP(C146,BDDG!$A$2:$J$100,10,FALSE)),"",VLOOKUP(C146,BDDG!$A$2:$J$100,10,FALSE)) -> DD31 | V146: =IF(ISERROR(SUM(M146,Q146,U146)),"",SUM(M146,Q146,U146)) -> 9.257142857 | W146: 10 | X146: 2003 | Y146: =IFERROR((INDEX($V$2:V146,MATCH(H146&MAX(IF($H$1:H145=H146,$A$1:A145)),$H$2:H146&$A$2:A146,0))-V146)*-1,"") -> -0.3428571429
A147: 2003-11-06 | C147: 815 | D147: =IF(ISNA(VLOOKUP(C147,BDDG!$A$2:$F$100,2,FALSE)),"",VLOOKUP(C147,BDDG!$A$2:$F$100,2,FALSE)) -> 0 | E147: =IF(ISNA(VLOOKUP(C147,BDDG!$A$3:$J$102,3,FALSE)),"",VLOOKUP(C147,BDDG!$A$3:$J$102,3,FALSE)) -> A | F147: =IF(ISNA(VLOOKUP(C147,BDDG!$A$3:$J$102,4,FALSE)),"",VLOOKUP(C147,BDDG!$A$3:$J$102,4,FALSE)) -> 106 | G147: =IF(ISNA(VLOOKUP(C147,BDDG!$A$2:$F$100,5,FALSE)),"",VLOOKUP(C147,BDDG!$A$2:$F$100,5,FALSE)) -> A10 | H147: =IF(ISNA(VLOOKUP(C147,BDDG!$A$2:$F$100,6,FALSE)),"",VLOOKUP(C147,BDDG!$A$2:$F$100,6,FALSE)) -> AA31 | I147: =IF(ISERROR(VLOOKUP(C147,BDDG!$A$2:$G$100,7,FALSE)),"",VLOOKUP(C147,BDDG!$A$2:$G$100,7,FALSE)) -> 1 | J147: =IF(ISERROR(VLOOKUP(C147,BDDG!$A$2:$H$100,8,FALSE)),"",VLOOKUP(C147,BDDG!$A$2:$H$100,8,FALSE)) -> BB31 | K147: 15 | L147: 195 | M147: =IF(ISERROR(K147/L147*86.4),"",K147/L147*86.4) -> 6.646153846 | N147: =IF(ISERROR(VLOOKUP(C147,BDDG!$A$2:$I$100,9,FALSE)),"",VLOOKUP(C147,BDDG!$A$2:$I$100,9,FALSE)) -> CC31 | R147: =IF(ISERROR(VLOOKUP(C147,BDDG!$A$2:$J$100,10,FALSE)),"",VLOOKUP(C147,BDDG!$A$2:$J$100,10,FALSE)) -> DD31 | V147: 6.646153846 | W147: 11 | X147: 2003 | Y147: =IFERROR((INDEX($V$2:V147,MATCH(H147&MAX(IF($H$1:H146=H147,$A$1:A146)),$H$2:H147&$A$2:A147,0))-V147)*-1,"") -> -2.610989011
A148: 2004-03-30 | C148: 835 | D148: =IF(ISNA(VLOOKUP(C148,BDDG!$A$2:$F$100,2,FALSE)),"",VLOOKUP(C148,BDDG!$A$2:$F$100,2,FALSE)) -> 0 | E148: =IF(ISNA(VLOOKUP(C148,BDDG!$A$3:$J$102,3,FALSE)),"",VLOOKUP(C148,BDDG!$A$3:$J$102,3,FALSE)) -> A | F148: =IF(ISNA(VLOOKUP(C148,BDDG!$A$3:$J$102,4,FALSE)),"",VLOOKUP(C148,BDDG!$A$3:$J$102,4,FALSE)) -> 106 | G148: =IF(ISNA(VLOOKUP(C148,BDDG!$A$2:$F$100,5,FALSE)),"",VLOOKUP(C148,BDDG!$A$2:$F$100,5,FALSE)) -> A3 | H148: =IF(ISNA(VLOOKUP(C148,BDDG!$A$2:$F$100,6,FALSE)),"",VLOOKUP(C148,BDDG!$A$2:$F$100,6,FALSE)) -> AA5 | I148: =IF(ISERROR(VLOOKUP(C148,BDDG!$A$2:$G$100,7,FALSE)),"",VLOOKUP(C148,BDDG!$A$2:$G$100,7,FALSE)) -> 1 | J148: =IF(ISERROR(VLOOKUP(C148,BDDG!$A$2:$H$100,8,FALSE)),"",VLOOKUP(C148,BDDG!$A$2:$H$100,8,FALSE)) -> BB5 | K148: 15 | L148: 60 | M148: 21.6 | N148: =IF(ISERROR(VLOOKUP(C148,BDDG!$A$2:$I$100,9,FALSE)),"",VLOOKUP(C148,BDDG!$A$2:$I$100,9,FALSE)) -> CC5 | R148: =IF(ISERROR(VLOOKUP(C148,BDDG!$A$2:$J$100,10,FALSE)),"",VLOOKUP(C148,BDDG!$A$2:$J$100,10,FALSE)) -> DD5 | U148: =IF(ISERROR(S148/T148*86.4),"",S148/T148*86.4) ->  | V148: 21.6 | W148: 3 | X148: 2004 | Y148: =IFERROR((INDEX($V$2:V148,MATCH(H148&MAX(IF($H$1:H147=H148,$A$1:A147)),$H$2:H148&$A$2:A148,0))-V148)*-1,"") -> 17.28
A149: 2004-03-30 | C149: 852 | D149: =IF(ISNA(VLOOKUP(C149,BDDG!$A$2:$F$100,2,FALSE)),"",VLOOKUP(C149,BDDG!$A$2:$F$100,2,FALSE)) -> 0 | E149: =IF(ISNA(VLOOKUP(C149,BDDG!$A$3:$J$102,3,FALSE)),"",VLOOKUP(C149,BDDG!$A$3:$J$102,3,FALSE)) -> A | F149: =IF(ISNA(VLOOKUP(C149,BDDG!$A$3:$J$102,4,FALSE)),"",VLOOKUP(C149,BDDG!$A$3:$J$102,4,FALSE)) -> 106 | G149: =IF(ISNA(VLOOKUP(C149,BDDG!$A$2:$F$100,5,FALSE)),"",VLOOKUP(C149,BDDG!$A$2:$F$100,5,FALSE)) -> A9 | H149: =IF(ISNA(VLOOKUP(C149,BDDG!$A$2:$F$100,6,FALSE)),"",VLOOKUP(C149,BDDG!$A$2:$F$100,6,FALSE)) -> AA22 | I149: =IF(ISERROR(VLOOKUP(C149,BDDG!$A$2:$G$100,7,FALSE)),"",VLOOKUP(C149,BDDG!$A$2:$G$100,7,FALSE)) -> 1 | J149: =IF(ISERROR(VLOOKUP(C149,BDDG!$A$2:$H$100,8,FALSE)),"",VLOOKUP(C149,BDDG!$A$2:$H$100,8,FALSE)) -> BB22 | K149: 12 | L149: 55 | M149: 18.85090909 | N149: =IF(ISERROR(VLOOKUP(C149,BDDG!$A$2:$I$100,9,FALSE)),"",VLOOKUP(C149,BDDG!$A$2:$I$100,9,FALSE)) -> CC22 | R149: =IF(ISERROR(VLOOKUP(C149,BDDG!$A$2:$J$100,10,FALSE)),"",VLOOKUP(C149,BDDG!$A$2:$J$100,10,FALSE)) -> DD22 | V149: 18.85090909 | W149: 3 | X149: 2004 | Y149: =IFERROR((INDEX($V$2:V149,MATCH(H149&MAX(IF($H$1:H148=H149,$A$1:A148)),$H$2:H149&$A$2:A149,0))-V149)*-1,"") -> 8.050909091
A150: 2004-04-30 | C150: 837 | D150: =IF(ISNA(VLOOKUP(C150,BDDG!$A$2:$F$100,2,FALSE)),"",VLOOKUP(C150,BDDG!$A$2:$F$100,2,FALSE)) -> 0 | E150: =IF(ISNA(VLOOKUP(C150,BDDG!$A$3:$J$102,3,FALSE)),"",VLOOKUP(C150,BDDG!$A$3:$J$102,3,FALSE)) -> A | F150: =IF(ISNA(VLOOKUP(C150,BDDG!$A$3:$J$102,4,FALSE)),"",VLOOKUP(C150,BDDG!$A$3:$J$102,4,FALSE)) -> 106 | G150: =IF(ISNA(VLOOKUP(C150,BDDG!$A$2:$F$100,5,FALSE)),"",VLOOKUP(C150,BDDG!$A$2:$F$100,5,FALSE)) -> A3 | H150: =IF(ISNA(VLOOKUP(C150,BDDG!$A$2:$F$100,6,FALSE)),"",VLOOKUP(C150,BDDG!$A$2:$F$100,6,FALSE)) -> AA7 | I150: =IF(ISERROR(VLOOKUP(C150,BDDG!$A$2:$G$100,7,FALSE)),"",VLOOKUP(C150,BDDG!$A$2:$G$100,7,FALSE)) -> 1 | J150: =IF(ISERROR(VLOOKUP(C150,BDDG!$A$2:$H$100,8,FALSE)),"",VLOOKUP(C150,BDDG!$A$2:$H$100,8,FALSE)) -> BB7 | K150: 5 | L150: 60 | M150: 7.2 | N150: =IF(ISERROR(VLOOKUP(C150,BDDG!$A$2:$I$100,9,FALSE)),"",VLOOKUP(C150,BDDG!$A$2:$I$100,9,FALSE)) -> CC7 | Q150: =IF(ISERROR(O150/P150*86.4),"",O150/P150*86.4) ->  | R150: =IF(ISERROR(VLOOKUP(C150,BDDG!$A$2:$J$100,10,FALSE)),"",VLOOKUP(C150,BDDG!$A$2:$J$100,10,FALSE)) -> DD7 | V150: 7.2 | W150: 4 | X150: 2004 | Y150: =IFERROR((INDEX($V$2:V150,MATCH(H150&MAX(IF($H$1:H149=H150,$A$1:A149)),$H$2:H150&$A$2:A150,0))-V150)*-1,"") -> -10.08
A151: 2004-04-30 | C151: 836 | D151: =IF(ISNA(VLOOKUP(C151,BDDG!$A$2:$F$100,2,FALSE)),"",VLOOKUP(C151,BDDG!$A$2:$F$100,2,FALSE)) -> 0 | E151: =IF(ISNA(VLOOKUP(C151,BDDG!$A$3:$J$102,3,FALSE)),"",VLOOKUP(C151,BDDG!$A$3:$J$102,3,FALSE)) -> A | F151: =IF(ISNA(VLOOKUP(C151,BDDG!$A$3:$J$102,4,FALSE)),"",VLOOKUP(C151,BDDG!$A$3:$J$102,4,FALSE)) -> 106 | G151: =IF(ISNA(VLOOKUP(C151,BDDG!$A$2:$F$100,5,FALSE)),"",VLOOKUP(C151,BDDG!$A$2:$F$100,5,FALSE)) -> A3 | H151: =IF(ISNA(VLOOKUP(C151,BDDG!$A$2:$F$100,6,FALSE)),"",VLOOKUP(C151,BDDG!$A$2:$F$100,6,FALSE)) -> AA6 | I151: =IF(ISERROR(VLOOKUP(C151,BDDG!$A$2:$G$100,7,FALSE)),"",VLOOKUP(C151,BDDG!$A$2:$G$100,7,FALSE)) -> 1 | J151: =IF(ISERROR(VLOOKUP(C151,BDDG!$A$2:$H$100,8,FALSE)),"",VLOOKUP(C151,BDDG!$A$2:$H$100,8,FALSE)) -> BB6 | K151: 105 | L151: 60 | M151: 151.2 | N151: =IF(ISERROR(VLOOKUP(C151,BDDG!$A$2:$I$100,9,FALSE)),"",VLOOKUP(C151,BDDG!$A$2:$I$100,9,FALSE)) -> CC6 | Q151: =IF(ISERROR(O151/P151*86.4),"",O151/P151*86.4) ->  | R151: =IF(ISERROR(VLOOKUP(C151,BDDG!$A$2:$J$100,10,FALSE)),"",VLOOKUP(C151,BDDG!$A$2:$J$100,10,FALSE)) -> DD6 | V151: 151.2 | W151: 4 | X151: 2004 | Y151: =IFERROR((INDEX($V$2:V151,MATCH(H151&MAX(IF($H$1:H150=H151,$A$1:A150)),$H$2:H151&$A$2:A151,0))-V151)*-1,"") -> 82.08
A152: 2004-04-30 | C152: 835 | D152: =IF(ISNA(VLOOKUP(C152,BDDG!$A$2:$F$100,2,FALSE)),"",VLOOKUP(C152,BDDG!$A$2:$F$100,2,FALSE)) -> 0 | E152: =IF(ISNA(VLOOKUP(C152,BDDG!$A$3:$J$102,3,FALSE)),"",VLOOKUP(C152,BDDG!$A$3:$J$102,3,FALSE)) -> A | F152: =IF(ISNA(VLOOKUP(C152,BDDG!$A$3:$J$102,4,FALSE)),"",VLOOKUP(C152,BDDG!$A$3:$J$102,4,FALSE)) -> 106 | G152: =IF(ISNA(VLOOKUP(C152,BDDG!$A$2:$F$100,5,FALSE)),"",VLOOKUP(C152,BDDG!$A$2:$F$100,5,FALSE)) -> A3 | H152: =IF(ISNA(VLOOKUP(C152,BDDG!$A$2:$F$100,6,FALSE)),"",VLOOKUP(C152,BDDG!$A$2:$F$100,6,FALSE)) -> AA5 | I152: =IF(ISERROR(VLOOKUP(C152,BDDG!$A$2:$G$100,7,FALSE)),"",VLOOKUP(C152,BDDG!$A$2:$G$100,7,FALSE)) -> 1 | J152: =IF(ISERROR(VLOOKUP(C152,BDDG!$A$2:$H$100,8,FALSE)),"",VLOOKUP(C152,BDDG!$A$2:$H$100,8,FALSE)) -> BB5 | K152: 15 | L152: 60 | M152: 21.6 | N152: =IF(ISERROR(VLOOKUP(C152,BDDG!$A$2:$I$100,9,FALSE)),"",VLOOKUP(C152,BDDG!$A$2:$I$100,9,FALSE)) -> CC5 | Q152: =IF(ISERROR(O152/P152*86.4),"",O152/P152*86.4) ->  | R152: =IF(ISERROR(VLOOKUP(C152,BDDG!$A$2:$J$100,10,FALSE)),"",VLOOKUP(C152,BDDG!$A$2:$J$100,10,FALSE)) -> DD5 | V152: 21.6 | W152: 4 | X152: 2004 | Y152: =IFERROR((INDEX($V$2:V152,MATCH(H152&MAX(IF($H$1:H151=H152,$A$1:A151)),$H$2:H152&$A$2:A152,0))-V152)*-1,"") -> 0
A153: 2004-04-30 | C153: 839 | D153: =IF(ISNA(VLOOKUP(C153,BDDG!$A$2:$F$100,2,FALSE)),"",VLOOKUP(C153,BDDG!$A$2:$F$100,2,FALSE)) -> 0 | E153: =IF(ISNA(VLOOKUP(C153,BDDG!$A$3:$J$102,3,FALSE)),"",VLOOKUP(C153,BDDG!$A$3:$J$102,3,FALSE)) -> A | F153: =IF(ISNA(VLOOKUP(C153,BDDG!$A$3:$J$102,4,FALSE)),"",VLOOKUP(C153,BDDG!$A$3:$J$102,4,FALSE)) -> 106 | G153: =IF(ISNA(VLOOKUP(C153,BDDG!$A$2:$F$100,5,FALSE)),"",VLOOKUP(C153,BDDG!$A$2:$F$100,5,FALSE)) -> A3 | H153: =IF(ISNA(VLOOKUP(C153,BDDG!$A$2:$F$100,6,FALSE)),"",VLOOKUP(C153,BDDG!$A$2:$F$100,6,FALSE)) -> AA10 | I153: =IF(ISERROR(VLOOKUP(C153,BDDG!$A$2:$G$100,7,FALSE)),"",VLOOKUP(C153,BDDG!$A$2:$G$100,7,FALSE)) -> 2 | J153: =IF(ISERROR(VLOOKUP(C153,BDDG!$A$2:$H$100,8,FALSE)),"",VLOOKUP(C153,BDDG!$A$2:$H$100,8,FALSE)) -> BB10 | M153: 158.4 | N153: =IF(ISERROR(VLOOKUP(C153,BDDG!$A$2:$I$100,9,FALSE)),"",VLOOKUP(C153,BDDG!$A$2:$I$100,9,FALSE)) -> CC10 | Q153: =IF(ISERROR(O153/P153*86.4),"",O153/P153*86.4) ->  | R153: =IF(ISERROR(VLOOKUP(C153,BDDG!$A$2:$J$100,10,FALSE)),"",VLOOKUP(C153,BDDG!$A$2:$J$100,10,FALSE)) -> DD10 | V153: 158.4 | W153: 4 | X153: 2004 | Y153: =IFERROR((INDEX($V$2:V153,MATCH(H153&MAX(IF($H$1:H152=H153,$A$1:A152)),$H$2:H153&$A$2:A153,0))-V153)*-1,"") -> 72
A154: 2004-05-05 | C154: 859 | D154: =IF(ISNA(VLOOKUP(C154,BDDG!$A$2:$F$100,2,FALSE)),"",VLOOKUP(C154,BDDG!$A$2:$F$100,2,FALSE)) -> 0 | E154: =IF(ISNA(VLOOKUP(C154,BDDG!$A$3:$J$102,3,FALSE)),"",VLOOKUP(C154,BDDG!$A$3:$J$102,3,FALSE)) -> A | F154: =IF(ISNA(VLOOKUP(C154,BDDG!$A$3:$J$102,4,FALSE)),"",VLOOKUP(C154,BDDG!$A$3:$J$102,4,FALSE)) -> 106 | G154: =IF(ISNA(VLOOKUP(C154,BDDG!$A$2:$F$100,5,FALSE)),"",VLOOKUP(C154,BDDG!$A$2:$F$100,5,FALSE)) -> A10 | H154: =IF(ISNA(VLOOKUP(C154,BDDG!$A$2:$F$100,6,FALSE)),"",VLOOKUP(C154,BDDG!$A$2:$F$100,6,FALSE)) -> AA30 | I154: =IF(ISERROR(VLOOKUP(C154,BDDG!$A$2:$G$100,7,FALSE)),"",VLOOKUP(C154,BDDG!$A$2:$G$100,7,FALSE)) -> 1 | J154: =IF(ISERROR(VLOOKUP(C154,BDDG!$A$2:$H$100,8,FALSE)),"",VLOOKUP(C154,BDDG!$A$2:$H$100,8,FALSE)) -> BB30 | K154: 10 | L154: 43 | M154: =IF(ISERROR(K154/L154*86.4),"",K154/L154*86.4) -> 20.09302326 | R154: =IF(ISERROR(VLOOKUP(C154,BDDG!$A$2:$J$100,10,FALSE)),"",VLOOKUP(C154,BDDG!$A$2:$J$100,10,FALSE)) -> DD30 | V154: 20.09302326 | W154: 5 | X154: 2004 | Y154: =IFERROR((INDEX($V$2:V154,MATCH(H154&MAX(IF($H$1:H153=H154,$A$1:A153)),$H$2:H154&$A$2:A154,0))-V154)*-1,"") -> 15.20302326
A155: 2004-05-05 | C155: 815 | D155: =IF(ISNA(VLOOKUP(C155,BDDG!$A$2:$F$100,2,FALSE)),"",VLOOKUP(C155,BDDG!$A$2:$F$100,2,FALSE)) -> 0 | E155: =IF(ISNA(VLOOKUP(C155,BDDG!$A$3:$J$102,3,FALSE)),"",VLOOKUP(C155,BDDG!$A$3:$J$102,3,FALSE)) -> A | F155: =IF(ISNA(VLOOKUP(C155,BDDG!$A$3:$J$102,4,FALSE)),"",VLOOKUP(C155,BDDG!$A$3:$J$102,4,FALSE)) -> 106 | G155: =IF(ISNA(VLOOKUP(C155,BDDG!$A$2:$F$100,5,FALSE)),"",VLOOKUP(C155,BDDG!$A$2:$F$100,5,FALSE)) -> A10 | H155: =IF(ISNA(VLOOKUP(C155,BDDG!$A$2:$F$100,6,FALSE)),"",VLOOKUP(C155,BDDG!$A$2:$F$100,6,FALSE)) -> AA31 | I155: =IF(ISERROR(VLOOKUP(C155,BDDG!$A$2:$G$100,7,FALSE)),"",VLOOKUP(C155,BDDG!$A$2:$G$100,7,FALSE)) -> 1 | J155: =IF(ISERROR(VLOOKUP(C155,BDDG!$A$2:$H$100,8,FALSE)),"",VLOOKUP(C155,BDDG!$A$2:$H$100,8,FALSE)) -> BB31 | K155: 10 | L155: 12 | M155: 72 | N155: =IF(ISERROR(VLOOKUP(C155,BDDG!$A$2:$I$100,9,FALSE)),"",VLOOKUP(C155,BDDG!$A$2:$I$100,9,FALSE)) -> CC31 | Q155: =IF(ISERROR(O155/P155*86.4),"",O155/P155*86.4) ->  | R155: =IF(ISERROR(VLOOKUP(C155,BDDG!$A$2:$J$100,10,FALSE)),"",VLOOKUP(C155,BDDG!$A$2:$J$100,10,FALSE)) -> DD31 | V155: 72 | W155: 5 | X155: 2004 | Y155: =IFERROR((INDEX($V$2:V155,MATCH(H155&MAX(IF($H$1:H154=H155,$A$1:A154)),$H$2:H155&$A$2:A155,0))-V155)*-1,"") -> 65.35384615
A156: 2004-06-10 | C156: 856 | D156: =IF(ISNA(VLOOKUP(C156,BDDG!$A$2:$F$100,2,FALSE)),"",VLOOKUP(C156,BDDG!$A$2:$F$100,2,FALSE)) -> 0 | E156: =IF(ISNA(VLOOKUP(C156,BDDG!$A$3:$J$102,3,FALSE)),"",VLOOKUP(C156,BDDG!$A$3:$J$102,3,FALSE)) -> A | F156: =IF(ISNA(VLOOKUP(C156,BDDG!$A$3:$J$102,4,FALSE)),"",VLOOKUP(C156,BDDG!$A$3:$J$102,4,FALSE)) -> 106 | G156: =IF(ISNA(VLOOKUP(C156,BDDG!$A$2:$F$100,5,FALSE)),"",VLOOKUP(C156,BDDG!$A$2:$F$100,5,FALSE)) -> A9 | H156: =IF(ISNA(VLOOKUP(C156,BDDG!$A$2:$F$100,6,FALSE)),"",VLOOKUP(C156,BDDG!$A$2:$F$100,6,FALSE)) -> AA27 | I156: =IF(ISERROR(VLOOKUP(C156,BDDG!$A$2:$G$100,7,FALSE)),"",VLOOKUP(C156,BDDG!$A$2:$G$100,7,FALSE)) -> 2 | J156: =IF(ISERROR(VLOOKUP(C156,BDDG!$A$2:$H$100,8,FALSE)),"",VLOOKUP(C156,BDDG!$A$2:$H$100,8,FALSE)) -> BB27 | K156: 10 | L156: 45 | M156: 19.2 | N156: =IF(ISERROR(VLOOKUP(C156,BDDG!$A$2:$I$100,9,FALSE)),"",VLOOKUP(C156,BDDG!$A$2:$I$100,9,FALSE)) -> CC27 | O156: 10 | P156: 4 | Q156: 216 | R156: =IF(ISERROR(VLOOKUP(C156,BDDG!$A$2:$J$100,10,FALSE)),"",VLOOKUP(C156,BDDG!$A$2:$J$100,10,FALSE)) -> DD27 | V156: 235.2 | W156: 6 | X156: 2004 | Y156: =IFERROR((INDEX($V$2:V156,MATCH(H156&MAX(IF($H$1:H155=H156,$A$1:A155)),$H$2:H156&$A$2:A156,0))-V156)*-1,"") -> 159.6
A157: 2004-06-15 | C157: 842 | D157: =IF(ISNA(VLOOKUP(C157,BDDG!$A$2:$F$100,2,FALSE)),"",VLOOKUP(C157,BDDG!$A$2:$F$100,2,FALSE)) -> 0 | E157: =IF(ISNA(VLOOKUP(C157,BDDG!$A$3:$J$102,3,FALSE)),"",VLOOKUP(C157,BDDG!$A$3:$J$102,3,FALSE)) -> B | F157: =IF(ISNA(VLOOKUP(C157,BDDG!$A$3:$J$102,4,FALSE)),"",VLOOKUP(C157,BDDG!$A$3:$J$102,4,FALSE)) -> 106 | G157: =IF(ISNA(VLOOKUP(C157,BDDG!$A$2:$F$100,5,FALSE)),"",VLOOKUP(C157,BDDG!$A$2:$F$100,5,FALSE)) -> A5 | H157: =IF(ISNA(VLOOKUP(C157,BDDG!$A$2:$F$100,6,FALSE)),"",VLOOKUP(C157,BDDG!$A$2:$F$100,6,FALSE)) -> AA13 | I157: =IF(ISERROR(VLOOKUP(C157,BDDG!$A$2:$G$100,7,FALSE)),"",VLOOKUP(C157,BDDG!$A$2:$G$100,7,FALSE)) -> 1 | J157: =IF(ISERROR(VLOOKUP(C157,BDDG!$A$2:$H$100,8,FALSE)),"",VLOOKUP(C157,BDDG!$A$2:$H$100,8,FALSE)) -> BB13 | K157: 30 | L157: 60 | M157: 43.2 | N157: =IF(ISERROR(VLOOKUP(C157,BDDG!$A$2:$I$100,9,FALSE)),"",VLOOKUP(C157,BDDG!$A$2:$I$100,9,FALSE)) -> CC13 | R157: =IF(ISERROR(VLOOKUP(C157,BDDG!$A$2:$J$100,10,FALSE)),"",VLOOKUP(C157,BDDG!$A$2:$J$100,10,FALSE)) -> DD13 | V157: 43.2 | W157: 6 | X157: 2004 | Y157: =IFERROR((INDEX($V$2:V157,MATCH(H157&MAX(IF($H$1:H156=H157,$A$1:A156)),$H$2:H157&$A$2:A157,0))-V157)*-1,"") -> 29.90769231
A158: 2004-06-15 | C158: 848 | D158: =IF(ISNA(VLOOKUP(C158,BDDG!$A$2:$F$100,2,FALSE)),"",VLOOKUP(C158,BDDG!$A$2:$F$100,2,FALSE)) -> 0 | E158: =IF(ISNA(VLOOKUP(C158,BDDG!$A$3:$J$102,3,FALSE)),"",VLOOKUP(C158,BDDG!$A$3:$J$102,3,FALSE)) -> B | F158: =IF(ISNA(VLOOKUP(C158,BDDG!$A$3:$J$102,4,FALSE)),"",VLOOKUP(C158,BDDG!$A$3:$J$102,4,FALSE)) -> 106 | G158: =IF(ISNA(VLOOKUP(C158,BDDG!$A$2:$F$100,5,FALSE)),"",VLOOKUP(C158,BDDG!$A$2:$F$100,5,FALSE)) -> A7 | H158: =IF(ISNA(VLOOKUP(C158,BDDG!$A$2:$F$100,6,FALSE)),"",VLOOKUP(C158,BDDG!$A$2:$F$100,6,FALSE)) -> AA19 | I158: =IF(ISERROR(VLOOKUP(C158,BDDG!$A$2:$G$100,7,FALSE)),"",VLOOKUP(C158,BDDG!$A$2:$G$100,7,FALSE)) -> 2 | J158: =IF(ISERROR(VLOOKUP(C158,BDDG!$A$2:$H$100,8,FALSE)),"",VLOOKUP(C158,BDDG!$A$2:$H$100,8,FALSE)) -> BB19 | K158: 16 | L158: 60 | M158: 23.04 | N158: =IF(ISERROR(VLOOKUP(C158,BDDG!$A$2:$I$100,9,FALSE)),"",VLOOKUP(C158,BDDG!$A$2:$I$100,9,FALSE)) -> CC19 | R158: =IF(ISERROR(VLOOKUP(C158,BDDG!$A$2:$J$100,10,FALSE)),"",VLOOKUP(C158,BDDG!$A$2:$J$100,10,FALSE)) -> DD19 | V158: 23.04 | W158: 6 | X158: 2004 | Y158: =IFERROR((INDEX($V$2:V158,MATCH(H158&MAX(IF($H$1:H157=H158,$A$1:A157)),$H$2:H158&$A$2:A158,0))-V158)*-1,"") -> 12.24
A159: 2004-06-15 | C159: 847 | D159: =IF(ISNA(VLOOKUP(C159,BDDG!$A$2:$F$100,2,FALSE)),"",VLOOKUP(C159,BDDG!$A$2:$F$100,2,FALSE)) -> 0 | E159: =IF(ISNA(VLOOKUP(C159,BDDG!$A$3:$J$102,3,FALSE)),"",VLOOKUP(C159,BDDG!$A$3:$J$102,3,FALSE)) -> B | F159: =IF(ISNA(VLOOKUP(C159,BDDG!$A$3:$J$102,4,FALSE)),"",VLOOKUP(C159,BDDG!$A$3:$J$102,4,FALSE)) -> 106 | G159: =IF(ISNA(VLOOKUP(C159,BDDG!$A$2:$F$100,5,FALSE)),"",VLOOKUP(C159,BDDG!$A$2:$F$100,5,FALSE)) -> A7 | H159: =IF(ISNA(VLOOKUP(C159,BDDG!$A$2:$F$100,6,FALSE)),"",VLOOKUP(C159,BDDG!$A$2:$F$100,6,FALSE)) -> AA18 | I159: =IF(ISERROR(VLOOKUP(C159,BDDG!$A$2:$G$100,7,FALSE)),"",VLOOKUP(C159,BDDG!$A$2:$G$100,7,FALSE)) -> 2 | J159: =IF(ISERROR(VLOOKUP(C159,BDDG!$A$2:$H$100,8,FALSE)),"",VLOOKUP(C159,BDDG!$A$2:$H$100,8,FALSE)) -> BB18 | K159: 16 | L159: 60 | M159: 23.04 | N159: =IF(ISERROR(VLOOKUP(C159,BDDG!$A$2:$I$100,9,FALSE)),"",VLOOKUP(C159,BDDG!$A$2:$I$100,9,FALSE)) -> CC18 | O159: 12 | P159: 60 | Q159: 17.28 | R159: =IF(ISERROR(VLOOKUP(C159,BDDG!$A$2:$J$100,10,FALSE)),"",VLOOKUP(C159,BDDG!$A$2:$J$100,10,FALSE)) -> DD18 | V159: 40.32 | W159: 6 | X159: 2004 | Y159: =IFERROR((INDEX($V$2:V159,MATCH(H159&MAX(IF($H$1:H158=H159,$A$1:A158)),$H$2:H159&$A$2:A159,0))-V159)*-1,"") -> 26.64
A160: 2004-06-17 | C160: 835 | D160: =IF(ISNA(VLOOKUP(C160,BDDG!$A$2:$F$100,2,FALSE)),"",VLOOKUP(C160,BDDG!$A$2:$F$100,2,FALSE)) -> 0 | E160: =IF(ISNA(VLOOKUP(C160,BDDG!$A$3:$J$102,3,FALSE)),"",VLOOKUP(C160,BDDG!$A$3:$J$102,3,FALSE)) -> A | F160: =IF(ISNA(VLOOKUP(C160,BDDG!$A$3:$J$102,4,FALSE)),"",VLOOKUP(C160,BDDG!$A$3:$J$102,4,FALSE)) -> 106 | G160: =IF(ISNA(VLOOKUP(C160,BDDG!$A$2:$F$100,5,FALSE)),"",VLOOKUP(C160,BDDG!$A$2:$F$100,5,FALSE)) -> A3 | H160: =IF(ISNA(VLOOKUP(C160,BDDG!$A$2:$F$100,6,FALSE)),"",VLOOKUP(C160,BDDG!$A$2:$F$100,6,FALSE)) -> AA5 | I160: =IF(ISERROR(VLOOKUP(C160,BDDG!$A$2:$G$100,7,FALSE)),"",VLOOKUP(C160,BDDG!$A$2:$G$100,7,FALSE)) -> 1 | J160: =IF(ISERROR(VLOOKUP(C160,BDDG!$A$2:$H$100,8,FALSE)),"",VLOOKUP(C160,BDDG!$A$2:$H$100,8,FALSE)) -> BB5 | K160: 12 | L160: 160 | M160: 6.48 | N160: =IF(ISERROR(VLOOKUP(C160,BDDG!$A$2:$I$100,9,FALSE)),"",VLOOKUP(C160,BDDG!$A$2:$I$100,9,FALSE)) -> CC5 | R160: =IF(ISERROR(VLOOKUP(C160,BDDG!$A$2:$J$100,10,FALSE)),"",VLOOKUP(C160,BDDG!$A$2:$J$100,10,FALSE)) -> DD5 | V160: 6.48 | W160: 6 | X160: 2004 | Y160: =IFERROR((INDEX($V$2:V160,MATCH(H160&MAX(IF($H$1:H159=H160,$A$1:A159)),$H$2:H160&$A$2:A160,0))-V160)*-1,"") -> -15.12
A161: 2004-06-24 | C161: 815 | D161: =IF(ISNA(VLOOKUP(C161,BDDG!$A$2:$F$100,2,FALSE)),"",VLOOKUP(C161,BDDG!$A$2:$F$100,2,FALSE)) -> 0 | E161: =IF(ISNA(VLOOKUP(C161,BDDG!$A$3:$J$102,3,FALSE)),"",VLOOKUP(C161,BDDG!$A$3:$J$102,3,FALSE)) -> A | F161: =IF(ISNA(VLOOKUP(C161,BDDG!$A$3:$J$102,4,FALSE)),"",VLOOKUP(C161,BDDG!$A$3:$J$102,4,FALSE)) -> 106 | G161: =IF(ISNA(VLOOKUP(C161,BDDG!$A$2:$F$100,5,FALSE)),"",VLOOKUP(C161,BDDG!$A$2:$F$100,5,FALSE)) -> A10 | H161: =IF(ISNA(VLOOKUP(C161,BDDG!$A$2:$F$100,6,FALSE)),"",VLOOKUP(C161,BDDG!$A$2:$F$100,6,FALSE)) -> AA31 | I161: =IF(ISERROR(VLOOKUP(C161,BDDG!$A$2:$G$100,7,FALSE)),"",VLOOKUP(C161,BDDG!$A$2:$G$100,7,FALSE)) -> 1 | J161: =IF(ISERROR(VLOOKUP(C161,BDDG!$A$2:$H$100,8,FALSE)),"",VLOOKUP(C161,BDDG!$A$2:$H$100,8,FALSE)) -> BB31 | K161: 10 | L161: 35 | M161: 24.68571429 | N161: =IF(ISERROR(VLOOKUP(C161,BDDG!$A$2:$I$100,9,FALSE)),"",VLOOKUP(C161,BDDG!$A$2:$I$100,9,FALSE)) -> CC31 | R161: =IF(ISERROR(VLOOKUP(C161,BDDG!$A$2:$J$100,10,FALSE)),"",VLOOKUP(C161,BDDG!$A$2:$J$100,10,FALSE)) -> DD31 | V161: 24.68571429 | W161: 6 | X161: 2004 | Y161: =IFERROR((INDEX($V$2:V161,MATCH(H161&MAX(IF($H$1:H160=H161,$A$1:A160)),$H$2:H161&$A$2:A161,0))-V161)*-1,"") -> -47.31428571
A162: 2004-07-02 | C162: 837 | D162: =IF(ISNA(VLOOKUP(C162,BDDG!$A$2:$F$100,2,FALSE)),"",VLOOKUP(C162,BDDG!$A$2:$F$100,2,FALSE)) -> 0 | E162: =IF(ISNA(VLOOKUP(C162,BDDG!$A$3:$J$102,3,FALSE)),"",VLOOKUP(C162,BDDG!$A$3:$J$102,3,FALSE)) -> A | F162: =IF(ISNA(VLOOKUP(C162,BDDG!$A$3:$J$102,4,FALSE)),"",VLOOKUP(C162,BDDG!$A$3:$J$102,4,FALSE)) -> 106 | G162: =IF(ISNA(VLOOKUP(C162,BDDG!$A$2:$F$100,5,FALSE)),"",VLOOKUP(C162,BDDG!$A$2:$F$100,5,FALSE)) -> A3 | H162: =IF(ISNA(VLOOKUP(C162,BDDG!$A$2:$F$100,6,FALSE)),"",VLOOKUP(C162,BDDG!$A$2:$F$100,6,FALSE)) -> AA7 | I162: =IF(ISERROR(VLOOKUP(C162,BDDG!$A$2:$G$100,7,FALSE)),"",VLOOKUP(C162,BDDG!$A$2:$G$100,7,FALSE)) -> 1 | J162: =IF(ISERROR(VLOOKUP(C162,BDDG!$A$2:$H$100,8,FALSE)),"",VLOOKUP(C162,BDDG!$A$2:$H$100,8,FALSE)) -> BB7 | K162: 0.2 | L162: 1 | M162: 17.28 | N162: =IF(ISERROR(VLOOKUP(C162,BDDG!$A$2:$I$100,9,FALSE)),"",VLOOKUP(C162,BDDG!$A$2:$I$100,9,FALSE)) -> CC7 | R162: =IF(ISERROR(VLOOKUP(C162,BDDG!$A$2:$J$100,10,FALSE)),"",VLOOKUP(C162,BDDG!$A$2:$J$100,10,FALSE)) -> DD7 | V162: 17.28 | W162: 7 | X162: 2004 | Y162: =IFERROR((INDEX($V$2:V162,MATCH(H162&MAX(IF($H$1:H161=H162,$A$1:A161)),$H$2:H162&$A$2:A162,0))-V162)*-1,"") -> 10.08
A163: 2004-07-02 | C163: 836 | D163: =IF(ISNA(VLOOKUP(C163,BDDG!$A$2:$F$100,2,FALSE)),"",VLOOKUP(C163,BDDG!$A$2:$F$100,2,FALSE)) -> 0 | E163: =IF(ISNA(VLOOKUP(C163,BDDG!$A$3:$J$102,3,FALSE)),"",VLOOKUP(C163,BDDG!$A$3:$J$102,3,FALSE)) -> A | F163: =IF(ISNA(VLOOKUP(C163,BDDG!$A$3:$J$102,4,FALSE)),"",VLOOKUP(C163,BDDG!$A$3:$J$102,4,FALSE)) -> 106 | G163: =IF(ISNA(VLOOKUP(C163,BDDG!$A$2:$F$100,5,FALSE)),"",VLOOKUP(C163,BDDG!$A$2:$F$100,5,FALSE)) -> A3 | H163: =IF(ISNA(VLOOKUP(C163,BDDG!$A$2:$F$100,6,FALSE)),"",VLOOKUP(C163,BDDG!$A$2:$F$100,6,FALSE)) -> AA6 | I163: =IF(ISERROR(VLOOKUP(C163,BDDG!$A$2:$G$100,7,FALSE)),"",VLOOKUP(C163,BDDG!$A$2:$G$100,7,FALSE)) -> 1 | J163: =IF(ISERROR(VLOOKUP(C163,BDDG!$A$2:$H$100,8,FALSE)),"",VLOOKUP(C163,BDDG!$A$2:$H$100,8,FALSE)) -> BB6 | K163: 0.66 | L163: 1 | M163: 57.024 | N163: =IF(ISERROR(VLOOKUP(C163,BDDG!$A$2:$I$100,9,FALSE)),"",VLOOKUP(C163,BDDG!$A$2:$I$100,9,FALSE)) -> CC6 | R163: =IF(ISERROR(VLOOKUP(C163,BDDG!$A$2:$J$100,10,FALSE)),"",VLOOKUP(C163,BDDG!$A$2:$J$100,10,FALSE)) -> DD6 | V163: 57.024 | W163: 7 | X163: 2004 | Y163: =IFERROR((INDEX($V$2:V163,MATCH(H163&MAX(IF($H$1:H162=H163,$A$1:A162)),$H$2:H163&$A$2:A163,0))-V163)*-1,"") -> -94.176
A164: 2004-07-02 | C164: 839 | D164: =IF(ISNA(VLOOKUP(C164,BDDG!$A$2:$F$100,2,FALSE)),"",VLOOKUP(C164,BDDG!$A$2:$F$100,2,FALSE)) -> 0 | E164: =IF(ISNA(VLOOKUP(C164,BDDG!$A$3:$J$102,3,FALSE)),"",VLOOKUP(C164,BDDG!$A$3:$J$102,3,FALSE)) -> A | F164: =IF(ISNA(VLOOKUP(C164,BDDG!$A$3:$J$102,4,FALSE)),"",VLOOKUP(C164,BDDG!$A$3:$J$102,4,FALSE)) -> 106 | G164: =IF(ISNA(VLOOKUP(C164,BDDG!$A$2:$F$100,5,FALSE)),"",VLOOKUP(C164,BDDG!$A$2:$F$100,5,FALSE)) -> A3 | H164: =IF(ISNA(VLOOKUP(C164,BDDG!$A$2:$F$100,6,FALSE)),"",VLOOKUP(C164,BDDG!$A$2:$F$100,6,FALSE)) -> AA10 | I164: =IF(ISERROR(VLOOKUP(C164,BDDG!$A$2:$G$100,7,FALSE)),"",VLOOKUP(C164,BDDG!$A$2:$G$100,7,FALSE)) -> 2 | J164: =IF(ISERROR(VLOOKUP(C164,BDDG!$A$2:$H$100,8,FALSE)),"",VLOOKUP(C164,BDDG!$A$2:$H$100,8,FALSE)) -> BB10 | M164: 74.3 | N164: =IF(ISERROR(VLOOKUP(C164,BDDG!$A$2:$I$100,9,FALSE)),"",VLOOKUP(C164,BDDG!$A$2:$I$100,9,FALSE)) -> CC10 | R164: =IF(ISERROR(VLOOKUP(C164,BDDG!$A$2:$J$100,10,FALSE)),"",VLOOKUP(C164,BDDG!$A$2:$J$100,10,FALSE)) -> DD10 | V164: 74.3 | W164: 7 | X164: 2004 | Y164: =IFERROR((INDEX($V$2:V164,MATCH(H164&MAX(IF($H$1:H163=H164,$A$1:A163)),$H$2:H164&$A$2:A164,0))-V164)*-1,"") -> -84.1
A165: 2004-09-21 | C165: 815 | D165: =IF(ISNA(VLOOKUP(C165,BDDG!$A$2:$F$100,2,FALSE)),"",VLOOKUP(C165,BDDG!$A$2:$F$100,2,FALSE)) -> 0 | E165: =IF(ISNA(VLOOKUP(C165,BDDG!$A$3:$J$102,3,FALSE)),"",VLOOKUP(C165,BDDG!$A$3:$J$102,3,FALSE)) -> A | F165: =IF(ISNA(VLOOKUP(C165,BDDG!$A$3:$J$102,4,FALSE)),"",VLOOKUP(C165,BDDG!$A$3:$J$102,4,FALSE)) -> 106 | G165: =IF(ISNA(VLOOKUP(C165,BDDG!$A$2:$F$100,5,FALSE)),"",VLOOKUP(C165,BDDG!$A$2:$F$100,5,FALSE)) -> A10 | H165: =IF(ISNA(VLOOKUP(C165,BDDG!$A$2:$F$100,6,FALSE)),"",VLOOKUP(C165,BDDG!$A$2:$F$100,6,FALSE)) -> AA31 | I165: =IF(ISERROR(VLOOKUP(C165,BDDG!$A$2:$G$100,7,FALSE)),"",VLOOKUP(C165,BDDG!$A$2:$G$100,7,FALSE)) -> 1 | J165: =IF(ISERROR(VLOOKUP(C165,BDDG!$A$2:$H$100,8,FALSE)),"",VLOOKUP(C165,BDDG!$A$2:$H$100,8,FALSE)) -> BB31 | K165: 15 | L165: 95 | M165: =IF(ISERROR(K165/L165*86.4),"",K165/L165*86.4) -> 13.64210526 | N165: =IF(ISERROR(VLOOKUP(C165,BDDG!$A$2:$I$100,9,FALSE)),"",VLOOKUP(C165,BDDG!$A$2:$I$100,9,FALSE)) -> CC31 | R165: =IF(ISERROR(VLOOKUP(C165,BDDG!$A$2:$J$100,10,FALSE)),"",VLOOKUP(C165,BDDG!$A$2:$J$100,10,FALSE)) -> DD31 | V165: 13.64210526 | W165: 9 | X165: 2004 | Y165: =IFERROR((INDEX($V$2:V165,MATCH(H165&MAX(IF($H$1:H164=H165,$A$1:A164)),$H$2:H165&$A$2:A165,0))-V165)*-1,"") -> -11.04360902
A166: 2004-09-22 | C166: 815 | D166: =IF(ISNA(VLOOKUP(C166,BDDG!$A$2:$F$100,2,FALSE)),"",VLOOKUP(C166,BDDG!$A$2:$F$100,2,FALSE)) -> 0 | E166: =IF(ISNA(VLOOKUP(C166,BDDG!$A$3:$J$102,3,FALSE)),"",VLOOKUP(C166,BDDG!$A$3:$J$102,3,FALSE)) -> A | F166: =IF(ISNA(VLOOKUP(C166,BDDG!$A$3:$J$102,4,FALSE)),"",VLOOKUP(C166,BDDG!$A$3:$J$102,4,FALSE)) -> 106 | G166: =IF(ISNA(VLOOKUP(C166,BDDG!$A$2:$F$100,5,FALSE)),"",VLOOKUP(C166,BDDG!$A$2:$F$100,5,FALSE)) -> A10 | H166: =IF(ISNA(VLOOKUP(C166,BDDG!$A$2:$F$100,6,FALSE)),"",VLOOKUP(C166,BDDG!$A$2:$F$100,6,FALSE)) -> AA31 | I166: =IF(ISERROR(VLOOKUP(C166,BDDG!$A$2:$G$100,7,FALSE)),"",VLOOKUP(C166,BDDG!$A$2:$G$100,7,FALSE)) -> 1 | J166: =IF(ISERROR(VLOOKUP(C166,BDDG!$A$2:$H$100,8,FALSE)),"",VLOOKUP(C166,BDDG!$A$2:$H$100,8,FALSE)) -> BB31 | K166: 15 | L166: 250 | M166: =IF(ISERROR(K166/L166*86.4),"",K166/L166*86.4) -> 5.184 | N166: =IF(ISERROR(VLOOKUP(C166,BDDG!$A$2:$I$100,9,FALSE)),"",VLOOKUP(C166,BDDG!$A$2:$I$100,9,FALSE)) -> CC31 | R166: =IF(ISERROR(VLOOKUP(C166,BDDG!$A$2:$J$100,10,FALSE)),"",VLOOKUP(C166,BDDG!$A$2:$J$100,10,FALSE)) -> DD31 | V166: 5.184 | W166: 9 | X166: 2004 | Y166: =IFERROR((INDEX($V$2:V166,MATCH(H166&MAX(IF($H$1:H165=H166,$A$1:A165)),$H$2:H166&$A$2:A166,0))-V166)*-1,"") -> -8.458105263
A167: 2004-09-25 | C167: 815 | D167: =IF(ISNA(VLOOKUP(C167,BDDG!$A$2:$F$100,2,FALSE)),"",VLOOKUP(C167,BDDG!$A$2:$F$100,2,FALSE)) -> 0 | E167: =IF(ISNA(VLOOKUP(C167,BDDG!$A$3:$J$102,3,FALSE)),"",VLOOKUP(C167,BDDG!$A$3:$J$102,3,FALSE)) -> A | F167: =IF(ISNA(VLOOKUP(C167,BDDG!$A$3:$J$102,4,FALSE)),"",VLOOKUP(C167,BDDG!$A$3:$J$102,4,FALSE)) -> 106 | G167: =IF(ISNA(VLOOKUP(C167,BDDG!$A$2:$F$100,5,FALSE)),"",VLOOKUP(C167,BDDG!$A$2:$F$100,5,FALSE)) -> A10 | H167: =IF(ISNA(VLOOKUP(C167,BDDG!$A$2:$F$100,6,FALSE)),"",VLOOKUP(C167,BDDG!$A$2:$F$100,6,FALSE)) -> AA31 | I167: =IF(ISERROR(VLOOKUP(C167,BDDG!$A$2:$G$100,7,FALSE)),"",VLOOKUP(C167,BDDG!$A$2:$G$100,7,FALSE)) -> 1 | J167: =IF(ISERROR(VLOOKUP(C167,BDDG!$A$2:$H$100,8,FALSE)),"",VLOOKUP(C167,BDDG!$A$2:$H$100,8,FALSE)) -> BB31 | K167: 15 | L167: 240 | M167: =IF(ISERROR(K167/L167*86.4),"",K167/L167*86.4) -> 5.4 | N167: =IF(ISERROR(VLOOKUP(C167,BDDG!$A$2:$I$100,9,FALSE)),"",VLOOKUP(C167,BDDG!$A$2:$I$100,9,FALSE)) -> CC31 | R167: =IF(ISERROR(VLOOKUP(C167,BDDG!$A$2:$J$100,10,FALSE)),"",VLOOKUP(C167,BDDG!$A$2:$J$100,10,FALSE)) -> DD31 | V167: 5.4 | W167: 9 | X167: 2004 | Y167: =IFERROR((INDEX($V$2:V167,MATCH(H167&MAX(IF($H$1:H166=H167,$A$1:A166)),$H$2:H167&$A$2:A167,0))-V167)*-1,"") -> 0.216
A168: 2004-09-26 | C168: 815 | D168: =IF(ISNA(VLOOKUP(C168,BDDG!$A$2:$F$100,2,FALSE)),"",VLOOKUP(C168,BDDG!$A$2:$F$100,2,FALSE)) -> 0 | E168: =IF(ISNA(VLOOKUP(C168,BDDG!$A$3:$J$102,3,FALSE)),"",VLOOKUP(C168,BDDG!$A$3:$J$102,3,FALSE)) -> A | F168: =IF(ISNA(VLOOKUP(C168,BDDG!$A$3:$J$102,4,FALSE)),"",VLOOKUP(C168,BDDG!$A$3:$J$102,4,FALSE)) -> 106 | G168: =IF(ISNA(VLOOKUP(C168,BDDG!$A$2:$F$100,5,FALSE)),"",VLOOKUP(C168,BDDG!$A$2:$F$100,5,FALSE)) -> A10 | H168: =IF(ISNA(VLOOKUP(C168,BDDG!$A$2:$F$100,6,FALSE)),"",VLOOKUP(C168,BDDG!$A$2:$F$100,6,FALSE)) -> AA31 | I168: =IF(ISERROR(VLOOKUP(C168,BDDG!$A$2:$G$100,7,FALSE)),"",VLOOKUP(C168,BDDG!$A$2:$G$100,7,FALSE)) -> 1 | J168: =IF(ISERROR(VLOOKUP(C168,BDDG!$A$2:$H$100,8,FALSE)),"",VLOOKUP(C168,BDDG!$A$2:$H$100,8,FALSE)) -> BB31 | K168: 15 | L168: 255 | M168: =IF(ISERROR(K168/L167*86.4),"",K168/L167*86.4) -> 5.4 | N168: =IF(ISERROR(VLOOKUP(C168,BDDG!$A$2:$I$100,9,FALSE)),"",VLOOKUP(C168,BDDG!$A$2:$I$100,9,FALSE)) -> CC31 | R168: =IF(ISERROR(VLOOKUP(C168,BDDG!$A$2:$J$100,10,FALSE)),"",VLOOKUP(C168,BDDG!$A$2:$J$100,10,FALSE)) -> DD31 | V168: 5.4 | W168: 9 | X168: 2004 | Y168: =IFERROR((INDEX($V$2:V168,MATCH(H168&MAX(IF($H$1:H167=H168,$A$1:A167)),$H$2:H168&$A$2:A168,0))-V168)*-1,"") -> 0
A169: 2004-09-27 | C169: 815 | D169: =IF(ISNA(VLOOKUP(C169,BDDG!$A$2:$F$100,2,FALSE)),"",VLOOKUP(C169,BDDG!$A$2:$F$100,2,FALSE)) -> 0 | E169: =IF(ISNA(VLOOKUP(C169,BDDG!$A$3:$J$102,3,FALSE)),"",VLOOKUP(C169,BDDG!$A$3:$J$102,3,FALSE)) -> A | F169: =IF(ISNA(VLOOKUP(C169,BDDG!$A$3:$J$102,4,FALSE)),"",VLOOKUP(C169,BDDG!$A$3:$J$102,4,FALSE)) -> 106 | G169: =IF(ISNA(VLOOKUP(C169,BDDG!$A$2:$F$100,5,FALSE)),"",VLOOKUP(C169,BDDG!$A$2:$F$100,5,FALSE)) -> A10 | H169: =IF(ISNA(VLOOKUP(C169,BDDG!$A$2:$F$100,6,FALSE)),"",VLOOKUP(C169,BDDG!$A$2:$F$100,6,FALSE)) -> AA31 | I169: =IF(ISERROR(VLOOKUP(C169,BDDG!$A$2:$G$100,7,FALSE)),"",VLOOKUP(C169,BDDG!$A$2:$G$100,7,FALSE)) -> 1 | J169: =IF(ISERROR(VLOOKUP(C169,BDDG!$A$2:$H$100,8,FALSE)),"",VLOOKUP(C169,BDDG!$A$2:$H$100,8,FALSE)) -> BB31 | K169: 15 | L169: 270 | M169: =IF(ISERROR(K169/L168*86.4),"",K169/L168*86.4) -> 5.082352941 | N169: =IF(ISERROR(VLOOKUP(C169,BDDG!$A$2:$I$100,9,FALSE)),"",VLOOKUP(C169,BDDG!$A$2:$I$100,9,FALSE)) -> CC31 | R169: =IF(ISERROR(VLOOKUP(C169,BDDG!$A$2:$J$100,10,FALSE)),"",VLOOKUP(C169,BDDG!$A$2:$J$100,10,FALSE)) -> DD31 | V169: 5.082352941 | W169: 9 | X169: 2004 | Y169: =IFERROR((INDEX($V$2:V169,MATCH(H169&MAX(IF($H$1:H168=H169,$A$1:A168)),$H$2:H169&$A$2:A169,0))-V169)*-1,"") -> -0.3176470588
A170: 2004-09-28 | C170: 815 | D170: =IF(ISNA(VLOOKUP(C170,BDDG!$A$2:$F$100,2,FALSE)),"",VLOOKUP(C170,BDDG!$A$2:$F$100,2,FALSE)) -> 0 | E170: =IF(ISNA(VLOOKUP(C170,BDDG!$A$3:$J$102,3,FALSE)),"",VLOOKUP(C170,BDDG!$A$3:$J$102,3,FALSE)) -> A | F170: =IF(ISNA(VLOOKUP(C170,BDDG!$A$3:$J$102,4,FALSE)),"",VLOOKUP(C170,BDDG!$A$3:$J$102,4,FALSE)) -> 106 | G170: =IF(ISNA(VLOOKUP(C170,BDDG!$A$2:$F$100,5,FALSE)),"",VLOOKUP(C170,BDDG!$A$2:$F$100,5,FALSE)) -> A10 | H170: =IF(ISNA(VLOOKUP(C170,BDDG!$A$2:$F$100,6,FALSE)),"",VLOOKUP(C170,BDDG!$A$2:$F$100,6,FALSE)) -> AA31 | I170: =IF(ISERROR(VLOOKUP(C170,BDDG!$A$2:$G$100,7,FALSE)),"",VLOOKUP(C170,BDDG!$A$2:$G$100,7,FALSE)) -> 1 | J170: =IF(ISERROR(VLOOKUP(C170,BDDG!$A$2:$H$100,8,FALSE)),"",VLOOKUP(C170,BDDG!$A$2:$H$100,8,FALSE)) -> BB31 | K170: 15 | L170: 275 | M170: =IF(ISERROR(K170/L169*86.4),"",K170/L169*86.4) -> 4.8 | N170: =IF(ISERROR(VLOOKUP(C170,BDDG!$A$2:$I$100,9,FALSE)),"",VLOOKUP(C170,BDDG!$A$2:$I$100,9,FALSE)) -> CC31 | R170: =IF(ISERROR(VLOOKUP(C170,BDDG!$A$2:$J$100,10,FALSE)),"",VLOOKUP(C170,BDDG!$A$2:$J$100,10,FALSE)) -> DD31 | V170: =IF(ISERROR(SUM(M170,Q170,U170)),"",SUM(M170,Q170,U170)) -> 4.8 | W170: 9 | X170: 2004 | Y170: =IFERROR((INDEX($V$2:V170,MATCH(H170&MAX(IF($H$1:H169=H170,$A$1:A169)),$H$2:H170&$A$2:A170,0))-V170)*-1,"") -> -0.2823529412
A171: 2004-09-29 | C171: 815 | D171: =IF(ISNA(VLOOKUP(C171,BDDG!$A$2:$F$100,2,FALSE)),"",VLOOKUP(C171,BDDG!$A$2:$F$100,2,FALSE)) -> 0 | E171: =IF(ISNA(VLOOKUP(C171,BDDG!$A$3:$J$102,3,FALSE)),"",VLOOKUP(C171,BDDG!$A$3:$J$102,3,FALSE)) -> A | F171: =IF(ISNA(VLOOKUP(C171,BDDG!$A$3:$J$102,4,FALSE)),"",VLOOKUP(C171,BDDG!$A$3:$J$102,4,FALSE)) -> 106 | G171: =IF(ISNA(VLOOKUP(C171,BDDG!$A$2:$F$100,5,FALSE)),"",VLOOKUP(C171,BDDG!$A$2:$F$100,5,FALSE)) -> A10 | H171: =IF(ISNA(VLOOKUP(C171,BDDG!$A$2:$F$100,6,FALSE)),"",VLOOKUP(C171,BDDG!$A$2:$F$100,6,FALSE)) -> AA31 | I171: =IF(ISERROR(VLOOKUP(C171,BDDG!$A$2:$G$100,7,FALSE)),"",VLOOKUP(C171,BDDG!$A$2:$G$100,7,FALSE)) -> 1 | J171: =IF(ISERROR(VLOOKUP(C171,BDDG!$A$2:$H$100,8,FALSE)),"",VLOOKUP(C171,BDDG!$A$2:$H$100,8,FALSE)) -> BB31 | K171: 15 | L171: 275 | M171: =IF(ISERROR(K171/L170*86.4),"",K171/L170*86.4) -> 4.712727273 | N171: =IF(ISERROR(VLOOKUP(C171,BDDG!$A$2:$I$100,9,FALSE)),"",VLOOKUP(C171,BDDG!$A$2:$I$100,9,FALSE)) -> CC31 | R171: =IF(ISERROR(VLOOKUP(C171,BDDG!$A$2:$J$100,10,FALSE)),"",VLOOKUP(C171,BDDG!$A$2:$J$100,10,FALSE)) -> DD31 | V171: 4.712727273 | W171: 9 | X171: 2004 | Y171: =IFERROR((INDEX($V$2:V171,MATCH(H171&MAX(IF($H$1:H170=H171,$A$1:A170)),$H$2:H171&$A$2:A171,0))-V171)*-1,"") -> -0.08727272727
A172: 2004-09-29 | C172: 815 | D172: =IF(ISNA(VLOOKUP(C172,BDDG!$A$2:$F$100,2,FALSE)),"",VLOOKUP(C172,BDDG!$A$2:$F$100,2,FALSE)) -> 0 | E172: =IF(ISNA(VLOOKUP(C172,BDDG!$A$3:$J$102,3,FALSE)),"",VLOOKUP(C172,BDDG!$A$3:$J$102,3,FALSE)) -> A | F172: =IF(ISNA(VLOOKUP(C172,BDDG!$A$3:$J$102,4,FALSE)),"",VLOOKUP(C172,BDDG!$A$3:$J$102,4,FALSE)) -> 106 | G172: =IF(ISNA(VLOOKUP(C172,BDDG!$A$2:$F$100,5,FALSE)),"",VLOOKUP(C172,BDDG!$A$2:$F$100,5,FALSE)) -> A10 | H172: =IF(ISNA(VLOOKUP(C172,BDDG!$A$2:$F$100,6,FALSE)),"",VLOOKUP(C172,BDDG!$A$2:$F$100,6,FALSE)) -> AA31 | I172: =IF(ISERROR(VLOOKUP(C172,BDDG!$A$2:$G$100,7,FALSE)),"",VLOOKUP(C172,BDDG!$A$2:$G$100,7,FALSE)) -> 1 | J172: =IF(ISERROR(VLOOKUP(C172,BDDG!$A$2:$H$100,8,FALSE)),"",VLOOKUP(C172,BDDG!$A$2:$H$100,8,FALSE)) -> BB31 | K172: 15 | L172: 275 | M172: 4.71 | N172: =IF(ISERROR(VLOOKUP(C172,BDDG!$A$2:$I$100,9,FALSE)),"",VLOOKUP(C172,BDDG!$A$2:$I$100,9,FALSE)) -> CC31 | R172: =IF(ISERROR(VLOOKUP(C172,BDDG!$A$2:$J$100,10,FALSE)),"",VLOOKUP(C172,BDDG!$A$2:$J$100,10,FALSE)) -> DD31 | V172: 4.71 | W172: 9 | X172: 2004 | Y172: =IFERROR((INDEX($V$2:V172,MATCH(H172&MAX(IF($H$1:H171=H172,$A$1:A171)),$H$2:H172&$A$2:A172,0))-V172)*-1,"") -> -0.002727272727
A173: 2004-10-01 | C173: 815 | D173: =IF(ISNA(VLOOKUP(C173,BDDG!$A$2:$F$100,2,FALSE)),"",VLOOKUP(C173,BDDG!$A$2:$F$100,2,FALSE)) -> 0 | E173: =IF(ISNA(VLOOKUP(C173,BDDG!$A$3:$J$102,3,FALSE)),"",VLOOKUP(C173,BDDG!$A$3:$J$102,3,FALSE)) -> A | F173: =IF(ISNA(VLOOKUP(C173,BDDG!$A$3:$J$102,4,FALSE)),"",VLOOKUP(C173,BDDG!$A$3:$J$102,4,FALSE)) -> 106 | G173: =IF(ISNA(VLOOKUP(C173,BDDG!$A$2:$F$100,5,FALSE)),"",VLOOKUP(C173,BDDG!$A$2:$F$100,5,FALSE)) -> A10 | H173: =IF(ISNA(VLOOKUP(C173,BDDG!$A$2:$F$100,6,FALSE)),"",VLOOKUP(C173,BDDG!$A$2:$F$100,6,FALSE)) -> AA31 | I173: =IF(ISERROR(VLOOKUP(C173,BDDG!$A$2:$G$100,7,FALSE)),"",VLOOKUP(C173,BDDG!$A$2:$G$100,7,FALSE)) -> 1 | J173: =IF(ISERROR(VLOOKUP(C173,BDDG!$A$2:$H$100,8,FALSE)),"",VLOOKUP(C173,BDDG!$A$2:$H$100,8,FALSE)) -> BB31 | K173: 15 | L173: 270 | M173: =IF(ISERROR(K173/L172*86.4),"",K173/L172*86.4) -> 4.712727273 | N173: =IF(ISERROR(VLOOKUP(C173,BDDG!$A$2:$I$100,9,FALSE)),"",VLOOKUP(C173,BDDG!$A$2:$I$100,9,FALSE)) -> CC31 | R173: =IF(ISERROR(VLOOKUP(C173,BDDG!$A$2:$J$100,10,FALSE)),"",VLOOKUP(C173,BDDG!$A$2:$J$100,10,FALSE)) -> DD31 | V173: 4.712727273 | W173: 10 | X173: 2004 | Y173: =IFERROR((INDEX($V$2:V173,MATCH(H173&MAX(IF($H$1:H172=H173,$A$1:A172)),$H$2:H173&$A$2:A173,0))-V173)*-1,"") -> 0
A174: 2004-10-02 | C174: 815 | D174: =IF(ISNA(VLOOKUP(C174,BDDG!$A$2:$F$100,2,FALSE)),"",VLOOKUP(C174,BDDG!$A$2:$F$100,2,FALSE)) -> 0 | E174: =IF(ISNA(VLOOKUP(C174,BDDG!$A$3:$J$102,3,FALSE)),"",VLOOKUP(C174,BDDG!$A$3:$J$102,3,FALSE)) -> A | F174: =IF(ISNA(VLOOKUP(C174,BDDG!$A$3:$J$102,4,FALSE)),"",VLOOKUP(C174,BDDG!$A$3:$J$102,4,FALSE)) -> 106 | G174: =IF(ISNA(VLOOKUP(C174,BDDG!$A$2:$F$100,5,FALSE)),"",VLOOKUP(C174,BDDG!$A$2:$F$100,5,FALSE)) -> A10 | H174: =IF(ISNA(VLOOKUP(C174,BDDG!$A$2:$F$100,6,FALSE)),"",VLOOKUP(C174,BDDG!$A$2:$F$100,6,FALSE)) -> AA31 | I174: =IF(ISERROR(VLOOKUP(C174,BDDG!$A$2:$G$100,7,FALSE)),"",VLOOKUP(C174,BDDG!$A$2:$G$100,7,FALSE)) -> 1 | J174: =IF(ISERROR(VLOOKUP(C174,BDDG!$A$2:$H$100,8,FALSE)),"",VLOOKUP(C174,BDDG!$A$2:$H$100,8,FALSE)) -> BB31 | K174: 15 | L174: 280 | M174: 4.8 | N174: =IF(ISERROR(VLOOKUP(C174,BDDG!$A$2:$I$100,9,FALSE)),"",VLOOKUP(C174,BDDG!$A$2:$I$100,9,FALSE)) -> CC31 | R174: =IF(ISERROR(VLOOKUP(C174,BDDG!$A$2:$J$100,10,FALSE)),"",VLOOKUP(C174,BDDG!$A$2:$J$100,10,FALSE)) -> DD31 | V174: 4.8 | W174: 10 | X174: 2004 | Y174: =IFERROR((INDEX($V$2:V174,MATCH(H174&MAX(IF($H$1:H173=H174,$A$1:A173)),$H$2:H174&$A$2:A174,0))-V174)*-1,"") -> 0.08727272727
A175: 2004-10-04 | C175: 815 | D175: =IF(ISNA(VLOOKUP(C175,BDDG!$A$2:$F$100,2,FALSE)),"",VLOOKUP(C175,BDDG!$A$2:$F$100,2,FALSE)) -> 0 | E175: =IF(ISNA(VLOOKUP(C175,BDDG!$A$3:$J$102,3,FALSE)),"",VLOOKUP(C175,BDDG!$A$3:$J$102,3,FALSE)) -> A | F175: =IF(ISNA(VLOOKUP(C175,BDDG!$A$3:$J$102,4,FALSE)),"",VLOOKUP(C175,BDDG!$A$3:$J$102,4,FALSE)) -> 106 | G175: =IF(ISNA(VLOOKUP(C175,BDDG!$A$2:$F$100,5,FALSE)),"",VLOOKUP(C175,BDDG!$A$2:$F$100,5,FALSE)) -> A10 | H175: =IF(ISNA(VLOOKUP(C175,BDDG!$A$2:$F$100,6,FALSE)),"",VLOOKUP(C175,BDDG!$A$2:$F$100,6,FALSE)) -> AA31 | I175: =IF(ISERROR(VLOOKUP(C175,BDDG!$A$2:$G$100,7,FALSE)),"",VLOOKUP(C175,BDDG!$A$2:$G$100,7,FALSE)) -> 1 | J175: =IF(ISERROR(VLOOKUP(C175,BDDG!$A$2:$H$100,8,FALSE)),"",VLOOKUP(C175,BDDG!$A$2:$H$100,8,FALSE)) -> BB31 | K175: 15 | L175: 270 | M175: 4.628571429 | N175: =IF(ISERROR(VLOOKUP(C175,BDDG!$A$2:$I$100,9,FALSE)),"",VLOOKUP(C175,BDDG!$A$2:$I$100,9,FALSE)) -> CC31 | R175: =IF(ISERROR(VLOOKUP(C175,BDDG!$A$2:$J$100,10,FALSE)),"",VLOOKUP(C175,BDDG!$A$2:$J$100,10,FALSE)) -> DD31 | V175: 4.628571429 | W175: 10 | X175: 2004 | Y175: =IFERROR((INDEX($V$2:V175,MATCH(H175&MAX(IF($H$1:H174=H175,$A$1:A174)),$H$2:H175&$A$2:A175,0))-V175)*-1,"") -> -0.1714285714
A176: 2004-10-05 | C176: 815 | D176: =IF(ISNA(VLOOKUP(C176,BDDG!$A$2:$F$100,2,FALSE)),"",VLOOKUP(C176,BDDG!$A$2:$F$100,2,FALSE)) -> 0 | E176: =IF(ISNA(VLOOKUP(C176,BDDG!$A$3:$J$102,3,FALSE)),"",VLOOKUP(C176,BDDG!$A$3:$J$102,3,FALSE)) -> A | F176: =IF(ISNA(VLOOKUP(C176,BDDG!$A$3:$J$102,4,FALSE)),"",VLOOKUP(C176,BDDG!$A$3:$J$102,4,FALSE)) -> 106 | G176: =IF(ISNA(VLOOKUP(C176,BDDG!$A$2:$F$100,5,FALSE)),"",VLOOKUP(C176,BDDG!$A$2:$F$100,5,FALSE)) -> A10 | H176: =IF(ISNA(VLOOKUP(C176,BDDG!$A$2:$F$100,6,FALSE)),"",VLOOKUP(C176,BDDG!$A$2:$F$100,6,FALSE)) -> AA31 | I176: =IF(ISERROR(VLOOKUP(C176,BDDG!$A$2:$G$100,7,FALSE)),"",VLOOKUP(C176,BDDG!$A$2:$G$100,7,FALSE)) -> 1 | J176: =IF(ISERROR(VLOOKUP(C176,BDDG!$A$2:$H$100,8,FALSE)),"",VLOOKUP(C176,BDDG!$A$2:$H$100,8,FALSE)) -> BB31 | K176: 15 | L176: 265 | M176: 4.8 | N176: =IF(ISERROR(VLOOKUP(C176,BDDG!$A$2:$I$100,9,FALSE)),"",VLOOKUP(C176,BDDG!$A$2:$I$100,9,FALSE)) -> CC31 | R176: =IF(ISERROR(VLOOKUP(C176,BDDG!$A$2:$J$100,10,FALSE)),"",VLOOKUP(C176,BDDG!$A$2:$J$100,10,FALSE)) -> DD31 | V176: 4.8 | W176: 10 | X176: 2004 | Y176: =IFERROR((INDEX($V$2:V176,MATCH(H176&MAX(IF($H$1:H175=H176,$A$1:A175)),$H$2:H176&$A$2:A176,0))-V176)*-1,"") -> 0.1714285714
A177: 2004-10-06 | C177: 815 | D177: =IF(ISNA(VLOOKUP(C177,BDDG!$A$2:$F$100,2,FALSE)),"",VLOOKUP(C177,BDDG!$A$2:$F$100,2,FALSE)) -> 0 | E177: =IF(ISNA(VLOOKUP(C177,BDDG!$A$3:$J$102,3,FALSE)),"",VLOOKUP(C177,BDDG!$A$3:$J$102,3,FALSE)) -> A | F177: =IF(ISNA(VLOOKUP(C177,BDDG!$A$3:$J$102,4,FALSE)),"",VLOOKUP(C177,BDDG!$A$3:$J$102,4,FALSE)) -> 106 | G177: =IF(ISNA(VLOOKUP(C177,BDDG!$A$2:$F$100,5,FALSE)),"",VLOOKUP(C177,BDDG!$A$2:$F$100,5,FALSE)) -> A10 | H177: =IF(ISNA(VLOOKUP(C177,BDDG!$A$2:$F$100,6,FALSE)),"",VLOOKUP(C177,BDDG!$A$2:$F$100,6,FALSE)) -> AA31 | I177: =IF(ISERROR(VLOOKUP(C177,BDDG!$A$2:$G$100,7,FALSE)),"",VLOOKUP(C177,BDDG!$A$2:$G$100,7,FALSE)) -> 1 | J177: =IF(ISERROR(VLOOKUP(C177,BDDG!$A$2:$H$100,8,FALSE)),"",VLOOKUP(C177,BDDG!$A$2:$H$100,8,FALSE)) -> BB31 | K177: 15 | L177: 260 | M177: 4.890566038 | N177: =IF(ISERROR(VLOOKUP(C177,BDDG!$A$2:$I$100,9,FALSE)),"",VLOOKUP(C177,BDDG!$A$2:$I$100,9,FALSE)) -> CC31 | R177: =IF(ISERROR(VLOOKUP(C177,BDDG!$A$2:$J$100,10,FALSE)),"",VLOOKUP(C177,BDDG!$A$2:$J$100,10,FALSE)) -> DD31 | V177: 4.890566038 | W177: 10 | X177: 2004 | Y177: =IFERROR((INDEX($V$2:V177,MATCH(H177&MAX(IF($H$1:H176=H177,$A$1:A176)),$H$2:H177&$A$2:A177,0))-V177)*-1,"") -> 0.09056603774
A178: 2004-10-07 | C178: 815 | D178: =IF(ISNA(VLOOKUP(C178,BDDG!$A$2:$F$100,2,FALSE)),"",VLOOKUP(C178,BDDG!$A$2:$F$100,2,FALSE)) -> 0 | E178: =IF(ISNA(VLOOKUP(C178,BDDG!$A$3:$J$102,3,FALSE)),"",VLOOKUP(C178,BDDG!$A$3:$J$102,3,FALSE)) -> A | F178: =IF(ISNA(VLOOKUP(C178,BDDG!$A$3:$J$102,4,FALSE)),"",VLOOKUP(C178,BDDG!$A$3:$J$102,4,FALSE)) -> 106 | G178: =IF(ISNA(VLOOKUP(C178,BDDG!$A$2:$F$100,5,FALSE)),"",VLOOKUP(C178,BDDG!$A$2:$F$100,5,FALSE)) -> A10 | H178: =IF(ISNA(VLOOKUP(C178,BDDG!$A$2:$F$100,6,FALSE)),"",VLOOKUP(C178,BDDG!$A$2:$F$100,6,FALSE)) -> AA31 | I178: =IF(ISERROR(VLOOKUP(C178,BDDG!$A$2:$G$100,7,FALSE)),"",VLOOKUP(C178,BDDG!$A$2:$G$100,7,FALSE)) -> 1 | J178: =IF(ISERROR(VLOOKUP(C178,BDDG!$A$2:$H$100,8,FALSE)),"",VLOOKUP(C178,BDDG!$A$2:$H$100,8,FALSE)) -> BB31 | K178: 15 | L178: 260 | M178: 4.984615385 | N178: =IF(ISERROR(VLOOKUP(C178,BDDG!$A$2:$I$100,9,FALSE)),"",VLOOKUP(C178,BDDG!$A$2:$I$100,9,FALSE)) -> CC31 | R178: =IF(ISERROR(VLOOKUP(C178,BDDG!$A$2:$J$100,10,FALSE)),"",VLOOKUP(C178,BDDG!$A$2:$J$100,10,FALSE)) -> DD31 | V178: 4.984615385 | W178: 10 | X178: 2004 | Y178: =IFERROR((INDEX($V$2:V178,MATCH(H178&MAX(IF($H$1:H177=H178,$A$1:A177)),$H$2:H178&$A$2:A178,0))-V178)*-1,"") -> 0.09404934688
A179: 2004-10-09 | C179: 815 | D179: =IF(ISNA(VLOOKUP(C179,BDDG!$A$2:$F$100,2,FALSE)),"",VLOOKUP(C179,BDDG!$A$2:$F$100,2,FALSE)) -> 0 | E179: =IF(ISNA(VLOOKUP(C179,BDDG!$A$3:$J$102,3,FALSE)),"",VLOOKUP(C179,BDDG!$A$3:$J$102,3,FALSE)) -> A | F179: =IF(ISNA(VLOOKUP(C179,BDDG!$A$3:$J$102,4,FALSE)),"",VLOOKUP(C179,BDDG!$A$3:$J$102,4,FALSE)) -> 106 | G179: =IF(ISNA(VLOOKUP(C179,BDDG!$A$2:$F$100,5,FALSE)),"",VLOOKUP(C179,BDDG!$A$2:$F$100,5,FALSE)) -> A10 | H179: =IF(ISNA(VLOOKUP(C179,BDDG!$A$2:$F$100,6,FALSE)),"",VLOOKUP(C179,BDDG!$A$2:$F$100,6,FALSE)) -> AA31 | I179: =IF(ISERROR(VLOOKUP(C179,BDDG!$A$2:$G$100,7,FALSE)),"",VLOOKUP(C179,BDDG!$A$2:$G$100,7,FALSE)) -> 1 | J179: =IF(ISERROR(VLOOKUP(C179,BDDG!$A$2:$H$100,8,FALSE)),"",VLOOKUP(C179,BDDG!$A$2:$H$100,8,FALSE)) -> BB31 | K179: 15 | L179: 255 | M179: =IF(ISERROR(K179/L179*86.4),"",K179/L179*86.4) -> 5.082352941 | N179: =IF(ISERROR(VLOOKUP(C179,BDDG!$A$2:$I$100,9,FALSE)),"",VLOOKUP(C179,BDDG!$A$2:$I$100,9,FALSE)) -> CC31 | R179: =IF(ISERROR(VLOOKUP(C179,BDDG!$A$2:$J$100,10,FALSE)),"",VLOOKUP(C179,BDDG!$A$2:$J$100,10,FALSE)) -> DD31 | V179: 5.082352941 | W179: 10 | X179: 2004 | Y179: =IFERROR((INDEX($V$2:V179,MATCH(H179&MAX(IF($H$1:H178=H179,$A$1:A178)),$H$2:H179&$A$2:A179,0))-V179)*-1,"") -> 0.09773755656
A180: 2004-10-10 | C180: 815 | D180: =IF(ISNA(VLOOKUP(C180,BDDG!$A$2:$F$100,2,FALSE)),"",VLOOKUP(C180,BDDG!$A$2:$F$100,2,FALSE)) -> 0 | E180: =IF(ISNA(VLOOKUP(C180,BDDG!$A$3:$J$102,3,FALSE)),"",VLOOKUP(C180,BDDG!$A$3:$J$102,3,FALSE)) -> A | F180: =IF(ISNA(VLOOKUP(C180,BDDG!$A$3:$J$102,4,FALSE)),"",VLOOKUP(C180,BDDG!$A$3:$J$102,4,FALSE)) -> 106 | G180: =IF(ISNA(VLOOKUP(C180,BDDG!$A$2:$F$100,5,FALSE)),"",VLOOKUP(C180,BDDG!$A$2:$F$100,5,FALSE)) -> A10 | H180: =IF(ISNA(VLOOKUP(C180,BDDG!$A$2:$F$100,6,FALSE)),"",VLOOKUP(C180,BDDG!$A$2:$F$100,6,FALSE)) -> AA31 | I180: =IF(ISERROR(VLOOKUP(C180,BDDG!$A$2:$G$100,7,FALSE)),"",VLOOKUP(C180,BDDG!$A$2:$G$100,7,FALSE)) -> 1 | J180: =IF(ISERROR(VLOOKUP(C180,BDDG!$A$2:$H$100,8,FALSE)),"",VLOOKUP(C180,BDDG!$A$2:$H$100,8,FALSE)) -> BB31 | K180: 15 | L180: 255 | M180: 5.082352941 | N180: =IF(ISERROR(VLOOKUP(C180,BDDG!$A$2:$I$100,9,FALSE)),"",VLOOKUP(C180,BDDG!$A$2:$I$100,9,FALSE)) -> CC31 | R180: =IF(ISERROR(VLOOKUP(C180,BDDG!$A$2:$J$100,10,FALSE)),"",VLOOKUP(C180,BDDG!$A$2:$J$100,10,FALSE)) -> DD31 | V180: 5.082352941 | W180: 10 | X180: 2004 | Y180: =IFERROR((INDEX($V$2:V180,MATCH(H180&MAX(IF($H$1:H179=H180,$A$1:A179)),$H$2:H180&$A$2:A180,0))-V180)*-1,"") -> 0
A181: 2004-10-11 | C181: 815 | D181: =IF(ISNA(VLOOKUP(C181,BDDG!$A$2:$F$100,2,FALSE)),"",VLOOKUP(C181,BDDG!$A$2:$F$100,2,FALSE)) -> 0 | E181: =IF(ISNA(VLOOKUP(C181,BDDG!$A$3:$J$102,3,FALSE)),"",VLOOKUP(C181,BDDG!$A$3:$J$102,3,FALSE)) -> A | F181: =IF(ISNA(VLOOKUP(C181,BDDG!$A$3:$J$102,4,FALSE)),"",VLOOKUP(C181,BDDG!$A$3:$J$102,4,FALSE)) -> 106 | G181: =IF(ISNA(VLOOKUP(C181,BDDG!$A$2:$F$100,5,FALSE)),"",VLOOKUP(C181,BDDG!$A$2:$F$100,5,FALSE)) -> A10 | H181: =IF(ISNA(VLOOKUP(C181,BDDG!$A$2:$F$100,6,FALSE)),"",VLOOKUP(C181,BDDG!$A$2:$F$100,6,FALSE)) -> AA31 | I181: =IF(ISERROR(VLOOKUP(C181,BDDG!$A$2:$G$100,7,FALSE)),"",VLOOKUP(C181,BDDG!$A$2:$G$100,7,FALSE)) -> 1 | J181: =IF(ISERROR(VLOOKUP(C181,BDDG!$A$2:$H$100,8,FALSE)),"",VLOOKUP(C181,BDDG!$A$2:$H$100,8,FALSE)) -> BB31 | K181: 15 | L181: 250 | M181: 5.184 | N181: =IF(ISERROR(VLOOKUP(C181,BDDG!$A$2:$I$100,9,FALSE)),"",VLOOKUP(C181,BDDG!$A$2:$I$100,9,FALSE)) -> CC31 | R181: =IF(ISERROR(VLOOKUP(C181,BDDG!$A$2:$J$100,10,FALSE)),"",VLOOKUP(C181,BDDG!$A$2:$J$100,10,FALSE)) -> DD31 | V181: 5.184 | W181: 10 | X181: 2004 | Y181: =IFERROR((INDEX($V$2:V181,MATCH(H181&MAX(IF($H$1:H180=H181,$A$1:A180)),$H$2:H181&$A$2:A181,0))-V181)*-1,"") -> 0.1016470588
A182: 2004-10-12 | C182: 815 | D182: =IF(ISNA(VLOOKUP(C182,BDDG!$A$2:$F$100,2,FALSE)),"",VLOOKUP(C182,BDDG!$A$2:$F$100,2,FALSE)) -> 0 | E182: =IF(ISNA(VLOOKUP(C182,BDDG!$A$3:$J$102,3,FALSE)),"",VLOOKUP(C182,BDDG!$A$3:$J$102,3,FALSE)) -> A | F182: =IF(ISNA(VLOOKUP(C182,BDDG!$A$3:$J$102,4,FALSE)),"",VLOOKUP(C182,BDDG!$A$3:$J$102,4,FALSE)) -> 106 | G182: =IF(ISNA(VLOOKUP(C182,BDDG!$A$2:$F$100,5,FALSE)),"",VLOOKUP(C182,BDDG!$A$2:$F$100,5,FALSE)) -> A10 | H182: =IF(ISNA(VLOOKUP(C182,BDDG!$A$2:$F$100,6,FALSE)),"",VLOOKUP(C182,BDDG!$A$2:$F$100,6,FALSE)) -> AA31 | I182: =IF(ISERROR(VLOOKUP(C182,BDDG!$A$2:$G$100,7,FALSE)),"",VLOOKUP(C182,BDDG!$A$2:$G$100,7,FALSE)) -> 1 | J182: =IF(ISERROR(VLOOKUP(C182,BDDG!$A$2:$H$100,8,FALSE)),"",VLOOKUP(C182,BDDG!$A$2:$H$100,8,FALSE)) -> BB31 | K182: 15 | L182: 245 | M182: 5.289795918 | N182: =IF(ISERROR(VLOOKUP(C182,BDDG!$A$2:$I$100,9,FALSE)),"",VLOOKUP(C182,BDDG!$A$2:$I$100,9,FALSE)) -> CC31 | R182: =IF(ISERROR(VLOOKUP(C182,BDDG!$A$2:$J$100,10,FALSE)),"",VLOOKUP(C182,BDDG!$A$2:$J$100,10,FALSE)) -> DD31 | V182: 5.289795918 | W182: 10 | X182: 2004 | Y182: =IFERROR((INDEX($V$2:V182,MATCH(H182&MAX(IF($H$1:H181=H182,$A$1:A181)),$H$2:H182&$A$2:A182,0))-V182)*-1,"") -> 0.1057959184
A183: 2004-10-13 | C183: 815 | D183: =IF(ISNA(VLOOKUP(C183,BDDG!$A$2:$F$100,2,FALSE)),"",VLOOKUP(C183,BDDG!$A$2:$F$100,2,FALSE)) -> 0 | E183: =IF(ISNA(VLOOKUP(C183,BDDG!$A$3:$J$102,3,FALSE)),"",VLOOKUP(C183,BDDG!$A$3:$J$102,3,FALSE)) -> A | F183: =IF(ISNA(VLOOKUP(C183,BDDG!$A$3:$J$102,4,FALSE)),"",VLOOKUP(C183,BDDG!$A$3:$J$102,4,FALSE)) -> 106 | G183: =IF(ISNA(VLOOKUP(C183,BDDG!$A$2:$F$100,5,FALSE)),"",VLOOKUP(C183,BDDG!$A$2:$F$100,5,FALSE)) -> A10 | H183: =IF(ISNA(VLOOKUP(C183,BDDG!$A$2:$F$100,6,FALSE)),"",VLOOKUP(C183,BDDG!$A$2:$F$100,6,FALSE)) -> AA31 | I183: =IF(ISERROR(VLOOKUP(C183,BDDG!$A$2:$G$100,7,FALSE)),"",VLOOKUP(C183,BDDG!$A$2:$G$100,7,FALSE)) -> 1 | J183: =IF(ISERROR(VLOOKUP(C183,BDDG!$A$2:$H$100,8,FALSE)),"",VLOOKUP(C183,BDDG!$A$2:$H$100,8,FALSE)) -> BB31 | K183: 15 | L183: 250 | M183: 5.184 | N183: =IF(ISERROR(VLOOKUP(C183,BDDG!$A$2:$I$100,9,FALSE)),"",VLOOKUP(C183,BDDG!$A$2:$I$100,9,FALSE)) -> CC31 | R183: =IF(ISERROR(VLOOKUP(C183,BDDG!$A$2:$J$100,10,FALSE)),"",VLOOKUP(C183,BDDG!$A$2:$J$100,10,FALSE)) -> DD31 | V183: 5.184 | W183: 10 | X183: 2004 | Y183: =IFERROR((INDEX($V$2:V183,MATCH(H183&MAX(IF($H$1:H182=H183,$A$1:A182)),$H$2:H183&$A$2:A183,0))-V183)*-1,"") -> -0.1057959184
A184: 2004-10-15 | C184: 815 | D184: =IF(ISNA(VLOOKUP(C184,BDDG!$A$2:$F$100,2,FALSE)),"",VLOOKUP(C184,BDDG!$A$2:$F$100,2,FALSE)) -> 0 | E184: =IF(ISNA(VLOOKUP(C184,BDDG!$A$3:$J$102,3,FALSE)),"",VLOOKUP(C184,BDDG!$A$3:$J$102,3,FALSE)) -> A | F184: =IF(ISNA(VLOOKUP(C184,BDDG!$A$3:$J$102,4,FALSE)),"",VLOOKUP(C184,BDDG!$A$3:$J$102,4,FALSE)) -> 106 | G184: =IF(ISNA(VLOOKUP(C184,BDDG!$A$2:$F$100,5,FALSE)),"",VLOOKUP(C184,BDDG!$A$2:$F$100,5,FALSE)) -> A10 | H184: =IF(ISNA(VLOOKUP(C184,BDDG!$A$2:$F$100,6,FALSE)),"",VLOOKUP(C184,BDDG!$A$2:$F$100,6,FALSE)) -> AA31 | I184: =IF(ISERROR(VLOOKUP(C184,BDDG!$A$2:$G$100,7,FALSE)),"",VLOOKUP(C184,BDDG!$A$2:$G$100,7,FALSE)) -> 1 | J184: =IF(ISERROR(VLOOKUP(C184,BDDG!$A$2:$H$100,8,FALSE)),"",VLOOKUP(C184,BDDG!$A$2:$H$100,8,FALSE)) -> BB31 | K184: 15 | L184: 270 | M184: 4.8 | N184: =IF(ISERROR(VLOOKUP(C184,BDDG!$A$2:$I$100,9,FALSE)),"",VLOOKUP(C184,BDDG!$A$2:$I$100,9,FALSE)) -> CC31 | R184: =IF(ISERROR(VLOOKUP(C184,BDDG!$A$2:$J$100,10,FALSE)),"",VLOOKUP(C184,BDDG!$A$2:$J$100,10,FALSE)) -> DD31 | V184: 4.8 | W184: 10 | X184: 2004 | Y184: =IFERROR((INDEX($V$2:V184,MATCH(H184&MAX(IF($H$1:H183=H184,$A$1:A183)),$H$2:H184&$A$2:A184,0))-V184)*-1,"") -> -0.384
A185: 2004-10-16 | C185: 815 | D185: =IF(ISNA(VLOOKUP(C185,BDDG!$A$2:$F$100,2,FALSE)),"",VLOOKUP(C185,BDDG!$A$2:$F$100,2,FALSE)) -> 0 | E185: =IF(ISNA(VLOOKUP(C185,BDDG!$A$3:$J$102,3,FALSE)),"",VLOOKUP(C185,BDDG!$A$3:$J$102,3,FALSE)) -> A | F185: =IF(ISNA(VLOOKUP(C185,BDDG!$A$3:$J$102,4,FALSE)),"",VLOOKUP(C185,BDDG!$A$3:$J$102,4,FALSE)) -> 106 | G185: =IF(ISNA(VLOOKUP(C185,BDDG!$A$2:$F$100,5,FALSE)),"",VLOOKUP(C185,BDDG!$A$2:$F$100,5,FALSE)) -> A10 | H185: =IF(ISNA(VLOOKUP(C185,BDDG!$A$2:$F$100,6,FALSE)),"",VLOOKUP(C185,BDDG!$A$2:$F$100,6,FALSE)) -> AA31 | I185: =IF(ISERROR(VLOOKUP(C185,BDDG!$A$2:$G$100,7,FALSE)),"",VLOOKUP(C185,BDDG!$A$2:$G$100,7,FALSE)) -> 1 | J185: =IF(ISERROR(VLOOKUP(C185,BDDG!$A$2:$H$100,8,FALSE)),"",VLOOKUP(C185,BDDG!$A$2:$H$100,8,FALSE)) -> BB31 | K185: 15 | L185: 270 | M185: 4.8 | N185: =IF(ISERROR(VLOOKUP(C185,BDDG!$A$2:$I$100,9,FALSE)),"",VLOOKUP(C185,BDDG!$A$2:$I$100,9,FALSE)) -> CC31 | Q185: =IF(ISERROR(O185/P185*86.4),"",O185/P185*86.4) ->  | R185: =IF(ISERROR(VLOOKUP(C185,BDDG!$A$2:$J$100,10,FALSE)),"",VLOOKUP(C185,BDDG!$A$2:$J$100,10,FALSE)) -> DD31 | V185: 4.8 | W185: 10 | X185: 2004 | Y185: =IFERROR((INDEX($V$2:V185,MATCH(H185&MAX(IF($H$1:H184=H185,$A$1:A184)),$H$2:H185&$A$2:A185,0))-V185)*-1,"") -> 0
A186: 2004-10-17 | C186: 815 | D186: =IF(ISNA(VLOOKUP(C186,BDDG!$A$2:$F$100,2,FALSE)),"",VLOOKUP(C186,BDDG!$A$2:$F$100,2,FALSE)) -> 0 | E186: =IF(ISNA(VLOOKUP(C186,BDDG!$A$3:$J$102,3,FALSE)),"",VLOOKUP(C186,BDDG!$A$3:$J$102,3,FALSE)) -> A | F186: =IF(ISNA(VLOOKUP(C186,BDDG!$A$3:$J$102,4,FALSE)),"",VLOOKUP(C186,BDDG!$A$3:$J$102,4,FALSE)) -> 106 | G186: =IF(ISNA(VLOOKUP(C186,BDDG!$A$2:$F$100,5,FALSE)),"",VLOOKUP(C186,BDDG!$A$2:$F$100,5,FALSE)) -> A10 | H186: =IF(ISNA(VLOOKUP(C186,BDDG!$A$2:$F$100,6,FALSE)),"",VLOOKUP(C186,BDDG!$A$2:$F$100,6,FALSE)) -> AA31 | I186: =IF(ISERROR(VLOOKUP(C186,BDDG!$A$2:$G$100,7,FALSE)),"",VLOOKUP(C186,BDDG!$A$2:$G$100,7,FALSE)) -> 1 | J186: =IF(ISERROR(VLOOKUP(C186,BDDG!$A$2:$H$100,8,FALSE)),"",VLOOKUP(C186,BDDG!$A$2:$H$100,8,FALSE)) -> BB31 | K186: 15 | L186: 270 | M186: 4.8 | N186: =IF(ISERROR(VLOOKUP(C186,BDDG!$A$2:$I$100,9,FALSE)),"",VLOOKUP(C186,BDDG!$A$2:$I$100,9,FALSE)) -> CC31 | R186: =IF(ISERROR(VLOOKUP(C186,BDDG!$A$2:$J$100,10,FALSE)),"",VLOOKUP(C186,BDDG!$A$2:$J$100,10,FALSE)) -> DD31 | V186: 4.8 | W186: 10 | X186: 2004 | Y186: =IFERROR((INDEX($V$2:V186,MATCH(H186&MAX(IF($H$1:H185=H186,$A$1:A185)),$H$2:H186&$A$2:A186,0))-V186)*-1,"") -> 0
A187: 2004-10-19 | C187: 815 | D187: =IF(ISNA(VLOOKUP(C187,BDDG!$A$2:$F$100,2,FALSE)),"",VLOOKUP(C187,BDDG!$A$2:$F$100,2,FALSE)) -> 0 | E187: =IF(ISNA(VLOOKUP(C187,BDDG!$A$3:$J$102,3,FALSE)),"",VLOOKUP(C187,BDDG!$A$3:$J$102,3,FALSE)) -> A | F187: =IF(ISNA(VLOOKUP(C187,BDDG!$A$3:$J$102,4,FALSE)),"",VLOOKUP(C187,BDDG!$A$3:$J$102,4,FALSE)) -> 106 | G187: =IF(ISNA(VLOOKUP(C187,BDDG!$A$2:$F$100,5,FALSE)),"",VLOOKUP(C187,BDDG!$A$2:$F$100,5,FALSE)) -> A10 | H187: =IF(ISNA(VLOOKUP(C187,BDDG!$A$2:$F$100,6,FALSE)),"",VLOOKUP(C187,BDDG!$A$2:$F$100,6,FALSE)) -> AA31 | I187: =IF(ISERROR(VLOOKUP(C187,BDDG!$A$2:$G$100,7,FALSE)),"",VLOOKUP(C187,BDDG!$A$2:$G$100,7,FALSE)) -> 1 | J187: =IF(ISERROR(VLOOKUP(C187,BDDG!$A$2:$H$100,8,FALSE)),"",VLOOKUP(C187,BDDG!$A$2:$H$100,8,FALSE)) -> BB31 | K187: 15 | L187: 265 | M187: 4.890566038 | N187: =IF(ISERROR(VLOOKUP(C187,BDDG!$A$2:$I$100,9,FALSE)),"",VLOOKUP(C187,BDDG!$A$2:$I$100,9,FALSE)) -> CC31 | R187: =IF(ISERROR(VLOOKUP(C187,BDDG!$A$2:$J$100,10,FALSE)),"",VLOOKUP(C187,BDDG!$A$2:$J$100,10,FALSE)) -> DD31 | V187: 4.890566038 | W187: 10 | X187: 2004 | Y187: =IFERROR((INDEX($V$2:V187,MATCH(H187&MAX(IF($H$1:H186=H187,$A$1:A186)),$H$2:H187&$A$2:A187,0))-V187)*-1,"") -> 0.09056603774
A188: 2004-10-21 | C188: 815 | D188: =IF(ISNA(VLOOKUP(C188,BDDG!$A$2:$F$100,2,FALSE)),"",VLOOKUP(C188,BDDG!$A$2:$F$100,2,FALSE)) -> 0 | E188: =IF(ISNA(VLOOKUP(C188,BDDG!$A$3:$J$102,3,FALSE)),"",VLOOKUP(C188,BDDG!$A$3:$J$102,3,FALSE)) -> A | F188: =IF(ISNA(VLOOKUP(C188,BDDG!$A$3:$J$102,4,FALSE)),"",VLOOKUP(C188,BDDG!$A$3:$J$102,4,FALSE)) -> 106 | G188: =IF(ISNA(VLOOKUP(C188,BDDG!$A$2:$F$100,5,FALSE)),"",VLOOKUP(C188,BDDG!$A$2:$F$100,5,FALSE)) -> A10 | H188: =IF(ISNA(VLOOKUP(C188,BDDG!$A$2:$F$100,6,FALSE)),"",VLOOKUP(C188,BDDG!$A$2:$F$100,6,FALSE)) -> AA31 | I188: =IF(ISERROR(VLOOKUP(C188,BDDG!$A$2:$G$100,7,FALSE)),"",VLOOKUP(C188,BDDG!$A$2:$G$100,7,FALSE)) -> 1 | J188: =IF(ISERROR(VLOOKUP(C188,BDDG!$A$2:$H$100,8,FALSE)),"",VLOOKUP(C188,BDDG!$A$2:$H$100,8,FALSE)) -> BB31 | K188: 15 | L188: 240 | M188: 5.4 | N188: =IF(ISERROR(VLOOKUP(C188,BDDG!$A$2:$I$100,9,FALSE)),"",VLOOKUP(C188,BDDG!$A$2:$I$100,9,FALSE)) -> CC31 | R188: =IF(ISERROR(VLOOKUP(C188,BDDG!$A$2:$J$100,10,FALSE)),"",VLOOKUP(C188,BDDG!$A$2:$J$100,10,FALSE)) -> DD31 | V188: 5.4 | W188: 10 | X188: 2004 | Y188: =IFERROR((INDEX($V$2:V188,MATCH(H188&MAX(IF($H$1:H187=H188,$A$1:A187)),$H$2:H188&$A$2:A188,0))-V188)*-1,"") -> 0.5094339623
A189: 2004-10-23 | C189: 815 | D189: =IF(ISNA(VLOOKUP(C189,BDDG!$A$2:$F$100,2,FALSE)),"",VLOOKUP(C189,BDDG!$A$2:$F$100,2,FALSE)) -> 0 | E189: =IF(ISNA(VLOOKUP(C189,BDDG!$A$3:$J$102,3,FALSE)),"",VLOOKUP(C189,BDDG!$A$3:$J$102,3,FALSE)) -> A | F189: =IF(ISNA(VLOOKUP(C189,BDDG!$A$3:$J$102,4,FALSE)),"",VLOOKUP(C189,BDDG!$A$3:$J$102,4,FALSE)) -> 106 | G189: =IF(ISNA(VLOOKUP(C189,BDDG!$A$2:$F$100,5,FALSE)),"",VLOOKUP(C189,BDDG!$A$2:$F$100,5,FALSE)) -> A10 | H189: =IF(ISNA(VLOOKUP(C189,BDDG!$A$2:$F$100,6,FALSE)),"",VLOOKUP(C189,BDDG!$A$2:$F$100,6,FALSE)) -> AA31 | I189: =IF(ISERROR(VLOOKUP(C189,BDDG!$A$2:$G$100,7,FALSE)),"",VLOOKUP(C189,BDDG!$A$2:$G$100,7,FALSE)) -> 1 | J189: =IF(ISERROR(VLOOKUP(C189,BDDG!$A$2:$H$100,8,FALSE)),"",VLOOKUP(C189,BDDG!$A$2:$H$100,8,FALSE)) -> BB31 | K189: 15 | L189: 240 | M189: 5.4 | N189: =IF(ISERROR(VLOOKUP(C189,BDDG!$A$2:$I$100,9,FALSE)),"",VLOOKUP(C189,BDDG!$A$2:$I$100,9,FALSE)) -> CC31 | R189: =IF(ISERROR(VLOOKUP(C189,BDDG!$A$2:$J$100,10,FALSE)),"",VLOOKUP(C189,BDDG!$A$2:$J$100,10,FALSE)) -> DD31 | V189: 5.4 | W189: 10 | X189: 2004 | Y189: =IFERROR((INDEX($V$2:V189,MATCH(H189&MAX(IF($H$1:H188=H189,$A$1:A188)),$H$2:H189&$A$2:A189,0))-V189)*-1,"") -> 0
A190: 2004-10-26 | C190: 815 | D190: =IF(ISNA(VLOOKUP(C190,BDDG!$A$2:$F$100,2,FALSE)),"",VLOOKUP(C190,BDDG!$A$2:$F$100,2,FALSE)) -> 0 | E190: =IF(ISNA(VLOOKUP(C190,BDDG!$A$3:$J$102,3,FALSE)),"",VLOOKUP(C190,BDDG!$A$3:$J$102,3,FALSE)) -> A | F190: =IF(ISNA(VLOOKUP(C190,BDDG!$A$3:$J$102,4,FALSE)),"",VLOOKUP(C190,BDDG!$A$3:$J$102,4,FALSE)) -> 106 | G190: =IF(ISNA(VLOOKUP(C190,BDDG!$A$2:$F$100,5,FALSE)),"",VLOOKUP(C190,BDDG!$A$2:$F$100,5,FALSE)) -> A10 | H190: =IF(ISNA(VLOOKUP(C190,BDDG!$A$2:$F$100,6,FALSE)),"",VLOOKUP(C190,BDDG!$A$2:$F$100,6,FALSE)) -> AA31 | I190: =IF(ISERROR(VLOOKUP(C190,BDDG!$A$2:$G$100,7,FALSE)),"",VLOOKUP(C190,BDDG!$A$2:$G$100,7,FALSE)) -> 1 | J190: =IF(ISERROR(VLOOKUP(C190,BDDG!$A$2:$H$100,8,FALSE)),"",VLOOKUP(C190,BDDG!$A$2:$H$100,8,FALSE)) -> BB31 | K190: 15 | L190: 235 | M190: 5.514893617 | N190: =IF(ISERROR(VLOOKUP(C190,BDDG!$A$2:$I$100,9,FALSE)),"",VLOOKUP(C190,BDDG!$A$2:$I$100,9,FALSE)) -> CC31 | R190: =IF(ISERROR(VLOOKUP(C190,BDDG!$A$2:$J$100,10,FALSE)),"",VLOOKUP(C190,BDDG!$A$2:$J$100,10,FALSE)) -> DD31 | V190: 5.514893617 | W190: 10 | X190: 2004 | Y190: =IFERROR((INDEX($V$2:V190,MATCH(H190&MAX(IF($H$1:H189=H190,$A$1:A189)),$H$2:H190&$A$2:A190,0))-V190)*-1,"") -> 0.114893617
A191: 2004-10-30 | C191: 815 | D191: =IF(ISNA(VLOOKUP(C191,BDDG!$A$2:$F$100,2,FALSE)),"",VLOOKUP(C191,BDDG!$A$2:$F$100,2,FALSE)) -> 0 | E191: =IF(ISNA(VLOOKUP(C191,BDDG!$A$3:$J$102,3,FALSE)),"",VLOOKUP(C191,BDDG!$A$3:$J$102,3,FALSE)) -> A | F191: =IF(ISNA(VLOOKUP(C191,BDDG!$A$3:$J$102,4,FALSE)),"",VLOOKUP(C191,BDDG!$A$3:$J$102,4,FALSE)) -> 106 | G191: =IF(ISNA(VLOOKUP(C191,BDDG!$A$2:$F$100,5,FALSE)),"",VLOOKUP(C191,BDDG!$A$2:$F$100,5,FALSE)) -> A10 | H191: =IF(ISNA(VLOOKUP(C191,BDDG!$A$2:$F$100,6,FALSE)),"",VLOOKUP(C191,BDDG!$A$2:$F$100,6,FALSE)) -> AA31 | I191: =IF(ISERROR(VLOOKUP(C191,BDDG!$A$2:$G$100,7,FALSE)),"",VLOOKUP(C191,BDDG!$A$2:$G$100,7,FALSE)) -> 1 | J191: =IF(ISERROR(VLOOKUP(C191,BDDG!$A$2:$H$100,8,FALSE)),"",VLOOKUP(C191,BDDG!$A$2:$H$100,8,FALSE)) -> BB31 | K191: 15 | L191: 260 | M191: 4.984615385 | N191: =IF(ISERROR(VLOOKUP(C191,BDDG!$A$2:$I$100,9,FALSE)),"",VLOOKUP(C191,BDDG!$A$2:$I$100,9,FALSE)) -> CC31 | R191: =IF(ISERROR(VLOOKUP(C191,BDDG!$A$2:$J$100,10,FALSE)),"",VLOOKUP(C191,BDDG!$A$2:$J$100,10,FALSE)) -> DD31 | V191: 4.984615385 | W191: 10 | X191: 2004 | Y191: =IFERROR((INDEX($V$2:V191,MATCH(H191&MAX(IF($H$1:H190=H191,$A$1:A190)),$H$2:H191&$A$2:A191,0))-V191)*-1,"") -> -0.5302782324
A192: 2004-11-06 | C192: 815 | D192: =IF(ISNA(VLOOKUP(C192,BDDG!$A$2:$F$100,2,FALSE)),"",VLOOKUP(C192,BDDG!$A$2:$F$100,2,FALSE)) -> 0 | E192: =IF(ISNA(VLOOKUP(C192,BDDG!$A$3:$J$102,3,FALSE)),"",VLOOKUP(C192,BDDG!$A$3:$J$102,3,FALSE)) -> A | F192: =IF(ISNA(VLOOKUP(C192,BDDG!$A$3:$J$102,4,FALSE)),"",VLOOKUP(C192,BDDG!$A$3:$J$102,4,FALSE)) -> 106 | G192: =IF(ISNA(VLOOKUP(C192,BDDG!$A$2:$F$100,5,FALSE)),"",VLOOKUP(C192,BDDG!$A$2:$F$100,5,FALSE)) -> A10 | H192: =IF(ISNA(VLOOKUP(C192,BDDG!$A$2:$F$100,6,FALSE)),"",VLOOKUP(C192,BDDG!$A$2:$F$100,6,FALSE)) -> AA31 | I192: =IF(ISERROR(VLOOKUP(C192,BDDG!$A$2:$G$100,7,FALSE)),"",VLOOKUP(C192,BDDG!$A$2:$G$100,7,FALSE)) -> 1 | J192: =IF(ISERROR(VLOOKUP(C192,BDDG!$A$2:$H$100,8,FALSE)),"",VLOOKUP(C192,BDDG!$A$2:$H$100,8,FALSE)) -> BB31 | K192: 15 | L192: 265 | M192: 4.890566038 | N192: =IF(ISERROR(VLOOKUP(C192,BDDG!$A$2:$I$100,9,FALSE)),"",VLOOKUP(C192,BDDG!$A$2:$I$100,9,FALSE)) -> CC31 | R192: =IF(ISERROR(VLOOKUP(C192,BDDG!$A$2:$J$100,10,FALSE)),"",VLOOKUP(C192,BDDG!$A$2:$J$100,10,FALSE)) -> DD31 | V192: 4.890566038 | W192: 11 | X192: 2004 | Y192: =IFERROR((INDEX($V$2:V192,MATCH(H192&MAX(IF($H$1:H191=H192,$A$1:A191)),$H$2:H192&$A$2:A192,0))-V192)*-1,"") -> -0.09404934688
A193: 2005-05-25 | C193: 860 | D193: =IF(ISNA(VLOOKUP(C193,BDDG!$A$2:$F$100,2,FALSE)),"",VLOOKUP(C193,BDDG!$A$2:$F$100,2,FALSE)) -> 0 | E193: =IF(ISNA(VLOOKUP(C193,BDDG!$A$3:$J$102,3,FALSE)),"",VLOOKUP(C193,BDDG!$A$3:$J$102,3,FALSE)) -> A | F193: =IF(ISNA(VLOOKUP(C193,BDDG!$A$3:$J$102,4,FALSE)),"",VLOOKUP(C193,BDDG!$A$3:$J$102,4,FALSE)) -> 106 | G193: =IF(ISNA(VLOOKUP(C193,BDDG!$A$2:$F$100,5,FALSE)),"",VLOOKUP(C193,BDDG!$A$2:$F$100,5,FALSE)) -> A11 | H193: =IF(ISNA(VLOOKUP(C193,BDDG!$A$2:$F$100,6,FALSE)),"",VLOOKUP(C193,BDDG!$A$2:$F$100,6,FALSE)) -> AA32 | I193: =IF(ISERROR(VLOOKUP(C193,BDDG!$A$2:$G$100,7,FALSE)),"",VLOOKUP(C193,BDDG!$A$2:$G$100,7,FALSE)) -> 2 | J193: =IF(ISERROR(VLOOKUP(C193,BDDG!$A$2:$H$100,8,FALSE)),"",VLOOKUP(C193,BDDG!$A$2:$H$100,8,FALSE)) -> BB32 | K193: 5 | L193: 10 | M193: 43.2 | N193: =IF(ISERROR(VLOOKUP(C193,BDDG!$A$2:$I$100,9,FALSE)),"",VLOOKUP(C193,BDDG!$A$2:$I$100,9,FALSE)) -> CC32 | R193: =IF(ISERROR(VLOOKUP(C193,BDDG!$A$2:$J$100,10,FALSE)),"",VLOOKUP(C193,BDDG!$A$2:$J$100,10,FALSE)) -> DD32 | V193: 43.2 | W193: 5 | X193: 2005 | Y193: =IFERROR((INDEX($V$2:V193,MATCH(H193&MAX(IF($H$1:H192=H193,$A$1:A192)),$H$2:H193&$A$2:A193,0))-V193)*-1,"") -> -5.76
A194: 2005-05-25 | C194: 862 | D194: =IF(ISNA(VLOOKUP(C194,BDDG!$A$2:$F$100,2,FALSE)),"",VLOOKUP(C194,BDDG!$A$2:$F$100,2,FALSE)) -> 0 | E194: =IF(ISNA(VLOOKUP(C194,BDDG!$A$3:$J$102,3,FALSE)),"",VLOOKUP(C194,BDDG!$A$3:$J$102,3,FALSE)) -> A | F194: =IF(ISNA(VLOOKUP(C194,BDDG!$A$3:$J$102,4,FALSE)),"",VLOOKUP(C194,BDDG!$A$3:$J$102,4,FALSE)) -> 106 | G194: =IF(ISNA(VLOOKUP(C194,BDDG!$A$2:$F$100,5,FALSE)),"",VLOOKUP(C194,BDDG!$A$2:$F$100,5,FALSE)) -> A12 | H194: =IF(ISNA(VLOOKUP(C194,BDDG!$A$2:$F$100,6,FALSE)),"",VLOOKUP(C194,BDDG!$A$2:$F$100,6,FALSE)) -> AA34 | I194: =IF(ISERROR(VLOOKUP(C194,BDDG!$A$2:$G$100,7,FALSE)),"",VLOOKUP(C194,BDDG!$A$2:$G$100,7,FALSE)) -> 1 | J194: =IF(ISERROR(VLOOKUP(C194,BDDG!$A$2:$H$100,8,FALSE)),"",VLOOKUP(C194,BDDG!$A$2:$H$100,8,FALSE)) -> BB34 | K194: 10 | L194: 15 | M194: 57.6 | N194: =IF(ISERROR(VLOOKUP(C194,BDDG!$A$2:$I$100,9,FALSE)),"",VLOOKUP(C194,BDDG!$A$2:$I$100,9,FALSE)) -> CC34 | R194: =IF(ISERROR(VLOOKUP(C194,BDDG!$A$2:$J$100,10,FALSE)),"",VLOOKUP(C194,BDDG!$A$2:$J$100,10,FALSE)) -> DD34 | V194: 57.6 | W194: =MONTH(A:A) -> 5 | X194: =YEAR(A:A) -> 2005 | Y194: =IFERROR((INDEX($V$2:V194,MATCH(H194&MAX(IF($H$1:H193=H194,$A$1:A193)),$H$2:H194&$A$2:A194,0))-V194)*-1,"") -> 5.76
A195: 2005-05-30 | C195: 842 | D195: =IF(ISNA(VLOOKUP(C195,BDDG!$A$2:$F$100,2,FALSE)),"",VLOOKUP(C195,BDDG!$A$2:$F$100,2,FALSE)) -> 0 | E195: =IF(ISNA(VLOOKUP(C195,BDDG!$A$3:$J$102,3,FALSE)),"",VLOOKUP(C195,BDDG!$A$3:$J$102,3,FALSE)) -> B | F195: =IF(ISNA(VLOOKUP(C195,BDDG!$A$3:$J$102,4,FALSE)),"",VLOOKUP(C195,BDDG!$A$3:$J$102,4,FALSE)) -> 106 | G195: =IF(ISNA(VLOOKUP(C195,BDDG!$A$2:$F$100,5,FALSE)),"",VLOOKUP(C195,BDDG!$A$2:$F$100,5,FALSE)) -> A5 | H195: =IF(ISNA(VLOOKUP(C195,BDDG!$A$2:$F$100,6,FALSE)),"",VLOOKUP(C195,BDDG!$A$2:$F$100,6,FALSE)) -> AA13 | I195: =IF(ISERROR(VLOOKUP(C195,BDDG!$A$2:$G$100,7,FALSE)),"",VLOOKUP(C195,BDDG!$A$2:$G$100,7,FALSE)) -> 1 | J195: =IF(ISERROR(VLOOKUP(C195,BDDG!$A$2:$H$100,8,FALSE)),"",VLOOKUP(C195,BDDG!$A$2:$H$100,8,FALSE)) -> BB13 | K195: 33 | L195: 60 | M195: 47.52 | N195: =IF(ISERROR(VLOOKUP(C195,BDDG!$A$2:$I$100,9,FALSE)),"",VLOOKUP(C195,BDDG!$A$2:$I$100,9,FALSE)) -> CC13 | R195: =IF(ISERROR(VLOOKUP(C195,BDDG!$A$2:$J$100,10,FALSE)),"",VLOOKUP(C195,BDDG!$A$2:$J$100,10,FALSE)) -> DD13 | V195: 47.52 | W195: 5 | X195: 2005 | Y195: =IFERROR((INDEX($V$2:V195,MATCH(H195&MAX(IF($H$1:H194=H195,$A$1:A194)),$H$2:H195&$A$2:A195,0))-V195)*-1,"") -> 4.32
A196: 2005-05-30 | C196: 848 | D196: =IF(ISNA(VLOOKUP(C196,BDDG!$A$2:$F$100,2,FALSE)),"",VLOOKUP(C196,BDDG!$A$2:$F$100,2,FALSE)) -> 0 | E196: =IF(ISNA(VLOOKUP(C196,BDDG!$A$3:$J$102,3,FALSE)),"",VLOOKUP(C196,BDDG!$A$3:$J$102,3,FALSE)) -> B | F196: =IF(ISNA(VLOOKUP(C196,BDDG!$A$3:$J$102,4,FALSE)),"",VLOOKUP(C196,BDDG!$A$3:$J$102,4,FALSE)) -> 106 | G196: =IF(ISNA(VLOOKUP(C196,BDDG!$A$2:$F$100,5,FALSE)),"",VLOOKUP(C196,BDDG!$A$2:$F$100,5,FALSE)) -> A7 | H196: =IF(ISNA(VLOOKUP(C196,BDDG!$A$2:$F$100,6,FALSE)),"",VLOOKUP(C196,BDDG!$A$2:$F$100,6,FALSE)) -> AA19 | I196: =IF(ISERROR(VLOOKUP(C196,BDDG!$A$2:$G$100,7,FALSE)),"",VLOOKUP(C196,BDDG!$A$2:$G$100,7,FALSE)) -> 2 | J196: =IF(ISERROR(VLOOKUP(C196,BDDG!$A$2:$H$100,8,FALSE)),"",VLOOKUP(C196,BDDG!$A$2:$H$100,8,FALSE)) -> BB19 | K196: 35 | L196: 60 | M196: 50.4 | N196: =IF(ISERROR(VLOOKUP(C196,BDDG!$A$2:$I$100,9,FALSE)),"",VLOOKUP(C196,BDDG!$A$2:$I$100,9,FALSE)) -> CC19 | R196: =IF(ISERROR(VLOOKUP(C196,BDDG!$A$2:$J$100,10,FALSE)),"",VLOOKUP(C196,BDDG!$A$2:$J$100,10,FALSE)) -> DD19 | V196: 50.4 | W196: 5 | X196: 2005 | Y196: =IFERROR((INDEX($V$2:V196,MATCH(H196&MAX(IF($H$1:H195=H196,$A$1:A195)),$H$2:H196&$A$2:A196,0))-V196)*-1,"") -> 27.36
A197: 2005-06-01 | C197: 861 | D197: =IF(ISNA(VLOOKUP(C197,BDDG!$A$2:$F$100,2,FALSE)),"",VLOOKUP(C197,BDDG!$A$2:$F$100,2,FALSE)) -> 0 | E197: =IF(ISNA(VLOOKUP(C197,BDDG!$A$3:$J$102,3,FALSE)),"",VLOOKUP(C197,BDDG!$A$3:$J$102,3,FALSE)) -> A | F197: =IF(ISNA(VLOOKUP(C197,BDDG!$A$3:$J$102,4,FALSE)),"",VLOOKUP(C197,BDDG!$A$3:$J$102,4,FALSE)) -> 106 | G197: =IF(ISNA(VLOOKUP(C197,BDDG!$A$2:$F$100,5,FALSE)),"",VLOOKUP(C197,BDDG!$A$2:$F$100,5,FALSE)) -> A11 | H197: =IF(ISNA(VLOOKUP(C197,BDDG!$A$2:$F$100,6,FALSE)),"",VLOOKUP(C197,BDDG!$A$2:$F$100,6,FALSE)) -> AA33 | I197: =IF(ISERROR(VLOOKUP(C197,BDDG!$A$2:$G$100,7,FALSE)),"",VLOOKUP(C197,BDDG!$A$2:$G$100,7,FALSE)) -> 2 | J197: =IF(ISERROR(VLOOKUP(C197,BDDG!$A$2:$H$100,8,FALSE)),"",VLOOKUP(C197,BDDG!$A$2:$H$100,8,FALSE)) -> BB33 | N197: =IF(ISERROR(VLOOKUP(C197,BDDG!$A$2:$I$100,9,FALSE)),"",VLOOKUP(C197,BDDG!$A$2:$I$100,9,FALSE)) -> CC33 | O197: 10 | P197: 5 | Q197: 172.8 | R197: =IF(ISERROR(VLOOKUP(C197,BDDG!$A$2:$J$100,10,FALSE)),"",VLOOKUP(C197,BDDG!$A$2:$J$100,10,FALSE)) -> DD33 | V197: =IF(ISERROR(SUM(M197,Q197,U197)),"",SUM((M197,Q197,U197))) -> 172.8 | W197: 6 | X197: 2005 | Y197: =IFERROR((INDEX($V$2:V197,MATCH(H197&MAX(IF($H$1:H196=H197,$A$1:A196)),$H$2:H197&$A$2:A197,0))-V197)*-1,"") -> 28.8
A198: 2005-06-02 | C198: 832 | D198: =IF(ISNA(VLOOKUP(C198,BDDG!$A$2:$F$100,2,FALSE)),"",VLOOKUP(C198,BDDG!$A$2:$F$100,2,FALSE)) -> 0 | E198: =IF(ISNA(VLOOKUP(C198,BDDG!$A$3:$J$102,3,FALSE)),"",VLOOKUP(C198,BDDG!$A$3:$J$102,3,FALSE)) -> A | F198: =IF(ISNA(VLOOKUP(C198,BDDG!$A$3:$J$102,4,FALSE)),"",VLOOKUP(C198,BDDG!$A$3:$J$102,4,FALSE)) -> 106 | G198: =IF(ISNA(VLOOKUP(C198,BDDG!$A$2:$F$100,5,FALSE)),"",VLOOKUP(C198,BDDG!$A$2:$F$100,5,FALSE)) -> A2 | H198: =IF(ISNA(VLOOKUP(C198,BDDG!$A$2:$F$100,6,FALSE)),"",VLOOKUP(C198,BDDG!$A$2:$F$100,6,FALSE)) -> AA2 | I198: =IF(ISERROR(VLOOKUP(C198,BDDG!$A$2:$G$100,7,FALSE)),"",VLOOKUP(C198,BDDG!$A$2:$G$100,7,FALSE)) -> 1 | J198: =IF(ISERROR(VLOOKUP(C198,BDDG!$A$2:$H$100,8,FALSE)),"",VLOOKUP(C198,BDDG!$A$2:$H$100,8,FALSE)) -> BB2 | K198: 10 | L198: 9 | M198: =IF(ISERROR(K198/L198*86.4),"",K198/L198*86.4) -> 96 | N198: =IF(ISERROR(VLOOKUP(C198,BDDG!$A$2:$I$100,9,FALSE)),"",VLOOKUP(C198,BDDG!$A$2:$I$100,9,FALSE)) -> CC2 | R198: =IF(ISERROR(VLOOKUP(C198,BDDG!$A$2:$J$100,10,FALSE)),"",VLOOKUP(C198,BDDG!$A$2:$J$100,10,FALSE)) -> DD2 | V198: =IF(ISERROR(SUM(M198,Q198,U198)),"",SUM(M198,Q198,U198)) -> 96 | W198: 6 | X198: 2005 | Y198: =IFERROR((INDEX($V$2:V198,MATCH(H198&MAX(IF($H$1:H197=H198,$A$1:A197)),$H$2:H198&$A$2:A198,0))-V198)*-1,"") -> 55.68
A199: 2005-06-02 | C199: 834 | D199: =IF(ISNA(VLOOKUP(C199,BDDG!$A$2:$F$100,2,FALSE)),"",VLOOKUP(C199,BDDG!$A$2:$F$100,2,FALSE)) -> 0 | E199: =IF(ISNA(VLOOKUP(C199,BDDG!$A$3:$J$102,3,FALSE)),"",VLOOKUP(C199,BDDG!$A$3:$J$102,3,FALSE)) -> A | F199: =IF(ISNA(VLOOKUP(C199,BDDG!$A$3:$J$102,4,FALSE)),"",VLOOKUP(C199,BDDG!$A$3:$J$102,4,FALSE)) -> 106 | G199: =IF(ISNA(VLOOKUP(C199,BDDG!$A$2:$F$100,5,FALSE)),"",VLOOKUP(C199,BDDG!$A$2:$F$100,5,FALSE)) -> A2 | H199: =IF(ISNA(VLOOKUP(C199,BDDG!$A$2:$F$100,6,FALSE)),"",VLOOKUP(C199,BDDG!$A$2:$F$100,6,FALSE)) -> AA4 | I199: =IF(ISERROR(VLOOKUP(C199,BDDG!$A$2:$G$100,7,FALSE)),"",VLOOKUP(C199,BDDG!$A$2:$G$100,7,FALSE)) -> 1 | J199: =IF(ISERROR(VLOOKUP(C199,BDDG!$A$2:$H$100,8,FALSE)),"",VLOOKUP(C199,BDDG!$A$2:$H$100,8,FALSE)) -> BB4 | K199: 10 | L199: 33 | M199: 26.18181818 | N199: =IF(ISERROR(VLOOKUP(C199,BDDG!$A$2:$I$100,9,FALSE)),"",VLOOKUP(C199,BDDG!$A$2:$I$100,9,FALSE)) -> CC4 | R199: =IF(ISERROR(VLOOKUP(C199,BDDG!$A$2:$J$100,10,FALSE)),"",VLOOKUP(C199,BDDG!$A$2:$J$100,10,FALSE)) -> DD4 | V199: 26.18181818 | W199: 6 | X199: 2005 | Y199: =IFERROR((INDEX($V$2:V199,MATCH(H199&MAX(IF($H$1:H198=H199,$A$1:A198)),$H$2:H199&$A$2:A199,0))-V199)*-1,"") -> 10.34181818
A200: 2005-06-03 | C200: 822 | D200: =IF(ISNA(VLOOKUP(C200,BDDG!$A$2:$F$100,2,FALSE)),"",VLOOKUP(C200,BDDG!$A$2:$F$100,2,FALSE)) -> 0 | E200: =IF(ISNA(VLOOKUP(C200,BDDG!$A$3:$J$102,3,FALSE)),"",VLOOKUP(C200,BDDG!$A$3:$J$102,3,FALSE)) -> A | F200: =IF(ISNA(VLOOKUP(C200,BDDG!$A$3:$J$102,4,FALSE)),"",VLOOKUP(C200,BDDG!$A$3:$J$102,4,FALSE)) -> 106 | G200: =IF(ISNA(VLOOKUP(C200,BDDG!$A$2:$F$100,5,FALSE)),"",VLOOKUP(C200,BDDG!$A$2:$F$100,5,FALSE)) -> A4 | H200: =IF(ISNA(VLOOKUP(C200,BDDG!$A$2:$F$100,6,FALSE)),"",VLOOKUP(C200,BDDG!$A$2:$F$100,6,FALSE)) -> AA12 | I200: =IF(ISERROR(VLOOKUP(C200,BDDG!$A$2:$G$100,7,FALSE)),"",VLOOKUP(C200,BDDG!$A$2:$G$100,7,FALSE)) -> 1 | J200: =IF(ISERROR(VLOOKUP(C200,BDDG!$A$2:$H$100,8,FALSE)),"",VLOOKUP(C200,BDDG!$A$2:$H$100,8,FALSE)) -> BB12 | K200: 10 | L200: 11 | M200: 78.54545455 | N200: =IF(ISERROR(VLOOKUP(C200,BDDG!$A$2:$I$100,9,FALSE)),"",VLOOKUP(C200,BDDG!$A$2:$I$100,9,FALSE)) -> CC12 | R200: =IF(ISERROR(VLOOKUP(C200,BDDG!$A$2:$J$100,10,FALSE)),"",VLOOKUP(C200,BDDG!$A$2:$J$100,10,FALSE)) -> DD12 | V200: 78.54545455 | W200: 6 | X200: 2005 | Y200: =IFERROR((INDEX($V$2:V200,MATCH(H200&MAX(IF($H$1:H199=H200,$A$1:A199)),$H$2:H200&$A$2:A200,0))-V200)*-1,"") -> 6.545454545
... 923 more rows

Sheet Météo (hidden)
A1: Couvert
A2: Froid
A3: Neige
A4: Pluie
A5: Sécheresse
A6: Soleil
A7: Vent chaud

Sheet BDDG
A1: 1 | B1: 2 | C1: 3 | D1: 4 | E1: 5 | F1: 6 | G1: 7 | H1: 8 | I1: 9 | J1: 10
A2: Code | B2: N°Ars | C2: Syndicat | D2: Secteur | E2: Commune | F2: Nom des Captages | G2: Nbrs de sources | H2: Nom ou N° sources 1 (DROITE) | I2: Nom ou N° sources 2 (GAUCHE) | J2: Nom ou N° sources 3 (MILIEU)
A3: 831 | C3: A | D3: 106 | E3: A1 | F3: AA1 | G3: 1 | H3: BB1 | I3: CC1 | J3: DD1
A4: 832 | C4: A | D4: 106 | E4: A2 | F4: AA2 | G4: 1 | H4: BB2 | I4: CC2 | J4: DD2
A5: 833 | C5: A | D5: 106 | E5: A2 | F5: AA3 | G5: 1 | H5: BB3 | I5: CC3 | J5: DD3
A6: 834 | C6: A | D6: 106 | E6: A2 | F6: AA4 | G6: 1 | H6: BB4 | I6: CC4 | J6: DD4
A7: 835 | C7: A | D7: 106 | E7: A3 | F7: AA5 | G7: 1 | H7: BB5 | I7: CC5 | J7: DD5
A8: 836 | C8: A | D8: 106 | E8: A3 | F8: AA6 | G8: 1 | H8: BB6 | I8: CC6 | J8: DD6
A9: 837 | C9: A | D9: 106 | E9: A3 | F9: AA7 | G9: 1 | H9: BB7 | I9: CC7 | J9: DD7
A10: 838 | C10: A | D10: 106 | E10: A3 | F10: AA8 | G10: 1 | H10: BB8 | I10: CC8 | J10: DD8
A11: 840 | C11: A | D11: 106 | E11: A3 | F11: AA9 | G11: 2 | H11: BB9 | I11: CC9 | J11: DD9
A12: 839 | C12: A | D12: 106 | E12: A3 | F12: AA10 | G12: 2 | H12: BB10 | I12: CC10 | J12: DD10
A13: 841 | C13: A | D13: 106 | E13: A4 | F13: AA11 | G13: 2 | H13: BB11 | I13: CC11 | J13: DD11
A14: 822 | C14: A | D14: 106 | E14: A4 | F14: AA12 | G14: 1 | H14: BB12 | I14: CC12 | J14: DD12
A15: 842 | C15: B | D15: 106 | E15: A5 | F15: AA13 | G15: 1 | H15: BB13 | I15: CC13 | J15: DD13
A16: 844 | C16: B | D16: 106 | E16: A6 | F16: AA14 | G16: 2 | H16: BB14 | I16: CC14 | J16: DD14
A17: 849 | C17: B | D17: 106 | E17: A7 | F17: AA15 | G17: 2 | H17: BB15 | I17: CC15 | J17: DD15
A18: 845 | C18: B | D18: 106 | E18: A7 | F18: AA16 | G18: 1 | H18: BB16 | I18: CC16 | J18: DD16
A19: 846 | C19: B | D19: 106 | E19: A7 | F19: AA17 | G19: 1 | H19: BB17 | I19: CC17 | J19: DD17
A20: 847 | C20: B | D20: 106 | E20: A7 | F20: AA18 | G20: 2 | H20: BB18 | I20: CC18 | J20: DD18
A21: 848 | C21: B | D21: 106 | E21: A7 | F21: AA19 | G21: 2 | H21: BB19 | I21: CC19 | J21: DD19
A22: 850 | C22: B | D22: 106 | E22: A8 | F22: AA20 | G22: 1 | H22: BB20 | I22: CC20 | J22: DD20
A23: 851 | C23: A | D23: 106 | E23: A9 | F23: AA21 | G23: 2 | H23: BB21 | I23: CC21 | J23: DD21
A24: 852 | C24: A | D24: 106 | E24: A9 | F24: AA22 | G24: 1 | H24: BB22 | I24: CC22 | J24: DD22
A25: 853 | C25: A | D25: 106 | E25: A9 | F25: AA23 | G25: 3 | H25: BB23 | I25: CC23 | J25: DD23
A26: 8000 | C26: A | D26: 106 | E26: A9 | F26: AA24 | G26: 1 | H26: BB24 | I26: CC24 | J26: DD24
A27: 854 | C27: A | D27: 106 | E27: A9 | F27: AA25 | G27: 2 | H27: BB25 | I27: CC25 | J27: DD25
A28: 855 | C28: A | D28: 106 | E28: A9 | F28: AA26 | G28: 2 | H28: BB26 | I28: CC26 | J28: DD26
A29: 856 | C29: A | D29: 106 | E29: A9 | F29: AA27 | G29: 2 | H29: BB27 | I29: CC27 | J29: DD27
A30: 857 | C30: A | D30: 106 | E30: A9 | F30: AA28 | G30: 1 | H30: BB28 | I30: CC28 | J30: DD28
A31: 858 | C31: A | D31: 106 | E31: A9 | F31: AA29 | G31: 1 | H31: BB29 | I31: CC29 | J31: DD29
A32: 859 | C32: A | D32: 106 | E32: A10 | F32: AA30 | G32: 1 | H32: BB30 | I32: CC30 | J32: DD30
A33: 815 | C33: A | D33: 106 | E33: A10 | F33: AA31 | G33: 1 | H33: BB31 | I33: CC31 | J33: DD31
A34: 860 | C34: A | D34: 106 | E34: A11 | F34: AA32 | G34: 2 | H34: BB32 | I34: CC32 | J34: DD32
A35: 861 | C35: A | D35: 106 | E35: A11 | F35: AA33 | G35: 2 | H35: BB33 | I35: CC33 | J35: DD33
A36: 862 | C36: A | D36: 106 | E36: A12 | F36: AA34 | G36: 1 | H36: BB34 | I36: CC34 | J36: DD34
A37: 863 | C37: A | D37: 106 | E37: A13 | F37: AA35 | G37: 1 | H37: BB35 | I37: CC35 | J37: DD35
A38: 864 | C38: A | D38: 106 | E38: A13 | F38: AA36 | G38: 1 | H38: BB36 | I38: CC36 | J38: DD36
A39: 865 | C39: A | D39: 106 | E39: A15 | F39: AA37 | G39: 1 | H39: BB37 | I39: CC37 | J39: DD37
A40: 868 | C40: A | D40: 108 | E40: A16 | F40: AA39 | G40: 2 | H40: BB39 | I40: CC39 | J40: DD39
A41: 869 | C41: A | D41: 108 | E41: A16 | F41: AA40 | G41: 3 | H41: BB40 | I41: CC40 | J41: DD40
A42: 870 | C42: A | D42: 108 | E42: A16 | F42: AA41 | G42: 2 | H42: BB41 | I42: CC41 | J42: DD41
A43: 866 | C43: C | D43: 108 | E43: A17 | F43: AA42 | G43: 1 | H43: BB42 | I43: CC42 | J43: DD42
A44: 867 | C44: C | D44: 108 | E44: A17 | F44: AA43 | G44: 1 | H44: BB43 | I44: CC43 | J44: DD43
A45: 871 | C45: C | D45: 108 | E45: A18 | F45: AA44 | G45: 2 | H45: BB44 | I45: CC44 | J45: DD44
A46: 872 | C46: C | D46: 108 | E46: A18 | F46: AA45 | G46: 3 | H46: BB45 | I46: CC45 | J46: DD45
A47: 873 | C47: C | D47: 108 | E47: A18 | F47: AA46 | G47: 1 | H47: BB46 | I47: CC46 | J47: DD46
A48: 874 | C48: C | D48: 108 | E48: A18 | F48: AA47 | G48: 1 | H48: BB47 | I48: CC47 | J48: DD47
A49: 875 | C49: C | D49: 108 | E49: A18 | F49: AA48 | G49: 1 | H49: BB48 | I49: CC48 | J49: DD48
A50: 876 | C50: C | D50: 108 | E50: A18 | F50: AA49 | G50: 2 | H50: BB49 | I50: CC49 | J50: DD49
A51: 877 | C51: C | D51: 108 | E51: A18 | F51: AA50 | G51: 2 | H51: BB50 | I51: CC50 | J51: DD50
A52: 882 | C52: C | D52: 108 | E52: A18 | F52: AA51 | G52: 1 | H52: BB51 | I52: CC51 | J52: DD51
A53: 878 | C53: C | D53: 108 | E53: A19 | F53: AA52 | G53: 1 | H53: BB52 | I53: CC52 | J53: DD52
A54: 879 | C54: C | D54: 108 | E54: A19 | F54: AA53 | G54: 3 | H54: BB53 | I54: CC53 | J54: DD53
A55: 880 | C55: C | D55: 108 | E55: A19 | F55: AA54 | G55: 2 | H55: BB54 | I55: CC54 | J55: DD54
A60: 800
A61: 802
A62: 803
A63: 883
A64: 884
A65: 885
A66: 886
A67: 887
A68: 888
A69: 889
A70: 890
A1664: 2015-12-31 | B1664: Couvert | C1664: 823 | K1664: 11 | L1664: 70.4
